Workbook

Sheet Financial Model
A1: Timeline
B2: Period | E2: Battery | F2: =F50 -> 50 | G2: Wind | H2: =F33 -> 200 | I2: Solar | J2: =F41 -> 150 | K2: 1 | L2: 2 | M2: 3 | N2: 4 | O2: 5 | P2: 6 | Q2: 7 | R2: 8 | S2: 9 | T2: 10 | U2: 11 | V2: 12 | W2: 13 | X2: 14 | Y2: 15 | Z2: 16 | AA2: 17 | AB2: 18 | AC2: 19 | AD2: 20 | AE2: 21 | AF2: 22 | AG2: 23 | AH2: 24 | AI2: 25 | AJ2: 26 | AK2: 27 | AL2: 28 | AM2: 29 | AN2: 30 | AO2: 31 | AP2: 32 | AQ2: 33 | AR2: 34 | AS2: 35 | AT2: 36 | AU2: 37 | AV2: 38 | AW2: 39 | AX2: 40 | AY2: 41 | AZ2: 42 | BA2: 43 | BB2: 44 | BC2: 45 | BD2: 46 | BE2: 47 | BF2: 48 | BG2: 49 | BH2: 50 | BI2: 51 | BJ2: 52 | BK2: 53 | BL2: 54 | BM2: 55 | BN2: 56 | BO2: 57 | BP2: 58 | BQ2: 59 | BR2: 60
B3: Construction Period | E3: Price | F3: =price -> 17.034154 | H3: =F11 -> 18 | K3: =K2<=$H$3 -> TRUE | L3: =L2<=$H$3 -> TRUE | M3: TRUE | N3: TRUE | O3: TRUE | P3: TRUE | Q3: TRUE | R3: TRUE | S3: TRUE | T3: TRUE | U3: TRUE | V3: TRUE | W3: TRUE | X3: TRUE | Y3: TRUE | Z3: TRUE | AA3: TRUE | AB3: TRUE | AC3: FALSE | AD3: FALSE | AE3: FALSE | AF3: FALSE | AG3: FALSE | AH3: FALSE | AI3: FALSE | AJ3: FALSE | AK3: FALSE | AL3: FALSE | AM3: FALSE | AN3: FALSE | AO3: FALSE | AP3: FALSE | AQ3: FALSE | AR3: FALSE | AS3: FALSE | AT3: FALSE | AU3: FALSE | AV3: FALSE | AW3: FALSE | AX3: FALSE | AY3: FALSE | AZ3: FALSE | BA3: FALSE | BB3: FALSE | BC3: FALSE | BD3: FALSE | BE3: FALSE | BF3: FALSE | BG3: FALSE | BH3: FALSE | BI3: FALSE | BJ3: FALSE | BK3: FALSE | BL3: FALSE | BM3: FALSE | BN3: FALSE | BO3: FALSE | BP3: FALSE | BQ3: FALSE | BR3: FALSE
B4: Months per Period | G4: =F15 -> 1 | H4: =F16 -> 12 | K4: =IF(K3,$G$4,$H$4) -> 1 | L4: =IF(L3,$G$4,$H$4) -> 1 | M4: 1 | N4: 1 | O4: 1 | P4: 1 | Q4: 1 | R4: 1 | S4: 1 | T4: 1 | U4: 1 | V4: 1 | W4: 1 | X4: 1 | Y4: 1 | Z4: 1 | AA4: 1 | AB4: 1 | AC4: 12 | AD4: 12 | AE4: 12 | AF4: 12 | AG4: 12 | AH4: 12 | AI4: 12 | AJ4: 12 | AK4: 12 | AL4: 12 | AM4: 12 | AN4: 12 | AO4: 12 | AP4: 12 | AQ4: 12 | AR4: 12 | AS4: 12 | AT4: 12 | AU4: 12 | AV4: 12 | AW4: 12 | AX4: 12 | AY4: 12 | AZ4: 12 | BA4: 12 | BB4: 12 | BC4: 12 | BD4: 12 | BE4: 12 | BF4: 12 | BG4: 12 | BH4: 12 | BI4: 12 | BJ4: 12 | BK4: 12 | BL4: 12 | BM4: 12 | BN4: 12 | BO4: 12 | BP4: 12 | BQ4: 12 | BR4: 12
B5: Start Date of Period | K5: =I6+1 -> 2020-01-01 | L5: =K6+1 -> 2020-02-01 | M5: 2020-03-01 | N5: 2020-04-01 | O5: 2020-05-01 | P5: 2020-06-01 | Q5: 2020-07-01 | R5: 2020-08-01 | S5: 2020-09-01 | T5: 2020-10-01 | U5: 2020-11-01 | V5: 2020-12-01 | W5: 2021-01-01 | X5: 2021-02-01 | Y5: 2021-03-01 | Z5: 2021-04-01 | AA5: 2021-05-01 | AB5: 2021-06-01 | AC5: 2021-07-01 | AD5: 2022-07-01 | AE5: 2023-07-01 | AF5: 2024-07-01 | AG5: 2025-07-01 | AH5: 2026-07-01 | AI5: 2027-07-01 | AJ5: 2028-07-01 | AK5: 2029-07-01 | AL5: 2030-07-01 | AM5: 2031-07-01 | AN5: 2032-07-01 | AO5: 2033-07-01 | AP5: 2034-07-01 | AQ5: =AP6+1 -> 2035-07-01 | AR5: 2036-07-01 | AS5: 2037-07-01 | AT5: 2038-07-01 | AU5: 2039-07-01 | AV5: 2040-07-01 | AW5: 2041-07-01 | AX5: 2042-07-01 | AY5: 2043-07-01 | AZ5: 2044-07-01 | BA5: 2045-07-01 | BB5: 2046-07-01 | BC5: 2047-07-01 | BD5: 2048-07-01 | BE5: 2049-07-01 | BF5: 2050-07-01 | BG5: 2051-07-01 | BH5: 2052-07-01 | BI5: 2053-07-01 | BJ5: 2054-07-01 | BK5: 2055-07-01 | BL5: 2056-07-01 | BM5: 2057-07-01 | BN5: 2058-07-01 | BO5: 2059-07-01 | BP5: 2060-07-01 | BQ5: 2061-07-01 | BR5: 2062-07-01
B6: End Date of Period | I6: =F10-1 -> 2019-12-31 | K6: =EDATE(K5,K4)-1 -> 2020-01-31 | L6: =EDATE(L5,L4)-1 -> 2020-02-29 | M6: 2020-03-31 | N6: 2020-04-30 | O6: 2020-05-31 | P6: 2020-06-30 | Q6: 2020-07-31 | R6: 2020-08-31 | S6: 2020-09-30 | T6: 2020-10-31 | U6: 2020-11-30 | V6: 2020-12-31 | W6: 2021-01-31 | X6: 2021-02-28 | Y6: 2021-03-31 | Z6: 2021-04-30 | AA6: 2021-05-31 | AB6: 2021-06-30 | AC6: 2022-06-30 | AD6: 2023-06-30 | AE6: 2024-06-30 | AF6: 2025-06-30 | AG6: 2026-06-30 | AH6: 2027-06-30 | AI6: 2028-06-30 | AJ6: 2029-06-30 | AK6: 2030-06-30 | AL6: 2031-06-30 | AM6: 2032-06-30 | AN6: 2033-06-30 | AO6: 2034-06-30 | AP6: 2035-06-30 | AQ6: 2036-06-30 | AR6: 2037-06-30 | AS6: 2038-06-30 | AT6: 2039-06-30 | AU6: 2040-06-30 | AV6: 2041-06-30 | AW6: 2042-06-30 | AX6: 2043-06-30 | AY6: 2044-06-30 | AZ6: 2045-06-30 | BA6: 2046-06-30 | BB6: 2047-06-30 | BC6: 2048-06-30 | BD6: 2049-06-30 | BE6: 2050-06-30 | BF6: 2051-06-30 | BG6: 2052-06-30 | BH6: 2053-06-30 | BI6: 2054-06-30 | BJ6: 2055-06-30 | BK6: 2056-06-30 | BL6: 2057-06-30 | BM6: 2058-06-30 | BN6: 2059-06-30 | BO6: 2060-06-30 | BP6: 2061-06-30 | BQ6: 2062-06-30 | BR6: 2063-06-30
B7: Operating Period | G7: =F12 -> 2021-07-01 | H7: =F14 -> 2056-07-01 | K7: =AND(K5>=$G$7,K5<$H$7) -> FALSE | L7: =AND(L5>=$G$7,L5<$H$7) -> FALSE | M7: FALSE | N7: FALSE | O7: FALSE | P7: FALSE | Q7: FALSE | R7: FALSE | S7: FALSE | T7: FALSE | U7: FALSE | V7: FALSE | W7: FALSE | X7: FALSE | Y7: FALSE | Z7: FALSE | AA7: FALSE | AB7: FALSE | AC7: TRUE | AD7: TRUE | AE7: TRUE | AF7: TRUE | AG7: TRUE | AH7: TRUE | AI7: TRUE | AJ7: TRUE | AK7: TRUE | AL7: TRUE | AM7: TRUE | AN7: TRUE | AO7: TRUE | AP7: TRUE | AQ7: TRUE | AR7: TRUE | AS7: TRUE | AT7: TRUE | AU7: TRUE | AV7: TRUE | AW7: TRUE | AX7: TRUE | AY7: TRUE | AZ7: TRUE | BA7: TRUE | BB7: TRUE | BC7: TRUE | BD7: TRUE | BE7: TRUE | BF7: TRUE | BG7: TRUE | BH7: TRUE | BI7: TRUE | BJ7: TRUE | BK7: TRUE | BL7: FALSE | BM7: FALSE | BN7: FALSE | BO7: FALSE | BP7: FALSE | BQ7: FALSE | BR7: FALSE
A9: Assumptions
C10: Financial Close | E10: Date | F10: 2020-01-01
C11: Construction Period | E11: Months | F11: 18
C12: Commercial Operation | E12: Date | F12: =EDATE(F10,F11) -> 2021-07-01
C13: Operating Period | E13: Years | F13: 35
C14: Decomissioning | E14: Date | F14: =EDATE(F12,F13*12) -> 2056-07-01
C15: Months per Period Construction | E15: Months | F15: 1
C16: Months per Period Operation | E16: Months | F16: 12
C17: Total Months of Construction | E17: Months | F17: =F11 -> 18
A19: Operation Assumptions
C20: Base Year for Analysis | E20: Year | F20: 2017
C21: On-Peak Week Day Begin | E21: Hour | F21: 6
C22: On-Peak Week Day End | E22: Hour | F22: 22
C23: On-Peak Saturday Begin | E23: Hour | F23: 0
C24: On-Peak Saturday End | E24: Hour | F24: 0
C25: On-Peak Sunday Begin | E25: Hour | F25: 0
C26: On-Peak Sunday End | E26: Hour | F26: 0
B28: Demand | E28: MW | F28: 90
B29: Load Factor | E29: % | F29: 1
B31: Wind Operation
C32: Include | E32: Switch | F32: FALSE
C33: Capacity | E33: MW | F33: 200
C34: Capacity Factor | E34: % | F34: 0.5
C35: Fixed Factor | E35: % | F35: 0.85
C36: Hourly Capacity Factor | E36: % | F36: ='Hourly Production'!T3 -> 0.4989400889
C37: Lifetime of Wind | E37: Years | F37: 35
B39: Solar Operation
C40: Include | E40: Switch | F40: TRUE
C41: Capacity | E41: MWp | F41: 150
C42: Capacity Factor | E42: % | F42: 0.17
C43: Fixed Factor | E43: % | F43: 0.62
C44: Hourly Capacity Factor | E44: % | F44: ='Hourly Production'!U3 -> 0.1692044826
C45: Degradation | E45: % p.a. | F45: 0.004
C46: Lifetime of Solar | E46: Years | F46: 30
B48: Battery Operation
C49: Include | E49: Switch | F49: TRUE
C50: Capacity | E50: kW | F50: 50
C51: Duration | E51: hrs | F51: 4
C52: Capacity | E52: kWh | F52: =F50*F51 -> 200
C53: Degradation | E53: % p.a. | F53: 0.02
C54: Round-trip Efficiency | E54: % | F54: 0.85
C55: Initial Battery Life | E55: Years | F55: 12
C56: Replacement Battery 1 Life | E56: Years | F56: 12
C57: Replacement Battery 2 Life | E57: Years | F57: 12
C59: Replacement Period | E59: Years | F59: =F55 -> 12 | G59: =F56+F55 -> 24 | H59: =G59+F57 -> 36
B61: Capital Expenditures
C62: Wind Capital Expenditure per kW | E62: USD/kW | F62: 1100
C63: Construction Period | E63: Months | F63: =F11 -> 18
C64: S-Curve Start Period | E64: Month | F64: =F63-F11+1 -> 1
C65: Total Construction Cost | E65: USD 000's | F65: =F62*F33 -> 220000
C67: Solar Capital Expenditure per kW | E67: USD/kW | F67: 700
C68: Construction Period | E68: Months | F68: 5
C69: S-Curve Start Period | E69: Month | F69: =F11-F68+1 -> 14
C70: Total Construction Cost | E70: USD 000's | F70: =F67*F41 -> 105000
C72: Initial Battery Capital Cost | E72: USD/kWh | F72: 100
C73: Duration of Battery | E73: Hours | F73: =F51 -> 4
C74: Battery Cost per kW | E74: Cost/kW | F74: =F72*F73 -> 400
C75: Construction Period | E75: Months | F75: 3
C76: S-Curve Begin | E76: Month | F76: =F11-F75+1 -> 16
C77: Construction Cost | E77: USD 000's | F77: =F74*F50 -> 20000
C79: Replacement Battery Cost 1
C80: Period of Replacement | E80: Year | F80: =F55 -> 12
C81: Battery Cost per kWh | E81: USD/kWh | F81: =F72/2 -> 50
C82: Battery Cost per kW | E82: Cost/kW | F82: =F81*F73 -> 200
C83: Construction Cost | E83: USD 000's | F83: =F82*F50 -> 10000
C85: Replacement Battery Cost 2
C86: Period of Replacement | E86: Year | F86: =F80+F56 -> 24
C87: Battery Cost per kWh | E87: USD/kWh | F87: =F81/2 -> 25
C88: Battery Cost per kW | E88: Cost/kW | F88: =F87*F80 -> 300
C89: Construction Cost | E89: USD 000's | F89: =F88*F56 -> 3600
B91: Operating and Maintenance
D92: General Inflation Rate for O&M | E92: % | F92: 0.012
D94: Wind O&M Expense per MWH | E94: USD/MWH | F94: 10
D95: Solar O&M Expense per MWH | E95: USD/MWH | F95: 5.5
D96: Wind O&M Expense per kW-yr | E96: USD/kW-yr | F96: =F94*8760*F34/1000 -> 43.8
D97: Solar O&M Expense per kW-yr | E97: USD/kW-yr | F97: =F95*8760*F42/1000 -> 8.1906
D98: Battery O&M as % of Cap Exp | E98: % | F98: 0.005
D99: Battery O&M Expense per kW-yr | E99: USD/kW-yr | F99: =F98*F74 -> 2
B101: Pricing
D102: Inflation Rate in Price | E102: % | F102: 0.015
D103: Price per MWH | E103: USD/MWH | F103: 17.034154 | G103: price
D104: Target IRR | E104: % | F104: 0.07
A106: Tax and Depreciaiton Parameters
C107: Income Tax Rate | E107: % | F107: 0.21
C109: ITC for Solar | E109: % | F109: 0.3
C110: PTC of Wind | E110: USD/MWH | F110: 10
C111: Inflation in PTC | E111: % | F111: 0
C112: PTC Term | E112: Years | F112: 10
C114: MACRS Depreciation Life | E114: 5
D115: Years | G115: 0 | H115: 1 | I115: 2 | J115: 3 | K115: 4 | L115: 5 | M115: 6
D116: MACRS Rate | E116: 2 | G116: 0 | H116: =VDB(1,0,$E$114,G115,H115,$E$116) -> 0.4 | I116: =VDB(1,0,$E$114,H115,I115,$E$116) -> 0.24 | J116: =VDB(1,0,$E$114,I115,J115,$E$116) -> 0.144 | K116: =VDB(1,0,$E$114,J115,K115,$E$116) -> 0.108 | L116: =VDB(1,0,$E$114,K115,L115,$E$116) -> 0.108 | M116: 0
H117: =AVERAGE(G116,H116) -> 0.2 | I117: 0.32 | J117: =AVERAGE(I116,J116) -> 0.192 | K117: =AVERAGE(J116,K116) -> 0.126 | L117: =AVERAGE(K116,L116) -> 0.108 | M117: 0.054
C119: Depreciation Base Reduction for ITC | E119: 0.5
C120: Bonus Depreciation Percent
A122: Financing
B123: Yield for Flip | E123: 0.065
B124: Time for Flip
F125: Tax Investor | G125: Sponsor
B126: Percent Financing | F126: 0.55 | G126: =1-F126 -> 0.45
B127: Percent of Cash Flow Pre-Flip | F127: 0.4 | G127: =1-F127 -> 0.6
B128: Percent of Income Pre-Flip | F128: 0.99 | G128: =1-F128 -> 0.01
B129: Percent of Cash Flow Post-Flip | F129: 0.1 | G129: =1-F129 -> 0.9
B130: Percent of Income Post-Flip | F130: 0.1 | G130: =1-F130 -> 0.9
F131: Investor | G131: sponsor | H131: overall
D132: IRR | F132: =G400 -> 0.08496545315 | G132: =G401 -> 0.1154269266 | H132: =G402 -> 0.08735503852
G133: =I133/100 -> 0.09 | I133: 9
B134: Bridge Loan Applied | F134: TRUE
B135: Sponsor Up-Front Funding Required | E135: % | F135: 0
B136: Interest Rate on Bridge Loan | E136: % p.a. | F136: 0.03
A141: Operation
C142: Total Load | E142: MWH | F142: First Year | G142: =SUM('Hourly Production'!V8:V8767) -> 788400 | H142: =G142 -> 788400 | K142: =$H$142*K7 -> 0 | L142: 0 | M142: 0 | N142: 0 | O142: 0 | P142: 0 | Q142: 0 | R142: 0 | S142: 0 | T142: 0 | U142: 0 | V142: 0 | W142: 0 | X142: 0 | Y142: 0 | Z142: 0 | AA142: 0 | AB142: 0 | AC142: 788400 | AD142: 788400 | AE142: 788400 | AF142: 788400 | AG142: 788400 | AH142: 788400 | AI142: 788400 | AJ142: 788400 | AK142: 788400 | AL142: 788400 | AM142: 788400 | AN142: 788400 | AO142: 788400 | AP142: 788400 | AQ142: =$H$142*AQ7 -> 788400 | AR142: 788400 | AS142: 788400 | AT142: 788400 | AU142: 788400 | AV142: 788400 | AW142: 788400 | AX142: 788400 | AY142: 788400 | AZ142: 788400 | BA142: 788400 | BB142: 788400 | BC142: 788400 | BD142: 788400 | BE142: 788400 | BF142: 788400 | BG142: 788400 | BH142: 788400 | BI142: 788400 | BJ142: 788400 | BK142: 788400 | BL142: 0 | BM142: 0 | BN142: 0 | BO142: 0 | BP142: 0 | BQ142: 0 | BR142: 0
C144: Wind Production | E144: MWH | G144: =SUM('Hourly Production'!X8:X8767) -> 874143.0357 | H144: =G144 -> 874143.0357 | K144: =$H$144*K7 -> 0 | L144: 0 | M144: 0 | N144: 0 | O144: 0 | P144: 0 | Q144: 0 | R144: 0 | S144: 0 | T144: 0 | U144: 0 | V144: 0 | W144: 0 | X144: 0 | Y144: 0 | Z144: 0 | AA144: 0 | AB144: 0 | AC144: 874143.0357 | AD144: 874143.0357 | AE144: 874143.0357 | AF144: 874143.0357 | AG144: 874143.0357 | AH144: 874143.0357 | AI144: 874143.0357 | AJ144: 874143.0357 | AK144: 874143.0357 | AL144: 874143.0357 | AM144: 874143.0357 | AN144: 874143.0357 | AO144: 874143.0357 | AP144: 874143.0357 | AQ144: =$H$144*AQ7 -> 874143.0357 | AR144: 874143.0357 | AS144: 874143.0357 | AT144: 874143.0357 | AU144: 874143.0357 | AV144: 874143.0357 | AW144: 874143.0357 | AX144: 874143.0357 | AY144: 874143.0357 | AZ144: 874143.0357 | BA144: 874143.0357 | BB144: 874143.0357 | BC144: 874143.0357 | BD144: 874143.0357 | BE144: 874143.0357 | BF144: 874143.0357 | BG144: 874143.0357 | BH144: 874143.0357 | BI144: 874143.0357 | BJ144: 874143.0357 | BK144: 874143.0357 | BL144: 0 | BM144: 0 | BN144: 0 | BO144: 0 | BP144: 0 | BQ144: 0 | BR144: 0
C145: Degradation | E145: % p.p. | G145: =F45 -> 0.004 | K145: =$G$145*K7 -> 0 | L145: 0 | M145: 0 | N145: 0 | O145: 0 | P145: 0 | Q145: 0 | R145: 0 | S145: 0 | T145: 0 | U145: 0 | V145: 0 | W145: 0 | X145: 0 | Y145: 0 | Z145: 0 | AA145: 0 | AB145: 0 | AC145: 0.004 | AD145: 0.004 | AE145: 0.004 | AF145: 0.004 | AG145: 0.004 | AH145: 0.004 | AI145: 0.004 | AJ145: 0.004 | AK145: 0.004 | AL145: 0.004 | AM145: 0.004 | AN145: 0.004 | AO145: 0.004 | AP145: 0.004 | AQ145: =$G$145*AQ7 -> 0.004 | AR145: 0.004 | AS145: 0.004 | AT145: 0.004 | AU145: 0.004 | AV145: 0.004 | AW145: 0.004 | AX145: 0.004 | AY145: 0.004 | AZ145: 0.004 | BA145: 0.004 | BB145: 0.004 | BC145: 0.004 | BD145: 0.004 | BE145: 0.004 | BF145: 0.004 | BG145: 0.004 | BH145: 0.004 | BI145: 0.004 | BJ145: 0.004 | BK145: 0.004 | BL145: 0 | BM145: 0 | BN145: 0 | BO145: 0 | BP145: 0 | BQ145: 0 | BR145: 0
C146: Degradation Index | E146: Index | I146: 1 | K146: =I146*(1+K145*K7) -> 1 | L146: =K146*(1+L145*L7) -> 1 | M146: 1 | N146: 1 | O146: 1 | P146: 1 | Q146: 1 | R146: 1 | S146: 1 | T146: 1 | U146: 1 | V146: 1 | W146: 1 | X146: 1 | Y146: 1 | Z146: 1 | AA146: 1 | AB146: 1 | AC146: 1.004 | AD146: 1.008016 | AE146: 1.012048064 | AF146: 1.016096256 | AG146: 1.020160641 | AH146: 1.024241284 | AI146: 1.028338249 | AJ146: 1.032451602 | AK146: 1.036581408 | AL146: 1.040727734 | AM146: 1.044890645 | AN146: 1.049070208 | AO146: 1.053266488 | AP146: 1.057479554 | AQ146: =AP146*(1+AQ145*AQ7) -> 1.061709473 | AR146: 1.06595631 | AS146: 1.070220136 | AT146: 1.074501016 | AU146: 1.07879902 | AV146: 1.083114216 | AW146: 1.087446673 | AX146: 1.09179646 | AY146: 1.096163646 | AZ146: 1.1005483 | BA146: 1.104950494 | BB146: 1.109370296 | BC146: 1.113807777 | BD146: 1.118263008 | BE146: 1.12273606 | BF146: 1.127227004 | BG146: 1.131735912 | BH146: 1.136262856 | BI146: 1.140807907 | BJ146: 1.145371139 | BK146: 1.149952623 | BL146: 1.149952623 | BM146: 1.149952623 | BN146: 1.149952623 | BO146: 1.149952623 | BP146: 1.149952623 | BQ146: 1.149952623 | BR146: 1.149952623
C147: Solar Production without Degradation | E147: MWH | F147: First Year | G147: =SUM('Hourly Production'!W8:W1048576) -> 222334.6901 | H147: =G147 -> 222334.6901 | K147: =$H$147*K7 -> 0 | L147: 0 | M147: 0 | N147: 0 | O147: 0 | P147: 0 | Q147: 0 | R147: 0 | S147: 0 | T147: 0 | U147: 0 | V147: 0 | W147: 0 | X147: 0 | Y147: 0 | Z147: 0 | AA147: 0 | AB147: 0 | AC147: 222334.6901 | AD147: 222334.6901 | AE147: 222334.6901 | AF147: 222334.6901 | AG147: 222334.6901 | AH147: 222334.6901 | AI147: 222334.6901 | AJ147: 222334.6901 | AK147: 222334.6901 | AL147: 222334.6901 | AM147: 222334.6901 | AN147: 222334.6901 | AO147: 222334.6901 | AP147: 222334.6901 | AQ147: =$H$147*AQ7 -> 222334.6901 | AR147: 222334.6901 | AS147: 222334.6901 | AT147: 222334.6901 | AU147: 222334.6901 | AV147: 222334.6901 | AW147: 222334.6901 | AX147: 222334.6901 | AY147: 222334.6901 | AZ147: 222334.6901 | BA147: 222334.6901 | BB147: 222334.6901 | BC147: 222334.6901 | BD147: 222334.6901 | BE147: 222334.6901 | BF147: 222334.6901 | BG147: 222334.6901 | BH147: 222334.6901 | BI147: 222334.6901 | BJ147: 222334.6901 | BK147: 222334.6901 | BL147: 0 | BM147: 0 | BN147: 0 | BO147: 0 | BP147: 0 | BQ147: 0 | BR147: 0
C148: Solar Production with Degradation | K148: =K147/K146 -> 0 | L148: =L147/L146 -> 0 | M148: 0 | N148: 0 | O148: 0 | P148: 0 | Q148: 0 | R148: 0 | S148: 0 | T148: 0 | U148: 0 | V148: 0 | W148: 0 | X148: 0 | Y148: 0 | Z148: 0 | AA148: 0 | AB148: 0 | AC148: 221448.8945 | AD148: 220566.628 | AE148: 219687.8765 | AF148: 218812.626 | AG148: 217940.8625 | AH148: 217072.5722 | AI148: 216207.7413 | AJ148: 215346.3559 | AK148: 214488.4022 | AL148: 213633.8668 | AM148: 212782.7358 | AN148: 211934.9958 | AO148: 211090.6333 | AP148: 210249.6348 | AQ148: 209411.9868 | AR148: 208577.6761 | AS148: 207746.6894 | AT148: 206919.0133 | AU148: 206094.6348 | AV148: 205273.5406 | AW148: 204455.7177 | AX148: 203641.1531 | AY148: 202829.8338 | AZ148: 202021.7468 | BA148: 201216.8793 | BB148: 200415.2184 | BC148: 199616.7514 | BD148: 198821.4655 | BE148: 198029.3482 | BF148: 197240.3866 | BG148: 196454.5683 | BH148: 195671.8808 | BI148: 194892.3116 | BJ148: 194115.8482 | BK148: 193342.4783 | BL148: 0 | BM148: 0 | BN148: 0 | BO148: 0 | BP148: 0 | BQ148: 0 | BR148: 0
C150: Operating Period | K150: =I150+K7 -> 0 | L150: =K150+L7 -> 0 | M150: 0 | N150: 0 | O150: 0 | P150: 0 | Q150: 0 | R150: 0 | S150: 0 | T150: 0 | U150: 0 | V150: 0 | W150: 0 | X150: 0 | Y150: 0 | Z150: 0 | AA150: 0 | AB150: 0 | AC150: 1 | AD150: 2 | AE150: 3 | AF150: 4 | AG150: 5 | AH150: 6 | AI150: 7 | AJ150: 8 | AK150: 9 | AL150: 10 | AM150: 11 | AN150: 12 | AO150: 13 | AP150: 14 | AQ150: =AP150+AQ7 -> 15 | AR150: 16 | AS150: 17 | AT150: 18 | AU150: 19 | AV150: 20 | AW150: 21 | AX150: 22 | AY150: 23 | AZ150: 24 | BA150: 25 | BB150: 26 | BC150: 27 | BD150: 28 | BE150: 29 | BF150: 30 | BG150: 31 | BH150: 32 | BI150: 33 | BJ150: 34 | BK150: 35 | BL150: 35 | BM150: 35 | BN150: 35 | BO150: 35 | BP150: 35 | BQ150: 35 | BR150: 35
C151: Battery Replacement Period | E151: Switch | F151: Battery Life | G151: =F55 -> 12 | K151: =MOD(K150,$G$151)=1 -> FALSE | L151: =MOD(L150,$G$151)=1 -> FALSE | M151: FALSE | N151: FALSE | O151: FALSE | P151: FALSE | Q151: FALSE | R151: FALSE | S151: FALSE | T151: FALSE | U151: FALSE | V151: FALSE | W151: FALSE | X151: FALSE | Y151: FALSE | Z151: FALSE | AA151: FALSE | AB151: FALSE | AC151: TRUE | AD151: FALSE | AE151: FALSE | AF151: FALSE | AG151: FALSE | AH151: FALSE | AI151: FALSE | AJ151: FALSE | AK151: FALSE | AL151: FALSE | AM151: FALSE | AN151: FALSE | AO151: TRUE | AP151: FALSE | AQ151: FALSE | AR151: FALSE | AS151: FALSE | AT151: FALSE | AU151: FALSE | AV151: FALSE | AW151: FALSE | AX151: FALSE | AY151: FALSE | AZ151: FALSE | BA151: TRUE | BB151: FALSE | BC151: FALSE | BD151: FALSE | BE151: FALSE | BF151: FALSE | BG151: FALSE | BH151: FALSE | BI151: FALSE | BJ151: FALSE | BK151: FALSE | BL151: FALSE | BM151: FALSE | BN151: FALSE | BO151: FALSE | BP151: FALSE | BQ151: FALSE | BR151: FALSE
C152: Battery Replacement Period | K152: =ISNUMBER(MATCH(K150,$59:$59,0)) -> FALSE | L152: FALSE | M152: FALSE | N152: FALSE | O152: FALSE | P152: FALSE | Q152: FALSE | R152: FALSE | S152: FALSE | T152: FALSE | U152: FALSE | V152: FALSE | W152: FALSE | X152: FALSE | Y152: FALSE | Z152: FALSE | AA152: FALSE | AB152: FALSE | AC152: FALSE | AD152: FALSE | AE152: FALSE | AF152: FALSE | AG152: FALSE | AH152: FALSE | AI152: FALSE | AJ152: FALSE | AK152: FALSE | AL152: FALSE | AM152: FALSE | AN152: TRUE | AO152: FALSE | AP152: FALSE | AQ152: =ISNUMBER(MATCH(AQ150,$59:$59,0)) -> FALSE | AR152: FALSE | AS152: FALSE | AT152: FALSE | AU152: FALSE | AV152: FALSE | AW152: FALSE | AX152: FALSE | AY152: FALSE | AZ152: TRUE | BA152: FALSE | BB152: FALSE | BC152: FALSE | BD152: FALSE | BE152: FALSE | BF152: FALSE | BG152: FALSE | BH152: FALSE | BI152: FALSE | BJ152: FALSE | BK152: FALSE | BL152: FALSE | BM152: FALSE | BN152: FALSE | BO152: FALSE | BP152: FALSE | BQ152: FALSE | BR152: FALSE
C154: Degradation | E154: % p.p | F154: Degradation | G154: =F53 -> 0.02 | K154: =$G$154 -> 0.02 | L154: =$G$154 -> 0.02 | M154: 0.02 | N154: 0.02 | O154: 0.02 | P154: 0.02 | Q154: 0.02 | R154: 0.02 | S154: 0.02 | T154: 0.02 | U154: 0.02 | V154: 0.02 | W154: 0.02 | X154: 0.02 | Y154: 0.02 | Z154: 0.02 | AA154: 0.02 | AB154: 0.02 | AC154: 0.02 | AD154: 0.02 | AE154: 0.02 | AF154: 0.02 | AG154: 0.02 | AH154: 0.02 | AI154: 0.02 | AJ154: 0.02 | AK154: 0.02 | AL154: 0.02 | AM154: 0.02 | AN154: 0.02 | AO154: 0.02 | AP154: 0.02 | AQ154: 0.02 | AR154: 0.02 | AS154: 0.02 | AT154: 0.02 | AU154: 0.02 | AV154: 0.02 | AW154: 0.02 | AX154: 0.02 | AY154: 0.02 | AZ154: 0.02 | BA154: 0.02 | BB154: 0.02 | BC154: 0.02 | BD154: 0.02 | BE154: 0.02 | BF154: 0.02 | BG154: 0.02 | BH154: 0.02 | BI154: 0.02 | BJ154: 0.02 | BK154: 0.02 | BL154: 0.02 | BM154: 0.02 | BN154: 0.02 | BO154: 0.02 | BP154: 0.02 | BQ154: 0.02 | BR154: 0.02
C155: Degradation Index | E155: Index | I155: 1 | K155: =IF(K151,1,I155*(1+K154*K7)) -> 1 | L155: =IF(L151,1,K155*(1+L154*L7)) -> 1 | M155: 1 | N155: 1 | O155: 1 | P155: 1 | Q155: 1 | R155: 1 | S155: 1 | T155: 1 | U155: 1 | V155: 1 | W155: 1 | X155: 1 | Y155: 1 | Z155: 1 | AA155: 1 | AB155: 1 | AC155: 1 | AD155: 1.02 | AE155: 1.0404 | AF155: 1.061208 | AG155: 1.08243216 | AH155: 1.104080803 | AI155: 1.126162419 | AJ155: 1.148685668 | AK155: 1.171659381 | AL155: 1.195092569 | AM155: 1.21899442 | AN155: 1.243374308 | AO155: 1 | AP155: 1.02 | AQ155: =IF(AQ151,1,AP155*(1+AQ154*AQ7)) -> 1.0404 | AR155: 1.061208 | AS155: 1.08243216 | AT155: 1.104080803 | AU155: 1.126162419 | AV155: 1.148685668 | AW155: 1.171659381 | AX155: 1.195092569 | AY155: 1.21899442 | AZ155: 1.243374308 | BA155: 1 | BB155: 1.02 | BC155: 1.0404 | BD155: 1.061208 | BE155: 1.08243216 | BF155: 1.104080803 | BG155: 1.126162419 | BH155: 1.148685668 | BI155: 1.171659381 | BJ155: 1.195092569 | BK155: 1.21899442 | BL155: 1.21899442 | BM155: 1.21899442 | BN155: 1.21899442 | BO155: 1.21899442 | BP155: 1.21899442 | BQ155: 1.21899442 | BR155: 1.21899442
C156: Charging with Degradation | E156: MWH | F156: First Year | G156: =SUM('Hourly Production'!AD8:AD1048576) -> 32660.38844 | H156: =G156 -> 32660.38844 | K156: =$H$156/K155*K7 -> 0 | L156: 0 | M156: 0 | N156: 0 | O156: 0 | P156: 0 | Q156: 0 | R156: 0 | S156: 0 | T156: 0 | U156: 0 | V156: 0 | W156: 0 | X156: 0 | Y156: 0 | Z156: 0 | AA156: 0 | AB156: 0 | AC156: 32660.38844 | AD156: 32019.98867 | AE156: 31392.14575 | AF156: 30776.61348 | AG156: 30173.15048 | AH156: 29581.52007 | AI156: 29001.49027 | AJ156: 28432.8336 | AK156: 27875.32706 | AL156: 27328.75201 | AM156: 26792.89413 | AN156: 26267.54327 | AO156: 32660.38844 | AP156: 32019.98867 | AQ156: =$H$156/AQ155*AQ7 -> 31392.14575 | AR156: 30776.61348 | AS156: 30173.15048 | AT156: 29581.52007 | AU156: 29001.49027 | AV156: 28432.8336 | AW156: 27875.32706 | AX156: 27328.75201 | AY156: 26792.89413 | AZ156: 26267.54327 | BA156: 32660.38844 | BB156: 32019.98867 | BC156: 31392.14575 | BD156: 30776.61348 | BE156: 30173.15048 | BF156: 29581.52007 | BG156: 29001.49027 | BH156: 28432.8336 | BI156: 27875.32706 | BJ156: 27328.75201 | BK156: 26792.89413 | BL156: 0 | BM156: 0 | BN156: 0 | BO156: 0 | BP156: 0 | BQ156: 0 | BR156: 0
C157: Discharge with Degradation | E157: MWH | F157: First Year | G157: =SUM('Hourly Production'!AF8:AF1048576) -> 27561.33018 | H157: =G157 -> 27561.33018 | K157: =$H$157/K155*K7 -> 0 | L157: 0 | M157: 0 | N157: 0 | O157: 0 | P157: 0 | Q157: 0 | R157: 0 | S157: 0 | T157: 0 | U157: 0 | V157: 0 | W157: 0 | X157: 0 | Y157: 0 | Z157: 0 | AA157: 0 | AB157: 0 | AC157: 27561.33018 | AD157: 27020.91194 | AE157: 26491.09013 | AF157: 25971.657 | AG157: 25462.40882 | AH157: 24963.1459 | AI157: 24473.67245 | AJ157: 23993.79652 | AK157: 23523.32992 | AL157: 23062.08816 | AM157: 22609.89035 | AN157: 22166.55917 | AO157: 27561.33018 | AP157: 27020.91194 | AQ157: =$H$157/AQ155*AQ7 -> 26491.09013 | AR157: 25971.657 | AS157: 25462.40882 | AT157: 24963.1459 | AU157: 24473.67245 | AV157: 23993.79652 | AW157: 23523.32992 | AX157: 23062.08816 | AY157: 22609.89035 | AZ157: 22166.55917 | BA157: 27561.33018 | BB157: 27020.91194 | BC157: 26491.09013 | BD157: 25971.657 | BE157: 25462.40882 | BF157: 24963.1459 | BG157: 24473.67245 | BH157: 23993.79652 | BI157: 23523.32992 | BJ157: 23062.08816 | BK157: 22609.89035 | BL157: 0 | BM157: 0 | BN157: 0 | BO157: 0 | BP157: 0 | BQ157: 0 | BR157: 0
C159: Net Purchases and Sales | E159: MWH | K159: =K142-K144-K147+K156-K157 -> 0 | L159: =L142-L144-L147+L156-L157 -> 0 | M159: 0 | N159: 0 | O159: 0 | P159: 0 | Q159: 0 | R159: 0 | S159: 0 | T159: 0 | U159: 0 | V159: 0 | W159: 0 | X159: 0 | Y159: 0 | Z159: 0 | AA159: 0 | AB159: 0 | AC159: -302978.6675 | AD159: -303078.6491 | AE159: -303176.6702 | AF159: -303272.7693 | AG159: -303366.9841 | AH159: -303459.3516 | AI159: -303549.908 | AJ159: -303638.6887 | AK159: -303725.7287 | AL159: -303811.0619 | AM159: -303894.722 | AN159: -303976.7417 | AO159: -302978.6675 | AP159: -303078.6491 | AQ159: -303176.6702 | AR159: -303272.7693 | AS159: -303366.9841 | AT159: -303459.3516 | AU159: -303549.908 | AV159: -303638.6887 | AW159: -303725.7287 | AX159: -303811.0619 | AY159: -303894.722 | AZ159: -303976.7417 | BA159: -302978.6675 | BB159: -303078.6491 | BC159: -303176.6702 | BD159: -303272.7693 | BE159: -303366.9841 | BF159: -303459.3516 | BG159: -303549.908 | BH159: -303638.6887 | BI159: -303725.7287 | BJ159: -303811.0619 | BK159: -303894.722 | BL159: 0 | BM159: 0 | BN159: 0 | BO159: 0 | BP159: 0 | BQ159: 0 | BR159: 0
C160: Change in Net Purchases and Sales | E160: MWH | L160: =IF(ABS(K159)>0.1,L159/K159)*1 -> 0 | M160: =IF(ABS(L159)>0.1,M159/L159)*1 -> 0 | N160: 0 | O160: 0 | P160: 0 | Q160: 0 | R160: 0 | S160: 0 | T160: 0 | U160: 0 | V160: 0 | W160: 0 | X160: 0 | Y160: 0 | Z160: 0 | AA160: 0 | AB160: 0 | AC160: 0 | AD160: 1.000329995 | AE160: 1.000323418 | AF160: 1.000316974 | AG160: 1.00031066 | AH160: 1.000304474 | AI160: 1.000298413 | AJ160: 1.000292475 | AK160: 1.000286656 | AL160: 1.000280955 | AM160: 1.000275369 | AN160: 1.000269895 | AO160: 0.9967166101 | AP160: 1.000329995 | AQ160: 1.000323418 | AR160: 1.000316974 | AS160: 1.00031066 | AT160: 1.000304474 | AU160: 1.000298413 | AV160: 1.000292475 | AW160: 1.000286656 | AX160: 1.000280955 | AY160: 1.000275369 | AZ160: 1.000269895 | BA160: 0.9967166101 | BB160: 1.000329995 | BC160: 1.000323418 | BD160: 1.000316974 | BE160: 1.00031066 | BF160: 1.000304474 | BG160: 1.000298413 | BH160: 1.000292475 | BI160: 1.000286656 | BJ160: 1.000280955 | BK160: 1.000275369 | BL160: 0 | BM160: 0 | BN160: 0 | BO160: 0 | BP160: 0 | BQ160: 0 | BR160: 0
C162: Purchases from Market | E162: MWH | F162: First Year | G162: =SUM('Hourly Production'!AH8:AH1048576) -> 90681.87319 | I162: =G162 -> 90681.87319 | K162: =IF(K160>0,I162*K160,$I$162)*K7 -> 0 | L162: =IF(L160>0,K162*L160,$I$162)*L7 -> 0 | M162: 0 | N162: 0 | O162: 0 | P162: 0 | Q162: 0 | R162: 0 | S162: 0 | T162: 0 | U162: 0 | V162: 0 | W162: 0 | X162: 0 | Y162: 0 | Z162: 0 | AA162: 0 | AB162: 0 | AC162: 90681.87319 | AD162: 90711.79779 | AE162: 90741.13562 | AF162: 90769.8982 | AG162: 90798.09681 | AH162: 90825.74251 | AI162: 90852.84614 | AJ162: 90879.41832 | AK162: 90905.46947 | AL162: 90931.00983 | AM162: 90956.04938 | AN162: 90980.59797 | AO162: 90681.87319 | AP162: 90711.79779 | AQ162: =IF(AQ160>0,AP162*AQ160,$I$162)*AQ7 -> 90741.13562 | AR162: 90769.8982 | AS162: 90798.09681 | AT162: 90825.74251 | AU162: 90852.84614 | AV162: 90879.41832 | AW162: 90905.46947 | AX162: 90931.00983 | AY162: 90956.04938 | AZ162: 90980.59797 | BA162: 90681.87319 | BB162: 90711.79779 | BC162: 90741.13562 | BD162: 90769.8982 | BE162: 90798.09681 | BF162: 90825.74251 | BG162: 90852.84614 | BH162: 90879.41832 | BI162: 90905.46947 | BJ162: 90931.00983 | BK162: 90956.04938 | BL162: 0 | BM162: 0 | BN162: 0 | BO162: 0 | BP162: 0 | BQ162: 0 | BR162: 0
C163: Purchases On-Peak | E163: MWH | F163: First Year | G163: =SUM('Hourly Production'!AJ8:AJ1048576) -> 6872.288107 | H163: =I163/I162 -> 0.07578458478 | I163: =G163 -> 6872.288107 | K163: =K162*$H$163 -> 0 | L163: =L162*$H$163 -> 0 | M163: 0 | N163: 0 | O163: 0 | P163: 0 | Q163: 0 | R163: 0 | S163: 0 | T163: 0 | U163: 0 | V163: 0 | W163: 0 | X163: 0 | Y163: 0 | Z163: 0 | AA163: 0 | AB163: 0 | AC163: 6872.288107 | AD163: 6874.55593 | AE163: 6876.779285 | AF163: 6878.959046 | AG163: 6881.096066 | AH163: 6883.191183 | AI163: 6885.24522 | AJ163: 6887.258982 | AK163: 6889.233258 | AL163: 6891.168823 | AM163: 6893.066436 | AN163: 6894.92684 | AO163: 6872.288107 | AP163: 6874.55593 | AQ163: 6876.779285 | AR163: 6878.959046 | AS163: 6881.096066 | AT163: 6883.191183 | AU163: 6885.24522 | AV163: 6887.258982 | AW163: 6889.233258 | AX163: 6891.168823 | AY163: 6893.066436 | AZ163: 6894.92684 | BA163: 6872.288107 | BB163: 6874.55593 | BC163: 6876.779285 | BD163: 6878.959046 | BE163: 6881.096066 | BF163: 6883.191183 | BG163: 6885.24522 | BH163: 6887.258982 | BI163: 6889.233258 | BJ163: 6891.168823 | BK163: 6893.066436 | BL163: 0 | BM163: 0 | BN163: 0 | BO163: 0 | BP163: 0 | BQ163: 0 | BR163: 0
C164: Purchases Off-Peak | E164: MWH | F164: First Year | G164: =SUM('Hourly Production'!AK8:AK1048576) -> 83809.58509 | H164: =I164/I162 -> 0.9242154152 | I164: =G164 -> 83809.58509 | K164: =K162*$H$164 -> 0 | L164: =L162*$H$164 -> 0 | M164: 0 | N164: 0 | O164: 0 | P164: 0 | Q164: 0 | R164: 0 | S164: 0 | T164: 0 | U164: 0 | V164: 0 | W164: 0 | X164: 0 | Y164: 0 | Z164: 0 | AA164: 0 | AB164: 0 | AC164: 83809.58509 | AD164: 83837.24186 | AE164: 83864.35634 | AF164: 83890.93916 | AG164: 83917.00075 | AH164: 83942.55133 | AI164: 83967.60092 | AJ164: 83992.15933 | AK164: 84016.23622 | AL164: 84039.841 | AM164: 84062.98295 | AN164: 84085.67113 | AO164: 83809.58509 | AP164: 83837.24186 | AQ164: 83864.35634 | AR164: 83890.93916 | AS164: 83917.00075 | AT164: 83942.55133 | AU164: 83967.60092 | AV164: 83992.15933 | AW164: 84016.23622 | AX164: 84039.841 | AY164: 84062.98295 | AZ164: 84085.67113 | BA164: 83809.58509 | BB164: 83837.24186 | BC164: 83864.35634 | BD164: 83890.93916 | BE164: 83917.00075 | BF164: 83942.55133 | BG164: 83967.60092 | BH164: 83992.15933 | BI164: 84016.23622 | BJ164: 84039.841 | BK164: 84062.98295 | BL164: 0 | BM164: 0 | BN164: 0 | BO164: 0 | BP164: 0 | BQ164: 0 | BR164: 0
C166: Sales from Market | E166: MWH | F166: First Year | G166: =SUM('Hourly Production'!AI8:AI1048576) -> 393660.5407 | I166: =G166 -> 393660.5407 | K166: =IF(K160>0,K160*I166,$I$166)*K7 -> 0 | L166: =IF(L160>0,L160*K166,$I$166)*L7 -> 0 | M166: 0 | N166: 0 | O166: 0 | P166: 0 | Q166: 0 | R166: 0 | S166: 0 | T166: 0 | U166: 0 | V166: 0 | W166: 0 | X166: 0 | Y166: 0 | Z166: 0 | AA166: 0 | AB166: 0 | AC166: 393660.5407 | AD166: 393790.4468 | AE166: 393917.8058 | AF166: 394042.6675 | AG166: 394165.081 | AH166: 394285.0941 | AI166: 394402.7541 | AJ166: 394518.107 | AK166: 394631.1981 | AL166: 394742.0718 | AM166: 394850.7714 | AN166: 394957.3397 | AO166: 393660.5407 | AP166: 393790.4468 | AQ166: =IF(AQ160>0,AQ160*AP166,$I$166)*AQ7 -> 393917.8058 | AR166: 394042.6675 | AS166: 394165.081 | AT166: 394285.0941 | AU166: 394402.7541 | AV166: 394518.107 | AW166: 394631.1981 | AX166: 394742.0718 | AY166: 394850.7714 | AZ166: 394957.3397 | BA166: 393660.5407 | BB166: 393790.4468 | BC166: 393917.8058 | BD166: 394042.6675 | BE166: 394165.081 | BF166: 394285.0941 | BG166: 394402.7541 | BH166: 394518.107 | BI166: 394631.1981 | BJ166: 394742.0718 | BK166: 394850.7714 | BL166: 0 | BM166: 0 | BN166: 0 | BO166: 0 | BP166: 0 | BQ166: 0 | BR166: 0
C167: Sales On-Peak | E167: MWH | F167: First Year | G167: =SUM('Hourly Production'!AL8:AL1048576) -> 245961.3721 | H167: =IF(I166,I167/I166) -> 0.6248057569 | I167: =G167 -> 245961.3721 | K167: =K166*$H$167 -> 0 | L167: =L166*$H$167 -> 0 | M167: =M166*$H$167 -> 0 | N167: =N166*$H$167 -> 0 | O167: =O166*$H$167 -> 0 | P167: =P166*$H$167 -> 0 | Q167: =Q166*$H$167 -> 0 | R167: =R166*$H$167 -> 0 | S167: =S166*$H$167 -> 0 | T167: =T166*$H$167 -> 0 | U167: =U166*$H$167 -> 0 | V167: =V166*$H$167 -> 0 | W167: =W166*$H$167 -> 0 | X167: =X166*$H$167 -> 0 | Y167: =Y166*$H$167 -> 0 | Z167: =Z166*$H$167 -> 0 | AA167: =AA166*$H$167 -> 0 | AB167: =AB166*$H$167 -> 0 | AC167: =AC166*$H$167 -> 245961.3721 | AD167: =AD166*$H$167 -> 246042.5382 | AE167: =AE166*$H$167 -> 246122.1128 | AF167: =AF166*$H$167 -> 246200.1271 | AG167: =AG166*$H$167 -> 246276.6117 | AH167: =AH166*$H$167 -> 246351.5967 | AI167: =AI166*$H$167 -> 246425.1113 | AJ167: =AJ166*$H$167 -> 246497.1845 | AK167: =AK166*$H$167 -> 246567.8444 | AL167: =AL166*$H$167 -> 246637.1189 | AM167: =AM166*$H$167 -> 246705.0351 | AN167: =AN166*$H$167 -> 246771.6195 | AO167: =AO166*$H$167 -> 245961.3721 | AP167: =AP166*$H$167 -> 246042.5382 | AQ167: =AQ166*$H$167 -> 246122.1128 | AR167: =AR166*$H$167 -> 246200.1271 | AS167: =AS166*$H$167 -> 246276.6117 | AT167: =AT166*$H$167 -> 246351.5967 | AU167: =AU166*$H$167 -> 246425.1113 | AV167: =AV166*$H$167 -> 246497.1845 | AW167: =AW166*$H$167 -> 246567.8444 | AX167: =AX166*$H$167 -> 246637.1189 | AY167: =AY166*$H$167 -> 246705.0351 | AZ167: =AZ166*$H$167 -> 246771.6195 | BA167: =BA166*$H$167 -> 245961.3721 | BB167: =BB166*$H$167 -> 246042.5382 | BC167: =BC166*$H$167 -> 246122.1128 | BD167: =BD166*$H$167 -> 246200.1271 | BE167: =BE166*$H$167 -> 246276.6117 | BF167: =BF166*$H$167 -> 246351.5967 | BG167: =BG166*$H$167 -> 246425.1113 | BH167: =BH166*$H$167 -> 246497.1845 | BI167: =BI166*$H$167 -> 246567.8444 | BJ167: =BJ166*$H$167 -> 246637.1189 | BK167: =BK166*$H$167 -> 246705.0351 | BL167: =BL166*$H$167 -> 0 | BM167: =BM166*$H$167 -> 0 | BN167: =BN166*$H$167 -> 0 | BO167: =BO166*$H$167 -> 0 | BP167: =BP166*$H$167 -> 0 | BQ167: =BQ166*$H$167 -> 0 | BR167: =BR166*$H$167 -> 0
C168: Sales Off-Peak | E168: MWH | F168: First Year | G168: =SUM('Hourly Production'!AM8:AM1048576) -> 147699.1686 | H168: =IF(I166,I168/I166) -> 0.3751942431 | I168: =G168 -> 147699.1686 | K168: =K166*$H$168 -> 0 | L168: =L166*$H$168 -> 0 | M168: 0 | N168: 0 | O168: 0 | P168: 0 | Q168: 0 | R168: 0 | S168: 0 | T168: 0 | U168: 0 | V168: 0 | W168: 0 | X168: 0 | Y168: 0 | Z168: 0 | AA168: 0 | AB168: 0 | AC168: 147699.1686 | AD168: 147747.9087 | AE168: 147795.693 | AF168: 147842.5404 | AG168: 147888.4692 | AH168: 147933.4975 | AI168: 147977.6428 | AJ168: 148020.9226 | AK168: 148063.3537 | AL168: 148104.9528 | AM168: 148145.7363 | AN168: 148185.7201 | AO168: 147699.1686 | AP168: 147747.9087 | AQ168: 147795.693 | AR168: 147842.5404 | AS168: 147888.4692 | AT168: 147933.4975 | AU168: 147977.6428 | AV168: 148020.9226 | AW168: 148063.3537 | AX168: 148104.9528 | AY168: 148145.7363 | AZ168: 148185.7201 | BA168: 147699.1686 | BB168: 147747.9087 | BC168: 147795.693 | BD168: 147842.5404 | BE168: 147888.4692 | BF168: 147933.4975 | BG168: 147977.6428 | BH168: 148020.9226 | BI168: 148063.3537 | BJ168: 148104.9528 | BK168: 148145.7363 | BL168: 0 | BM168: 0 | BN168: 0 | BO168: 0 | BP168: 0 | BQ168: 0 | BR168: 0
A170: Capital Expenditures
B171: Wind
C172: Total Construction Cost | E172: USD 000's | F172: Total | G172: =F65 -> 220000 | K172: =$G$172*K3 -> 220000 | L172: 220000 | M172: 220000 | N172: 220000 | O172: 220000 | P172: 220000 | Q172: 220000 | R172: 220000 | S172: 220000 | T172: 220000 | U172: 220000 | V172: 220000 | W172: 220000 | X172: 220000 | Y172: 220000 | Z172: 220000 | AA172: 220000 | AB172: 220000 | AC172: 0 | AD172: 0 | AE172: 0 | AF172: 0 | AG172: 0 | AH172: 0 | AI172: 0 | AJ172: 0 | AK172: 0 | AL172: 0 | AM172: 0 | AN172: 0 | AO172: 0 | AP172: 0 | AQ172: =$G$172*AQ3 -> 0 | AR172: 0 | AS172: 0 | AT172: 0 | AU172: 0 | AV172: 0 | AW172: 0 | AX172: 0 | AY172: 0 | AZ172: 0 | BA172: 0 | BB172: 0 | BC172: 0 | BD172: 0 | BE172: 0 | BF172: 0 | BG172: 0 | BH172: 0 | BI172: 0 | BJ172: 0 | BK172: 0 | BL172: 0 | BM172: 0 | BN172: 0 | BO172: 0 | BP172: 0 | BQ172: 0 | BR172: 0
C173: S-Curve | E173: % | F173: Start/Total | G173: =F64 -> 1 | H173: =F63 -> 18 | K173: =(K2>=$G$173)/$H$173*K3 -> 0.05555555556 | L173: 0.05555555556 | M173: 0.05555555556 | N173: 0.05555555556 | O173: 0.05555555556 | P173: 0.05555555556 | Q173: 0.05555555556 | R173: 0.05555555556 | S173: 0.05555555556 | T173: 0.05555555556 | U173: 0.05555555556 | V173: 0.05555555556 | W173: 0.05555555556 | X173: 0.05555555556 | Y173: 0.05555555556 | Z173: 0.05555555556 | AA173: 0.05555555556 | AB173: 0.05555555556 | AC173: 0 | AD173: 0 | AE173: 0 | AF173: 0 | AG173: 0 | AH173: 0 | AI173: 0 | AJ173: 0 | AK173: 0 | AL173: 0 | AM173: 0 | AN173: 0 | AO173: 0 | AP173: 0 | AQ173: =(AQ2>=$G$173)/$H$173*AQ3 -> 0 | AR173: 0 | AS173: 0 | AT173: 0 | AU173: 0 | AV173: 0 | AW173: 0 | AX173: 0 | AY173: 0 | AZ173: 0 | BA173: 0 | BB173: 0 | BC173: 0 | BD173: 0 | BE173: 0 | BF173: 0 | BG173: 0 | BH173: 0 | BI173: 0 | BJ173: 0 | BK173: 0 | BL173: 0 | BM173: 0 | BN173: 0 | BO173: 0 | BP173: 0 | BQ173: 0 | BR173: 0
C174: Capital Expenditure | E174: USD 000's | K174: =K172*K173 -> 12222.22222 | L174: =L172*L173 -> 12222.22222 | M174: 12222.22222 | N174: 12222.22222 | O174: 12222.22222 | P174: 12222.22222 | Q174: 12222.22222 | R174: 12222.22222 | S174: 12222.22222 | T174: 12222.22222 | U174: 12222.22222 | V174: 12222.22222 | W174: 12222.22222 | X174: 12222.22222 | Y174: 12222.22222 | Z174: 12222.22222 | AA174: 12222.22222 | AB174: 12222.22222 | AC174: 0 | AD174: 0 | AE174: 0 | AF174: 0 | AG174: 0 | AH174: 0 | AI174: 0 | AJ174: 0 | AK174: 0 | AL174: 0 | AM174: 0 | AN174: 0 | AO174: 0 | AP174: 0 | AQ174: 0 | AR174: 0 | AS174: 0 | AT174: 0 | AU174: 0 | AV174: 0 | AW174: 0 | AX174: 0 | AY174: 0 | AZ174: 0 | BA174: 0 | BB174: 0 | BC174: 0 | BD174: 0 | BE174: 0 | BF174: 0 | BG174: 0 | BH174: 0 | BI174: 0 | BJ174: 0 | BK174: 0 | BL174: 0 | BM174: 0 | BN174: 0 | BO174: 0 | BP174: 0 | BQ174: 0 | BR174: 0
B176: Solar
C177: Total Construction Cost | E177: USD 000's | F177: Total | G177: =F70 -> 105000 | K177: =$G$177*K3 -> 105000 | L177: 105000 | M177: 105000 | N177: 105000 | O177: 105000 | P177: 105000 | Q177: 105000 | R177: 105000 | S177: 105000 | T177: 105000 | U177: 105000 | V177: 105000 | W177: 105000 | X177: 105000 | Y177: 105000 | Z177: 105000 | AA177: 105000 | AB177: 105000 | AC177: 0 | AD177: 0 | AE177: 0 | AF177: 0 | AG177: 0 | AH177: 0 | AI177: 0 | AJ177: 0 | AK177: 0 | AL177: 0 | AM177: 0 | AN177: 0 | AO177: 0 | AP177: 0 | AQ177: =$G$177*AQ3 -> 0 | AR177: 0 | AS177: 0 | AT177: 0 | AU177: 0 | AV177: 0 | AW177: 0 | AX177: 0 | AY177: 0 | AZ177: 0 | BA177: 0 | BB177: 0 | BC177: 0 | BD177: 0 | BE177: 0 | BF177: 0 | BG177: 0 | BH177: 0 | BI177: 0 | BJ177: 0 | BK177: 0 | BL177: 0 | BM177: 0 | BN177: 0 | BO177: 0 | BP177: 0 | BQ177: 0 | BR177: 0
C178: S-Curve | E178: % | F178: Start/Total | G178: =F69 -> 14 | H178: =F68 -> 5 | K178: =(K2>=$G$178)/$H$178*K3 -> 0 | L178: 0 | M178: 0 | N178: 0 | O178: 0 | P178: 0 | Q178: 0 | R178: 0 | S178: 0 | T178: 0 | U178: 0 | V178: 0 | W178: 0 | X178: 0.2 | Y178: 0.2 | Z178: 0.2 | AA178: 0.2 | AB178: 0.2 | AC178: 0 | AD178: 0 | AE178: 0 | AF178: 0 | AG178: 0 | AH178: 0 | AI178: 0 | AJ178: 0 | AK178: 0 | AL178: 0 | AM178: 0 | AN178: 0 | AO178: 0 | AP178: 0 | AQ178: =(AQ2>=$G$178)/$H$178*AQ3 -> 0 | AR178: 0 | AS178: 0 | AT178: 0 | AU178: 0 | AV178: 0 | AW178: 0 | AX178: 0 | AY178: 0 | AZ178: 0 | BA178: 0 | BB178: 0 | BC178: 0 | BD178: 0 | BE178: 0 | BF178: 0 | BG178: 0 | BH178: 0 | BI178: 0 | BJ178: 0 | BK178: 0 | BL178: 0 | BM178: 0 | BN178: 0 | BO178: 0 | BP178: 0 | BQ178: 0 | BR178: 0
C179: Capital Expenditure | E179: USD 000's | K179: =K177*K178 -> 0 | L179: =L177*L178 -> 0 | M179: 0 | N179: 0 | O179: 0 | P179: 0 | Q179: 0 | R179: 0 | S179: 0 | T179: 0 | U179: 0 | V179: 0 | W179: 0 | X179: 21000 | Y179: 21000 | Z179: 21000 | AA179: 21000 | AB179: 21000 | AC179: 0 | AD179: 0 | AE179: 0 | AF179: 0 | AG179: 0 | AH179: 0 | AI179: 0 | AJ179: 0 | AK179: 0 | AL179: 0 | AM179: 0 | AN179: 0 | AO179: 0 | AP179: 0 | AQ179: 0 | AR179: 0 | AS179: 0 | AT179: 0 | AU179: 0 | AV179: 0 | AW179: 0 | AX179: 0 | AY179: 0 | AZ179: 0 | BA179: 0 | BB179: 0 | BC179: 0 | BD179: 0 | BE179: 0 | BF179: 0 | BG179: 0 | BH179: 0 | BI179: 0 | BJ179: 0 | BK179: 0 | BL179: 0 | BM179: 0 | BN179: 0 | BO179: 0 | BP179: 0 | BQ179: 0 | BR179: 0
B181: Initial Battery
C182: Total Construction Cost | E182: USD 000's | F182: Total | G182: =F77 -> 20000 | K182: =$G$182*K3 -> 20000 | L182: 20000 | M182: 20000 | N182: 20000 | O182: 20000 | P182: 20000 | Q182: 20000 | R182: 20000 | S182: 20000 | T182: 20000 | U182: 20000 | V182: 20000 | W182: 20000 | X182: 20000 | Y182: 20000 | Z182: 20000 | AA182: 20000 | AB182: 20000 | AC182: 0 | AD182: 0 | AE182: 0 | AF182: 0 | AG182: 0 | AH182: 0 | AI182: 0 | AJ182: 0 | AK182: 0 | AL182: 0 | AM182: 0 | AN182: 0 | AO182: 0 | AP182: 0 | AQ182: =$G$182*AQ3 -> 0 | AR182: 0 | AS182: 0 | AT182: 0 | AU182: 0 | AV182: 0 | AW182: 0 | AX182: 0 | AY182: 0 | AZ182: 0 | BA182: 0 | BB182: 0 | BC182: 0 | BD182: 0 | BE182: 0 | BF182: 0 | BG182: 0 | BH182: 0 | BI182: 0 | BJ182: 0 | BK182: 0 | BL182: 0 | BM182: 0 | BN182: 0 | BO182: 0 | BP182: 0 | BQ182: 0 | BR182: 0
C183: S-Curve | E183: % | F183: Start/Total | G183: =F76 -> 16 | H183: =F75 -> 3 | K183: =(K2>=$G$183)/$H$183*K3 -> 0 | L183: 0 | M183: 0 | N183: 0 | O183: 0 | P183: 0 | Q183: 0 | R183: 0 | S183: 0 | T183: 0 | U183: 0 | V183: 0 | W183: 0 | X183: 0 | Y183: 0 | Z183: 0.3333333333 | AA183: 0.3333333333 | AB183: 0.3333333333 | AC183: 0 | AD183: 0 | AE183: 0 | AF183: 0 | AG183: 0 | AH183: 0 | AI183: 0 | AJ183: 0 | AK183: 0 | AL183: 0 | AM183: 0 | AN183: 0 | AO183: 0 | AP183: 0 | AQ183: =(AQ2>=$G$183)/$H$183*AQ3 -> 0 | AR183: 0 | AS183: 0 | AT183: 0 | AU183: 0 | AV183: 0 | AW183: 0 | AX183: 0 | AY183: 0 | AZ183: 0 | BA183: 0 | BB183: 0 | BC183: 0 | BD183: 0 | BE183: 0 | BF183: 0 | BG183: 0 | BH183: 0 | BI183: 0 | BJ183: 0 | BK183: 0 | BL183: 0 | BM183: 0 | BN183: 0 | BO183: 0 | BP183: 0 | BQ183: 0 | BR183: 0
C184: Capital Expenditure | E184: USD 000's | K184: =K182*K183 -> 0 | L184: =L182*L183 -> 0 | M184: 0 | N184: 0 | O184: 0 | P184: 0 | Q184: 0 | R184: 0 | S184: 0 | T184: 0 | U184: 0 | V184: 0 | W184: 0 | X184: 0 | Y184: 0 | Z184: 6666.666667 | AA184: 6666.666667 | AB184: 6666.666667 | AC184: 0 | AD184: 0 | AE184: 0 | AF184: 0 | AG184: 0 | AH184: 0 | AI184: 0 | AJ184: 0 | AK184: 0 | AL184: 0 | AM184: 0 | AN184: 0 | AO184: 0 | AP184: 0 | AQ184: 0 | AR184: 0 | AS184: 0 | AT184: 0 | AU184: 0 | AV184: 0 | AW184: 0 | AX184: 0 | AY184: 0 | AZ184: 0 | BA184: 0 | BB184: 0 | BC184: 0 | BD184: 0 | BE184: 0 | BF184: 0 | BG184: 0 | BH184: 0 | BI184: 0 | BJ184: 0 | BK184: 0 | BL184: 0 | BM184: 0 | BN184: 0 | BO184: 0 | BP184: 0 | BQ184: 0 | BR184: 0
B186: Replacement Battery 1
C187: Operating Period | E187: Year | K187: =K150 -> 0 | L187: =L150 -> 0 | M187: 0 | N187: 0 | O187: 0 | P187: 0 | Q187: 0 | R187: 0 | S187: 0 | T187: 0 | U187: 0 | V187: 0 | W187: 0 | X187: 0 | Y187: 0 | Z187: 0 | AA187: 0 | AB187: 0 | AC187: 1 | AD187: 2 | AE187: 3 | AF187: 4 | AG187: 5 | AH187: 6 | AI187: 7 | AJ187: 8 | AK187: 9 | AL187: 10 | AM187: 11 | AN187: 12 | AO187: 13 | AP187: 14 | AQ187: 15 | AR187: 16 | AS187: 17 | AT187: 18 | AU187: 19 | AV187: 20 | AW187: 21 | AX187: 22 | AY187: 23 | AZ187: 24 | BA187: 25 | BB187: 26 | BC187: 27 | BD187: 28 | BE187: 29 | BF187: 30 | BG187: 31 | BH187: 32 | BI187: 33 | BJ187: 34 | BK187: 35 | BL187: 35 | BM187: 35 | BN187: 35 | BO187: 35 | BP187: 35 | BQ187: 35 | BR187: 35
C188: Total Construction Cost | E188: USD 000's | G188: =F83 -> 10000 | K188: =$G$188 -> 10000 | L188: =$G$188 -> 10000 | M188: 10000 | N188: 10000 | O188: 10000 | P188: 10000 | Q188: 10000 | R188: 10000 | S188: 10000 | T188: 10000 | U188: 10000 | V188: 10000 | W188: 10000 | X188: 10000 | Y188: 10000 | Z188: 10000 | AA188: 10000 | AB188: 10000 | AC188: 10000 | AD188: 10000 | AE188: 10000 | AF188: 10000 | AG188: 10000 | AH188: 10000 | AI188: 10000 | AJ188: 10000 | AK188: 10000 | AL188: 10000 | AM188: 10000 | AN188: 10000 | AO188: 10000 | AP188: 10000 | AQ188: 10000 | AR188: 10000 | AS188: 10000 | AT188: 10000 | AU188: 10000 | AV188: 10000 | AW188: 10000 | AX188: 10000 | AY188: 10000 | AZ188: 10000 | BA188: 10000 | BB188: 10000 | BC188: 10000 | BD188: 10000 | BE188: 10000 | BF188: 10000 | BG188: 10000 | BH188: 10000 | BI188: 10000 | BJ188: 10000 | BK188: 10000 | BL188: 10000 | BM188: 10000 | BN188: 10000 | BO188: 10000 | BP188: 10000 | BQ188: 10000 | BR188: 10000
C189: Period of Capital Expenditure | E189: Year | G189: =F80 -> 12 | K189: =ISNUMBER(MATCH(K187,$G$189,0)) -> FALSE | L189: =ISNUMBER(MATCH(L187,$G$189,0)) -> FALSE | M189: FALSE | N189: FALSE | O189: FALSE | P189: FALSE | Q189: FALSE | R189: FALSE | S189: FALSE | T189: FALSE | U189: FALSE | V189: FALSE | W189: FALSE | X189: FALSE | Y189: FALSE | Z189: FALSE | AA189: FALSE | AB189: FALSE | AC189: FALSE | AD189: FALSE | AE189: FALSE | AF189: FALSE | AG189: FALSE | AH189: FALSE | AI189: FALSE | AJ189: FALSE | AK189: FALSE | AL189: FALSE | AM189: FALSE | AN189: TRUE | AO189: FALSE | AP189: FALSE | AQ189: FALSE | AR189: FALSE | AS189: FALSE | AT189: FALSE | AU189: FALSE | AV189: FALSE | AW189: FALSE | AX189: FALSE | AY189: FALSE | AZ189: FALSE | BA189: FALSE | BB189: FALSE | BC189: FALSE | BD189: FALSE | BE189: FALSE | BF189: FALSE | BG189: FALSE | BH189: FALSE | BI189: FALSE | BJ189: FALSE | BK189: FALSE | BL189: FALSE | BM189: FALSE | BN189: FALSE | BO189: FALSE | BP189: FALSE | BQ189: FALSE | BR189: FALSE
C190: Capital Expenditure | E190: USD 000's | K190: =K189*K188 -> 0 | L190: =L189*L188 -> 0 | M190: 0 | N190: 0 | O190: 0 | P190: 0 | Q190: 0 | R190: 0 | S190: 0 | T190: 0 | U190: 0 | V190: 0 | W190: 0 | X190: 0 | Y190: 0 | Z190: 0 | AA190: 0 | AB190: 0 | AC190: 0 | AD190: 0 | AE190: 0 | AF190: 0 | AG190: 0 | AH190: 0 | AI190: 0 | AJ190: 0 | AK190: 0 | AL190: 0 | AM190: 0 | AN190: 10000 | AO190: 0 | AP190: 0 | AQ190: 0 | AR190: 0 | AS190: 0 | AT190: 0 | AU190: 0 | AV190: 0 | AW190: 0 | AX190: 0 | AY190: 0 | AZ190: 0 | BA190: 0 | BB190: 0 | BC190: 0 | BD190: 0 | BE190: 0 | BF190: 0 | BG190: 0 | BH190: 0 | BI190: 0 | BJ190: 0 | BK190: 0 | BL190: 0 | BM190: 0 | BN190: 0 | BO190: 0 | BP190: 0 | BQ190: 0 | BR190: 0
B192: Replacement Battery 2
C193: Total Construction Cost | E193: USD 000's | G193: =F89 -> 3600 | K193: =$G$193 -> 3600 | L193: =$G$193 -> 3600 | M193: 3600 | N193: 3600 | O193: 3600 | P193: 3600 | Q193: 3600 | R193: 3600 | S193: 3600 | T193: 3600 | U193: 3600 | V193: 3600 | W193: 3600 | X193: 3600 | Y193: 3600 | Z193: 3600 | AA193: 3600 | AB193: 3600 | AC193: 3600 | AD193: 3600 | AE193: 3600 | AF193: 3600 | AG193: 3600 | AH193: 3600 | AI193: 3600 | AJ193: 3600 | AK193: 3600 | AL193: 3600 | AM193: 3600 | AN193: 3600 | AO193: 3600 | AP193: 3600 | AQ193: 3600 | AR193: 3600 | AS193: 3600 | AT193: 3600 | AU193: 3600 | AV193: 3600 | AW193: 3600 | AX193: 3600 | AY193: 3600 | AZ193: 3600 | BA193: 3600 | BB193: 3600 | BC193: 3600 | BD193: 3600 | BE193: 3600 | BF193: 3600 | BG193: 3600 | BH193: 3600 | BI193: 3600 | BJ193: 3600 | BK193: 3600 | BL193: 3600 | BM193: 3600 | BN193: 3600 | BO193: 3600 | BP193: 3600 | BQ193: 3600 | BR193: 3600
C194: Period of Capital Expenditure | E194: Year | G194: =F86 -> 24 | K194: =ISNUMBER(MATCH(K187,$G$194,0)) -> FALSE | L194: =ISNUMBER(MATCH(L187,$G$194,0)) -> FALSE | M194: FALSE | N194: FALSE | O194: FALSE | P194: FALSE | Q194: FALSE | R194: FALSE | S194: FALSE | T194: FALSE | U194: FALSE | V194: FALSE | W194: FALSE | X194: FALSE | Y194: FALSE | Z194: FALSE | AA194: FALSE | AB194: FALSE | AC194: FALSE | AD194: FALSE | AE194: FALSE | AF194: FALSE | AG194: FALSE | AH194: FALSE | AI194: FALSE | AJ194: FALSE | AK194: FALSE | AL194: FALSE | AM194: FALSE | AN194: FALSE | AO194: FALSE | AP194: FALSE | AQ194: FALSE | AR194: FALSE | AS194: FALSE | AT194: FALSE | AU194: FALSE | AV194: FALSE | AW194: FALSE | AX194: FALSE | AY194: FALSE | AZ194: TRUE | BA194: FALSE | BB194: FALSE | BC194: FALSE | BD194: FALSE | BE194: FALSE | BF194: FALSE | BG194: FALSE | BH194: FALSE | BI194: FALSE | BJ194: FALSE | BK194: FALSE | BL194: FALSE | BM194: FALSE | BN194: FALSE | BO194: FALSE | BP194: FALSE | BQ194: FALSE | BR194: FALSE
C195: Capital Expenditure | E195: USD 000's | K195: =K194*K193 -> 0 | L195: =L194*L193 -> 0 | M195: 0 | N195: 0 | O195: 0 | P195: 0 | Q195: 0 | R195: 0 | S195: 0 | T195: 0 | U195: 0 | V195: 0 | W195: 0 | X195: 0 | Y195: 0 | Z195: 0 | AA195: 0 | AB195: 0 | AC195: 0 | AD195: 0 | AE195: 0 | AF195: 0 | AG195: 0 | AH195: 0 | AI195: 0 | AJ195: 0 | AK195: 0 | AL195: 0 | AM195: 0 | AN195: 0 | AO195: 0 | AP195: 0 | AQ195: 0 | AR195: 0 | AS195: 0 | AT195: 0 | AU195: 0 | AV195: 0 | AW195: 0 | AX195: 0 | AY195: 0 | AZ195: 3600 | BA195: 0 | BB195: 0 | BC195: 0 | BD195: 0 | BE195: 0 | BF195: 0 | BG195: 0 | BH195: 0 | BI195: 0 | BJ195: 0 | BK195: 0 | BL195: 0 | BM195: 0 | BN195: 0 | BO195: 0 | BP195: 0 | BQ195: 0 | BR195: 0
C197: Total Capital Expenditures | E197: USD 000's | K197: =K195+K190+K184+K179+K174 -> 12222.22222 | L197: =L195+L190+L184+L179+L174 -> 12222.22222 | M197: 12222.22222 | N197: 12222.22222 | O197: 12222.22222 | P197: 12222.22222 | Q197: 12222.22222 | R197: 12222.22222 | S197: 12222.22222 | T197: 12222.22222 | U197: 12222.22222 | V197: 12222.22222 | W197: 12222.22222 | X197: 33222.22222 | Y197: 33222.22222 | Z197: 39888.88889 | AA197: 39888.88889 | AB197: 39888.88889 | AC197: 0 | AD197: 0 | AE197: 0 | AF197: 0 | AG197: 0 | AH197: 0 | AI197: 0 | AJ197: 0 | AK197: 0 | AL197: 0 | AM197: 0 | AN197: 10000 | AO197: 0 | AP197: 0 | AQ197: 0 | AR197: 0 | AS197: 0 | AT197: 0 | AU197: 0 | AV197: 0 | AW197: 0 | AX197: 0 | AY197: 0 | AZ197: 3600 | BA197: 0 | BB197: 0 | BC197: 0 | BD197: 0 | BE197: 0 | BF197: 0 | BG197: 0 | BH197: 0 | BI197: 0 | BJ197: 0 | BK197: 0 | BL197: 0 | BM197: 0 | BN197: 0 | BO197: 0 | BP197: 0 | BQ197: 0 | BR197: 0
A199: Operating and Maintenance Expenditures
B201: Periodic Inflation Rate | E201: % p.p. | G201: =F92 -> 0.012 | K201: =(1+$G$201)^(K4/12)-1 -> 0.0009945418011 | L201: 0.0009945418011 | M201: 0.0009945418011 | N201: 0.0009945418011 | O201: 0.0009945418011 | P201: 0.0009945418011 | Q201: 0.0009945418011 | R201: 0.0009945418011 | S201: 0.0009945418011 | T201: 0.0009945418011 | U201: 0.0009945418011 | V201: 0.0009945418011 | W201: 0.0009945418011 | X201: 0.0009945418011 | Y201: 0.0009945418011 | Z201: 0.0009945418011 | AA201: 0.0009945418011 | AB201: 0.0009945418011 | AC201: 0.012 | AD201: 0.012 | AE201: 0.012 | AF201: 0.012 | AG201: 0.012 | AH201: 0.012 | AI201: 0.012 | AJ201: 0.012 | AK201: 0.012 | AL201: 0.012 | AM201: 0.012 | AN201: 0.012 | AO201: 0.012 | AP201: 0.012 | AQ201: =(1+$G$201)^(AQ4/12)-1 -> 0.012 | AR201: 0.012 | AS201: 0.012 | AT201: 0.012 | AU201: 0.012 | AV201: 0.012 | AW201: 0.012 | AX201: 0.012 | AY201: 0.012 | AZ201: 0.012 | BA201: 0.012 | BB201: 0.012 | BC201: 0.012 | BD201: 0.012 | BE201: 0.012 | BF201: 0.012 | BG201: 0.012 | BH201: 0.012 | BI201: 0.012 | BJ201: 0.012 | BK201: 0.012 | BL201: 0.012 | BM201: 0.012 | BN201: 0.012 | BO201: 0.012 | BP201: 0.012 | BQ201: 0.012 | BR201: 0.012
B202: Inflation Index | I202: 1 | K202: =I202*(1+K201) -> 1.000994542 | L202: =K202*(1+L201) -> 1.001990073 | M202: 1.002986594 | N202: 1.003984106 | O202: 1.00498261 | P202: 1.005982107 | Q202: 1.006982598 | R202: 1.007984085 | S202: 1.008986567 | T202: 1.009990046 | U202: 1.010994524 | V202: 1.012 | W202: 1.013006476 | X202: 1.014013954 | Y202: 1.015022433 | Z202: 1.016031915 | AA202: 1.017042401 | AB202: 1.018053892 | AC202: 1.030270539 | AD202: 1.042633786 | AE202: 1.055145391 | AF202: 1.067807136 | AG202: 1.080620821 | AH202: 1.093588271 | AI202: 1.106711331 | AJ202: 1.119991866 | AK202: 1.133431769 | AL202: 1.14703295 | AM202: 1.160797346 | AN202: 1.174726914 | AO202: 1.188823637 | AP202: 1.20308952 | AQ202: 1.217526595 | AR202: 1.232136914 | AS202: 1.246922557 | AT202: 1.261885627 | AU202: 1.277028255 | AV202: 1.292352594 | AW202: 1.307860825 | AX202: 1.323555155 | AY202: 1.339437817 | AZ202: 1.355511071 | BA202: 1.371777203 | BB202: 1.38823853 | BC202: 1.404897392 | BD202: 1.421756161 | BE202: 1.438817235 | BF202: 1.456083042 | BG202: 1.473556038 | BH202: 1.491238711 | BI202: 1.509133575 | BJ202: 1.527243178 | BK202: 1.545570096 | BL202: 1.564116937 | BM202: 1.582886341 | BN202: 1.601880977 | BO202: 1.621103548 | BP202: 1.640556791 | BQ202: 1.660243472 | BR202: 1.680166394
C204: Wind O&M Expense per kW-yr | E204: USD/kW-yr | G204: =F96 -> 43.8 | K204: =$G$204*K202 -> 43.84356093 | L204: =$G$204*L202 -> 43.88716518 | M204: 43.93081281 | N204: 43.97450383 | O204: 44.01823832 | P204: 44.0620163 | Q204: 44.10583781 | R204: 44.14970291 | S204: 44.19361164 | T204: 44.23756403 | U204: 44.28156014 | V204: 44.3256 | W204: 44.36968366 | X204: 44.41381117 | Y204: 44.45798256 | Z204: 44.50219788 | AA204: 44.54645718 | AB204: 44.59076049 | AC204: 45.12584962 | AD204: 45.66735981 | AE204: 46.21536813 | AF204: 46.76995255 | AG204: 47.33119198 | AH204: 47.89916628 | AI204: 48.47395628 | AJ204: 49.05564375 | AK204: 49.64431148 | AL204: 50.24004322 | AM204: 50.84292373 | AN204: 51.45303882 | AO204: 52.07047528 | AP204: 52.69532099 | AQ204: 53.32766484 | AR204: 53.96759682 | AS204: 54.61520798 | AT204: 55.27059048 | AU204: 55.93383756 | AV204: 56.60504361 | AW204: 57.28430414 | AX204: 57.97171578 | AY204: 58.66737637 | AZ204: 59.37138489 | BA204: 60.08384151 | BB204: 60.80484761 | BC204: 61.53450578 | BD204: 62.27291985 | BE204: 63.02019489 | BF204: 63.77643722 | BG204: 64.54175447 | BH204: 65.31625553 | BI204: 66.10005059 | BJ204: 66.8932512 | BK204: 67.69597021 | BL204: 68.50832186 | BM204: 69.33042172 | BN204: 70.16238678 | BO204: 71.00433542 | BP204: 71.85638744 | BQ204: 72.71866409 | BR204: 73.59128806
C205: Solar O&M Expense per kW-yr | E205: USD/kW-yr | G205: =F97 -> 8.1906 | K205: =$G$205*K202 -> 8.198745894 | L205: =$G$205*L202 -> 8.20689989 | M205: 8.215061995 | N205: 8.223232217 | O205: 8.231410565 | P205: 8.239597047 | Q205: 8.247791671 | R205: 8.255994444 | S205: 8.264205376 | T205: 8.272424474 | U205: 8.280651746 | V205: 8.2888872 | W205: 8.297130845 | X205: 8.305382688 | Y205: 8.313642739 | Z205: 8.321911004 | AA205: 8.330187492 | AB205: 8.338472212 | AC205: 8.438533878 | AD205: 8.539796285 | AE205: 8.64227384 | AF205: 8.745981126 | AG205: 8.8509329 | AH205: 8.957144095 | AI205: 9.064629824 | AJ205: 9.173405382 | AK205: 9.283486246 | AL205: 9.394888081 | AM205: 9.507626738 | AN205: 9.621718259 | AO205: 9.737178878 | AP205: 9.854025025 | AQ205: 9.972273325 | AR205: 10.0919406 | AS205: 10.21304389 | AT205: 10.33560042 | AU205: 10.45962762 | AV205: 10.58514316 | AW205: 10.71216487 | AX205: 10.84071085 | AY205: 10.97079938 | AZ205: 11.10244897 | BA205: 11.23567836 | BB205: 11.3705065 | BC205: 11.50695258 | BD205: 11.64503601 | BE205: 11.78477644 | BF205: 11.92619376 | BG205: 12.06930809 | BH205: 12.21413978 | BI205: 12.36070946 | BJ205: 12.50903797 | BK205: 12.65914643 | BL205: 12.81105619 | BM205: 12.96478886 | BN205: 13.12036633 | BO205: 13.27781072 | BP205: 13.43714445 | BQ205: 13.59839019 | BR205: 13.76157087
C206: Battery O&M Expense per kW-yr | E206: USD/kW-yr | G206: =F99 -> 2 | K206: =$G$206*K202 -> 2.001989084 | L206: =$G$206*L202 -> 2.003980145 | M206: 2.005973187 | N206: 2.007968212 | O206: 2.00996522 | P206: 2.011964214 | Q206: 2.013965197 | R206: 2.015968169 | S206: 2.017973134 | T206: 2.019980093 | U206: 2.021989047 | V206: 2.024 | W206: 2.026012953 | X206: 2.028027907 | Y206: 2.030044866 | Z206: 2.03206383 | AA206: 2.034084803 | AB206: 2.036107785 | AC206: 2.060541078 | AD206: 2.085267571 | AE206: 2.110290782 | AF206: 2.135614272 | AG206: 2.161241643 | AH206: 2.187176543 | AI206: 2.213422661 | AJ206: 2.239983733 | AK206: 2.266863538 | AL206: 2.2940659 | AM206: 2.321594691 | AN206: 2.349453827 | AO206: 2.377647273 | AP206: 2.406179041 | AQ206: 2.435053189 | AR206: 2.464273827 | AS206: 2.493845113 | AT206: 2.523771255 | AU206: 2.55405651 | AV206: 2.584705188 | AW206: 2.61572165 | AX206: 2.64711031 | AY206: 2.678875634 | AZ206: 2.711022141 | BA206: 2.743554407 | BB206: 2.77647706 | BC206: 2.809794784 | BD206: 2.843512322 | BE206: 2.87763447 | BF206: 2.912166083 | BG206: 2.947112076 | BH206: 2.982477421 | BI206: 3.01826715 | BJ206: 3.054486356 | BK206: 3.091140192 | BL206: 3.128233875 | BM206: 3.165772681 | BN206: 3.203761953 | BO206: 3.242207097 | BP206: 3.281113582 | BQ206: 3.320486945 | BR206: 3.360332788
C208: Wind Capacity | E208: MW | G208: =F33 -> 200 | K208: =$G208*K7 -> 0 | L208: 0 | M208: 0 | N208: 0 | O208: 0 | P208: 0 | Q208: 0 | R208: 0 | S208: 0 | T208: 0 | U208: 0 | V208: 0 | W208: 0 | X208: 0 | Y208: 0 | Z208: 0 | AA208: 0 | AB208: 0 | AC208: 200 | AD208: 200 | AE208: 200 | AF208: 200 | AG208: 200 | AH208: 200 | AI208: 200 | AJ208: 200 | AK208: 200 | AL208: 200 | AM208: 200 | AN208: 200 | AO208: 200 | AP208: 200 | AQ208: =$G208*AQ7 -> 200 | AR208: 200 | AS208: 200 | AT208: 200 | AU208: 200 | AV208: 200 | AW208: 200 | AX208: 200 | AY208: 200 | AZ208: 200 | BA208: 200 | BB208: 200 | BC208: 200 | BD208: 200 | BE208: 200 | BF208: 200 | BG208: 200 | BH208: 200 | BI208: 200 | BJ208: 200 | BK208: 200 | BL208: 0 | BM208: 0 | BN208: 0 | BO208: 0 | BP208: 0 | BQ208: 0 | BR208: 0
C209: Solar Capacity | E209: MW | G209: =F41 -> 150 | K209: =$G209*K7 -> 0 | L209: 0 | M209: 0 | N209: 0 | O209: 0 | P209: 0 | Q209: 0 | R209: 0 | S209: 0 | T209: 0 | U209: 0 | V209: 0 | W209: 0 | X209: 0 | Y209: 0 | Z209: 0 | AA209: 0 | AB209: 0 | AC209: 150 | AD209: 150 | AE209: 150 | AF209: 150 | AG209: 150 | AH209: 150 | AI209: 150 | AJ209: 150 | AK209: 150 | AL209: 150 | AM209: 150 | AN209: 150 | AO209: 150 | AP209: 150 | AQ209: =$G209*AQ7 -> 150 | AR209: 150 | AS209: 150 | AT209: 150 | AU209: 150 | AV209: 150 | AW209: 150 | AX209: 150 | AY209: 150 | AZ209: 150 | BA209: 150 | BB209: 150 | BC209: 150 | BD209: 150 | BE209: 150 | BF209: 150 | BG209: 150 | BH209: 150 | BI209: 150 | BJ209: 150 | BK209: 150 | BL209: 0 | BM209: 0 | BN209: 0 | BO209: 0 | BP209: 0 | BQ209: 0 | BR209: 0
C210: Battery Capacity | E210: MW | G210: =F50 -> 50 | K210: =$G210*K7 -> 0 | L210: 0 | M210: 0 | N210: 0 | O210: 0 | P210: 0 | Q210: 0 | R210: 0 | S210: 0 | T210: 0 | U210: 0 | V210: 0 | W210: 0 | X210: 0 | Y210: 0 | Z210: 0 | AA210: 0 | AB210: 0 | AC210: 50 | AD210: 50 | AE210: 50 | AF210: 50 | AG210: 50 | AH210: 50 | AI210: 50 | AJ210: 50 | AK210: 50 | AL210: 50 | AM210: 50 | AN210: 50 | AO210: 50 | AP210: 50 | AQ210: =$G210*AQ7 -> 50 | AR210: 50 | AS210: 50 | AT210: 50 | AU210: 50 | AV210: 50 | AW210: 50 | AX210: 50 | AY210: 50 | AZ210: 50 | BA210: 50 | BB210: 50 | BC210: 50 | BD210: 50 | BE210: 50 | BF210: 50 | BG210: 50 | BH210: 50 | BI210: 50 | BJ210: 50 | BK210: 50 | BL210: 0 | BM210: 0 | BN210: 0 | BO210: 0 | BP210: 0 | BQ210: 0 | BR210: 0
C212: Wind O&M Expense | E212: USD 000's | K212: =K208*K204 -> 0 | L212: =L208*L204 -> 0 | M212: 0 | N212: 0 | O212: 0 | P212: 0 | Q212: 0 | R212: 0 | S212: 0 | T212: 0 | U212: 0 | V212: 0 | W212: 0 | X212: 0 | Y212: 0 | Z212: 0 | AA212: 0 | AB212: 0 | AC212: 9025.169923 | AD212: 9133.471962 | AE212: 9243.073626 | AF212: 9353.990509 | AG212: 9466.238396 | AH212: 9579.833256 | AI212: 9694.791255 | AJ212: 9811.12875 | AK212: 9928.862295 | AL212: 10048.00864 | AM212: 10168.58475 | AN212: 10290.60776 | AO212: 10414.09506 | AP212: 10539.0642 | AQ212: 10665.53297 | AR212: 10793.51936 | AS212: 10923.0416 | AT212: 11054.1181 | AU212: 11186.76751 | AV212: 11321.00872 | AW212: 11456.86083 | AX212: 11594.34316 | AY212: 11733.47527 | AZ212: 11874.27698 | BA212: 12016.7683 | BB212: 12160.96952 | BC212: 12306.90116 | BD212: 12454.58397 | BE212: 12604.03898 | BF212: 12755.28744 | BG212: 12908.35089 | BH212: 13063.25111 | BI212: 13220.01012 | BJ212: 13378.65024 | BK212: 13539.19404 | BL212: 0 | BM212: 0 | BN212: 0 | BO212: 0 | BP212: 0 | BQ212: 0 | BR212: 0
C213: Solar O&M Expense | E213: USD 000's | K213: =K209*K205 -> 0 | L213: =L209*L205 -> 0 | M213: 0 | N213: 0 | O213: 0 | P213: 0 | Q213: 0 | R213: 0 | S213: 0 | T213: 0 | U213: 0 | V213: 0 | W213: 0 | X213: 0 | Y213: 0 | Z213: 0 | AA213: 0 | AB213: 0 | AC213: 1265.780082 | AD213: 1280.969443 | AE213: 1296.341076 | AF213: 1311.897169 | AG213: 1327.639935 | AH213: 1343.571614 | AI213: 1359.694474 | AJ213: 1376.010807 | AK213: 1392.522937 | AL213: 1409.233212 | AM213: 1426.144011 | AN213: 1443.257739 | AO213: 1460.576832 | AP213: 1478.103754 | AQ213: 1495.840999 | AR213: 1513.791091 | AS213: 1531.956584 | AT213: 1550.340063 | AU213: 1568.944144 | AV213: 1587.771473 | AW213: 1606.824731 | AX213: 1626.106628 | AY213: 1645.619907 | AZ213: 1665.367346 | BA213: 1685.351754 | BB213: 1705.575975 | BC213: 1726.042887 | BD213: 1746.755402 | BE213: 1767.716467 | BF213: 1788.929064 | BG213: 1810.396213 | BH213: 1832.120967 | BI213: 1854.106419 | BJ213: 1876.355696 | BK213: 1898.871964 | BL213: 0 | BM213: 0 | BN213: 0 | BO213: 0 | BP213: 0 | BQ213: 0 | BR213: 0
C214: Battery O&M Expense | E214: USD 000's | K214: =K210*K206 -> 0 | L214: =L210*L206 -> 0 | M214: 0 | N214: 0 | O214: 0 | P214: 0 | Q214: 0 | R214: 0 | S214: 0 | T214: 0 | U214: 0 | V214: 0 | W214: 0 | X214: 0 | Y214: 0 | Z214: 0 | AA214: 0 | AB214: 0 | AC214: 103.0270539 | AD214: 104.2633786 | AE214: 105.5145391 | AF214: 106.7807136 | AG214: 108.0620821 | AH214: 109.3588271 | AI214: 110.6711331 | AJ214: 111.9991866 | AK214: 113.3431769 | AL214: 114.703295 | AM214: 116.0797346 | AN214: 117.4726914 | AO214: 118.8823637 | AP214: 120.308952 | AQ214: 121.7526595 | AR214: 123.2136914 | AS214: 124.6922557 | AT214: 126.1885627 | AU214: 127.7028255 | AV214: 129.2352594 | AW214: 130.7860825 | AX214: 132.3555155 | AY214: 133.9437817 | AZ214: 135.5511071 | BA214: 137.1777203 | BB214: 138.823853 | BC214: 140.4897392 | BD214: 142.1756161 | BE214: 143.8817235 | BF214: 145.6083042 | BG214: 147.3556038 | BH214: 149.1238711 | BI214: 150.9133575 | BJ214: 152.7243178 | BK214: 154.5570096 | BL214: 0 | BM214: 0 | BN214: 0 | BO214: 0 | BP214: 0 | BQ214: 0 | BR214: 0
D215: Total O&M Expense | E215: USD 000's | K215: =SUM(K212:K214) -> 0 | L215: =SUM(L212:L214) -> 0 | M215: 0 | N215: 0 | O215: 0 | P215: 0 | Q215: 0 | R215: 0 | S215: 0 | T215: 0 | U215: 0 | V215: 0 | W215: 0 | X215: 0 | Y215: 0 | Z215: 0 | AA215: 0 | AB215: 0 | AC215: 10393.97706 | AD215: 10518.70478 | AE215: 10644.92924 | AF215: 10772.66839 | AG215: 10901.94041 | AH215: 11032.7637 | AI215: 11165.15686 | AJ215: 11299.13874 | AK215: 11434.72841 | AL215: 11571.94515 | AM215: 11710.80849 | AN215: 11851.33819 | AO215: 11993.55425 | AP215: 12137.4769 | AQ215: 12283.12663 | AR215: 12430.52415 | AS215: 12579.69044 | AT215: 12730.64672 | AU215: 12883.41448 | AV215: 13038.01546 | AW215: 13194.47164 | AX215: 13352.8053 | AY215: 13513.03896 | AZ215: 13675.19543 | BA215: 13839.29778 | BB215: 14005.36935 | BC215: 14173.43378 | BD215: 14343.51499 | BE215: 14515.63717 | BF215: 14689.82481 | BG215: 14866.10271 | BH215: 15044.49594 | BI215: 15225.02989 | BJ215: 15407.73025 | BK215: 15592.62302 | BL215: 0 | BM215: 0 | BN215: 0 | BO215: 0 | BP215: 0 | BQ215: 0 | BR215: 0
A217: Operating Revenues
C218: Total Load | E218: MWH | K218: =K142 -> 0 | L218: =L142 -> 0 | M218: 0 | N218: 0 | O218: 0 | P218: 0 | Q218: 0 | R218: 0 | S218: 0 | T218: 0 | U218: 0 | V218: 0 | W218: 0 | X218: 0 | Y218: 0 | Z218: 0 | AA218: 0 | AB218: 0 | AC218: 788400 | AD218: 788400 | AE218: 788400 | AF218: 788400 | AG218: 788400 | AH218: 788400 | AI218: 788400 | AJ218: 788400 | AK218: 788400 | AL218: 788400 | AM218: 788400 | AN218: 788400 | AO218: 788400 | AP218: 788400 | AQ218: 788400 | AR218: 788400 | AS218: 788400 | AT218: 788400 | AU218: 788400 | AV218: 788400 | AW218: 788400 | AX218: 788400 | AY218: 788400 | AZ218: 788400 | BA218: 788400 | BB218: 788400 | BC218: 788400 | BD218: 788400 | BE218: 788400 | BF218: 788400 | BG218: 788400 | BH218: 788400 | BI218: 788400 | BJ218: 788400 | BK218: 788400 | BL218: 0 | BM218: 0 | BN218: 0 | BO218: 0 | BP218: 0 | BQ218: 0 | BR218: 0
C219: Price Inflation | E219: % | G219: =F102 -> 0.015 | K219: =(1+$G$219)^(K4/12)-1 -> 0.001241487716 | L219: 0.001241487716 | M219: 0.001241487716 | N219: 0.001241487716 | O219: 0.001241487716 | P219: 0.001241487716 | Q219: 0.001241487716 | R219: 0.001241487716 | S219: 0.001241487716 | T219: 0.001241487716 | U219: 0.001241487716 | V219: 0.001241487716 | W219: 0.001241487716 | X219: 0.001241487716 | Y219: 0.001241487716 | Z219: 0.001241487716 | AA219: 0.001241487716 | AB219: 0.001241487716 | AC219: 0.015 | AD219: 0.015 | AE219: 0.015 | AF219: 0.015 | AG219: 0.015 | AH219: 0.015 | AI219: 0.015 | AJ219: 0.015 | AK219: 0.015 | AL219: 0.015 | AM219: 0.015 | AN219: 0.015 | AO219: 0.015 | AP219: 0.015 | AQ219: =(1+$G$219)^(AQ4/12)-1 -> 0.015 | AR219: 0.015 | AS219: 0.015 | AT219: 0.015 | AU219: 0.015 | AV219: 0.015 | AW219: 0.015 | AX219: 0.015 | AY219: 0.015 | AZ219: 0.015 | BA219: 0.015 | BB219: 0.015 | BC219: 0.015 | BD219: 0.015 | BE219: 0.015 | BF219: 0.015 | BG219: 0.015 | BH219: 0.015 | BI219: 0.015 | BJ219: 0.015 | BK219: 0.015 | BL219: 0.015 | BM219: 0.015 | BN219: 0.015 | BO219: 0.015 | BP219: 0.015 | BQ219: 0.015 | BR219: 0.015
C220: Price Index | E220: Index | I220: 1 | K220: =I220*(1+K219*K7) -> 1 | L220: =K220*(1+L219*L7) -> 1 | M220: 1 | N220: 1 | O220: 1 | P220: 1 | Q220: 1 | R220: 1 | S220: 1 | T220: 1 | U220: 1 | V220: 1 | W220: 1 | X220: 1 | Y220: 1 | Z220: 1 | AA220: 1 | AB220: 1 | AC220: 1.015 | AD220: 1.030225 | AE220: 1.045678375 | AF220: 1.061363551 | AG220: 1.077284004 | AH220: 1.093443264 | AI220: 1.109844913 | AJ220: 1.126492587 | AK220: 1.143389975 | AL220: 1.160540825 | AM220: 1.177948937 | AN220: 1.195618171 | AO220: 1.213552444 | AP220: 1.231755731 | AQ220: =AP220*(1+AQ219*AQ7) -> 1.250232067 | AR220: 1.268985548 | AS220: 1.288020331 | AT220: 1.307340636 | AU220: 1.326950745 | AV220: 1.346855007 | AW220: 1.367057832 | AX220: 1.387563699 | AY220: 1.408377155 | AZ220: 1.429502812 | BA220: 1.450945354 | BB220: 1.472709534 | BC220: 1.494800177 | BD220: 1.51722218 | BE220: 1.539980513 | BF220: 1.56308022 | BG220: 1.586526424 | BH220: 1.61032432 | BI220: 1.634479185 | BJ220: 1.658996373 | BK220: 1.683881318 | BL220: 1.683881318 | BM220: 1.683881318 | BN220: 1.683881318 | BO220: 1.683881318 | BP220: 1.683881318 | BQ220: 1.683881318 | BR220: 1.683881318
C221: Price per MWH | E221: USD/MWH | G221: =F103 -> 17.034154 | K221: =$G$221*K220 -> 17.034154 | L221: =$G$221*L220 -> 17.034154 | M221: 17.034154 | N221: 17.034154 | O221: 17.034154 | P221: 17.034154 | Q221: 17.034154 | R221: 17.034154 | S221: 17.034154 | T221: 17.034154 | U221: 17.034154 | V221: 17.034154 | W221: 17.034154 | X221: 17.034154 | Y221: 17.034154 | Z221: 17.034154 | AA221: 17.034154 | AB221: 17.034154 | AC221: 17.28966631 | AD221: 17.5490113 | AE221: 17.81224647 | AF221: 18.07943017 | AG221: 18.35062162 | AH221: 18.62588094 | AI221: 18.90526916 | AJ221: 19.1888482 | AK221: 19.47668092 | AL221: 19.76883113 | AM221: 20.0653636 | AN221: 20.36634405 | AO221: 20.67183921 | AP221: 20.9819168 | AQ221: 21.29664555 | AR221: 21.61609524 | AS221: 21.94033667 | AT221: 22.26944172 | AU221: 22.60348334 | AV221: 22.94253559 | AW221: 23.28667363 | AX221: 23.63597373 | AY221: 23.99051334 | AZ221: 24.35037104 | BA221: 24.7156266 | BB221: 25.086361 | BC221: 25.46265642 | BD221: 25.84459626 | BE221: 26.23226521 | BF221: 26.62574918 | BG221: 27.02513542 | BH221: 27.43051245 | BI221: 27.84197014 | BJ221: 28.25959969 | BK221: 28.68349369 | BL221: 28.68349369 | BM221: 28.68349369 | BN221: 28.68349369 | BO221: 28.68349369 | BP221: 28.68349369 | BQ221: 28.68349369 | BR221: 28.68349369
C222: Retail Revenues | E222: USD 000's | K222: =K221*K218/1000 -> 0 | L222: =L221*L218/1000 -> 0 | M222: 0 | N222: 0 | O222: 0 | P222: 0 | Q222: 0 | R222: 0 | S222: 0 | T222: 0 | U222: 0 | V222: 0 | W222: 0 | X222: 0 | Y222: 0 | Z222: 0 | AA222: 0 | AB222: 0 | AC222: 13631.17292 | AD222: 13835.64051 | AE222: 14043.17512 | AF222: 14253.82274 | AG222: 14467.63008 | AH222: 14684.64454 | AI222: 14904.9142 | AJ222: 15128.48792 | AK222: 15355.41524 | AL222: 15585.74646 | AM222: 15819.53266 | AN222: 16056.82565 | AO222: 16297.67804 | AP222: 16542.14321 | AQ222: 16790.27535 | AR222: 17042.12949 | AS222: 17297.76143 | AT222: 17557.22785 | AU222: 17820.58627 | AV222: 18087.89506 | AW222: 18359.21349 | AX222: 18634.60169 | AY222: 18914.12071 | AZ222: 19197.83252 | BA222: 19485.80001 | BB222: 19778.08701 | BC222: 20074.75832 | BD222: 20375.87969 | BE222: 20681.51789 | BF222: 20991.74066 | BG222: 21306.61677 | BH222: 21626.21602 | BI222: 21950.60926 | BJ222: 22279.8684 | BK222: 22614.06642 | BL222: 0 | BM222: 0 | BN222: 0 | BO222: 0 | BP222: 0 | BQ222: 0 | BR222: 0
C224: On-Peak Sales | E224: MWH | K224: =K166 -> 0 | L224: =L166 -> 0 | M224: 0 | N224: 0 | O224: 0 | P224: 0 | Q224: 0 | R224: 0 | S224: 0 | T224: 0 | U224: 0 | V224: 0 | W224: 0 | X224: 0 | Y224: 0 | Z224: 0 | AA224: 0 | AB224: 0 | AC224: 393660.5407 | AD224: 393790.4468 | AE224: 393917.8058 | AF224: 394042.6675 | AG224: 394165.081 | AH224: 394285.0941 | AI224: 394402.7541 | AJ224: 394518.107 | AK224: 394631.1981 | AL224: 394742.0718 | AM224: 394850.7714 | AN224: 394957.3397 | AO224: 393660.5407 | AP224: 393790.4468 | AQ224: 393917.8058 | AR224: 394042.6675 | AS224: 394165.081 | AT224: 394285.0941 | AU224: 394402.7541 | AV224: 394518.107 | AW224: 394631.1981 | AX224: 394742.0718 | AY224: 394850.7714 | AZ224: 394957.3397 | BA224: 393660.5407 | BB224: 393790.4468 | BC224: 393917.8058 | BD224: 394042.6675 | BE224: 394165.081 | BF224: 394285.0941 | BG224: 394402.7541 | BH224: 394518.107 | BI224: 394631.1981 | BJ224: 394742.0718 | BK224: 394850.7714 | BL224: 0 | BM224: 0 | BN224: 0 | BO224: 0 | BP224: 0 | BQ224: 0 | BR224: 0
C225: On-Peak Purchases | E225: MWH | K225: =K163 -> 0 | L225: =L163 -> 0 | M225: 0 | N225: 0 | O225: 0 | P225: 0 | Q225: 0 | R225: 0 | S225: 0 | T225: 0 | U225: 0 | V225: 0 | W225: 0 | X225: 0 | Y225: 0 | Z225: 0 | AA225: 0 | AB225: 0 | AC225: 6872.288107 | AD225: 6874.55593 | AE225: 6876.779285 | AF225: 6878.959046 | AG225: 6881.096066 | AH225: 6883.191183 | AI225: 6885.24522 | AJ225: 6887.258982 | AK225: 6889.233258 | AL225: 6891.168823 | AM225: 6893.066436 | AN225: 6894.92684 | AO225: 6872.288107 | AP225: 6874.55593 | AQ225: 6876.779285 | AR225: 6878.959046 | AS225: 6881.096066 | AT225: 6883.191183 | AU225: 6885.24522 | AV225: 6887.258982 | AW225: 6889.233258 | AX225: 6891.168823 | AY225: 6893.066436 | AZ225: 6894.92684 | BA225: 6872.288107 | BB225: 6874.55593 | BC225: 6876.779285 | BD225: 6878.959046 | BE225: 6881.096066 | BF225: 6883.191183 | BG225: 6885.24522 | BH225: 6887.258982 | BI225: 6889.233258 | BJ225: 6891.168823 | BK225: 6893.066436 | BL225: 0 | BM225: 0 | BN225: 0 | BO225: 0 | BP225: 0 | BQ225: 0 | BR225: 0
D226: Net On-Peak Sales | E226: MWH | K226: =K224-K225 -> 0 | L226: =L224-L225 -> 0 | M226: 0 | N226: 0 | O226: 0 | P226: 0 | Q226: 0 | R226: 0 | S226: 0 | T226: 0 | U226: 0 | V226: 0 | W226: 0 | X226: 0 | Y226: 0 | Z226: 0 | AA226: 0 | AB226: 0 | AC226: 386788.2526 | AD226: 386915.8909 | AE226: 387041.0265 | AF226: 387163.7085 | AG226: 387283.9849 | AH226: 387401.9029 | AI226: 387517.5089 | AJ226: 387630.8481 | AK226: 387741.9649 | AL226: 387850.9029 | AM226: 387957.705 | AN226: 388062.4128 | AO226: 386788.2526 | AP226: 386915.8909 | AQ226: 387041.0265 | AR226: 387163.7085 | AS226: 387283.9849 | AT226: 387401.9029 | AU226: 387517.5089 | AV226: 387630.8481 | AW226: 387741.9649 | AX226: 387850.9029 | AY226: 387957.705 | AZ226: 388062.4128 | BA226: 386788.2526 | BB226: 386915.8909 | BC226: 387041.0265 | BD226: 387163.7085 | BE226: 387283.9849 | BF226: 387401.9029 | BG226: 387517.5089 | BH226: 387630.8481 | BI226: 387741.9649 | BJ226: 387850.9029 | BK226: 387957.705 | BL226: 0 | BM226: 0 | BN226: 0 | BO226: 0 | BP226: 0 | BQ226: 0 | BR226: 0
C228: Year | K228: =YEAR(K5) -> 2020 | L228: 2020 | M228: 2020 | N228: 2020 | O228: 2020 | P228: 2020 | Q228: 2020 | R228: 2020 | S228: 2020 | T228: 2020 | U228: 2020 | V228: 2020 | W228: 2021 | X228: 2021 | Y228: 2021 | Z228: 2021 | AA228: 2021 | AB228: 2021 | AC228: 2021 | AD228: 2022 | AE228: 2023 | AF228: 2024 | AG228: 2025 | AH228: 2026 | AI228: 2027 | AJ228: 2028 | AK228: 2029 | AL228: 2030 | AM228: 2031 | AN228: 2032 | AO228: 2033 | AP228: 2034 | AQ228: =YEAR(AQ5) -> 2035 | AR228: 2036 | AS228: 2037 | AT228: 2038 | AU228: 2039 | AV228: 2040 | AW228: 2041 | AX228: 2042 | AY228: 2043 | AZ228: 2044 | BA228: 2045 | BB228: 2046 | BC228: 2047 | BD228: 2048 | BE228: 2049 | BF228: 2050 | BG228: 2051 | BH228: 2052 | BI228: 2053 | BJ228: 2054 | BK228: 2055 | BL228: 2056 | BM228: 2057 | BN228: 2058 | BO228: 2059 | BP228: 2060 | BQ228: 2061 | BR228: 2062
C229: Pricing for On-Peak Sales | E229: USD/MWH | K229: =interpolate_look_up(K228,'Wholesale Market Assumptions'!5:5,'Wholesale Market Assumptions'!11:11) -> 32 | L229: =interpolate_look_up(L228,'Wholesale Market Assumptions'!5:5,'Wholesale Market Assumptions'!11:11) -> 32 | M229: =interpolate_look_up(M228,'Wholesale Market Assumptions'!5:5,'Wholesale Market Assumptions'!11:11) -> 32 | N229: =interpolate_look_up(N228,'Wholesale Market Assumptions'!5:5,'Wholesale Market Assumptions'!11:11) -> 32 | O229: =interpolate_look_up(O228,'Wholesale Market Assumptions'!5:5,'Wholesale Market Assumptions'!11:11) -> 32 | P229: =interpolate_look_up(P228,'Wholesale Market Assumptions'!5:5,'Wholesale Market Assumptions'!11:11) -> 32 | Q229: =interpolate_look_up(Q228,'Wholesale Market Assumptions'!5:5,'Wholesale Market Assumptions'!11:11) -> 32 | R229: =interpolate_look_up(R228,'Wholesale Market Assumptions'!5:5,'Wholesale Market Assumptions'!11:11) -> 32 | S229: =interpolate_look_up(S228,'Wholesale Market Assumptions'!5:5,'Wholesale Market Assumptions'!11:11) -> 32 | T229: =interpolate_look_up(T228,'Wholesale Market Assumptions'!5:5,'Wholesale Market Assumptions'!11:11) -> 32 | U229: =interpolate_look_up(U228,'Wholesale Market Assumptions'!5:5,'Wholesale Market Assumptions'!11:11) -> 32 | V229: =interpolate_look_up(V228,'Wholesale Market Assumptions'!5:5,'Wholesale Market Assumptions'!11:11) -> 32 | W229: =interpolate_look_up(W228,'Wholesale Market Assumptions'!5:5,'Wholesale Market Assumptions'!11:11) -> 33.46046568 | X229: =interpolate_look_up(X228,'Wholesale Market Assumptions'!5:5,'Wholesale Market Assumptions'!11:11) -> 33.46046568 | Y229: =interpolate_look_up(Y228,'Wholesale Market Assumptions'!5:5,'Wholesale Market Assumptions'!11:11) -> 33.46046568 | Z229: =interpolate_look_up(Z228,'Wholesale Market Assumptions'!5:5,'Wholesale Market Assumptions'!11:11) -> 33.46046568 | AA229: =interpolate_look_up(AA228,'Wholesale Market Assumptions'!5:5,'Wholesale Market Assumptions'!11:11) -> 33.46046568 | AB229: =interpolate_look_up(AB228,'Wholesale Market Assumptions'!5:5,'Wholesale Market Assumptions'!11:11) -> 33.46046568 | AC229: =interpolate_look_up(AC228,'Wholesale Market Assumptions'!5:5,'Wholesale Market Assumptions'!11:11) -> 33.46046568 | AD229: =interpolate_look_up(AD228,'Wholesale Market Assumptions'!5:5,'Wholesale Market Assumptions'!11:11) -> 34.98758637 | AE229: =interpolate_look_up(AE228,'Wholesale Market Assumptions'!5:5,'Wholesale Market Assumptions'!11:11) -> 36.58440415 | AF229: =interpolate_look_up(AF228,'Wholesale Market Assumptions'!5:5,'Wholesale Market Assumptions'!11:11) -> 38.25409999 | AG229: =interpolate_look_up(AG228,'Wholesale Market Assumptions'!5:5,'Wholesale Market Assumptions'!11:11) -> 40 | AH229: =interpolate_look_up(AH228,'Wholesale Market Assumptions'!5:5,'Wholesale Market Assumptions'!11:11) -> 40.95345022 | AI229: =interpolate_look_up(AI228,'Wholesale Market Assumptions'!5:5,'Wholesale Market Assumptions'!11:11) -> 41.92962713 | AJ229: =interpolate_look_up(AJ228,'Wholesale Market Assumptions'!5:5,'Wholesale Market Assumptions'!11:11) -> 42.92907243 | AK229: =interpolate_look_up(AK228,'Wholesale Market Assumptions'!5:5,'Wholesale Market Assumptions'!11:11) -> 43.95234077 | AL229: =interpolate_look_up(AL228,'Wholesale Market Assumptions'!5:5,'Wholesale Market Assumptions'!11:11) -> 45 | AM229: =interpolate_look_up(AM228,'Wholesale Market Assumptions'!5:5,'Wholesale Market Assumptions'!11:11) -> 45.95830594 | AN229: =interpolate_look_up(AN228,'Wholesale Market Assumptions'!5:5,'Wholesale Market Assumptions'!11:11) -> 46.93701967 | AO229: =interpolate_look_up(AO228,'Wholesale Market Assumptions'!5:5,'Wholesale Market Assumptions'!11:11) -> 47.93657578 | AP229: =interpolate_look_up(AP228,'Wholesale Market Assumptions'!5:5,'Wholesale Market Assumptions'!11:11) -> 48.95741812 | AQ229: =interpolate_look_up(AQ228,'Wholesale Market Assumptions'!5:5,'Wholesale Market Assumptions'!11:11) -> 50 | AR229: =interpolate_look_up(AR228,'Wholesale Market Assumptions'!5:5,'Wholesale Market Assumptions'!11:11) -> 50.96224382 | AS229: =interpolate_look_up(AS228,'Wholesale Market Assumptions'!5:5,'Wholesale Market Assumptions'!11:11) -> 51.94300591 | AT229: =interpolate_look_up(AT228,'Wholesale Market Assumptions'!5:5,'Wholesale Market Assumptions'!11:11) -> 52.94264265 | AU229: =interpolate_look_up(AU228,'Wholesale Market Assumptions'!5:5,'Wholesale Market Assumptions'!11:11) -> 53.96151726 | AV229: =interpolate_look_up(AV228,'Wholesale Market Assumptions'!5:5,'Wholesale Market Assumptions'!11:11) -> 55 | AW229: =interpolate_look_up(AW228,'Wholesale Market Assumptions'!5:5,'Wholesale Market Assumptions'!11:11) -> 55 | AX229: =interpolate_look_up(AX228,'Wholesale Market Assumptions'!5:5,'Wholesale Market Assumptions'!11:11) -> 55 | AY229: =interpolate_look_up(AY228,'Wholesale Market Assumptions'!5:5,'Wholesale Market Assumptions'!11:11) -> 55 | AZ229: =interpolate_look_up(AZ228,'Wholesale Market Assumptions'!5:5,'Wholesale Market Assumptions'!11:11) -> 55 | BA229: =interpolate_look_up(BA228,'Wholesale Market Assumptions'!5:5,'Wholesale Market Assumptions'!11:11) -> 55 | BB229: =interpolate_look_up(BB228,'Wholesale Market Assumptions'!5:5,'Wholesale Market Assumptions'!11:11) -> 55 | BC229: =interpolate_look_up(BC228,'Wholesale Market Assumptions'!5:5,'Wholesale Market Assumptions'!11:11) -> 55 | BD229: =interpolate_look_up(BD228,'Wholesale Market Assumptions'!5:5,'Wholesale Market Assumptions'!11:11) -> 55 | BE229: =interpolate_look_up(BE228,'Wholesale Market Assumptions'!5:5,'Wholesale Market Assumptions'!11:11) -> 55 | BF229: =interpolate_look_up(BF228,'Wholesale Market Assumptions'!5:5,'Wholesale Market Assumptions'!11:11) -> 55 | BG229: =interpolate_look_up(BG228,'Wholesale Market Assumptions'!5:5,'Wholesale Market Assumptions'!11:11) -> 55 | BH229: =interpolate_look_up(BH228,'Wholesale Market Assumptions'!5:5,'Wholesale Market Assumptions'!11:11) -> 55 | BI229: =interpolate_look_up(BI228,'Wholesale Market Assumptions'!5:5,'Wholesale Market Assumptions'!11:11) -> 55 | BJ229: =interpolate_look_up(BJ228,'Wholesale Market Assumptions'!5:5,'Wholesale Market Assumptions'!11:11) -> 55 | BK229: =interpolate_look_up(BK228,'Wholesale Market Assumptions'!5:5,'Wholesale Market Assumptions'!11:11) -> 55 | BL229: =interpolate_look_up(BL228,'Wholesale Market Assumptions'!5:5,'Wholesale Market Assumptions'!11:11) -> 55 | BM229: =interpolate_look_up(BM228,'Wholesale Market Assumptions'!5:5,'Wholesale Market Assumptions'!11:11) -> 55 | BN229: =interpolate_look_up(BN228,'Wholesale Market Assumptions'!5:5,'Wholesale Market Assumptions'!11:11) -> 55 | BO229: =interpolate_look_up(BO228,'Wholesale Market Assumptions'!5:5,'Wholesale Market Assumptions'!11:11) -> 55 | BP229: =interpolate_look_up(BP228,'Wholesale Market Assumptions'!5:5,'Wholesale Market Assumptions'!11:11) -> 55 | BQ229: =interpolate_look_up(BQ228,'Wholesale Market Assumptions'!5:5,'Wholesale Market Assumptions'!11:11) -> 55 | BR229: =interpolate_look_up(BR228,'Wholesale Market Assumptions'!5:5,'Wholesale Market Assumptions'!11:11) -> 55
C230: On-Peak Net Wholesale Revenues | E230: USD 000's | K230: =K229*K226/1000 -> 0 | L230: =L229*L226/1000 -> 0 | M230: 0 | N230: 0 | O230: 0 | P230: 0 | Q230: 0 | R230: 0 | S230: 0 | T230: 0 | U230: 0 | V230: 0 | W230: 0 | X230: 0 | Y230: 0 | Z230: 0 | AA230: 0 | AB230: 0 | AC230: 12942.11505 | AD230: 13537.25315 | AE230: 14159.66534 | AF230: 14810.59922 | AG230: 15491.3594 | AH230: 15865.44455 | AI230: 16248.46465 | AJ230: 16640.63275 | AK230: 17042.16697 | AL230: 17453.29063 | AM230: 17829.8789 | AN230: 18214.4931 | AO230: 18541.30438 | AP230: 18942.40305 | AQ230: 19352.05133 | AR230: 19730.73131 | AS230: 20116.69432 | AT230: 20510.08051 | AU230: 20911.03275 | AV230: 21319.69664 | AW230: 21325.80807 | AX230: 21331.79966 | AY230: 21337.67377 | AZ230: 21343.43271 | BA230: 21273.35389 | BB230: 21280.374 | BC230: 21287.25646 | BD230: 21294.00397 | BE230: 21300.61917 | BF230: 21307.10466 | BG230: 21313.46299 | BH230: 21319.69664 | BI230: 21325.80807 | BJ230: 21331.79966 | BK230: 21337.67377 | BL230: 0 | BM230: 0 | BN230: 0 | BO230: 0 | BP230: 0 | BQ230: 0 | BR230: 0
C232: Off-Peak Sales | E232: MWH | K232: =K168 -> 0 | L232: =L168 -> 0 | M232: 0 | N232: 0 | O232: 0 | P232: 0 | Q232: 0 | R232: 0 | S232: 0 | T232: 0 | U232: 0 | V232: 0 | W232: 0 | X232: 0 | Y232: 0 | Z232: 0 | AA232: 0 | AB232: 0 | AC232: 147699.1686 | AD232: 147747.9087 | AE232: 147795.693 | AF232: 147842.5404 | AG232: 147888.4692 | AH232: 147933.4975 | AI232: 147977.6428 | AJ232: 148020.9226 | AK232: 148063.3537 | AL232: 148104.9528 | AM232: 148145.7363 | AN232: 148185.7201 | AO232: 147699.1686 | AP232: 147747.9087 | AQ232: 147795.693 | AR232: 147842.5404 | AS232: 147888.4692 | AT232: 147933.4975 | AU232: 147977.6428 | AV232: 148020.9226 | AW232: 148063.3537 | AX232: 148104.9528 | AY232: 148145.7363 | AZ232: 148185.7201 | BA232: 147699.1686 | BB232: 147747.9087 | BC232: 147795.693 | BD232: 147842.5404 | BE232: 147888.4692 | BF232: 147933.4975 | BG232: 147977.6428 | BH232: 148020.9226 | BI232: 148063.3537 | BJ232: 148104.9528 | BK232: 148145.7363 | BL232: 0 | BM232: 0 | BN232: 0 | BO232: 0 | BP232: 0 | BQ232: 0 | BR232: 0
C233: Off-Peak Purchases | E233: MWH | K233: =K164 -> 0 | L233: =L164 -> 0 | M233: 0 | N233: 0 | O233: 0 | P233: 0 | Q233: 0 | R233: 0 | S233: 0 | T233: 0 | U233: 0 | V233: 0 | W233: 0 | X233: 0 | Y233: 0 | Z233: 0 | AA233: 0 | AB233: 0 | AC233: 83809.58509 | AD233: 83837.24186 | AE233: 83864.35634 | AF233: 83890.93916 | AG233: 83917.00075 | AH233: 83942.55133 | AI233: 83967.60092 | AJ233: 83992.15933 | AK233: 84016.23622 | AL233: 84039.841 | AM233: 84062.98295 | AN233: 84085.67113 | AO233: 83809.58509 | AP233: 83837.24186 | AQ233: 83864.35634 | AR233: 83890.93916 | AS233: 83917.00075 | AT233: 83942.55133 | AU233: 83967.60092 | AV233: 83992.15933 | AW233: 84016.23622 | AX233: 84039.841 | AY233: 84062.98295 | AZ233: 84085.67113 | BA233: 83809.58509 | BB233: 83837.24186 | BC233: 83864.35634 | BD233: 83890.93916 | BE233: 83917.00075 | BF233: 83942.55133 | BG233: 83967.60092 | BH233: 83992.15933 | BI233: 84016.23622 | BJ233: 84039.841 | BK233: 84062.98295 | BL233: 0 | BM233: 0 | BN233: 0 | BO233: 0 | BP233: 0 | BQ233: 0 | BR233: 0
D234: Net Off-Peak Sales | E234: MWH | K234: =K232-K233 -> 0 | L234: =L232-L233 -> 0 | M234: 0 | N234: 0 | O234: 0 | P234: 0 | Q234: 0 | R234: 0 | S234: 0 | T234: 0 | U234: 0 | V234: 0 | W234: 0 | X234: 0 | Y234: 0 | Z234: 0 | AA234: 0 | AB234: 0 | AC234: 63889.58354 | AD234: 63910.6668 | AE234: 63931.33667 | AF234: 63951.60124 | AG234: 63971.46847 | AH234: 63990.94614 | AI234: 64010.0419 | AJ234: 64028.76324 | AK234: 64047.11748 | AL234: 64065.11184 | AM234: 64082.75338 | AN234: 64100.04899 | AO234: 63889.58354 | AP234: 63910.6668 | AQ234: 63931.33667 | AR234: 63951.60124 | AS234: 63971.46847 | AT234: 63990.94614 | AU234: 64010.0419 | AV234: 64028.76324 | AW234: 64047.11748 | AX234: 64065.11184 | AY234: 64082.75338 | AZ234: 64100.04899 | BA234: 63889.58354 | BB234: 63910.6668 | BC234: 63931.33667 | BD234: 63951.60124 | BE234: 63971.46847 | BF234: 63990.94614 | BG234: 64010.0419 | BH234: 64028.76324 | BI234: 64047.11748 | BJ234: 64065.11184 | BK234: 64082.75338 | BL234: 0 | BM234: 0 | BN234: 0 | BO234: 0 | BP234: 0 | BQ234: 0 | BR234: 0
C236: Pricing for Off-Peak Sales | E236: USD/MWH | K236: =interpolate_look_up(K228,'Wholesale Market Assumptions'!5:5,'Wholesale Market Assumptions'!20:20) -> 14 | L236: =interpolate_look_up(L228,'Wholesale Market Assumptions'!5:5,'Wholesale Market Assumptions'!20:20) -> 14 | M236: =interpolate_look_up(M228,'Wholesale Market Assumptions'!5:5,'Wholesale Market Assumptions'!20:20) -> 14 | N236: =interpolate_look_up(N228,'Wholesale Market Assumptions'!5:5,'Wholesale Market Assumptions'!20:20) -> 14 | O236: =interpolate_look_up(O228,'Wholesale Market Assumptions'!5:5,'Wholesale Market Assumptions'!20:20) -> 14 | P236: =interpolate_look_up(P228,'Wholesale Market Assumptions'!5:5,'Wholesale Market Assumptions'!20:20) -> 14 | Q236: =interpolate_look_up(Q228,'Wholesale Market Assumptions'!5:5,'Wholesale Market Assumptions'!20:20) -> 14 | R236: =interpolate_look_up(R228,'Wholesale Market Assumptions'!5:5,'Wholesale Market Assumptions'!20:20) -> 14 | S236: =interpolate_look_up(S228,'Wholesale Market Assumptions'!5:5,'Wholesale Market Assumptions'!20:20) -> 14 | T236: =interpolate_look_up(T228,'Wholesale Market Assumptions'!5:5,'Wholesale Market Assumptions'!20:20) -> 14 | U236: =interpolate_look_up(U228,'Wholesale Market Assumptions'!5:5,'Wholesale Market Assumptions'!20:20) -> 14 | V236: =interpolate_look_up(V228,'Wholesale Market Assumptions'!5:5,'Wholesale Market Assumptions'!20:20) -> 14 | W236: =interpolate_look_up(W228,'Wholesale Market Assumptions'!5:5,'Wholesale Market Assumptions'!20:20) -> 14.37892522 | X236: =interpolate_look_up(X228,'Wholesale Market Assumptions'!5:5,'Wholesale Market Assumptions'!20:20) -> 14.37892522 | Y236: =interpolate_look_up(Y228,'Wholesale Market Assumptions'!5:5,'Wholesale Market Assumptions'!20:20) -> 14.37892522 | Z236: =interpolate_look_up(Z228,'Wholesale Market Assumptions'!5:5,'Wholesale Market Assumptions'!20:20) -> 14.37892522 | AA236: =interpolate_look_up(AA228,'Wholesale Market Assumptions'!5:5,'Wholesale Market Assumptions'!20:20) -> 14.37892522 | AB236: =interpolate_look_up(AB228,'Wholesale Market Assumptions'!5:5,'Wholesale Market Assumptions'!20:20) -> 14.37892522 | AC236: =interpolate_look_up(AC228,'Wholesale Market Assumptions'!5:5,'Wholesale Market Assumptions'!20:20) -> 14.37892522 | AD236: =interpolate_look_up(AD228,'Wholesale Market Assumptions'!5:5,'Wholesale Market Assumptions'!20:20) -> 14.76810646 | AE236: =interpolate_look_up(AE228,'Wholesale Market Assumptions'!5:5,'Wholesale Market Assumptions'!20:20) -> 15.16782132 | AF236: =interpolate_look_up(AF228,'Wholesale Market Assumptions'!5:5,'Wholesale Market Assumptions'!20:20) -> 15.57835489 | AG236: =interpolate_look_up(AG228,'Wholesale Market Assumptions'!5:5,'Wholesale Market Assumptions'!20:20) -> 16 | AH236: =interpolate_look_up(AH228,'Wholesale Market Assumptions'!5:5,'Wholesale Market Assumptions'!20:20) -> 16.73023284 | AI236: =interpolate_look_up(AI228,'Wholesale Market Assumptions'!5:5,'Wholesale Market Assumptions'!20:20) -> 17.49379318 | AJ236: =interpolate_look_up(AJ228,'Wholesale Market Assumptions'!5:5,'Wholesale Market Assumptions'!20:20) -> 18.29220208 | AK236: =interpolate_look_up(AK228,'Wholesale Market Assumptions'!5:5,'Wholesale Market Assumptions'!20:20) -> 19.12705 | AL236: =interpolate_look_up(AL228,'Wholesale Market Assumptions'!5:5,'Wholesale Market Assumptions'!20:20) -> 20 | AM236: =interpolate_look_up(AM228,'Wholesale Market Assumptions'!5:5,'Wholesale Market Assumptions'!20:20) -> 20.38489753 | AN236: =interpolate_look_up(AN228,'Wholesale Market Assumptions'!5:5,'Wholesale Market Assumptions'!20:20) -> 20.77720237 | AO236: =interpolate_look_up(AO228,'Wholesale Market Assumptions'!5:5,'Wholesale Market Assumptions'!20:20) -> 21.17705706 | AP236: =interpolate_look_up(AP228,'Wholesale Market Assumptions'!5:5,'Wholesale Market Assumptions'!20:20) -> 21.58460691 | AQ236: =interpolate_look_up(AQ228,'Wholesale Market Assumptions'!5:5,'Wholesale Market Assumptions'!20:20) -> 22 | AR236: =interpolate_look_up(AR228,'Wholesale Market Assumptions'!5:5,'Wholesale Market Assumptions'!20:20) -> 22.56971871 | AS236: =interpolate_look_up(AS228,'Wholesale Market Assumptions'!5:5,'Wholesale Market Assumptions'!20:20) -> 23.15419103 | AT236: =interpolate_look_up(AT228,'Wholesale Market Assumptions'!5:5,'Wholesale Market Assumptions'!20:20) -> 23.75379902 | AU236: =interpolate_look_up(AU228,'Wholesale Market Assumptions'!5:5,'Wholesale Market Assumptions'!20:20) -> 24.36893464 | AV236: =interpolate_look_up(AV228,'Wholesale Market Assumptions'!5:5,'Wholesale Market Assumptions'!20:20) -> 25 | AW236: =interpolate_look_up(AW228,'Wholesale Market Assumptions'!5:5,'Wholesale Market Assumptions'!20:20) -> 25 | AX236: =interpolate_look_up(AX228,'Wholesale Market Assumptions'!5:5,'Wholesale Market Assumptions'!20:20) -> 25 | AY236: =interpolate_look_up(AY228,'Wholesale Market Assumptions'!5:5,'Wholesale Market Assumptions'!20:20) -> 25 | AZ236: =interpolate_look_up(AZ228,'Wholesale Market Assumptions'!5:5,'Wholesale Market Assumptions'!20:20) -> 25 | BA236: =interpolate_look_up(BA228,'Wholesale Market Assumptions'!5:5,'Wholesale Market Assumptions'!20:20) -> 25 | BB236: =interpolate_look_up(BB228,'Wholesale Market Assumptions'!5:5,'Wholesale Market Assumptions'!20:20) -> 25 | BC236: =interpolate_look_up(BC228,'Wholesale Market Assumptions'!5:5,'Wholesale Market Assumptions'!20:20) -> 25 | BD236: =interpolate_look_up(BD228,'Wholesale Market Assumptions'!5:5,'Wholesale Market Assumptions'!20:20) -> 25 | BE236: =interpolate_look_up(BE228,'Wholesale Market Assumptions'!5:5,'Wholesale Market Assumptions'!20:20) -> 25 | BF236: =interpolate_look_up(BF228,'Wholesale Market Assumptions'!5:5,'Wholesale Market Assumptions'!20:20) -> 25 | BG236: =interpolate_look_up(BG228,'Wholesale Market Assumptions'!5:5,'Wholesale Market Assumptions'!20:20) -> 25 | BH236: =interpolate_look_up(BH228,'Wholesale Market Assumptions'!5:5,'Wholesale Market Assumptions'!20:20) -> 25 | BI236: =interpolate_look_up(BI228,'Wholesale Market Assumptions'!5:5,'Wholesale Market Assumptions'!20:20) -> 25 | BJ236: =interpolate_look_up(BJ228,'Wholesale Market Assumptions'!5:5,'Wholesale Market Assumptions'!20:20) -> 25 | BK236: =interpolate_look_up(BK228,'Wholesale Market Assumptions'!5:5,'Wholesale Market Assumptions'!20:20) -> 25 | BL236: =interpolate_look_up(BL228,'Wholesale Market Assumptions'!5:5,'Wholesale Market Assumptions'!20:20) -> 25 | BM236: =interpolate_look_up(BM228,'Wholesale Market Assumptions'!5:5,'Wholesale Market Assumptions'!20:20) -> 25 | BN236: =interpolate_look_up(BN228,'Wholesale Market Assumptions'!5:5,'Wholesale Market Assumptions'!20:20) -> 25 | BO236: =interpolate_look_up(BO228,'Wholesale Market Assumptions'!5:5,'Wholesale Market Assumptions'!20:20) -> 25 | BP236: =interpolate_look_up(BP228,'Wholesale Market Assumptions'!5:5,'Wholesale Market Assumptions'!20:20) -> 25 | BQ236: =interpolate_look_up(BQ228,'Wholesale Market Assumptions'!5:5,'Wholesale Market Assumptions'!20:20) -> 25 | BR236: =interpolate_look_up(BR228,'Wholesale Market Assumptions'!5:5,'Wholesale Market Assumptions'!20:20) -> 25
C237: Off-Peak Net Wholesale Revenues | E237: USD 000's | K237: =K236*K234/1000 -> 0 | L237: =L236*L234/1000 -> 0 | M237: 0 | N237: 0 | O237: 0 | P237: 0 | Q237: 0 | R237: 0 | S237: 0 | T237: 0 | U237: 0 | V237: 0 | W237: 0 | X237: 0 | Y237: 0 | Z237: 0 | AA237: 0 | AB237: 0 | AC237: 918.663544 | AD237: 943.8395313 | AE237: 969.6990911 | AF237: 996.2607399 | AG237: 1023.543495 | AH237: 1070.583429 | AI237: 1119.778435 | AJ237: 1171.227076 | AK237: 1225.032418 | AL237: 1281.302237 | AM237: 1306.320361 | AN237: 1331.81969 | AO237: 1352.993356 | AP237: 1379.48662 | AQ237: 1406.489407 | AR237: 1443.369651 | AS237: 1481.207601 | AT237: 1520.028074 | AU237: 1559.856527 | AV237: 1600.719081 | AW237: 1601.177937 | AX237: 1601.627796 | AY237: 1602.068834 | AZ237: 1602.501225 | BA237: 1597.239588 | BB237: 1597.76667 | BC237: 1598.283417 | BD237: 1598.790031 | BE237: 1599.286712 | BF237: 1599.773654 | BG237: 1600.251048 | BH237: 1600.719081 | BI237: 1601.177937 | BJ237: 1601.627796 | BK237: 1602.068834 | BL237: 0 | BM237: 0 | BN237: 0 | BO237: 0 | BP237: 0 | BQ237: 0 | BR237: 0
C239: Total Revenues | E239: USD 000's | K239: =K222+K230+K237 -> 0 | L239: =L222+L230+L237 -> 0 | M239: 0 | N239: 0 | O239: 0 | P239: 0 | Q239: 0 | R239: 0 | S239: 0 | T239: 0 | U239: 0 | V239: 0 | W239: 0 | X239: 0 | Y239: 0 | Z239: 0 | AA239: 0 | AB239: 0 | AC239: 27491.95151 | AD239: 28316.73319 | AE239: 29172.53955 | AF239: 30060.6827 | AG239: 30982.53298 | AH239: 31620.67251 | AI239: 32273.15729 | AJ239: 32940.34775 | AK239: 33622.61463 | AL239: 34320.33933 | AM239: 34955.73192 | AN239: 35603.13844 | AO239: 36191.97577 | AP239: 36864.03288 | AQ239: 37548.81609 | AR239: 38216.23045 | AS239: 38895.66335 | AT239: 39587.33643 | AU239: 40291.47554 | AV239: 41008.31078 | AW239: 41286.19949 | AX239: 41568.02915 | AY239: 41853.86332 | AZ239: 42143.76646 | BA239: 42356.3935 | BB239: 42656.22768 | BC239: 42960.29819 | BD239: 43268.67369 | BE239: 43581.42377 | BF239: 43898.61897 | BG239: 44220.3308 | BH239: 44546.63174 | BI239: 44877.59526 | BJ239: 45213.29586 | BK239: 45553.80903 | BL239: 0 | BM239: 0 | BN239: 0 | BO239: 0 | BP239: 0 | BQ239: 0 | BR239: 0
C240: Less: Operating Expenses | E240: USD 000's | K240: =K215 -> 0 | L240: =L215 -> 0 | M240: 0 | N240: 0 | O240: 0 | P240: 0 | Q240: 0 | R240: 0 | S240: 0 | T240: 0 | U240: 0 | V240: 0 | W240: 0 | X240: 0 | Y240: 0 | Z240: 0 | AA240: 0 | AB240: 0 | AC240: 10393.97706 | AD240: 10518.70478 | AE240: 10644.92924 | AF240: 10772.66839 | AG240: 10901.94041 | AH240: 11032.7637 | AI240: 11165.15686 | AJ240: 11299.13874 | AK240: 11434.72841 | AL240: 11571.94515 | AM240: 11710.80849 | AN240: 11851.33819 | AO240: 11993.55425 | AP240: 12137.4769 | AQ240: 12283.12663 | AR240: 12430.52415 | AS240: 12579.69044 | AT240: 12730.64672 | AU240: 12883.41448 | AV240: 13038.01546 | AW240: 13194.47164 | AX240: 13352.8053 | AY240: 13513.03896 | AZ240: 13675.19543 | BA240: 13839.29778 | BB240: 14005.36935 | BC240: 14173.43378 | BD240: 14343.51499 | BE240: 14515.63717 | BF240: 14689.82481 | BG240: 14866.10271 | BH240: 15044.49594 | BI240: 15225.02989 | BJ240: 15407.73025 | BK240: 15592.62302 | BL240: 0 | BM240: 0 | BN240: 0 | BO240: 0 | BP240: 0 | BQ240: 0 | BR240: 0
D241: EBITDA | E241: USD 000's | K241: =K239-K240 -> 0 | L241: =L239-L240 -> 0 | M241: 0 | N241: 0 | O241: 0 | P241: 0 | Q241: 0 | R241: 0 | S241: 0 | T241: 0 | U241: 0 | V241: 0 | W241: 0 | X241: 0 | Y241: 0 | Z241: 0 | AA241: 0 | AB241: 0 | AC241: 17097.97445 | AD241: 17798.02841 | AE241: 18527.61031 | AF241: 19288.01431 | AG241: 20080.59256 | AH241: 20587.90882 | AI241: 21108.00043 | AJ241: 21641.209 | AK241: 22187.88622 | AL241: 22748.39418 | AM241: 23244.92343 | AN241: 23751.80025 | AO241: 24198.42152 | AP241: 24726.55597 | AQ241: 25265.68946 | AR241: 25785.7063 | AS241: 26315.97291 | AT241: 26856.68971 | AU241: 27408.06106 | AV241: 27970.29533 | AW241: 28091.72785 | AX241: 28215.22385 | AY241: 28340.82436 | AZ241: 28468.57102 | BA241: 28517.09572 | BB241: 28650.85833 | BC241: 28786.86441 | BD241: 28925.1587 | BE241: 29065.7866 | BF241: 29208.79416 | BG241: 29354.22809 | BH241: 29502.1358 | BI241: 29652.56537 | BJ241: 29805.5656 | BK241: 29961.18601 | BL241: 0 | BM241: 0 | BN241: 0 | BO241: 0 | BP241: 0 | BQ241: 0 | BR241: 0
D243: Capital Expenditures | E243: USD 000's | K243: =K197 -> 12222.22222 | L243: =L197 -> 12222.22222 | M243: 12222.22222 | N243: 12222.22222 | O243: 12222.22222 | P243: 12222.22222 | Q243: 12222.22222 | R243: 12222.22222 | S243: 12222.22222 | T243: 12222.22222 | U243: 12222.22222 | V243: 12222.22222 | W243: 12222.22222 | X243: 33222.22222 | Y243: 33222.22222 | Z243: 39888.88889 | AA243: 39888.88889 | AB243: 39888.88889 | AC243: 0 | AD243: 0 | AE243: 0 | AF243: 0 | AG243: 0 | AH243: 0 | AI243: 0 | AJ243: 0 | AK243: 0 | AL243: 0 | AM243: 0 | AN243: 10000 | AO243: 0 | AP243: 0 | AQ243: 0 | AR243: 0 | AS243: 0 | AT243: 0 | AU243: 0 | AV243: 0 | AW243: 0 | AX243: 0 | AY243: 0 | AZ243: 3600 | BA243: 0 | BB243: 0 | BC243: 0 | BD243: 0 | BE243: 0 | BF243: 0 | BG243: 0 | BH243: 0 | BI243: 0 | BJ243: 0 | BK243: 0 | BL243: 0 | BM243: 0 | BN243: 0 | BO243: 0 | BP243: 0 | BQ243: 0 | BR243: 0
D244: Pre-tax Free Cash Flow | E244: USD 000's | K244: =K241-K243 -> -12222.22222 | L244: =L241-L243 -> -12222.22222 | M244: -12222.22222 | N244: -12222.22222 | O244: -12222.22222 | P244: -12222.22222 | Q244: -12222.22222 | R244: -12222.22222 | S244: -12222.22222 | T244: -12222.22222 | U244: -12222.22222 | V244: -12222.22222 | W244: -12222.22222 | X244: -33222.22222 | Y244: -33222.22222 | Z244: -39888.88889 | AA244: -39888.88889 | AB244: -39888.88889 | AC244: 17097.97445 | AD244: 17798.02841 | AE244: 18527.61031 | AF244: 19288.01431 | AG244: 20080.59256 | AH244: 20587.90882 | AI244: 21108.00043 | AJ244: 21641.209 | AK244: 22187.88622 | AL244: 22748.39418 | AM244: 23244.92343 | AN244: 13751.80025 | AO244: 24198.42152 | AP244: 24726.55597 | AQ244: 25265.68946 | AR244: 25785.7063 | AS244: 26315.97291 | AT244: 26856.68971 | AU244: 27408.06106 | AV244: 27970.29533 | AW244: 28091.72785 | AX244: 28215.22385 | AY244: 28340.82436 | AZ244: 24868.57102 | BA244: 28517.09572 | BB244: 28650.85833 | BC244: 28786.86441 | BD244: 28925.1587 | BE244: 29065.7866 | BF244: 29208.79416 | BG244: 29354.22809 | BH244: 29502.1358 | BI244: 29652.56537 | BJ244: 29805.5656 | BK244: 29961.18601 | BL244: 0 | BM244: 0 | BN244: 0 | BO244: 0 | BP244: 0 | BQ244: 0 | BR244: 0
D246: Pre-Tax Unlevered IRR | E246: % | F246: =XIRR(K244:BR244,K6:BR6) -> 0.05488230884
D248: Target IRR | E248: % | F248: =F104 -> 0.07
D249: NPV at Target IRR | E249: USD 000's | F249: =XNPV(F248,K244:BR244,K6:BR6) -> -59738.00426 | G249: NPV Target
D251: Price | E251: USD/MWH | F251: =price -> 17.034154
... 137 more rows

Sheet Wholesale Market Assumptions
B2: Scenario Code Number | E2: 1
B4: On-Peak Price
F5: =YEAR('Financial Model'!F10) -> 2020 | G5: 2025 | H5: 2030 | I5: 2035 | J5: 2040
D6: Base Case | E6: USD/MWH | F6: 32 | G6: 40 | H6: 45 | I6: 50 | J6: 55
D7: Low Case | E7: USD/MWH | F7: 30 | G7: 38 | H7: 42 | I7: 48 | J7: 50
D8: High On/Off Peak | E8: USD/MWH | F8: 40 | G8: 55 | H8: 62 | I8: 65 | J8: 70
D9: High Case | E9: USD/MWH | F9: 34 | G9: 45 | H9: 52 | I9: 55 | J9: 60
D11: =INDEX(D6:D9,$E$2) -> Base Case | E11: =INDEX(E6:E9,$E$2) -> USD/MWH | F11: 32 | G11: 40 | H11: 45 | I11: 50 | J11: 55
B13: Off-Peak Price
F14: =F5 -> 2020 | G14: 2025 | H14: 2030 | I14: 2035 | J14: 2040
D15: Base Case | E15: USD/MWH | F15: 14 | G15: 16 | H15: 20 | I15: 22 | J15: 25
D16: Low Case | E16: USD/MWH | F16: 12 | G16: 14 | H16: 16 | I16: 18 | J16: 20
D17: High On/Off Peak | E17: USD/MWH | F17: 12 | G17: 14 | H17: 16 | I17: 18 | J17: 20
D18: High Case | E18: USD/MWH | F18: 15 | G18: 18 | H18: 22 | I18: 24 | J18: 27
D20: =INDEX(D15:D18,$E$2) -> Base Case | E20: =INDEX(E15:E18,$E$2) -> USD/MWH | F20: 14 | G20: 16 | H20: 20 | I20: 22 | J20: 25

Sheet Hourly Production
E1: Base Year | F1: ='Financial Model'!F20 -> 2017
E3: 2015 | F3: ='Historical Generation'!C4 -> 2015-01-01T01:00:00 | L3: Hour | N3: Hour | P3: Hour | S3: Cap Fac | T3: =AVERAGE(T8:T8767) -> 0.4989400889 | U3: =AVERAGE(U8:U8767) -> 0.1692044826
E4: 2016 | F4: ='Historical Generation'!C8764 -> 2016-01-01T00:59:59.998 | K4: Start | L4: ='Financial Model'!F21 -> 6 | N4: ='Financial Model'!F23 -> 0 | P4: ='Financial Model'!F25 -> 0 | S4: Target | T4: ='Financial Model'!F34 -> 0.5 | U4: ='Financial Model'!F42 -> 0.17 | AC4: Energy Charging Balance | AH4: Market Purchases and Sales
E5: 2017 | F5: ='Historical Generation'!C17548 -> 2017-01-01T00:59:59.996 | K5: End | L5: ='Financial Model'!F22 -> 22 | N5: ='Financial Model'!F24 -> 0 | P5: ='Financial Model'!F26 -> 0 | S5: Factor | T5: =T4/T3 -> 1.002124325 | U5: =U4/U3 -> 1.004701515 | V5: Load | W5: Capacity | X5: Capacity | Z5: kWh
S6: Fixed Factor | T6: ='Financial Model'!F35 -> 0.85 | U6: ='Financial Model'!F43 -> 0.62 | V6: ='Financial Model'!$F$28 -> 90 | W6: ='Financial Model'!F41 -> 150 | X6: ='Financial Model'!F33 -> 200 | Z6: ='Financial Model'!F52 -> 200 | AE6: =1-'Financial Model'!F54 -> 0.15
D7: Hour | E7: Hour of Day | F7: Day | G7: End of Hour | H7: Week Day | I7: Week Day Number | J7: Week Number | K7: Week Day Switch | L7: On-Peak Weekday | M7: Saturday Switch | N7: On-Peak Saturday | O7: Sunday Switch | P7: On-Peak Sunday | Q7: On-Peak Switch | R7: Off-Peak Switch | S7: Match | T7: Wind % | U7: Solar % | V7: Load | W7: Less: Solar | X7: Less: Wind | Y7: Net Load for Battery Discharge | Z7: Maximum Storage | AA7: Less: Storage Already Used | AB7: Remaining Amount for Charge | AC7: Opening Balance | AD7: Add: Charge | AE7: Less: Round-trip Loss | AF7: Less: Discharge | AG7: Closing Balance | AH7: Market Purchases | AI7: Market Sales | AJ7: On-peak Market Purchases | AK7: Off-peak Market Purchases | AL7: On-peak Market Sales | AM7: Off-peak Market Sales
D8: 1 | E8: 1 | F8: 1 | G8: =LOOKUP(F1,E3:E5,F3:F5) -> 2017-01-01T00:59:59.996 | H8: =TEXT(G8,"dddd") -> Sunday | I8: =WEEKDAY(G8) -> 1 | J8: 1 | K8: =AND(I8<>1,I8<>7) -> FALSE | L8: =IF(K8,AND(E8>=$L$4,E8<=$L$5)) -> FALSE | M8: =I8=7 -> FALSE | N8: =AND($E8>=N$4,E8<=N$5) -> FALSE | O8: =I8=1 -> TRUE | P8: =AND($E8>=P$4,E8<=P$5) -> FALSE | Q8: =OR(L8,N8,P8) -> FALSE | R8: =NOT(Q8) -> TRUE | S8: =MATCH(G8,'Historical Generation'!C:C,0) -> 17548 | T8: =INDEX('Historical Generation'!G:G,'Hourly Production'!S8)*$T$6 -> 0 | U8: =INDEX('Historical Generation'!I:I,'Hourly Production'!S8)*$U$6 -> 0 | V8: ='Financial Model'!$F$28 -> 90 | W8: =$W$6*U8 -> 0 | X8: =$X$6*T8 -> 0 | Y8: =V8-W8-X8 -> 90 | Z8: =$Z$6 -> 200 | AA8: =AC8 -> 0 | AB8: =Z8-AA8 -> 200 | AC8: 0 | AD8: =MIN(MAX(-Y8,0),AB8) -> 0 | AE8: =AD8*$AE$6 -> 0 | AF8: =IF(Q8,MIN(MAX(Y8,0),AC8))*1 -> 0 | AG8: =AC8+AD8-AE8-AF8 -> 0 | AH8: =MAX(Y8-AF8,0) -> 90 | AI8: =MAX(-Y8,0)-AD8 -> 0 | AJ8: =AH8*Q8 -> 0 | AK8: =AH8-AJ8 -> 90 | AL8: =AI8*Q8 -> 0 | AM8: =AI8-AL8 -> 0
D9: 2 | E9: =IF(E8=24,1,E8+1) -> 2 | F9: =IF(E9=1,F8+1,F8) -> 1 | G9: =G8+1/24 -> 2017-01-01T01:59:59.996 | H9: =TEXT(G9,"dddd") -> Sunday | I9: =WEEKDAY(G9) -> 1 | J9: =IF(AND(I9=1,I8<>1),J8+1,J8) -> 1 | K9: =AND(I9<>1,I9<>7) -> FALSE | L9: =IF(K9,AND(E9>=$L$4,E9<=$L$5)) -> FALSE | M9: =I9=7 -> FALSE | N9: =AND($E9>=N$4,E9<=N$5) -> FALSE | O9: =I9=1 -> TRUE | P9: =AND($E9>=P$4,E9<=P$5) -> FALSE | Q9: =OR(L9,N9,P9) -> FALSE | R9: =NOT(Q9) -> TRUE | S9: =MATCH(G9,'Historical Generation'!C:C,0) -> 17549 | T9: =INDEX('Historical Generation'!G:G,'Hourly Production'!S9)*$T$6 -> 0 | U9: =INDEX('Historical Generation'!I:I,'Hourly Production'!S9)*$U$6 -> 0 | V9: ='Financial Model'!$F$28 -> 90 | W9: =$W$6*U9 -> 0 | X9: =$X$6*T9 -> 0 | Y9: =V9-W9-X9 -> 90 | Z9: =$Z$6 -> 200 | AA9: =AC9 -> 0 | AB9: =Z9-AA9 -> 200 | AC9: =AG8 -> 0 | AD9: =MIN(MAX(-Y9,0),AB9) -> 0 | AE9: =AD9*$AE$6 -> 0 | AF9: =IF(Q9,MIN(MAX(Y9,0),AC9))*1 -> 0 | AG9: =AC9+AD9-AE9-AF9 -> 0 | AH9: =MAX(Y9-AF9,0) -> 90 | AI9: =MAX(-Y9,0)-AD9 -> 0 | AJ9: =AH9*Q9 -> 0 | AK9: =AH9-AJ9 -> 90 | AL9: =AI9*Q9 -> 0 | AM9: =AI9-AL9 -> 0
D10: 3 | E10: =IF(E9=24,1,E9+1) -> 3 | F10: =IF(E10=1,F9+1,F9) -> 1 | G10: =G9+1/24 -> 2017-01-01T02:59:59.996 | H10: =TEXT(G10,"dddd") -> Sunday | I10: =WEEKDAY(G10) -> 1 | J10: =IF(AND(I10=1,I9<>1),J9+1,J9) -> 1 | K10: =AND(I10<>1,I10<>7) -> FALSE | L10: =IF(K10,AND(E10>=$L$4,E10<=$L$5)) -> FALSE | M10: =I10=7 -> FALSE | N10: =AND($E10>=N$4,E10<=N$5) -> FALSE | O10: =I10=1 -> TRUE | P10: =AND($E10>=P$4,E10<=P$5) -> FALSE | Q10: =OR(L10,N10,P10) -> FALSE | R10: =NOT(Q10) -> TRUE | S10: =MATCH(G10,'Historical Generation'!C:C,0) -> 17550 | T10: =INDEX('Historical Generation'!G:G,'Hourly Production'!S10)*$T$6 -> 0.2023809524 | U10: =INDEX('Historical Generation'!I:I,'Hourly Production'!S10)*$U$6 -> 0 | V10: ='Financial Model'!$F$28 -> 90 | W10: =$W$6*U10 -> 0 | X10: =$X$6*T10 -> 40.47619048 | Y10: =V10-W10-X10 -> 49.52380952 | Z10: =$Z$6 -> 200 | AA10: =AC10 -> 0 | AB10: =Z10-AA10 -> 200 | AC10: =AG9 -> 0 | AD10: =MIN(MAX(-Y10,0),AB10) -> 0 | AE10: =AD10*$AE$6 -> 0 | AF10: =IF(Q10,MIN(MAX(Y10,0),AC10))*1 -> 0 | AG10: =AC10+AD10-AE10-AF10 -> 0 | AH10: =MAX(Y10-AF10,0) -> 49.52380952 | AI10: =MAX(-Y10,0)-AD10 -> 0 | AJ10: =AH10*Q10 -> 0 | AK10: =AH10-AJ10 -> 49.52380952 | AL10: =AI10*Q10 -> 0 | AM10: =AI10-AL10 -> 0
D11: 4 | E11: 4 | F11: 1 | G11: 2017-01-01T03:59:59.996 | H11: Sunday | I11: 1 | J11: 1 | K11: FALSE | L11: FALSE | M11: FALSE | N11: FALSE | O11: TRUE | P11: FALSE | Q11: FALSE | R11: TRUE | S11: =MATCH(G11,'Historical Generation'!C:C,0) -> 17551 | T11: =INDEX('Historical Generation'!G:G,'Hourly Production'!S11)*$T$6 -> 0 | U11: =INDEX('Historical Generation'!I:I,'Hourly Production'!S11)*$U$6 -> 0 | V11: ='Financial Model'!$F$28 -> 90 | W11: 0 | X11: 0 | Y11: 90 | Z11: 200 | AA11: 0 | AB11: 200 | AC11: 0 | AD11: 0 | AE11: 0 | AF11: 0 | AG11: 0 | AH11: 90 | AI11: 0 | AJ11: 0 | AK11: 90 | AL11: 0 | AM11: 0
D12: 5 | E12: 5 | F12: 1 | G12: 2017-01-01T04:59:59.996 | H12: Sunday | I12: 1 | J12: 1 | K12: FALSE | L12: FALSE | M12: FALSE | N12: FALSE | O12: TRUE | P12: FALSE | Q12: FALSE | R12: TRUE | S12: =MATCH(G12,'Historical Generation'!C:C,0) -> 17552 | T12: =INDEX('Historical Generation'!G:G,'Hourly Production'!S12)*$T$6 -> 0 | U12: =INDEX('Historical Generation'!I:I,'Hourly Production'!S12)*$U$6 -> 0 | V12: ='Financial Model'!$F$28 -> 90 | W12: 0 | X12: 0 | Y12: 90 | Z12: 200 | AA12: 0 | AB12: 200 | AC12: 0 | AD12: 0 | AE12: 0 | AF12: 0 | AG12: 0 | AH12: 90 | AI12: 0 | AJ12: 0 | AK12: 90 | AL12: 0 | AM12: 0
D13: 6 | E13: 6 | F13: 1 | G13: 2017-01-01T05:59:59.996 | H13: Sunday | I13: 1 | J13: 1 | K13: FALSE | L13: FALSE | M13: FALSE | N13: FALSE | O13: TRUE | P13: FALSE | Q13: FALSE | R13: TRUE | S13: =MATCH(G13,'Historical Generation'!C:C,0) -> 17553 | T13: =INDEX('Historical Generation'!G:G,'Hourly Production'!S13)*$T$6 -> 0.2023809524 | U13: =INDEX('Historical Generation'!I:I,'Hourly Production'!S13)*$U$6 -> 0 | V13: ='Financial Model'!$F$28 -> 90 | W13: 0 | X13: 40.47619048 | Y13: 49.52380952 | Z13: 200 | AA13: 0 | AB13: 200 | AC13: 0 | AD13: 0 | AE13: 0 | AF13: 0 | AG13: 0 | AH13: 49.52380952 | AI13: 0 | AJ13: 0 | AK13: 49.52380952 | AL13: 0 | AM13: 0
D14: 7 | E14: 7 | F14: 1 | G14: 2017-01-01T06:59:59.996 | H14: Sunday | I14: 1 | J14: 1 | K14: FALSE | L14: FALSE | M14: FALSE | N14: FALSE | O14: TRUE | P14: FALSE | Q14: FALSE | R14: TRUE | S14: =MATCH(G14,'Historical Generation'!C:C,0) -> 17554 | T14: =INDEX('Historical Generation'!G:G,'Hourly Production'!S14)*$T$6 -> 0.240327381 | U14: =INDEX('Historical Generation'!I:I,'Hourly Production'!S14)*$U$6 -> 0 | V14: ='Financial Model'!$F$28 -> 90 | W14: 0 | X14: 48.06547619 | Y14: 41.93452381 | Z14: 200 | AA14: 0 | AB14: 200 | AC14: 0 | AD14: 0 | AE14: 0 | AF14: 0 | AG14: 0 | AH14: 41.93452381 | AI14: 0 | AJ14: 0 | AK14: 41.93452381 | AL14: 0 | AM14: 0
D15: 8 | E15: 8 | F15: 1 | G15: 2017-01-01T07:59:59.996 | H15: Sunday | I15: 1 | J15: 1 | K15: FALSE | L15: FALSE | M15: FALSE | N15: FALSE | O15: TRUE | P15: FALSE | Q15: FALSE | R15: TRUE | S15: =MATCH(G15,'Historical Generation'!C:C,0) -> 17555 | T15: =INDEX('Historical Generation'!G:G,'Hourly Production'!S15)*$T$6 -> 0.2276785714 | U15: =INDEX('Historical Generation'!I:I,'Hourly Production'!S15)*$U$6 -> 0 | V15: ='Financial Model'!$F$28 -> 90 | W15: 0 | X15: 45.53571429 | Y15: 44.46428571 | Z15: 200 | AA15: 0 | AB15: 200 | AC15: 0 | AD15: 0 | AE15: 0 | AF15: 0 | AG15: 0 | AH15: 44.46428571 | AI15: 0 | AJ15: 0 | AK15: 44.46428571 | AL15: 0 | AM15: 0
D16: 9 | E16: 9 | F16: 1 | G16: 2017-01-01T08:59:59.996 | H16: Sunday | I16: 1 | J16: 1 | K16: FALSE | L16: FALSE | M16: FALSE | N16: FALSE | O16: TRUE | P16: FALSE | Q16: FALSE | R16: TRUE | S16: =MATCH(G16,'Historical Generation'!C:C,0) -> 17556 | T16: =INDEX('Historical Generation'!G:G,'Hourly Production'!S16)*$T$6 -> 0 | U16: =INDEX('Historical Generation'!I:I,'Hourly Production'!S16)*$U$6 -> 0 | V16: ='Financial Model'!$F$28 -> 90 | W16: 0 | X16: 0 | Y16: 90 | Z16: 200 | AA16: 0 | AB16: 200 | AC16: 0 | AD16: 0 | AE16: 0 | AF16: 0 | AG16: 0 | AH16: 90 | AI16: 0 | AJ16: 0 | AK16: 90 | AL16: 0 | AM16: 0
D17: 10 | E17: 10 | F17: 1 | G17: 2017-01-01T09:59:59.996 | H17: Sunday | I17: 1 | J17: 1 | K17: FALSE | L17: FALSE | M17: FALSE | N17: FALSE | O17: TRUE | P17: FALSE | Q17: FALSE | R17: TRUE | S17: =MATCH(G17,'Historical Generation'!C:C,0) -> 17557 | T17: =INDEX('Historical Generation'!G:G,'Hourly Production'!S17)*$T$6 -> 0 | U17: =INDEX('Historical Generation'!I:I,'Hourly Production'!S17)*$U$6 -> 0.3038138632 | V17: ='Financial Model'!$F$28 -> 90 | W17: 45.57207948 | X17: 0 | Y17: 44.42792052 | Z17: 200 | AA17: 0 | AB17: 200 | AC17: 0 | AD17: 0 | AE17: 0 | AF17: 0 | AG17: 0 | AH17: 44.42792052 | AI17: 0 | AJ17: 0 | AK17: 44.42792052 | AL17: 0 | AM17: 0
D18: 11 | E18: 11 | F18: 1 | G18: 2017-01-01T10:59:59.996 | H18: Sunday | I18: 1 | J18: 1 | K18: FALSE | L18: FALSE | M18: FALSE | N18: FALSE | O18: TRUE | P18: FALSE | Q18: FALSE | R18: TRUE | S18: =MATCH(G18,'Historical Generation'!C:C,0) -> 17558 | T18: =INDEX('Historical Generation'!G:G,'Hourly Production'!S18)*$T$6 -> 0 | U18: =INDEX('Historical Generation'!I:I,'Hourly Production'!S18)*$U$6 -> 0.4140943792 | V18: ='Financial Model'!$F$28 -> 90 | W18: 62.11415688 | X18: 0 | Y18: 27.88584312 | Z18: 200 | AA18: 0 | AB18: 200 | AC18: 0 | AD18: 0 | AE18: 0 | AF18: 0 | AG18: 0 | AH18: 27.88584312 | AI18: 0 | AJ18: 0 | AK18: 27.88584312 | AL18: 0 | AM18: 0
D19: 12 | E19: 12 | F19: 1 | G19: 2017-01-01T11:59:59.996 | H19: Sunday | I19: 1 | J19: 1 | K19: FALSE | L19: FALSE | M19: FALSE | N19: FALSE | O19: TRUE | P19: FALSE | Q19: FALSE | R19: TRUE | S19: =MATCH(G19,'Historical Generation'!C:C,0) -> 17559 | T19: =INDEX('Historical Generation'!G:G,'Hourly Production'!S19)*$T$6 -> 0 | U19: =INDEX('Historical Generation'!I:I,'Hourly Production'!S19)*$U$6 -> 0.4747160324 | V19: ='Financial Model'!$F$28 -> 90 | W19: 71.20740486 | X19: 0 | Y19: 18.79259514 | Z19: 200 | AA19: 0 | AB19: 200 | AC19: 0 | AD19: 0 | AE19: 0 | AF19: 0 | AG19: 0 | AH19: 18.79259514 | AI19: 0 | AJ19: 0 | AK19: 18.79259514 | AL19: 0 | AM19: 0
D20: 13 | E20: 13 | F20: 1 | G20: 2017-01-01T12:59:59.996 | H20: Sunday | I20: 1 | J20: 1 | K20: FALSE | L20: FALSE | M20: FALSE | N20: FALSE | O20: TRUE | P20: FALSE | Q20: FALSE | R20: TRUE | S20: =MATCH(G20,'Historical Generation'!C:C,0) -> 17560 | T20: =INDEX('Historical Generation'!G:G,'Hourly Production'!S20)*$T$6 -> 0.265625 | U20: =INDEX('Historical Generation'!I:I,'Hourly Production'!S20)*$U$6 -> 0.5162951048 | V20: ='Financial Model'!$F$28 -> 90 | W20: 77.44426572 | X20: 53.125 | Y20: -40.56926572 | Z20: 200 | AA20: 0 | AB20: 200 | AC20: 0 | AD20: 40.56926572 | AE20: 6.085389858 | AF20: 0 | AG20: 34.48387586 | AH20: 0 | AI20: 0 | AJ20: 0 | AK20: 0 | AL20: 0 | AM20: 0
D21: 14 | E21: 14 | F21: 1 | G21: 2017-01-01T13:59:59.996 | H21: Sunday | I21: 1 | J21: 1 | K21: FALSE | L21: FALSE | M21: FALSE | N21: FALSE | O21: TRUE | P21: FALSE | Q21: FALSE | R21: TRUE | S21: =MATCH(G21,'Historical Generation'!C:C,0) -> 17561 | T21: =INDEX('Historical Generation'!G:G,'Hourly Production'!S21)*$T$6 -> 0.3225446429 | U21: =INDEX('Historical Generation'!I:I,'Hourly Production'!S21)*$U$6 -> 0.49174525 | V21: ='Financial Model'!$F$28 -> 90 | W21: 73.7617875 | X21: 64.50892857 | Y21: -48.27071607 | Z21: 200 | AA21: 34.48387586 | AB21: 165.5161241 | AC21: 34.48387586 | AD21: 48.27071607 | AE21: 7.240607411 | AF21: 0 | AG21: 75.51398452 | AH21: 0 | AI21: 0 | AJ21: 0 | AK21: 0 | AL21: 0 | AM21: 0
D22: 15 | E22: 15 | F22: 1 | G22: 2017-01-01T14:59:59.996 | H22: Sunday | I22: 1 | J22: 1 | K22: FALSE | L22: FALSE | M22: FALSE | N22: FALSE | O22: TRUE | P22: FALSE | Q22: FALSE | R22: TRUE | S22: =MATCH(G22,'Historical Generation'!C:C,0) -> 17562 | T22: =INDEX('Historical Generation'!G:G,'Hourly Production'!S22)*$T$6 -> 0.290922619 | U22: =INDEX('Historical Generation'!I:I,'Hourly Production'!S22)*$U$6 -> 0.5308378744 | V22: ='Financial Model'!$F$28 -> 90 | W22: 79.62568116 | X22: 58.18452381 | Y22: -47.81020497 | Z22: 200 | AA22: 75.51398452 | AB22: 124.4860155 | AC22: 75.51398452 | AD22: 47.81020497 | AE22: 7.171530745 | AF22: 0 | AG22: 116.1526587 | AH22: 0 | AI22: 0 | AJ22: 0 | AK22: 0 | AL22: 0 | AM22: 0
D23: 16 | E23: 16 | F23: 1 | G23: 2017-01-01T15:59:59.996 | H23: Sunday | I23: 1 | J23: 1 | K23: FALSE | L23: FALSE | M23: FALSE | N23: FALSE | O23: TRUE | P23: FALSE | Q23: FALSE | R23: TRUE | S23: =MATCH(G23,'Historical Generation'!C:C,0) -> 17563 | T23: =INDEX('Historical Generation'!G:G,'Hourly Production'!S23)*$T$6 -> 0.290922619 | U23: =INDEX('Historical Generation'!I:I,'Hourly Production'!S23)*$U$6 -> 0.312269944 | V23: ='Financial Model'!$F$28 -> 90 | W23: 46.8404916 | X23: 58.18452381 | Y23: -15.02501541 | Z23: 200 | AA23: 116.1526587 | AB23: 83.84734125 | AC23: 116.1526587 | AD23: 15.02501541 | AE23: 2.253752311 | AF23: 0 | AG23: 128.9239218 | AH23: 0 | AI23: 0 | AJ23: 0 | AK23: 0 | AL23: 0 | AM23: 0
D24: 17 | E24: 17 | F24: 1 | G24: 2017-01-01T16:59:59.996 | H24: Sunday | I24: 1 | J24: 1 | K24: FALSE | L24: FALSE | M24: FALSE | N24: FALSE | O24: TRUE | P24: FALSE | Q24: FALSE | R24: TRUE | S24: =MATCH(G24,'Historical Generation'!C:C,0) -> 17564 | T24: =INDEX('Historical Generation'!G:G,'Hourly Production'!S24)*$T$6 -> 0.85 | U24: =INDEX('Historical Generation'!I:I,'Hourly Production'!S24)*$U$6 -> 0 | V24: ='Financial Model'!$F$28 -> 90 | W24: 0 | X24: 170 | Y24: -80 | Z24: 200 | AA24: 128.9239218 | AB24: 71.07607816 | AC24: 128.9239218 | AD24: 71.07607816 | AE24: 10.66141172 | AF24: 0 | AG24: 189.3385883 | AH24: 0 | AI24: 8.923921845 | AJ24: 0 | AK24: 0 | AL24: 0 | AM24: 8.923921845
D25: 18 | E25: 18 | F25: 1 | G25: 2017-01-01T17:59:59.996 | H25: Sunday | I25: 1 | J25: 1 | K25: FALSE | L25: FALSE | M25: FALSE | N25: FALSE | O25: TRUE | P25: FALSE | Q25: FALSE | R25: TRUE | S25: =MATCH(G25,'Historical Generation'!C:C,0) -> 17565 | T25: =INDEX('Historical Generation'!G:G,'Hourly Production'!S25)*$T$6 -> 0.85 | U25: =INDEX('Historical Generation'!I:I,'Hourly Production'!S25)*$U$6 -> 0 | V25: ='Financial Model'!$F$28 -> 90 | W25: 0 | X25: 170 | Y25: -80 | Z25: 200 | AA25: 189.3385883 | AB25: 10.66141172 | AC25: 189.3385883 | AD25: 10.66141172 | AE25: 1.599211758 | AF25: 0 | AG25: 198.4007882 | AH25: 0 | AI25: 69.33858828 | AJ25: 0 | AK25: 0 | AL25: 0 | AM25: 69.33858828
D26: 19 | E26: 19 | F26: 1 | G26: 2017-01-01T18:59:59.996 | H26: Sunday | I26: 1 | J26: 1 | K26: FALSE | L26: FALSE | M26: FALSE | N26: FALSE | O26: TRUE | P26: FALSE | Q26: FALSE | R26: TRUE | S26: =MATCH(G26,'Historical Generation'!C:C,0) -> 17566 | T26: =INDEX('Historical Generation'!G:G,'Hourly Production'!S26)*$T$6 -> 0.85 | U26: =INDEX('Historical Generation'!I:I,'Hourly Production'!S26)*$U$6 -> 0 | V26: ='Financial Model'!$F$28 -> 90 | W26: 0 | X26: 170 | Y26: -80 | Z26: 200 | AA26: 198.4007882 | AB26: 1.599211758 | AC26: 198.4007882 | AD26: 1.599211758 | AE26: 0.2398817638 | AF26: 0 | AG26: 199.7601182 | AH26: 0 | AI26: 78.40078824 | AJ26: 0 | AK26: 0 | AL26: 0 | AM26: 78.40078824
D27: 20 | E27: 20 | F27: 1 | G27: 2017-01-01T19:59:59.996 | H27: Sunday | I27: 1 | J27: 1 | K27: FALSE | L27: FALSE | M27: FALSE | N27: FALSE | O27: TRUE | P27: FALSE | Q27: FALSE | R27: TRUE | S27: =MATCH(G27,'Historical Generation'!C:C,0) -> 17567 | T27: =INDEX('Historical Generation'!G:G,'Hourly Production'!S27)*$T$6 -> 0.85 | U27: =INDEX('Historical Generation'!I:I,'Hourly Production'!S27)*$U$6 -> 0 | V27: ='Financial Model'!$F$28 -> 90 | W27: 0 | X27: 170 | Y27: -80 | Z27: 200 | AA27: 199.7601182 | AB27: 0.2398817638 | AC27: 199.7601182 | AD27: 0.2398817638 | AE27: 0.03598226457 | AF27: 0 | AG27: 199.9640177 | AH27: 0 | AI27: 79.76011824 | AJ27: 0 | AK27: 0 | AL27: 0 | AM27: 79.76011824
D28: 21 | E28: 21 | F28: 1 | G28: 2017-01-01T20:59:59.996 | H28: Sunday | I28: 1 | J28: 1 | K28: FALSE | L28: FALSE | M28: FALSE | N28: FALSE | O28: TRUE | P28: FALSE | Q28: FALSE | R28: TRUE | S28: =MATCH(G28,'Historical Generation'!C:C,0) -> 17568 | T28: =INDEX('Historical Generation'!G:G,'Hourly Production'!S28)*$T$6 -> 0.7842261905 | U28: =INDEX('Historical Generation'!I:I,'Hourly Production'!S28)*$U$6 -> 0 | V28: ='Financial Model'!$F$28 -> 90 | W28: 0 | X28: 156.8452381 | Y28: -66.8452381 | Z28: 200 | AA28: 199.9640177 | AB28: 0.03598226457 | AC28: 199.9640177 | AD28: 0.03598226457 | AE28: 0.005397339685 | AF28: 0 | AG28: 199.9946027 | AH28: 0 | AI28: 66.80925583 | AJ28: 0 | AK28: 0 | AL28: 0 | AM28: 66.80925583
D29: 22 | E29: 22 | F29: 1 | G29: 2017-01-01T21:59:59.996 | H29: Sunday | I29: 1 | J29: 1 | K29: FALSE | L29: FALSE | M29: FALSE | N29: FALSE | O29: TRUE | P29: FALSE | Q29: FALSE | R29: TRUE | S29: =MATCH(G29,'Historical Generation'!C:C,0) -> 17569 | T29: =INDEX('Historical Generation'!G:G,'Hourly Production'!S29)*$T$6 -> 0.3541666667 | U29: =INDEX('Historical Generation'!I:I,'Hourly Production'!S29)*$U$6 -> 0 | V29: ='Financial Model'!$F$28 -> 90 | W29: 0 | X29: 70.83333333 | Y29: 19.16666667 | Z29: 200 | AA29: 199.9946027 | AB29: 0.005397339685 | AC29: 199.9946027 | AD29: 0 | AE29: 0 | AF29: 0 | AG29: 199.9946027 | AH29: 19.16666667 | AI29: 0 | AJ29: 0 | AK29: 19.16666667 | AL29: 0 | AM29: 0
D30: 23 | E30: 23 | F30: 1 | G30: 2017-01-01T22:59:59.996 | H30: Sunday | I30: 1 | J30: 1 | K30: FALSE | L30: FALSE | M30: FALSE | N30: FALSE | O30: TRUE | P30: FALSE | Q30: FALSE | R30: TRUE | S30: =MATCH(G30,'Historical Generation'!C:C,0) -> 17570 | T30: =INDEX('Historical Generation'!G:G,'Hourly Production'!S30)*$T$6 -> 0.290922619 | U30: =INDEX('Historical Generation'!I:I,'Hourly Production'!S30)*$U$6 -> 0 | V30: ='Financial Model'!$F$28 -> 90 | W30: 0 | X30: 58.18452381 | Y30: 31.81547619 | Z30: 200 | AA30: 199.9946027 | AB30: 0.005397339685 | AC30: 199.9946027 | AD30: 0 | AE30: 0 | AF30: 0 | AG30: 199.9946027 | AH30: 31.81547619 | AI30: 0 | AJ30: 0 | AK30: 31.81547619 | AL30: 0 | AM30: 0
D31: 24 | E31: 24 | F31: 1 | G31: 2017-01-01T23:59:59.996 | H31: Monday | I31: 2 | J31: 1 | K31: TRUE | L31: FALSE | M31: FALSE | N31: FALSE | O31: FALSE | P31: FALSE | Q31: FALSE | R31: TRUE | S31: =MATCH(G31,'Historical Generation'!C:C,0) -> 17571 | T31: =INDEX('Historical Generation'!G:G,'Hourly Production'!S31)*$T$6 -> 0.2782738095 | U31: =INDEX('Historical Generation'!I:I,'Hourly Production'!S31)*$U$6 -> 0 | V31: ='Financial Model'!$F$28 -> 90 | W31: 0 | X31: 55.6547619 | Y31: 34.3452381 | Z31: 200 | AA31: 199.9946027 | AB31: 0.005397339685 | AC31: 199.9946027 | AD31: 0 | AE31: 0 | AF31: 0 | AG31: 199.9946027 | AH31: 34.3452381 | AI31: 0 | AJ31: 0 | AK31: 34.3452381 | AL31: 0 | AM31: 0
D32: 25 | E32: 1 | F32: 2 | G32: 2017-01-02T00:59:59.996 | H32: Monday | I32: 2 | J32: 1 | K32: TRUE | L32: FALSE | M32: FALSE | N32: FALSE | O32: FALSE | P32: FALSE | Q32: FALSE | R32: TRUE | S32: =MATCH(G32,'Historical Generation'!C:C,0) -> 17572 | T32: =INDEX('Historical Generation'!G:G,'Hourly Production'!S32)*$T$6 -> 0.1897321429 | U32: =INDEX('Historical Generation'!I:I,'Hourly Production'!S32)*$U$6 -> 0 | V32: ='Financial Model'!$F$28 -> 90 | W32: 0 | X32: 37.94642857 | Y32: 52.05357143 | Z32: 200 | AA32: 199.9946027 | AB32: 0.005397339685 | AC32: 199.9946027 | AD32: 0 | AE32: 0 | AF32: 0 | AG32: 199.9946027 | AH32: 52.05357143 | AI32: 0 | AJ32: 0 | AK32: 52.05357143 | AL32: 0 | AM32: 0
D33: 26 | E33: 2 | F33: 2 | G33: 2017-01-02T01:59:59.996 | H33: Monday | I33: 2 | J33: 1 | K33: TRUE | L33: FALSE | M33: FALSE | N33: FALSE | O33: FALSE | P33: FALSE | Q33: FALSE | R33: TRUE | S33: =MATCH(G33,'Historical Generation'!C:C,0) -> 17573 | T33: =INDEX('Historical Generation'!G:G,'Hourly Production'!S33)*$T$6 -> 0.2276785714 | U33: =INDEX('Historical Generation'!I:I,'Hourly Production'!S33)*$U$6 -> 0 | V33: ='Financial Model'!$F$28 -> 90 | W33: 0 | X33: 45.53571429 | Y33: 44.46428571 | Z33: 200 | AA33: 199.9946027 | AB33: 0.005397339685 | AC33: 199.9946027 | AD33: 0 | AE33: 0 | AF33: 0 | AG33: 199.9946027 | AH33: 44.46428571 | AI33: 0 | AJ33: 0 | AK33: 44.46428571 | AL33: 0 | AM33: 0
D34: 27 | E34: 3 | F34: 2 | G34: 2017-01-02T02:59:59.996 | H34: Monday | I34: 2 | J34: 1 | K34: TRUE | L34: FALSE | M34: FALSE | N34: FALSE | O34: FALSE | P34: FALSE | Q34: FALSE | R34: TRUE | S34: =MATCH(G34,'Historical Generation'!C:C,0) -> 17574 | T34: =INDEX('Historical Generation'!G:G,'Hourly Production'!S34)*$T$6 -> 0.2150297619 | U34: =INDEX('Historical Generation'!I:I,'Hourly Production'!S34)*$U$6 -> 0 | V34: ='Financial Model'!$F$28 -> 90 | W34: 0 | X34: 43.00595238 | Y34: 46.99404762 | Z34: 200 | AA34: 199.9946027 | AB34: 0.005397339685 | AC34: 199.9946027 | AD34: 0 | AE34: 0 | AF34: 0 | AG34: 199.9946027 | AH34: 46.99404762 | AI34: 0 | AJ34: 0 | AK34: 46.99404762 | AL34: 0 | AM34: 0
D35: 28 | E35: 4 | F35: 2 | G35: 2017-01-02T03:59:59.996 | H35: Monday | I35: 2 | J35: 1 | K35: TRUE | L35: FALSE | M35: FALSE | N35: FALSE | O35: FALSE | P35: FALSE | Q35: FALSE | R35: TRUE | S35: =MATCH(G35,'Historical Generation'!C:C,0) -> 17575 | T35: =INDEX('Historical Generation'!G:G,'Hourly Production'!S35)*$T$6 -> 0.1897321429 | U35: =INDEX('Historical Generation'!I:I,'Hourly Production'!S35)*$U$6 -> 0 | V35: ='Financial Model'!$F$28 -> 90 | W35: 0 | X35: 37.94642857 | Y35: 52.05357143 | Z35: 200 | AA35: 199.9946027 | AB35: 0.005397339685 | AC35: 199.9946027 | AD35: 0 | AE35: 0 | AF35: 0 | AG35: 199.9946027 | AH35: 52.05357143 | AI35: 0 | AJ35: 0 | AK35: 52.05357143 | AL35: 0 | AM35: 0
D36: 29 | E36: 5 | F36: 2 | G36: 2017-01-02T04:59:59.996 | H36: Monday | I36: 2 | J36: 1 | K36: TRUE | L36: FALSE | M36: FALSE | N36: FALSE | O36: FALSE | P36: FALSE | Q36: FALSE | R36: TRUE | S36: =MATCH(G36,'Historical Generation'!C:C,0) -> 17576 | T36: =INDEX('Historical Generation'!G:G,'Hourly Production'!S36)*$T$6 -> 0.2023809524 | U36: =INDEX('Historical Generation'!I:I,'Hourly Production'!S36)*$U$6 -> 0 | V36: ='Financial Model'!$F$28 -> 90 | W36: 0 | X36: 40.47619048 | Y36: 49.52380952 | Z36: 200 | AA36: 199.9946027 | AB36: 0.005397339685 | AC36: 199.9946027 | AD36: 0 | AE36: 0 | AF36: 0 | AG36: 199.9946027 | AH36: 49.52380952 | AI36: 0 | AJ36: 0 | AK36: 49.52380952 | AL36: 0 | AM36: 0
D37: 30 | E37: 6 | F37: 2 | G37: 2017-01-02T05:59:59.996 | H37: Monday | I37: 2 | J37: 1 | K37: TRUE | L37: TRUE | M37: FALSE | N37: FALSE | O37: FALSE | P37: FALSE | Q37: TRUE | R37: FALSE | S37: =MATCH(G37,'Historical Generation'!C:C,0) -> 17577 | T37: =INDEX('Historical Generation'!G:G,'Hourly Production'!S37)*$T$6 -> 0.2150297619 | U37: =INDEX('Historical Generation'!I:I,'Hourly Production'!S37)*$U$6 -> 0 | V37: ='Financial Model'!$F$28 -> 90 | W37: 0 | X37: 43.00595238 | Y37: 46.99404762 | Z37: 200 | AA37: 199.9946027 | AB37: 0.005397339685 | AC37: 199.9946027 | AD37: 0 | AE37: 0 | AF37: 46.99404762 | AG37: 153.000555 | AH37: 0 | AI37: 0 | AJ37: 0 | AK37: 0 | AL37: 0 | AM37: 0
D38: 31 | E38: 7 | F38: 2 | G38: 2017-01-02T06:59:59.996 | H38: Monday | I38: 2 | J38: 1 | K38: TRUE | L38: TRUE | M38: FALSE | N38: FALSE | O38: FALSE | P38: FALSE | Q38: TRUE | R38: FALSE | S38: =MATCH(G38,'Historical Generation'!C:C,0) -> 17578 | T38: =INDEX('Historical Generation'!G:G,'Hourly Production'!S38)*$T$6 -> 0.2023809524 | U38: =INDEX('Historical Generation'!I:I,'Hourly Production'!S38)*$U$6 -> 0 | V38: ='Financial Model'!$F$28 -> 90 | W38: 0 | X38: 40.47619048 | Y38: 49.52380952 | Z38: 200 | AA38: 153.000555 | AB38: 46.99944496 | AC38: 153.000555 | AD38: 0 | AE38: 0 | AF38: 49.52380952 | AG38: 103.4767455 | AH38: 0 | AI38: 0 | AJ38: 0 | AK38: 0 | AL38: 0 | AM38: 0
D39: 32 | E39: 8 | F39: 2 | G39: 2017-01-02T07:59:59.996 | H39: Monday | I39: 2 | J39: 1 | K39: TRUE | L39: TRUE | M39: FALSE | N39: FALSE | O39: FALSE | P39: FALSE | Q39: TRUE | R39: FALSE | S39: =MATCH(G39,'Historical Generation'!C:C,0) -> 17579 | T39: =INDEX('Historical Generation'!G:G,'Hourly Production'!S39)*$T$6 -> 0 | U39: =INDEX('Historical Generation'!I:I,'Hourly Production'!S39)*$U$6 -> 0 | V39: ='Financial Model'!$F$28 -> 90 | W39: 0 | X39: 0 | Y39: 90 | Z39: 200 | AA39: 103.4767455 | AB39: 96.52325448 | AC39: 103.4767455 | AD39: 0 | AE39: 0 | AF39: 90 | AG39: 13.47674552 | AH39: 0 | AI39: 0 | AJ39: 0 | AK39: 0 | AL39: 0 | AM39: 0
D40: 33 | E40: 9 | F40: 2 | G40: 2017-01-02T08:59:59.996 | H40: Monday | I40: 2 | J40: 1 | K40: TRUE | L40: TRUE | M40: FALSE | N40: FALSE | O40: FALSE | P40: FALSE | Q40: TRUE | R40: FALSE | S40: =MATCH(G40,'Historical Generation'!C:C,0) -> 17580 | T40: =INDEX('Historical Generation'!G:G,'Hourly Production'!S40)*$T$6 -> 0 | U40: =INDEX('Historical Generation'!I:I,'Hourly Production'!S40)*$U$6 -> 0 | V40: ='Financial Model'!$F$28 -> 90 | W40: 0 | X40: 0 | Y40: 90 | Z40: 200 | AA40: 13.47674552 | AB40: 186.5232545 | AC40: 13.47674552 | AD40: 0 | AE40: 0 | AF40: 13.47674552 | AG40: 0 | AH40: 76.52325448 | AI40: 0 | AJ40: 76.52325448 | AK40: 0 | AL40: 0 | AM40: 0
D41: 34 | E41: 10 | F41: 2 | G41: 2017-01-02T09:59:59.996 | H41: Monday | I41: 2 | J41: 1 | K41: TRUE | L41: TRUE | M41: FALSE | N41: FALSE | O41: FALSE | P41: FALSE | Q41: TRUE | R41: FALSE | S41: =MATCH(G41,'Historical Generation'!C:C,0) -> 17581 | T41: =INDEX('Historical Generation'!G:G,'Hourly Production'!S41)*$T$6 -> 0 | U41: =INDEX('Historical Generation'!I:I,'Hourly Production'!S41)*$U$6 -> 0.1250328456 | V41: ='Financial Model'!$F$28 -> 90 | W41: 18.75492684 | X41: 0 | Y41: 71.24507316 | Z41: 200 | AA41: 0 | AB41: 200 | AC41: 0 | AD41: 0 | AE41: 0 | AF41: 0 | AG41: 0 | AH41: 71.24507316 | AI41: 0 | AJ41: 71.24507316 | AK41: 0 | AL41: 0 | AM41: 0
D42: 35 | E42: 11 | F42: 2 | G42: 2017-01-02T10:59:59.996 | H42: Monday | I42: 2 | J42: 1 | K42: TRUE | L42: TRUE | M42: FALSE | N42: FALSE | O42: FALSE | P42: FALSE | Q42: TRUE | R42: FALSE | S42: =MATCH(G42,'Historical Generation'!C:C,0) -> 17582 | T42: =INDEX('Historical Generation'!G:G,'Hourly Production'!S42)*$T$6 -> 0 | U42: =INDEX('Historical Generation'!I:I,'Hourly Production'!S42)*$U$6 -> 0.150469412 | V42: ='Financial Model'!$F$28 -> 90 | W42: 22.5704118 | X42: 0 | Y42: 67.4295882 | Z42: 200 | AA42: 0 | AB42: 200 | AC42: 0 | AD42: 0 | AE42: 0 | AF42: 0 | AG42: 0 | AH42: 67.4295882 | AI42: 0 | AJ42: 67.4295882 | AK42: 0 | AL42: 0 | AM42: 0
D43: 36 | E43: 12 | F43: 2 | G43: 2017-01-02T11:59:59.996 | H43: Monday | I43: 2 | J43: 1 | K43: TRUE | L43: TRUE | M43: FALSE | N43: FALSE | O43: FALSE | P43: FALSE | Q43: TRUE | R43: FALSE | S43: =MATCH(G43,'Historical Generation'!C:C,0) -> 17583 | T43: =INDEX('Historical Generation'!G:G,'Hourly Production'!S43)*$T$6 -> 0 | U43: =INDEX('Historical Generation'!I:I,'Hourly Production'!S43)*$U$6 -> 0.1888625524 | V43: ='Financial Model'!$F$28 -> 90 | W43: 28.32938286 | X43: 0 | Y43: 61.67061714 | Z43: 200 | AA43: 0 | AB43: 200 | AC43: 0 | AD43: 0 | AE43: 0 | AF43: 0 | AG43: 0 | AH43: 61.67061714 | AI43: 0 | AJ43: 61.67061714 | AK43: 0 | AL43: 0 | AM43: 0
D44: 37 | E44: 13 | F44: 2 | G44: 2017-01-02T12:59:59.996 | H44: Monday | I44: 2 | J44: 1 | K44: TRUE | L44: TRUE | M44: FALSE | N44: FALSE | O44: FALSE | P44: FALSE | Q44: TRUE | R44: FALSE | S44: =MATCH(G44,'Historical Generation'!C:C,0) -> 17584 | T44: =INDEX('Historical Generation'!G:G,'Hourly Production'!S44)*$T$6 -> 0 | U44: =INDEX('Historical Generation'!I:I,'Hourly Production'!S44)*$U$6 -> 0.1967157328 | V44: ='Financial Model'!$F$28 -> 90 | W44: 29.50735992 | X44: 0 | Y44: 60.49264008 | Z44: 200 | AA44: 0 | AB44: 200 | AC44: 0 | AD44: 0 | AE44: 0 | AF44: 0 | AG44: 0 | AH44: 60.49264008 | AI44: 0 | AJ44: 60.49264008 | AK44: 0 | AL44: 0 | AM44: 0
D45: 38 | E45: 14 | F45: 2 | G45: 2017-01-02T13:59:59.996 | H45: Monday | I45: 2 | J45: 1 | K45: TRUE | L45: TRUE | M45: FALSE | N45: FALSE | O45: FALSE | P45: FALSE | Q45: TRUE | R45: FALSE | S45: =MATCH(G45,'Historical Generation'!C:C,0) -> 17585 | T45: =INDEX('Historical Generation'!G:G,'Hourly Production'!S45)*$T$6 -> 0.1897321429 | U45: =INDEX('Historical Generation'!I:I,'Hourly Production'!S45)*$U$6 -> 0.188601148 | V45: ='Financial Model'!$F$28 -> 90 | W45: 28.2901722 | X45: 37.94642857 | Y45: 23.76339923 | Z45: 200 | AA45: 0 | AB45: 200 | AC45: 0 | AD45: 0 | AE45: 0 | AF45: 0 | AG45: 0 | AH45: 23.76339923 | AI45: 0 | AJ45: 23.76339923 | AK45: 0 | AL45: 0 | AM45: 0
D46: 39 | E46: 15 | F46: 2 | G46: 2017-01-02T14:59:59.996 | H46: Monday | I46: 2 | J46: 1 | K46: TRUE | L46: TRUE | M46: FALSE | N46: FALSE | O46: FALSE | P46: FALSE | Q46: TRUE | R46: FALSE | S46: =MATCH(G46,'Historical Generation'!C:C,0) -> 17586 | T46: =INDEX('Historical Generation'!G:G,'Hourly Production'!S46)*$T$6 -> 0 | U46: =INDEX('Historical Generation'!I:I,'Hourly Production'!S46)*$U$6 -> 0.1088587692 | V46: ='Financial Model'!$F$28 -> 90 | W46: 16.32881538 | X46: 0 | Y46: 73.67118462 | Z46: 200 | AA46: 0 | AB46: 200 | AC46: 0 | AD46: 0 | AE46: 0 | AF46: 0 | AG46: 0 | AH46: 73.67118462 | AI46: 0 | AJ46: 73.67118462 | AK46: 0 | AL46: 0 | AM46: 0
D47: 40 | E47: 16 | F47: 2 | G47: 2017-01-02T15:59:59.996 | H47: Monday | I47: 2 | J47: 1 | K47: TRUE | L47: TRUE | M47: FALSE | N47: FALSE | O47: FALSE | P47: FALSE | Q47: TRUE | R47: FALSE | S47: =MATCH(G47,'Historical Generation'!C:C,0) -> 17587 | T47: =INDEX('Historical Generation'!G:G,'Hourly Production'!S47)*$T$6 -> 0.2023809524 | U47: =INDEX('Historical Generation'!I:I,'Hourly Production'!S47)*$U$6 -> 0.0650152832 | V47: ='Financial Model'!$F$28 -> 90 | W47: 9.75229248 | X47: 40.47619048 | Y47: 39.77151704 | Z47: 200 | AA47: 0 | AB47: 200 | AC47: 0 | AD47: 0 | AE47: 0 | AF47: 0 | AG47: 0 | AH47: 39.77151704 | AI47: 0 | AJ47: 39.77151704 | AK47: 0 | AL47: 0 | AM47: 0
D48: 41 | E48: 17 | F48: 2 | G48: 2017-01-02T16:59:59.996 | H48: Monday | I48: 2 | J48: 1 | K48: TRUE | L48: TRUE | M48: FALSE | N48: FALSE | O48: FALSE | P48: FALSE | Q48: TRUE | R48: FALSE | S48: =MATCH(G48,'Historical Generation'!C:C,0) -> 17588 | T48: =INDEX('Historical Generation'!G:G,'Hourly Production'!S48)*$T$6 -> 0.85 | U48: =INDEX('Historical Generation'!I:I,'Hourly Production'!S48)*$U$6 -> 0 | V48: ='Financial Model'!$F$28 -> 90 | W48: 0 | X48: 170 | Y48: -80 | Z48: 200 | AA48: 0 | AB48: 200 | AC48: 0 | AD48: 80 | AE48: 12 | AF48: 0 | AG48: 68 | AH48: 0 | AI48: 0 | AJ48: 0 | AK48: 0 | AL48: 0 | AM48: 0
D49: 42 | E49: 18 | F49: 2 | G49: 2017-01-02T17:59:59.996 | H49: Monday | I49: 2 | J49: 1 | K49: TRUE | L49: TRUE | M49: FALSE | N49: FALSE | O49: FALSE | P49: FALSE | Q49: TRUE | R49: FALSE | S49: =MATCH(G49,'Historical Generation'!C:C,0) -> 17589 | T49: =INDEX('Historical Generation'!G:G,'Hourly Production'!S49)*$T$6 -> 0.85 | U49: =INDEX('Historical Generation'!I:I,'Hourly Production'!S49)*$U$6 -> 0 | V49: ='Financial Model'!$F$28 -> 90 | W49: 0 | X49: 170 | Y49: -80 | Z49: 200 | AA49: 68 | AB49: 132 | AC49: 68 | AD49: 80 | AE49: 12 | AF49: 0 | AG49: 136 | AH49: 0 | AI49: 0 | AJ49: 0 | AK49: 0 | AL49: 0 | AM49: 0
D50: 43 | E50: 19 | F50: 2 | G50: 2017-01-02T18:59:59.996 | H50: Monday | I50: 2 | J50: 1 | K50: TRUE | L50: TRUE | M50: FALSE | N50: FALSE | O50: FALSE | P50: FALSE | Q50: TRUE | R50: FALSE | S50: =MATCH(G50,'Historical Generation'!C:C,0) -> 17590 | T50: =INDEX('Historical Generation'!G:G,'Hourly Production'!S50)*$T$6 -> 0.85 | U50: =INDEX('Historical Generation'!I:I,'Hourly Production'!S50)*$U$6 -> 0 | V50: ='Financial Model'!$F$28 -> 90 | W50: 0 | X50: 170 | Y50: -80 | Z50: 200 | AA50: 136 | AB50: 64 | AC50: 136 | AD50: 64 | AE50: 9.6 | AF50: 0 | AG50: 190.4 | AH50: 0 | AI50: 16 | AJ50: 0 | AK50: 0 | AL50: 16 | AM50: 0
D51: 44 | E51: 20 | F51: 2 | G51: 2017-01-02T19:59:59.996 | H51: Monday | I51: 2 | J51: 1 | K51: TRUE | L51: TRUE | M51: FALSE | N51: FALSE | O51: FALSE | P51: FALSE | Q51: TRUE | R51: FALSE | S51: =MATCH(G51,'Historical Generation'!C:C,0) -> 17591 | T51: =INDEX('Historical Generation'!G:G,'Hourly Production'!S51)*$T$6 -> 0.85 | U51: =INDEX('Historical Generation'!I:I,'Hourly Production'!S51)*$U$6 -> 0 | V51: ='Financial Model'!$F$28 -> 90 | W51: 0 | X51: 170 | Y51: -80 | Z51: 200 | AA51: 190.4 | AB51: 9.6 | AC51: 190.4 | AD51: 9.6 | AE51: 1.44 | AF51: 0 | AG51: 198.56 | AH51: 0 | AI51: 70.4 | AJ51: 0 | AK51: 0 | AL51: 70.4 | AM51: 0
D52: 45 | E52: 21 | F52: 2 | G52: 2017-01-02T20:59:59.996 | H52: Monday | I52: 2 | J52: 1 | K52: TRUE | L52: TRUE | M52: FALSE | N52: FALSE | O52: FALSE | P52: FALSE | Q52: TRUE | R52: FALSE | S52: =MATCH(G52,'Historical Generation'!C:C,0) -> 17592 | T52: =INDEX('Historical Generation'!G:G,'Hourly Production'!S52)*$T$6 -> 0 | U52: =INDEX('Historical Generation'!I:I,'Hourly Production'!S52)*$U$6 -> 0 | V52: ='Financial Model'!$F$28 -> 90 | W52: 0 | X52: 0 | Y52: 90 | Z52: 200 | AA52: 198.56 | AB52: 1.44 | AC52: 198.56 | AD52: 0 | AE52: 0 | AF52: 90 | AG52: 108.56 | AH52: 0 | AI52: 0 | AJ52: 0 | AK52: 0 | AL52: 0 | AM52: 0
D53: 46 | E53: 22 | F53: 2 | G53: 2017-01-02T21:59:59.996 | H53: Monday | I53: 2 | J53: 1 | K53: TRUE | L53: TRUE | M53: FALSE | N53: FALSE | O53: FALSE | P53: FALSE | Q53: TRUE | R53: FALSE | S53: =MATCH(G53,'Historical Generation'!C:C,0) -> 17593 | T53: =INDEX('Historical Generation'!G:G,'Hourly Production'!S53)*$T$6 -> 0 | U53: =INDEX('Historical Generation'!I:I,'Hourly Production'!S53)*$U$6 -> 0 | V53: ='Financial Model'!$F$28 -> 90 | W53: 0 | X53: 0 | Y53: 90 | Z53: 200 | AA53: 108.56 | AB53: 91.44 | AC53: 108.56 | AD53: 0 | AE53: 0 | AF53: 90 | AG53: 18.56 | AH53: 0 | AI53: 0 | AJ53: 0 | AK53: 0 | AL53: 0 | AM53: 0
D54: 47 | E54: 23 | F54: 2 | G54: 2017-01-02T22:59:59.996 | H54: Monday | I54: 2 | J54: 1 | K54: TRUE | L54: FALSE | M54: FALSE | N54: FALSE | O54: FALSE | P54: FALSE | Q54: FALSE | R54: TRUE | S54: =MATCH(G54,'Historical Generation'!C:C,0) -> 17594 | T54: =INDEX('Historical Generation'!G:G,'Hourly Production'!S54)*$T$6 -> 0 | U54: =INDEX('Historical Generation'!I:I,'Hourly Production'!S54)*$U$6 -> 0 | V54: ='Financial Model'!$F$28 -> 90 | W54: 0 | X54: 0 | Y54: 90 | Z54: 200 | AA54: 18.56 | AB54: 181.44 | AC54: 18.56 | AD54: 0 | AE54: 0 | AF54: 0 | AG54: 18.56 | AH54: 90 | AI54: 0 | AJ54: 0 | AK54: 90 | AL54: 0 | AM54: 0
D55: 48 | E55: 24 | F55: 2 | G55: 2017-01-02T23:59:59.996 | H55: Tuesday | I55: 3 | J55: 1 | K55: TRUE | L55: FALSE | M55: FALSE | N55: FALSE | O55: FALSE | P55: FALSE | Q55: FALSE | R55: TRUE | S55: =MATCH(G55,'Historical Generation'!C:C,0) -> 17595 | T55: =INDEX('Historical Generation'!G:G,'Hourly Production'!S55)*$T$6 -> 0.1897321429 | U55: =INDEX('Historical Generation'!I:I,'Hourly Production'!S55)*$U$6 -> 0 | V55: ='Financial Model'!$F$28 -> 90 | W55: 0 | X55: 37.94642857 | Y55: 52.05357143 | Z55: 200 | AA55: 18.56 | AB55: 181.44 | AC55: 18.56 | AD55: 0 | AE55: 0 | AF55: 0 | AG55: 18.56 | AH55: 52.05357143 | AI55: 0 | AJ55: 0 | AK55: 52.05357143 | AL55: 0 | AM55: 0
D56: 49 | E56: 1 | F56: 3 | G56: 2017-01-03T00:59:59.996 | H56: Tuesday | I56: 3 | J56: 1 | K56: TRUE | L56: FALSE | M56: FALSE | N56: FALSE | O56: FALSE | P56: FALSE | Q56: FALSE | R56: TRUE | S56: =MATCH(G56,'Historical Generation'!C:C,0) -> 17596 | T56: =INDEX('Historical Generation'!G:G,'Hourly Production'!S56)*$T$6 -> 0 | U56: =INDEX('Historical Generation'!I:I,'Hourly Production'!S56)*$U$6 -> 0 | V56: ='Financial Model'!$F$28 -> 90 | W56: 0 | X56: 0 | Y56: 90 | Z56: 200 | AA56: 18.56 | AB56: 181.44 | AC56: 18.56 | AD56: 0 | AE56: 0 | AF56: 0 | AG56: 18.56 | AH56: 90 | AI56: 0 | AJ56: 0 | AK56: 90 | AL56: 0 | AM56: 0
D57: 50 | E57: 2 | F57: 3 | G57: 2017-01-03T01:59:59.996 | H57: Tuesday | I57: 3 | J57: 1 | K57: TRUE | L57: FALSE | M57: FALSE | N57: FALSE | O57: FALSE | P57: FALSE | Q57: FALSE | R57: TRUE | S57: =MATCH(G57,'Historical Generation'!C:C,0) -> 17597 | T57: =INDEX('Historical Generation'!G:G,'Hourly Production'!S57)*$T$6 -> 0.1897321429 | U57: =INDEX('Historical Generation'!I:I,'Hourly Production'!S57)*$U$6 -> 0 | V57: ='Financial Model'!$F$28 -> 90 | W57: 0 | X57: 37.94642857 | Y57: 52.05357143 | Z57: 200 | AA57: 18.56 | AB57: 181.44 | AC57: 18.56 | AD57: 0 | AE57: 0 | AF57: 0 | AG57: 18.56 | AH57: 52.05357143 | AI57: 0 | AJ57: 0 | AK57: 52.05357143 | AL57: 0 | AM57: 0
D58: 51 | E58: 3 | F58: 3 | G58: 2017-01-03T02:59:59.996 | H58: Tuesday | I58: 3 | J58: 1 | K58: TRUE | L58: FALSE | M58: FALSE | N58: FALSE | O58: FALSE | P58: FALSE | Q58: FALSE | R58: TRUE | S58: =MATCH(G58,'Historical Generation'!C:C,0) -> 17598 | T58: =INDEX('Historical Generation'!G:G,'Hourly Production'!S58)*$T$6 -> 0 | U58: =INDEX('Historical Generation'!I:I,'Hourly Production'!S58)*$U$6 -> 0 | V58: ='Financial Model'!$F$28 -> 90 | W58: 0 | X58: 0 | Y58: 90 | Z58: 200 | AA58: 18.56 | AB58: 181.44 | AC58: 18.56 | AD58: 0 | AE58: 0 | AF58: 0 | AG58: 18.56 | AH58: 90 | AI58: 0 | AJ58: 0 | AK58: 90 | AL58: 0 | AM58: 0
D59: 52 | E59: 4 | F59: 3 | G59: 2017-01-03T03:59:59.996 | H59: Tuesday | I59: 3 | J59: 1 | K59: TRUE | L59: FALSE | M59: FALSE | N59: FALSE | O59: FALSE | P59: FALSE | Q59: FALSE | R59: TRUE | S59: =MATCH(G59,'Historical Generation'!C:C,0) -> 17599 | T59: =INDEX('Historical Generation'!G:G,'Hourly Production'!S59)*$T$6 -> 0.2276785714 | U59: =INDEX('Historical Generation'!I:I,'Hourly Production'!S59)*$U$6 -> 0 | V59: ='Financial Model'!$F$28 -> 90 | W59: 0 | X59: 45.53571429 | Y59: 44.46428571 | Z59: 200 | AA59: 18.56 | AB59: 181.44 | AC59: 18.56 | AD59: 0 | AE59: 0 | AF59: 0 | AG59: 18.56 | AH59: 44.46428571 | AI59: 0 | AJ59: 0 | AK59: 44.46428571 | AL59: 0 | AM59: 0
D60: 53 | E60: 5 | F60: 3 | G60: 2017-01-03T04:59:59.996 | H60: Tuesday | I60: 3 | J60: 1 | K60: TRUE | L60: FALSE | M60: FALSE | N60: FALSE | O60: FALSE | P60: FALSE | Q60: FALSE | R60: TRUE | S60: =MATCH(G60,'Historical Generation'!C:C,0) -> 17600 | T60: =INDEX('Historical Generation'!G:G,'Hourly Production'!S60)*$T$6 -> 0.240327381 | U60: =INDEX('Historical Generation'!I:I,'Hourly Production'!S60)*$U$6 -> 0 | V60: ='Financial Model'!$F$28 -> 90 | W60: 0 | X60: 48.06547619 | Y60: 41.93452381 | Z60: 200 | AA60: 18.56 | AB60: 181.44 | AC60: 18.56 | AD60: 0 | AE60: 0 | AF60: 0 | AG60: 18.56 | AH60: 41.93452381 | AI60: 0 | AJ60: 0 | AK60: 41.93452381 | AL60: 0 | AM60: 0
D61: 54 | E61: 6 | F61: 3 | G61: 2017-01-03T05:59:59.996 | H61: Tuesday | I61: 3 | J61: 1 | K61: TRUE | L61: TRUE | M61: FALSE | N61: FALSE | O61: FALSE | P61: FALSE | Q61: TRUE | R61: FALSE | S61: =MATCH(G61,'Historical Generation'!C:C,0) -> 17601 | T61: =INDEX('Historical Generation'!G:G,'Hourly Production'!S61)*$T$6 -> 0.2529761905 | U61: =INDEX('Historical Generation'!I:I,'Hourly Production'!S61)*$U$6 -> 0 | V61: ='Financial Model'!$F$28 -> 90 | W61: 0 | X61: 50.5952381 | Y61: 39.4047619 | Z61: 200 | AA61: 18.56 | AB61: 181.44 | AC61: 18.56 | AD61: 0 | AE61: 0 | AF61: 18.56 | AG61: 0 | AH61: 20.8447619 | AI61: 0 | AJ61: 20.8447619 | AK61: 0 | AL61: 0 | AM61: 0
D62: 55 | E62: 7 | F62: 3 | G62: 2017-01-03T06:59:59.996 | H62: Tuesday | I62: 3 | J62: 1 | K62: TRUE | L62: TRUE | M62: FALSE | N62: FALSE | O62: FALSE | P62: FALSE | Q62: TRUE | R62: FALSE | S62: =MATCH(G62,'Historical Generation'!C:C,0) -> 17602 | T62: =INDEX('Historical Generation'!G:G,'Hourly Production'!S62)*$T$6 -> 0.2529761905 | U62: =INDEX('Historical Generation'!I:I,'Hourly Production'!S62)*$U$6 -> 0 | V62: ='Financial Model'!$F$28 -> 90 | W62: 0 | X62: 50.5952381 | Y62: 39.4047619 | Z62: 200 | AA62: 0 | AB62: 200 | AC62: 0 | AD62: 0 | AE62: 0 | AF62: 0 | AG62: 0 | AH62: 39.4047619 | AI62: 0 | AJ62: 39.4047619 | AK62: 0 | AL62: 0 | AM62: 0
D63: 56 | E63: 8 | F63: 3 | G63: 2017-01-03T07:59:59.996 | H63: Tuesday | I63: 3 | J63: 1 | K63: TRUE | L63: TRUE | M63: FALSE | N63: FALSE | O63: FALSE | P63: FALSE | Q63: TRUE | R63: FALSE | S63: =MATCH(G63,'Historical Generation'!C:C,0) -> 17603 | T63: =INDEX('Historical Generation'!G:G,'Hourly Production'!S63)*$T$6 -> 0.2150297619 | U63: =INDEX('Historical Generation'!I:I,'Hourly Production'!S63)*$U$6 -> 0 | V63: ='Financial Model'!$F$28 -> 90 | W63: 0 | X63: 43.00595238 | Y63: 46.99404762 | Z63: 200 | AA63: 0 | AB63: 200 | AC63: 0 | AD63: 0 | AE63: 0 | AF63: 0 | AG63: 0 | AH63: 46.99404762 | AI63: 0 | AJ63: 46.99404762 | AK63: 0 | AL63: 0 | AM63: 0
D64: 57 | E64: 9 | F64: 3 | G64: 2017-01-03T08:59:59.996 | H64: Tuesday | I64: 3 | J64: 1 | K64: TRUE | L64: TRUE | M64: FALSE | N64: FALSE | O64: FALSE | P64: FALSE | Q64: TRUE | R64: FALSE | S64: =MATCH(G64,'Historical Generation'!C:C,0) -> 17604 | T64: =INDEX('Historical Generation'!G:G,'Hourly Production'!S64)*$T$6 -> 0 | U64: =INDEX('Historical Generation'!I:I,'Hourly Production'!S64)*$U$6 -> 0 | V64: ='Financial Model'!$F$28 -> 90 | W64: 0 | X64: 0 | Y64: 90 | Z64: 200 | AA64: 0 | AB64: 200 | AC64: 0 | AD64: 0 | AE64: 0 | AF64: 0 | AG64: 0 | AH64: 90 | AI64: 0 | AJ64: 90 | AK64: 0 | AL64: 0 | AM64: 0
D65: 58 | E65: 10 | F65: 3 | G65: 2017-01-03T09:59:59.996 | H65: Tuesday | I65: 3 | J65: 1 | K65: TRUE | L65: TRUE | M65: FALSE | N65: FALSE | O65: FALSE | P65: FALSE | Q65: TRUE | R65: FALSE | S65: =MATCH(G65,'Historical Generation'!C:C,0) -> 17605 | T65: =INDEX('Historical Generation'!G:G,'Hourly Production'!S65)*$T$6 -> 0 | U65: =INDEX('Historical Generation'!I:I,'Hourly Production'!S65)*$U$6 -> 0.3449066448 | V65: ='Financial Model'!$F$28 -> 90 | W65: 51.73599672 | X65: 0 | Y65: 38.26400328 | Z65: 200 | AA65: 0 | AB65: 200 | AC65: 0 | AD65: 0 | AE65: 0 | AF65: 0 | AG65: 0 | AH65: 38.26400328 | AI65: 0 | AJ65: 38.26400328 | AK65: 0 | AL65: 0 | AM65: 0
D66: 59 | E66: 11 | F66: 3 | G66: 2017-01-03T10:59:59.996 | H66: Tuesday | I66: 3 | J66: 1 | K66: TRUE | L66: TRUE | M66: FALSE | N66: FALSE | O66: FALSE | P66: FALSE | Q66: TRUE | R66: FALSE | S66: =MATCH(G66,'Historical Generation'!C:C,0) -> 17606 | T66: =INDEX('Historical Generation'!G:G,'Hourly Production'!S66)*$T$6 -> 0.1897321429 | U66: =INDEX('Historical Generation'!I:I,'Hourly Production'!S66)*$U$6 -> 0.542222364 | V66: ='Financial Model'!$F$28 -> 90 | W66: 81.3333546 | X66: 37.94642857 | Y66: -29.27978317 | Z66: 200 | AA66: 0 | AB66: 200 | AC66: 0 | AD66: 29.27978317 | AE66: 4.391967476 | AF66: 0 | AG66: 24.8878157 | AH66: 0 | AI66: 0 | AJ66: 0 | AK66: 0 | AL66: 0 | AM66: 0
D67: 60 | E67: 12 | F67: 3 | G67: 2017-01-03T11:59:59.996 | H67: Tuesday | I67: 3 | J67: 1 | K67: TRUE | L67: TRUE | M67: FALSE | N67: FALSE | O67: FALSE | P67: FALSE | Q67: TRUE | R67: FALSE | S67: =MATCH(G67,'Historical Generation'!C:C,0) -> 17607 | T67: =INDEX('Historical Generation'!G:G,'Hourly Production'!S67)*$T$6 -> 0 | U67: =INDEX('Historical Generation'!I:I,'Hourly Production'!S67)*$U$6 -> 0.560773818 | V67: ='Financial Model'!$F$28 -> 90 | W67: 84.1160727 | X67: 0 | Y67: 5.8839273 | Z67: 200 | AA67: 24.8878157 | AB67: 175.1121843 | AC67: 24.8878157 | AD67: 0 | AE67: 0 | AF67: 5.8839273 | AG67: 19.0038884 | AH67: 0 | AI67: 0 | AJ67: 0 | AK67: 0 | AL67: 0 | AM67: 0
D68: 61 | E68: 13 | F68: 3 | G68: 2017-01-03T12:59:59.996 | H68: Tuesday | I68: 3 | J68: 1 | K68: TRUE | L68: TRUE | M68: FALSE | N68: FALSE | O68: FALSE | P68: FALSE | Q68: TRUE | R68: FALSE | S68: =MATCH(G68,'Historical Generation'!C:C,0) -> 17608 | T68: =INDEX('Historical Generation'!G:G,'Hourly Production'!S68)*$T$6 -> 0.1897321429 | U68: =INDEX('Historical Generation'!I:I,'Hourly Production'!S68)*$U$6 -> 0.5462805368 | V68: ='Financial Model'!$F$28 -> 90 | W68: 81.94208052 | X68: 37.94642857 | Y68: -29.88850909 | Z68: 200 | AA68: 19.0038884 | AB68: 180.9961116 | AC68: 19.0038884 | AD68: 29.88850909 | AE68: 4.483276364 | AF68: 0 | AG68: 44.40912112 | AH68: 0 | AI68: 0 | AJ68: 0 | AK68: 0 | AL68: 0 | AM68: 0
D69: 62 | E69: 14 | F69: 3 | G69: 2017-01-03T13:59:59.996 | H69: Tuesday | I69: 3 | J69: 1 | K69: TRUE | L69: TRUE | M69: FALSE | N69: FALSE | O69: FALSE | P69: FALSE | Q69: TRUE | R69: FALSE | S69: =MATCH(G69,'Historical Generation'!C:C,0) -> 17609 | T69: =INDEX('Historical Generation'!G:G,'Hourly Production'!S69)*$T$6 -> 0.1897321429 | U69: =INDEX('Historical Generation'!I:I,'Hourly Production'!S69)*$U$6 -> 0.56103924 | V69: ='Financial Model'!$F$28 -> 90 | W69: 84.155886 | X69: 37.94642857 | Y69: -32.10231457 | Z69: 200 | AA69: 44.40912112 | AB69: 155.5908789 | AC69: 44.40912112 | AD69: 32.10231457 | AE69: 4.815347186 | AF69: 0 | AG69: 71.69608851 | AH69: 0 | AI69: 0 | AJ69: 0 | AK69: 0 | AL69: 0 | AM69: 0
D70: 63 | E70: 15 | F70: 3 | G70: 2017-01-03T14:59:59.996 | H70: Tuesday | I70: 3 | J70: 1 | K70: TRUE | L70: TRUE | M70: FALSE | N70: FALSE | O70: FALSE | P70: FALSE | Q70: TRUE | R70: FALSE | S70: =MATCH(G70,'Historical Generation'!C:C,0) -> 17610 | T70: =INDEX('Historical Generation'!G:G,'Hourly Production'!S70)*$T$6 -> 0.1897321429 | U70: =INDEX('Historical Generation'!I:I,'Hourly Production'!S70)*$U$6 -> 0.5316499256 | V70: ='Financial Model'!$F$28 -> 90 | W70: 79.74748884 | X70: 37.94642857 | Y70: -27.69391741 | Z70: 200 | AA70: 71.69608851 | AB70: 128.3039115 | AC70: 71.69608851 | AD70: 27.69391741 | AE70: 4.154087612 | AF70: 0 | AG70: 95.23591831 | AH70: 0 | AI70: 0 | AJ70: 0 | AK70: 0 | AL70: 0 | AM70: 0
D71: 64 | E71: 16 | F71: 3 | G71: 2017-01-03T15:59:59.996 | H71: Tuesday | I71: 3 | J71: 1 | K71: TRUE | L71: TRUE | M71: FALSE | N71: FALSE | O71: FALSE | P71: FALSE | Q71: TRUE | R71: FALSE | S71: =MATCH(G71,'Historical Generation'!C:C,0) -> 17611 | T71: =INDEX('Historical Generation'!G:G,'Hourly Production'!S71)*$T$6 -> 0.1897321429 | U71: =INDEX('Historical Generation'!I:I,'Hourly Production'!S71)*$U$6 -> 0.3584490692 | V71: ='Financial Model'!$F$28 -> 90 | W71: 53.76736038 | X71: 37.94642857 | Y71: -1.713788951 | Z71: 200 | AA71: 95.23591831 | AB71: 104.7640817 | AC71: 95.23591831 | AD71: 1.713788951 | AE71: 0.2570683427 | AF71: 0 | AG71: 96.69263892 | AH71: 0 | AI71: 0 | AJ71: 0 | AK71: 0 | AL71: 0 | AM71: 0
D72: 65 | E72: 17 | F72: 3 | G72: 2017-01-03T16:59:59.996 | H72: Tuesday | I72: 3 | J72: 1 | K72: TRUE | L72: TRUE | M72: FALSE | N72: FALSE | O72: FALSE | P72: FALSE | Q72: TRUE | R72: FALSE | S72: =MATCH(G72,'Historical Generation'!C:C,0) -> 17612 | T72: =INDEX('Historical Generation'!G:G,'Hourly Production'!S72)*$T$6 -> 0.85 | U72: =INDEX('Historical Generation'!I:I,'Hourly Production'!S72)*$U$6 -> 0 | V72: ='Financial Model'!$F$28 -> 90 | W72: 0 | X72: 170 | Y72: -80 | Z72: 200 | AA72: 96.69263892 | AB72: 103.3073611 | AC72: 96.69263892 | AD72: 80 | AE72: 12 | AF72: 0 | AG72: 164.6926389 | AH72: 0 | AI72: 0 | AJ72: 0 | AK72: 0 | AL72: 0 | AM72: 0
D73: 66 | E73: 18 | F73: 3 | G73: 2017-01-03T17:59:59.996 | H73: Tuesday | I73: 3 | J73: 1 | K73: TRUE | L73: TRUE | M73: FALSE | N73: FALSE | O73: FALSE | P73: FALSE | Q73: TRUE | R73: FALSE | S73: =MATCH(G73,'Historical Generation'!C:C,0) -> 17613 | T73: =INDEX('Historical Generation'!G:G,'Hourly Production'!S73)*$T$6 -> 0.85 | U73: =INDEX('Historical Generation'!I:I,'Hourly Production'!S73)*$U$6 -> 0 | V73: ='Financial Model'!$F$28 -> 90 | W73: 0 | X73: 170 | Y73: -80 | Z73: 200 | AA73: 164.6926389 | AB73: 35.30736108 | AC73: 164.6926389 | AD73: 35.30736108 | AE73: 5.296104162 | AF73: 0 | AG73: 194.7038958 | AH73: 0 | AI73: 44.69263892 | AJ73: 0 | AK73: 0 | AL73: 44.69263892 | AM73: 0
D74: 67 | E74: =IF(E73=24,1,E73+1) -> 19 | F74: =IF(E74=1,F73+1,F73) -> 3 | G74: =G73+1/24 -> 2017-01-03T18:59:59.996 | H74: =TEXT(G74,"dddd") -> Tuesday | I74: =WEEKDAY(G74) -> 3 | J74: =IF(AND(I74=1,I73<>1),J73+1,J73) -> 1 | K74: =AND(I74<>1,I74<>7) -> TRUE | L74: =IF(K74,AND(E74>=$L$4,E74<=$L$5)) -> TRUE | M74: =I74=7 -> FALSE | N74: =AND($E74>=N$4,E74<=N$5) -> FALSE | O74: =I74=1 -> FALSE | P74: =AND($E74>=P$4,E74<=P$5) -> FALSE | Q74: =OR(L74,N74,P74) -> TRUE | R74: =NOT(Q74) -> FALSE | S74: =MATCH(G74,'Historical Generation'!C:C,0) -> 17614 | T74: =INDEX('Historical Generation'!G:G,'Hourly Production'!S74)*$T$6 -> 0.85 | U74: =INDEX('Historical Generation'!I:I,'Hourly Production'!S74)*$U$6 -> 0 | V74: ='Financial Model'!$F$28 -> 90 | W74: =$W$6*U74 -> 0 | X74: =$X$6*T74 -> 170 | Y74: =V74-W74-X74 -> -80 | Z74: =$Z$6 -> 200 | AA74: =AC74 -> 194.7038958 | AB74: =Z74-AA74 -> 5.296104162 | AC74: =AG73 -> 194.7038958 | AD74: =MIN(MAX(-Y74,0),AB74) -> 5.296104162 | AE74: =AD74*$AE$6 -> 0.7944156244 | AF74: =IF(Q74,MIN(MAX(Y74,0),AC74))*1 -> 0 | AG74: =AC74+AD74-AE74-AF74 -> 199.2055844 | AH74: =MAX(Y74-AF74,0) -> 0 | AI74: =MAX(-Y74,0)-AD74 -> 74.70389584 | AJ74: =AH74*Q74 -> 0 | AK74: =AH74-AJ74 -> 0 | AL74: =AI74*Q74 -> 74.70389584 | AM74: =AI74-AL74 -> 0
D75: 68 | E75: 20 | F75: 3 | G75: 2017-01-03T19:59:59.996 | H75: Tuesday | I75: 3 | J75: 1 | K75: TRUE | L75: TRUE | M75: FALSE | N75: FALSE | O75: FALSE | P75: FALSE | Q75: TRUE | R75: FALSE | S75: =MATCH(G75,'Historical Generation'!C:C,0) -> 17615 | T75: =INDEX('Historical Generation'!G:G,'Hourly Production'!S75)*$T$6 -> 0.85 | U75: =INDEX('Historical Generation'!I:I,'Hourly Production'!S75)*$U$6 -> 0 | V75: ='Financial Model'!$F$28 -> 90 | W75: 0 | X75: 170 | Y75: -80 | Z75: 200 | AA75: 199.2055844 | AB75: 0.7944156244 | AC75: 199.2055844 | AD75: 0.7944156244 | AE75: 0.1191623437 | AF75: 0 | AG75: 199.8808377 | AH75: 0 | AI75: 79.20558438 | AJ75: 0 | AK75: 0 | AL75: 79.20558438 | AM75: 0
D76: 69 | E76: 21 | F76: 3 | G76: 2017-01-03T20:59:59.996 | H76: Tuesday | I76: 3 | J76: 1 | K76: TRUE | L76: TRUE | M76: FALSE | N76: FALSE | O76: FALSE | P76: FALSE | Q76: TRUE | R76: FALSE | S76: =MATCH(G76,'Historical Generation'!C:C,0) -> 17616 | T76: =INDEX('Historical Generation'!G:G,'Hourly Production'!S76)*$T$6 -> 0 | U76: =INDEX('Historical Generation'!I:I,'Hourly Production'!S76)*$U$6 -> 0 | V76: ='Financial Model'!$F$28 -> 90 | W76: 0 | X76: 0 | Y76: 90 | Z76: 200 | AA76: 199.8808377 | AB76: 0.1191623437 | AC76: 199.8808377 | AD76: 0 | AE76: 0 | AF76: 90 | AG76: 109.8808377 | AH76: 0 | AI76: 0 | AJ76: 0 | AK76: 0 | AL76: 0 | AM76: 0
D77: 70 | E77: 22 | F77: 3 | G77: 2017-01-03T21:59:59.996 | H77: Tuesday | I77: 3 | J77: 1 | K77: TRUE | L77: TRUE | M77: FALSE | N77: FALSE | O77: FALSE | P77: FALSE | Q77: TRUE | R77: FALSE | S77: =MATCH(G77,'Historical Generation'!C:C,0) -> 17617 | T77: =INDEX('Historical Generation'!G:G,'Hourly Production'!S77)*$T$6 -> 0 | U77: =INDEX('Historical Generation'!I:I,'Hourly Production'!S77)*$U$6 -> 0 | V77: ='Financial Model'!$F$28 -> 90 | W77: 0 | X77: 0 | Y77: 90 | Z77: 200 | AA77: 109.8808377 | AB77: 90.11916234 | AC77: 109.8808377 | AD77: 0 | AE77: 0 | AF77: 90 | AG77: 19.88083766 | AH77: 0 | AI77: 0 | AJ77: 0 | AK77: 0 | AL77: 0 | AM77: 0
D78: 71 | E78: 23 | F78: 3 | G78: 2017-01-03T22:59:59.996 | H78: Tuesday | I78: 3 | J78: 1 | K78: TRUE | L78: FALSE | M78: FALSE | N78: FALSE | O78: FALSE | P78: FALSE | Q78: FALSE | R78: TRUE | S78: =MATCH(G78,'Historical Generation'!C:C,0) -> 17618 | T78: =INDEX('Historical Generation'!G:G,'Hourly Production'!S78)*$T$6 -> 0 | U78: =INDEX('Historical Generation'!I:I,'Hourly Production'!S78)*$U$6 -> 0 | V78: ='Financial Model'!$F$28 -> 90 | W78: 0 | X78: 0 | Y78: 90 | Z78: 200 | AA78: 19.88083766 | AB78: 180.1191623 | AC78: 19.88083766 | AD78: 0 | AE78: 0 | AF78: 0 | AG78: 19.88083766 | AH78: 90 | AI78: 0 | AJ78: 0 | AK78: 90 | AL78: 0 | AM78: 0
D79: 72 | E79: 24 | F79: 3 | G79: 2017-01-03T23:59:59.996 | H79: Wednesday | I79: 4 | J79: 1 | K79: TRUE | L79: FALSE | M79: FALSE | N79: FALSE | O79: FALSE | P79: FALSE | Q79: FALSE | R79: TRUE | S79: =MATCH(G79,'Historical Generation'!C:C,0) -> 17619 | T79: =INDEX('Historical Generation'!G:G,'Hourly Production'!S79)*$T$6 -> 0 | U79: =INDEX('Historical Generation'!I:I,'Hourly Production'!S79)*$U$6 -> 0 | V79: ='Financial Model'!$F$28 -> 90 | W79: 0 | X79: 0 | Y79: 90 | Z79: 200 | AA79: 19.88083766 | AB79: 180.1191623 | AC79: 19.88083766 | AD79: 0 | AE79: 0 | AF79: 0 | AG79: 19.88083766 | AH79: 90 | AI79: 0 | AJ79: 0 | AK79: 90 | AL79: 0 | AM79: 0
D80: 73 | E80: 1 | F80: 4 | G80: 2017-01-04T00:59:59.996 | H80: Wednesday | I80: 4 | J80: 1 | K80: TRUE | L80: FALSE | M80: FALSE | N80: FALSE | O80: FALSE | P80: FALSE | Q80: FALSE | R80: TRUE | S80: =MATCH(G80,'Historical Generation'!C:C,0) -> 17620 | T80: =INDEX('Historical Generation'!G:G,'Hourly Production'!S80)*$T$6 -> 0 | U80: =INDEX('Historical Generation'!I:I,'Hourly Production'!S80)*$U$6 -> 0 | V80: ='Financial Model'!$F$28 -> 90 | W80: 0 | X80: 0 | Y80: 90 | Z80: 200 | AA80: 19.88083766 | AB80: 180.1191623 | AC80: 19.88083766 | AD80: 0 | AE80: 0 | AF80: 0 | AG80: 19.88083766 | AH80: 90 | AI80: 0 | AJ80: 0 | AK80: 90 | AL80: 0 | AM80: 0
D81: 74 | E81: 2 | F81: 4 | G81: 2017-01-04T01:59:59.996 | H81: Wednesday | I81: 4 | J81: 1 | K81: TRUE | L81: FALSE | M81: FALSE | N81: FALSE | O81: FALSE | P81: FALSE | Q81: FALSE | R81: TRUE | S81: =MATCH(G81,'Historical Generation'!C:C,0) -> 17621 | T81: =INDEX('Historical Generation'!G:G,'Hourly Production'!S81)*$T$6 -> 0.1897321429 | U81: =INDEX('Historical Generation'!I:I,'Hourly Production'!S81)*$U$6 -> 0 | V81: ='Financial Model'!$F$28 -> 90 | W81: 0 | X81: 37.94642857 | Y81: 52.05357143 | Z81: 200 | AA81: 19.88083766 | AB81: 180.1191623 | AC81: 19.88083766 | AD81: 0 | AE81: 0 | AF81: 0 | AG81: 19.88083766 | AH81: 52.05357143 | AI81: 0 | AJ81: 0 | AK81: 52.05357143 | AL81: 0 | AM81: 0
D82: 75 | E82: 3 | F82: 4 | G82: 2017-01-04T02:59:59.996 | H82: Wednesday | I82: 4 | J82: 1 | K82: TRUE | L82: FALSE | M82: FALSE | N82: FALSE | O82: FALSE | P82: FALSE | Q82: FALSE | R82: TRUE | S82: =MATCH(G82,'Historical Generation'!C:C,0) -> 17622 | T82: =INDEX('Historical Generation'!G:G,'Hourly Production'!S82)*$T$6 -> 0 | U82: =INDEX('Historical Generation'!I:I,'Hourly Production'!S82)*$U$6 -> 0 | V82: ='Financial Model'!$F$28 -> 90 | W82: 0 | X82: 0 | Y82: 90 | Z82: 200 | AA82: 19.88083766 | AB82: 180.1191623 | AC82: 19.88083766 | AD82: 0 | AE82: 0 | AF82: 0 | AG82: 19.88083766 | AH82: 90 | AI82: 0 | AJ82: 0 | AK82: 90 | AL82: 0 | AM82: 0
D83: 76 | E83: 4 | F83: 4 | G83: 2017-01-04T03:59:59.996 | H83: Wednesday | I83: 4 | J83: 1 | K83: TRUE | L83: FALSE | M83: FALSE | N83: FALSE | O83: FALSE | P83: FALSE | Q83: FALSE | R83: TRUE | S83: =MATCH(G83,'Historical Generation'!C:C,0) -> 17623 | T83: =INDEX('Historical Generation'!G:G,'Hourly Production'!S83)*$T$6 -> 0.2529761905 | U83: =INDEX('Historical Generation'!I:I,'Hourly Production'!S83)*$U$6 -> 0 | V83: ='Financial Model'!$F$28 -> 90 | W83: 0 | X83: 50.5952381 | Y83: 39.4047619 | Z83: 200 | AA83: 19.88083766 | AB83: 180.1191623 | AC83: 19.88083766 | AD83: 0 | AE83: 0 | AF83: 0 | AG83: 19.88083766 | AH83: 39.4047619 | AI83: 0 | AJ83: 0 | AK83: 39.4047619 | AL83: 0 | AM83: 0
D84: 77 | E84: 5 | F84: 4 | G84: 2017-01-04T04:59:59.996 | H84: Wednesday | I84: 4 | J84: 1 | K84: TRUE | L84: FALSE | M84: FALSE | N84: FALSE | O84: FALSE | P84: FALSE | Q84: FALSE | R84: TRUE | S84: =MATCH(G84,'Historical Generation'!C:C,0) -> 17624 | T84: =INDEX('Historical Generation'!G:G,'Hourly Production'!S84)*$T$6 -> 0.4300595238 | U84: =INDEX('Historical Generation'!I:I,'Hourly Production'!S84)*$U$6 -> 0 | V84: ='Financial Model'!$F$28 -> 90 | W84: 0 | X84: 86.01190476 | Y84: 3.988095238 | Z84: 200 | AA84: 19.88083766 | AB84: 180.1191623 | AC84: 19.88083766 | AD84: 0 | AE84: 0 | AF84: 0 | AG84: 19.88083766 | AH84: 3.988095238 | AI84: 0 | AJ84: 0 | AK84: 3.988095238 | AL84: 0 | AM84: 0
D85: 78 | E85: 6 | F85: 4 | G85: 2017-01-04T05:59:59.996 | H85: Wednesday | I85: 4 | J85: 1 | K85: TRUE | L85: TRUE | M85: FALSE | N85: FALSE | O85: FALSE | P85: FALSE | Q85: TRUE | R85: FALSE | S85: =MATCH(G85,'Historical Generation'!C:C,0) -> 17625 | T85: =INDEX('Historical Generation'!G:G,'Hourly Production'!S85)*$T$6 -> 0.6577380952 | U85: =INDEX('Historical Generation'!I:I,'Hourly Production'!S85)*$U$6 -> 0 | V85: ='Financial Model'!$F$28 -> 90 | W85: 0 | X85: 131.547619 | Y85: -41.54761905 | Z85: 200 | AA85: 19.88083766 | AB85: 180.1191623 | AC85: 19.88083766 | AD85: 41.54761905 | AE85: 6.232142857 | AF85: 0 | AG85: 55.19631385 | AH85: 0 | AI85: 0 | AJ85: 0 | AK85: 0 | AL85: 0 | AM85: 0
D86: 79 | E86: 7 | F86: 4 | G86: 2017-01-04T06:59:59.996 | H86: Wednesday | I86: 4 | J86: 1 | K86: TRUE | L86: TRUE | M86: FALSE | N86: FALSE | O86: FALSE | P86: FALSE | Q86: TRUE | R86: FALSE | S86: =MATCH(G86,'Historical Generation'!C:C,0) -> 17626 | T86: =INDEX('Historical Generation'!G:G,'Hourly Production'!S86)*$T$6 -> 0.85 | U86: =INDEX('Historical Generation'!I:I,'Hourly Production'!S86)*$U$6 -> 0 | V86: ='Financial Model'!$F$28 -> 90 | W86: 0 | X86: 170 | Y86: -80 | Z86: 200 | AA86: 55.19631385 | AB86: 144.8036862 | AC86: 55.19631385 | AD86: 80 | AE86: 12 | AF86: 0 | AG86: 123.1963138 | AH86: 0 | AI86: 0 | AJ86: 0 | AK86: 0 | AL86: 0 | AM86: 0
D87: 80 | E87: 8 | F87: 4 | G87: 2017-01-04T07:59:59.996 | H87: Wednesday | I87: 4 | J87: 1 | K87: TRUE | L87: TRUE | M87: FALSE | N87: FALSE | O87: FALSE | P87: FALSE | Q87: TRUE | R87: FALSE | S87: =MATCH(G87,'Historical Generation'!C:C,0) -> 17627 | T87: =INDEX('Historical Generation'!G:G,'Hourly Production'!S87)*$T$6 -> 0.85 | U87: =INDEX('Historical Generation'!I:I,'Hourly Production'!S87)*$U$6 -> 0 | V87: ='Financial Model'!$F$28 -> 90 | W87: 0 | X87: 170 | Y87: -80 | Z87: 200 | AA87: 123.1963138 | AB87: 76.80368615 | AC87: 123.1963138 | AD87: 76.80368615 | AE87: 11.52055292 | AF87: 0 | AG87: 188.4794471 | AH87: 0 | AI87: 3.196313847 | AJ87: 0 | AK87: 0 | AL87: 3.196313847 | AM87: 0
D88: 81 | E88: 9 | F88: 4 | G88: 2017-01-04T08:59:59.996 | H88: Wednesday | I88: 4 | J88: 1 | K88: TRUE | L88: TRUE | M88: FALSE | N88: FALSE | O88: FALSE | P88: FALSE | Q88: TRUE | R88: FALSE | S88: =MATCH(G88,'Historical Generation'!C:C,0) -> 17628 | T88: =INDEX('Historical Generation'!G:G,'Hourly Production'!S88)*$T$6 -> 0.85 | U88: =INDEX('Historical Generation'!I:I,'Hourly Production'!S88)*$U$6 -> 0 | V88: ='Financial Model'!$F$28 -> 90 | W88: 0 | X88: 170 | Y88: -80 | Z88: 200 | AA88: 188.4794471 | AB88: 11.52055292 | AC88: 188.4794471 | AD88: 11.52055292 | AE88: 1.728082938 | AF88: 0 | AG88: 198.2719171 | AH88: 0 | AI88: 68.47944708 | AJ88: 0 | AK88: 0 | AL88: 68.47944708 | AM88: 0
D89: 82 | E89: 10 | F89: 4 | G89: 2017-01-04T09:59:59.996 | H89: Wednesday | I89: 4 | J89: 1 | K89: TRUE | L89: TRUE | M89: FALSE | N89: FALSE | O89: FALSE | P89: FALSE | Q89: TRUE | R89: FALSE | S89: =MATCH(G89,'Historical Generation'!C:C,0) -> 17629 | T89: =INDEX('Historical Generation'!G:G,'Hourly Production'!S89)*$T$6 -> 0.85 | U89: =INDEX('Historical Generation'!I:I,'Hourly Production'!S89)*$U$6 -> 0.383492506 | V89: ='Financial Model'!$F$28 -> 90 | W89: 57.5238759 | X89: 170 | Y89: -137.5238759 | Z89: 200 | AA89: 198.2719171 | AB89: 1.728082938 | AC89: 198.2719171 | AD89: 1.728082938 | AE89: 0.2592124408 | AF89: 0 | AG89: 199.7407876 | AH89: 0 | AI89: 135.795793 | AJ89: 0 | AK89: 0 | AL89: 135.795793 | AM89: 0
D90: 83 | E90: 11 | F90: 4 | G90: 2017-01-04T10:59:59.996 | H90: Wednesday | I90: 4 | J90: 1 | K90: TRUE | L90: TRUE | M90: FALSE | N90: FALSE | O90: FALSE | P90: FALSE | Q90: TRUE | R90: FALSE | S90: =MATCH(G90,'Historical Generation'!C:C,0) -> 17630 | T90: =INDEX('Historical Generation'!G:G,'Hourly Production'!S90)*$T$6 -> 0.85 | U90: =INDEX('Historical Generation'!I:I,'Hourly Production'!S90)*$U$6 -> 0.5878122412 | V90: ='Financial Model'!$F$28 -> 90 | W90: 88.17183618 | X90: 170 | Y90: -168.1718362 | Z90: 200 | AA90: 199.7407876 | AB90: 0.2592124408 | AC90: 199.7407876 | AD90: 0.2592124408 | AE90: 0.03888186612 | AF90: 0 | AG90: 199.9611181 | AH90: 0 | AI90: 167.9126237 | AJ90: 0 | AK90: 0 | AL90: 167.9126237 | AM90: 0
D91: 84 | E91: 12 | F91: 4 | G91: 2017-01-04T11:59:59.996 | H91: Wednesday | I91: 4 | J91: 1 | K91: TRUE | L91: TRUE | M91: FALSE | N91: FALSE | O91: FALSE | P91: FALSE | Q91: TRUE | R91: FALSE | S91: =MATCH(G91,'Historical Generation'!C:C,0) -> 17631 | T91: =INDEX('Historical Generation'!G:G,'Hourly Production'!S91)*$T$6 -> 0.85 | U91: =INDEX('Historical Generation'!I:I,'Hourly Production'!S91)*$U$6 -> 0.6153731632 | V91: ='Financial Model'!$F$28 -> 90 | W91: 92.30597448 | X91: 170 | Y91: -172.3059745 | Z91: 200 | AA91: 199.9611181 | AB91: 0.03888186612 | AC91: 199.9611181 | AD91: 0.03888186612 | AE91: 0.005832279917 | AF91: 0 | AG91: 199.9941677 | AH91: 0 | AI91: 172.2670926 | AJ91: 0 | AK91: 0 | AL91: 172.2670926 | AM91: 0
D92: 85 | E92: 13 | F92: 4 | G92: 2017-01-04T12:59:59.996 | H92: Wednesday | I92: 4 | J92: 1 | K92: TRUE | L92: TRUE | M92: FALSE | N92: FALSE | O92: FALSE | P92: FALSE | Q92: TRUE | R92: FALSE | S92: =MATCH(G92,'Historical Generation'!C:C,0) -> 17632 | T92: =INDEX('Historical Generation'!G:G,'Hourly Production'!S92)*$T$6 -> 0.85 | U92: =INDEX('Historical Generation'!I:I,'Hourly Production'!S92)*$U$6 -> 0.6177232856 | V92: ='Financial Model'!$F$28 -> 90 | W92: 92.65849284 | X92: 170 | Y92: -172.6584928 | Z92: 200 | AA92: 199.9941677 | AB92: 0.005832279917 | AC92: 199.9941677 | AD92: 0.005832279917 | AE92: 0.0008748419876 | AF92: 0 | AG92: 199.9991252 | AH92: 0 | AI92: 172.6526606 | AJ92: 0 | AK92: 0 | AL92: 172.6526606 | AM92: 0
D93: 86 | E93: 14 | F93: 4 | G93: 2017-01-04T13:59:59.996 | H93: Wednesday | I93: 4 | J93: 1 | K93: TRUE | L93: TRUE | M93: FALSE | N93: FALSE | O93: FALSE | P93: FALSE | Q93: TRUE | R93: FALSE | S93: =MATCH(G93,'Historical Generation'!C:C,0) -> 17633 | T93: =INDEX('Historical Generation'!G:G,'Hourly Production'!S93)*$T$6 -> 0.7842261905 | U93: =INDEX('Historical Generation'!I:I,'Hourly Production'!S93)*$U$6 -> 0.6065550024 | V93: ='Financial Model'!$F$28 -> 90 | W93: 90.98325036 | X93: 156.8452381 | Y93: -157.8284885 | Z93: 200 | AA93: 199.9991252 | AB93: 0.0008748419876 | AC93: 199.9991252 | AD93: 0.0008748419876 | AE93: 0.0001312262981 | AF93: 0 | AG93: 199.9998688 | AH93: 0 | AI93: 157.8276136 | AJ93: 0 | AK93: 0 | AL93: 157.8276136 | AM93: 0
D94: 87 | E94: 15 | F94: 4 | G94: 2017-01-04T14:59:59.996 | H94: Wednesday | I94: 4 | J94: 1 | K94: TRUE | L94: TRUE | M94: FALSE | N94: FALSE | O94: FALSE | P94: FALSE | Q94: TRUE | R94: FALSE | S94: =MATCH(G94,'Historical Generation'!C:C,0) -> 17634 | T94: =INDEX('Historical Generation'!G:G,'Hourly Production'!S94)*$T$6 -> 0.85 | U94: =INDEX('Historical Generation'!I:I,'Hourly Production'!S94)*$U$6 -> 0.5747873804 | V94: ='Financial Model'!$F$28 -> 90 | W94: 86.21810706 | X94: 170 | Y94: -166.2181071 | Z94: 200 | AA94: 199.9998688 | AB94: 0.0001312262982 | AC94: 199.9998688 | AD94: 0.0001312262982 | AE94: 1.968394472e-05 | AF94: 0 | AG94: 199.9999803 | AH94: 0 | AI94: 166.2179758 | AJ94: 0 | AK94: 0 | AL94: 166.2179758 | AM94: 0
D95: 88 | E95: 16 | F95: 4 | G95: 2017-01-04T15:59:59.996 | H95: Wednesday | I95: 4 | J95: 1 | K95: TRUE | L95: TRUE | M95: FALSE | N95: FALSE | O95: FALSE | P95: FALSE | Q95: TRUE | R95: FALSE | S95: =MATCH(G95,'Historical Generation'!C:C,0) -> 17635 | T95: =INDEX('Historical Generation'!G:G,'Hourly Production'!S95)*$T$6 -> 0.85 | U95: =INDEX('Historical Generation'!I:I,'Hourly Production'!S95)*$U$6 -> 0.3784030872 | V95: ='Financial Model'!$F$28 -> 90 | W95: 56.76046308 | X95: 170 | Y95: -136.7604631 | Z95: 200 | AA95: 199.9999803 | AB95: 1.968394471e-05 | AC95: 199.9999803 | AD95: 1.968394471e-05 | AE95: 2.952591707e-06 | AF95: 0 | AG95: 199.999997 | AH95: 0 | AI95: 136.7604434 | AJ95: 0 | AK95: 0 | AL95: 136.7604434 | AM95: 0
D96: 89 | E96: 17 | F96: 4 | G96: 2017-01-04T16:59:59.996 | H96: Wednesday | I96: 4 | J96: 1 | K96: TRUE | L96: TRUE | M96: FALSE | N96: FALSE | O96: FALSE | P96: FALSE | Q96: TRUE | R96: FALSE | S96: =MATCH(G96,'Historical Generation'!C:C,0) -> 17636 | T96: =INDEX('Historical Generation'!G:G,'Hourly Production'!S96)*$T$6 -> 0.85 | U96: =INDEX('Historical Generation'!I:I,'Hourly Production'!S96)*$U$6 -> 0 | V96: ='Financial Model'!$F$28 -> 90 | W96: 0 | X96: 170 | Y96: -80 | Z96: 200 | AA96: 199.999997 | AB96: 2.9525917e-06 | AC96: 199.999997 | AD96: 2.9525917e-06 | AE96: 4.42888755e-07 | AF96: 0 | AG96: 199.9999996 | AH96: 0 | AI96: 79.99999705 | AJ96: 0 | AK96: 0 | AL96: 79.99999705 | AM96: 0
D97: 90 | E97: 18 | F97: 4 | G97: 2017-01-04T17:59:59.996 | H97: Wednesday | I97: 4 | J97: 1 | K97: TRUE | L97: TRUE | M97: FALSE | N97: FALSE | O97: FALSE | P97: FALSE | Q97: TRUE | R97: FALSE | S97: =MATCH(G97,'Historical Generation'!C:C,0) -> 17637 | T97: =INDEX('Historical Generation'!G:G,'Hourly Production'!S97)*$T$6 -> 0.85 | U97: =INDEX('Historical Generation'!I:I,'Hourly Production'!S97)*$U$6 -> 0 | V97: ='Financial Model'!$F$28 -> 90 | W97: 0 | X97: 170 | Y97: -80 | Z97: 200 | AA97: 199.9999996 | AB97: 4.428887621e-07 | AC97: 199.9999996 | AD97: 4.428887621e-07 | AE97: 6.643331432e-08 | AF97: 0 | AG97: 199.9999999 | AH97: 0 | AI97: 79.99999956 | AJ97: 0 | AK97: 0 | AL97: 79.99999956 | AM97: 0
D98: 91 | E98: 19 | F98: 4 | G98: 2017-01-04T18:59:59.996 | H98: Wednesday | I98: 4 | J98: 1 | K98: TRUE | L98: TRUE | M98: FALSE | N98: FALSE | O98: FALSE | P98: FALSE | Q98: TRUE | R98: FALSE | S98: =MATCH(G98,'Historical Generation'!C:C,0) -> 17638 | T98: =INDEX('Historical Generation'!G:G,'Hourly Production'!S98)*$T$6 -> 0.85 | U98: =INDEX('Historical Generation'!I:I,'Hourly Production'!S98)*$U$6 -> 0 | V98: ='Financial Model'!$F$28 -> 90 | W98: 0 | X98: 170 | Y98: -80 | Z98: 200 | AA98: 199.9999999 | AB98: 6.643330153e-08 | AC98: 199.9999999 | AD98: 6.643330153e-08 | AE98: 9.964995229e-09 | AF98: 0 | AG98: 200 | AH98: 0 | AI98: 79.99999993 | AJ98: 0 | AK98: 0 | AL98: 79.99999993 | AM98: 0
D99: 92 | E99: 20 | F99: 4 | G99: 2017-01-04T19:59:59.996 | H99: Wednesday | I99: 4 | J99: 1 | K99: TRUE | L99: TRUE | M99: FALSE | N99: FALSE | O99: FALSE | P99: FALSE | Q99: TRUE | R99: FALSE | S99: =MATCH(G99,'Historical Generation'!C:C,0) -> 17639 | T99: =INDEX('Historical Generation'!G:G,'Hourly Production'!S99)*$T$6 -> 0.85 | U99: =INDEX('Historical Generation'!I:I,'Hourly Production'!S99)*$U$6 -> 0 | V99: ='Financial Model'!$F$28 -> 90 | W99: 0 | X99: 170 | Y99: -80 | Z99: 200 | AA99: 200 | AB99: 9.964992387e-09 | AC99: 200 | AD99: 9.964992387e-09 | AE99: 1.494748858e-09 | AF99: 0 | AG99: 200 | AH99: 0 | AI99: 79.99999999 | AJ99: 0 | AK99: 0 | AL99: 79.99999999 | AM99: 0
D100: 93 | E100: 21 | F100: 4 | G100: 2017-01-04T20:59:59.996 | H100: Wednesday | I100: 4 | J100: 1 | K100: TRUE | L100: TRUE | M100: FALSE | N100: FALSE | O100: FALSE | P100: FALSE | Q100: TRUE | R100: FALSE | S100: =MATCH(G100,'Historical Generation'!C:C,0) -> 17640 | T100: =INDEX('Historical Generation'!G:G,'Hourly Production'!S100)*$T$6 -> 0.6071428571 | U100: =INDEX('Historical Generation'!I:I,'Hourly Production'!S100)*$U$6 -> 0 | V100: ='Financial Model'!$F$28 -> 90 | W100: 0 | X100: 121.4285714 | Y100: -31.42857143 | Z100: 200 | AA100: 200 | AB100: 1.494754542e-09 | AC100: 200 | AD100: 1.494754542e-09 | AE100: 2.242131814e-10 | AF100: 0 | AG100: 200 | AH100: 0 | AI100: 31.42857143 | AJ100: 0 | AK100: 0 | AL100: 31.42857143 | AM100: 0
D101: 94 | E101: 22 | F101: 4 | G101: 2017-01-04T21:59:59.996 | H101: Wednesday | I101: 4 | J101: 1 | K101: TRUE | L101: TRUE | M101: FALSE | N101: FALSE | O101: FALSE | P101: FALSE | Q101: TRUE | R101: FALSE | S101: =MATCH(G101,'Historical Generation'!C:C,0) -> 17641 | T101: =INDEX('Historical Generation'!G:G,'Hourly Production'!S101)*$T$6 -> 0.556547619 | U101: =INDEX('Historical Generation'!I:I,'Hourly Production'!S101)*$U$6 -> 0 | V101: ='Financial Model'!$F$28 -> 90 | W101: 0 | X101: 111.3095238 | Y101: -21.30952381 | Z101: 200 | AA101: 200 | AB101: 2.242188657e-10 | AC101: 200 | AD101: 2.242188657e-10 | AE101: 3.363282985e-11 | AF101: 0 | AG101: 200 | AH101: 0 | AI101: 21.30952381 | AJ101: 0 | AK101: 0 | AL101: 21.30952381 | AM101: 0
D102: 95 | E102: 23 | F102: 4 | G102: 2017-01-04T22:59:59.996 | H102: Wednesday | I102: 4 | J102: 1 | K102: TRUE | L102: FALSE | M102: FALSE | N102: FALSE | O102: FALSE | P102: FALSE | Q102: FALSE | R102: TRUE | S102: =MATCH(G102,'Historical Generation'!C:C,0) -> 17642 | T102: =INDEX('Historical Generation'!G:G,'Hourly Production'!S102)*$T$6 -> 0.7842261905 | U102: =INDEX('Historical Generation'!I:I,'Hourly Production'!S102)*$U$6 -> 0 | V102: ='Financial Model'!$F$28 -> 90 | W102: 0 | X102: 156.8452381 | Y102: -66.8452381 | Z102: 200 | AA102: 200 | AB102: 3.362288226e-11 | AC102: 200 | AD102: 3.362288226e-11 | AE102: 5.043432338e-12 | AF102: 0 | AG102: 200 | AH102: 0 | AI102: 66.8452381 | AJ102: 0 | AK102: 0 | AL102: 0 | AM102: 66.8452381
D103: 96 | E103: 24 | F103: 4 | G103: 2017-01-04T23:59:59.996 | H103: Thursday | I103: 5 | J103: 1 | K103: TRUE | L103: FALSE | M103: FALSE | N103: FALSE | O103: FALSE | P103: FALSE | Q103: FALSE | R103: TRUE | S103: =MATCH(G103,'Historical Generation'!C:C,0) -> 17643 | T103: =INDEX('Historical Generation'!G:G,'Hourly Production'!S103)*$T$6 -> 0.85 | U103: =INDEX('Historical Generation'!I:I,'Hourly Production'!S103)*$U$6 -> 0 | V103: ='Financial Model'!$F$28 -> 90 | W103: 0 | X103: 170 | Y103: -80 | Z103: 200 | AA103: 200 | AB103: 5.030642569e-12 | AC103: 200 | AD103: 5.030642569e-12 | AE103: 7.545963854e-13 | AF103: 0 | AG103: 200 | AH103: 0 | AI103: 80 | AJ103: 0 | AK103: 0 | AL103: 0 | AM103: 80
D104: 97 | E104: 1 | F104: 5 | G104: 2017-01-05T00:59:59.996 | H104: Thursday | I104: 5 | J104: 1 | K104: TRUE | L104: FALSE | M104: FALSE | N104: FALSE | O104: FALSE | P104: FALSE | Q104: FALSE | R104: TRUE | S104: =MATCH(G104,'Historical Generation'!C:C,0) -> 17644 | T104: =INDEX('Historical Generation'!G:G,'Hourly Production'!S104)*$T$6 -> 0.85 | U104: =INDEX('Historical Generation'!I:I,'Hourly Production'!S104)*$U$6 -> 0 | V104: ='Financial Model'!$F$28 -> 90 | W104: 0 | X104: 170 | Y104: -80 | Z104: 200 | AA104: 200 | AB104: 7.673861546e-13 | AC104: 200 | AD104: 7.673861546e-13 | AE104: 1.151079232e-13 | AF104: 0 | AG104: 200 | AH104: 0 | AI104: 80 | AJ104: 0 | AK104: 0 | AL104: 0 | AM104: 80
D105: 98 | E105: 2 | F105: 5 | G105: 2017-01-05T01:59:59.996 | H105: Thursday | I105: 5 | J105: 1 | K105: TRUE | L105: FALSE | M105: FALSE | N105: FALSE | O105: FALSE | P105: FALSE | Q105: FALSE | R105: TRUE | S105: =MATCH(G105,'Historical Generation'!C:C,0) -> 17645 | T105: =INDEX('Historical Generation'!G:G,'Hourly Production'!S105)*$T$6 -> 0.85 | U105: =INDEX('Historical Generation'!I:I,'Hourly Production'!S105)*$U$6 -> 0 | V105: ='Financial Model'!$F$28 -> 90 | W105: 0 | X105: 170 | Y105: -80 | Z105: 200 | AA105: 200 | AB105: 0 | AC105: 200 | AD105: 0 | AE105: 0 | AF105: 0 | AG105: 200 | AH105: 0 | AI105: 80 | AJ105: 0 | AK105: 0 | AL105: 0 | AM105: 80
D106: 99 | E106: 3 | F106: 5 | G106: 2017-01-05T02:59:59.996 | H106: Thursday | I106: 5 | J106: 1 | K106: TRUE | L106: FALSE | M106: FALSE | N106: FALSE | O106: FALSE | P106: FALSE | Q106: FALSE | R106: TRUE | S106: =MATCH(G106,'Historical Generation'!C:C,0) -> 17646 | T106: =INDEX('Historical Generation'!G:G,'Hourly Production'!S106)*$T$6 -> 0.85 | U106: =INDEX('Historical Generation'!I:I,'Hourly Production'!S106)*$U$6 -> 0 | V106: ='Financial Model'!$F$28 -> 90 | W106: 0 | X106: 170 | Y106: -80 | Z106: 200 | AA106: 200 | AB106: 0 | AC106: 200 | AD106: 0 | AE106: 0 | AF106: 0 | AG106: 200 | AH106: 0 | AI106: 80 | AJ106: 0 | AK106: 0 | AL106: 0 | AM106: 80
D107: 100 | E107: 4 | F107: 5 | G107: 2017-01-05T03:59:59.996 | H107: Thursday | I107: 5 | J107: 1 | K107: TRUE | L107: FALSE | M107: FALSE | N107: FALSE | O107: FALSE | P107: FALSE | Q107: FALSE | R107: TRUE | S107: =MATCH(G107,'Historical Generation'!C:C,0) -> 17647 | T107: =INDEX('Historical Generation'!G:G,'Hourly Production'!S107)*$T$6 -> 0.85 | U107: =INDEX('Historical Generation'!I:I,'Hourly Production'!S107)*$U$6 -> 0 | V107: ='Financial Model'!$F$28 -> 90 | W107: 0 | X107: 170 | Y107: -80 | Z107: 200 | AA107: 200 | AB107: 0 | AC107: 200 | AD107: 0 | AE107: 0 | AF107: 0 | AG107: 200 | AH107: 0 | AI107: 80 | AJ107: 0 | AK107: 0 | AL107: 0 | AM107: 80
D108: 101 | E108: 5 | F108: 5 | G108: 2017-01-05T04:59:59.996 | H108: Thursday | I108: 5 | J108: 1 | K108: TRUE | L108: FALSE | M108: FALSE | N108: FALSE | O108: FALSE | P108: FALSE | Q108: FALSE | R108: TRUE | S108: =MATCH(G108,'Historical Generation'!C:C,0) -> 17648 | T108: =INDEX('Historical Generation'!G:G,'Hourly Production'!S108)*$T$6 -> 0.85 | U108: =INDEX('Historical Generation'!I:I,'Hourly Production'!S108)*$U$6 -> 0 | V108: ='Financial Model'!$F$28 -> 90 | W108: 0 | X108: 170 | Y108: -80 | Z108: 200 | AA108: 200 | AB108: 0 | AC108: 200 | AD108: 0 | AE108: 0 | AF108: 0 | AG108: 200 | AH108: 0 | AI108: 80 | AJ108: 0 | AK108: 0 | AL108: 0 | AM108: 80
D109: 102 | E109: 6 | F109: 5 | G109: 2017-01-05T05:59:59.996 | H109: Thursday | I109: 5 | J109: 1 | K109: TRUE | L109: TRUE | M109: FALSE | N109: FALSE | O109: FALSE | P109: FALSE | Q109: TRUE | R109: FALSE | S109: =MATCH(G109,'Historical Generation'!C:C,0) -> 17649 | T109: =INDEX('Historical Generation'!G:G,'Hourly Production'!S109)*$T$6 -> 0.85 | U109: =INDEX('Historical Generation'!I:I,'Hourly Production'!S109)*$U$6 -> 0 | V109: ='Financial Model'!$F$28 -> 90 | W109: 0 | X109: 170 | Y109: -80 | Z109: 200 | AA109: 200 | AB109: 0 | AC109: 200 | AD109: 0 | AE109: 0 | AF109: 0 | AG109: 200 | AH109: 0 | AI109: 80 | AJ109: 0 | AK109: 0 | AL109: 80 | AM109: 0
D110: 103 | E110: 7 | F110: 5 | G110: 2017-01-05T06:59:59.996 | H110: Thursday | I110: 5 | J110: 1 | K110: TRUE | L110: TRUE | M110: FALSE | N110: FALSE | O110: FALSE | P110: FALSE | Q110: TRUE | R110: FALSE | S110: =MATCH(G110,'Historical Generation'!C:C,0) -> 17650 | T110: =INDEX('Historical Generation'!G:G,'Hourly Production'!S110)*$T$6 -> 0.85 | U110: =INDEX('Historical Generation'!I:I,'Hourly Production'!S110)*$U$6 -> 0 | V110: ='Financial Model'!$F$28 -> 90 | W110: 0 | X110: 170 | Y110: -80 | Z110: 200 | AA110: 200 | AB110: 0 | AC110: 200 | AD110: 0 | AE110: 0 | AF110: 0 | AG110: 200 | AH110: 0 | AI110: 80 | AJ110: 0 | AK110: 0 | AL110: 80 | AM110: 0
D111: 104 | E111: 8 | F111: 5 | G111: 2017-01-05T07:59:59.996 | H111: Thursday | I111: 5 | J111: 1 | K111: TRUE | L111: TRUE | M111: FALSE | N111: FALSE | O111: FALSE | P111: FALSE | Q111: TRUE | R111: FALSE | S111: =MATCH(G111,'Historical Generation'!C:C,0) -> 17651 | T111: =INDEX('Historical Generation'!G:G,'Hourly Production'!S111)*$T$6 -> 0.85 | U111: =INDEX('Historical Generation'!I:I,'Hourly Production'!S111)*$U$6 -> 0 | V111: ='Financial Model'!$F$28 -> 90 | W111: 0 | X111: 170 | Y111: -80 | Z111: 200 | AA111: 200 | AB111: 0 | AC111: 200 | AD111: 0 | AE111: 0 | AF111: 0 | AG111: 200 | AH111: 0 | AI111: 80 | AJ111: 0 | AK111: 0 | AL111: 80 | AM111: 0
D112: 105 | E112: 9 | F112: 5 | G112: 2017-01-05T08:59:59.996 | H112: Thursday | I112: 5 | J112: 1 | K112: TRUE | L112: TRUE | M112: FALSE | N112: FALSE | O112: FALSE | P112: FALSE | Q112: TRUE | R112: FALSE | S112: =MATCH(G112,'Historical Generation'!C:C,0) -> 17652 | T112: =INDEX('Historical Generation'!G:G,'Hourly Production'!S112)*$T$6 -> 0.85 | U112: =INDEX('Historical Generation'!I:I,'Hourly Production'!S112)*$U$6 -> 0 | V112: ='Financial Model'!$F$28 -> 90 | W112: 0 | X112: 170 | Y112: -80 | Z112: 200 | AA112: 200 | AB112: 0 | AC112: 200 | AD112: 0 | AE112: 0 | AF112: 0 | AG112: 200 | AH112: 0 | AI112: 80 | AJ112: 0 | AK112: 0 | AL112: 80 | AM112: 0
D113: 106 | E113: 10 | F113: 5 | G113: 2017-01-05T09:59:59.996 | H113: Thursday | I113: 5 | J113: 1 | K113: TRUE | L113: TRUE | M113: FALSE | N113: FALSE | O113: FALSE | P113: FALSE | Q113: TRUE | R113: FALSE | S113: =MATCH(G113,'Historical Generation'!C:C,0) -> 17653 | T113: =INDEX('Historical Generation'!G:G,'Hourly Production'!S113)*$T$6 -> 0.85 | U113: =INDEX('Historical Generation'!I:I,'Hourly Production'!S113)*$U$6 -> 0.1393014512 | V113: ='Financial Model'!$F$28 -> 90 | W113: 20.89521768 | X113: 170 | Y113: -100.8952177 | Z113: 200 | AA113: 200 | AB113: 0 | AC113: 200 | AD113: 0 | AE113: 0 | AF113: 0 | AG113: 200 | AH113: 0 | AI113: 100.8952177 | AJ113: 0 | AK113: 0 | AL113: 100.8952177 | AM113: 0
D114: 107 | E114: 11 | F114: 5 | G114: 2017-01-05T10:59:59.996 | H114: Thursday | I114: 5 | J114: 1 | K114: TRUE | L114: TRUE | M114: FALSE | N114: FALSE | O114: FALSE | P114: FALSE | Q114: TRUE | R114: FALSE | S114: =MATCH(G114,'Historical Generation'!C:C,0) -> 17654 | T114: =INDEX('Historical Generation'!G:G,'Hourly Production'!S114)*$T$6 -> 0.85 | U114: =INDEX('Historical Generation'!I:I,'Hourly Production'!S114)*$U$6 -> 0.1221464976 | V114: ='Financial Model'!$F$28 -> 90 | W114: 18.32197464 | X114: 170 | Y114: -98.32197464 | Z114: 200 | AA114: 200 | AB114: 0 | AC114: 200 | AD114: 0 | AE114: 0 | AF114: 0 | AG114: 200 | AH114: 0 | AI114: 98.32197464 | AJ114: 0 | AK114: 0 | AL114: 98.32197464 | AM114: 0
D115: 108 | E115: 12 | F115: 5 | G115: 2017-01-05T11:59:59.996 | H115: Thursday | I115: 5 | J115: 1 | K115: TRUE | L115: TRUE | M115: FALSE | N115: FALSE | O115: FALSE | P115: FALSE | Q115: TRUE | R115: FALSE | S115: =MATCH(G115,'Historical Generation'!C:C,0) -> 17655 | T115: =INDEX('Historical Generation'!G:G,'Hourly Production'!S115)*$T$6 -> 0.85 | U115: =INDEX('Historical Generation'!I:I,'Hourly Production'!S115)*$U$6 -> 0.1611312172 | V115: ='Financial Model'!$F$28 -> 90 | W115: 24.16968258 | X115: 170 | Y115: -104.1696826 | Z115: 200 | AA115: 200 | AB115: 0 | AC115: 200 | AD115: 0 | AE115: 0 | AF115: 0 | AG115: 200 | AH115: 0 | AI115: 104.1696826 | AJ115: 0 | AK115: 0 | AL115: 104.1696826 | AM115: 0
D116: 109 | E116: 13 | F116: 5 | G116: 2017-01-05T12:59:59.996 | H116: Thursday | I116: 5 | J116: 1 | K116: TRUE | L116: TRUE | M116: FALSE | N116: FALSE | O116: FALSE | P116: FALSE | Q116: TRUE | R116: FALSE | S116: =MATCH(G116,'Historical Generation'!C:C,0) -> 17656 | T116: =INDEX('Historical Generation'!G:G,'Hourly Production'!S116)*$T$6 -> 0.85 | U116: =INDEX('Historical Generation'!I:I,'Hourly Production'!S116)*$U$6 -> 0.18013232 | V116: ='Financial Model'!$F$28 -> 90 | W116: 27.019848 | X116: 170 | Y116: -107.019848 | Z116: 200 | AA116: 200 | AB116: 0 | AC116: 200 | AD116: 0 | AE116: 0 | AF116: 0 | AG116: 200 | AH116: 0 | AI116: 107.019848 | AJ116: 0 | AK116: 0 | AL116: 107.019848 | AM116: 0
D117: 110 | E117: 14 | F117: 5 | G117: 2017-01-05T13:59:59.996 | H117: Thursday | I117: 5 | J117: 1 | K117: TRUE | L117: TRUE | M117: FALSE | N117: FALSE | O117: FALSE | P117: FALSE | Q117: TRUE | R117: FALSE | S117: =MATCH(G117,'Historical Generation'!C:C,0) -> 17657 | T117: =INDEX('Historical Generation'!G:G,'Hourly Production'!S117)*$T$6 -> 0.85 | U117: =INDEX('Historical Generation'!I:I,'Hourly Production'!S117)*$U$6 -> 0.1661827168 | V117: ='Financial Model'!$F$28 -> 90 | W117: 24.92740752 | X117: 170 | Y117: -104.9274075 | Z117: 200 | AA117: 200 | AB117: 0 | AC117: 200 | AD117: 0 | AE117: 0 | AF117: 0 | AG117: 200 | AH117: 0 | AI117: 104.9274075 | AJ117: 0 | AK117: 0 | AL117: 104.9274075 | AM117: 0
D118: 111 | E118: 15 | F118: 5 | G118: 2017-01-05T14:59:59.996 | H118: Thursday | I118: 5 | J118: 1 | K118: TRUE | L118: TRUE | M118: FALSE | N118: FALSE | O118: FALSE | P118: FALSE | Q118: TRUE | R118: FALSE | S118: =MATCH(G118,'Historical Generation'!C:C,0) -> 17658 | T118: =INDEX('Historical Generation'!G:G,'Hourly Production'!S118)*$T$6 -> 0.85 | U118: =INDEX('Historical Generation'!I:I,'Hourly Production'!S118)*$U$6 -> 0.1252120628 | V118: ='Financial Model'!$F$28 -> 90 | W118: 18.78180942 | X118: 170 | Y118: -98.78180942 | Z118: 200 | AA118: 200 | AB118: 0 | AC118: 200 | AD118: 0 | AE118: 0 | AF118: 0 | AG118: 200 | AH118: 0 | AI118: 98.78180942 | AJ118: 0 | AK118: 0 | AL118: 98.78180942 | AM118: 0
D119: 112 | E119: 16 | F119: 5 | G119: 2017-01-05T15:59:59.996 | H119: Thursday | I119: 5 | J119: 1 | K119: TRUE | L119: TRUE | M119: FALSE | N119: FALSE | O119: FALSE | P119: FALSE | Q119: TRUE | R119: FALSE | S119: =MATCH(G119,'Historical Generation'!C:C,0) -> 17659 | T119: =INDEX('Historical Generation'!G:G,'Hourly Production'!S119)*$T$6 -> 0.85 | U119: =INDEX('Historical Generation'!I:I,'Hourly Production'!S119)*$U$6 -> 0.1179933408 | V119: ='Financial Model'!$F$28 -> 90 | W119: 17.69900112 | X119: 170 | Y119: -97.69900112 | Z119: 200 | AA119: 200 | AB119: 0 | AC119: 200 | AD119: 0 | AE119: 0 | AF119: 0 | AG119: 200 | AH119: 0 | AI119: 97.69900112 | AJ119: 0 | AK119: 0 | AL119: 97.69900112 | AM119: 0
D120: 113 | E120: 17 | F120: 5 | G120: 2017-01-05T16:59:59.996 | H120: Thursday | I120: 5 | J120: 1 | K120: TRUE | L120: TRUE | M120: FALSE | N120: FALSE | O120: FALSE | P120: FALSE | Q120: TRUE | R120: FALSE | S120: =MATCH(G120,'Historical Generation'!C:C,0) -> 17660 | T120: =INDEX('Historical Generation'!G:G,'Hourly Production'!S120)*$T$6 -> 0.85 | U120: =INDEX('Historical Generation'!I:I,'Hourly Production'!S120)*$U$6 -> 0 | V120: ='Financial Model'!$F$28 -> 90 | W120: 0 | X120: 170 | Y120: -80 | Z120: 200 | AA120: 200 | AB120: 0 | AC120: 200 | AD120: 0 | AE120: 0 | AF120: 0 | AG120: 200 | AH120: 0 | AI120: 80 | AJ120: 0 | AK120: 0 | AL120: 80 | AM120: 0
D121: 114 | E121: 18 | F121: 5 | G121: 2017-01-05T17:59:59.996 | H121: Thursday | I121: 5 | J121: 1 | K121: TRUE | L121: TRUE | M121: FALSE | N121: FALSE | O121: FALSE | P121: FALSE | Q121: TRUE | R121: FALSE | S121: =MATCH(G121,'Historical Generation'!C:C,0) -> 17661 | T121: =INDEX('Historical Generation'!G:G,'Hourly Production'!S121)*$T$6 -> 0.85 | U121: =INDEX('Historical Generation'!I:I,'Hourly Production'!S121)*$U$6 -> 0 | V121: ='Financial Model'!$F$28 -> 90 | W121: 0 | X121: 170 | Y121: -80 | Z121: 200 | AA121: 200 | AB121: 0 | AC121: 200 | AD121: 0 | AE121: 0 | AF121: 0 | AG121: 200 | AH121: 0 | AI121: 80 | AJ121: 0 | AK121: 0 | AL121: 80 | AM121: 0
D122: 115 | E122: 19 | F122: 5 | G122: 2017-01-05T18:59:59.996 | H122: Thursday | I122: 5 | J122: 1 | K122: TRUE | L122: TRUE | M122: FALSE | N122: FALSE | O122: FALSE | P122: FALSE | Q122: TRUE | R122: FALSE | S122: =MATCH(G122,'Historical Generation'!C:C,0) -> 17662 | T122: =INDEX('Historical Generation'!G:G,'Hourly Production'!S122)*$T$6 -> 0.85 | U122: =INDEX('Historical Generation'!I:I,'Hourly Production'!S122)*$U$6 -> 0 | V122: ='Financial Model'!$F$28 -> 90 | W122: 0 | X122: 170 | Y122: -80 | Z122: 200 | AA122: 200 | AB122: 0 | AC122: 200 | AD122: 0 | AE122: 0 | AF122: 0 | AG122: 200 | AH122: 0 | AI122: 80 | AJ122: 0 | AK122: 0 | AL122: 80 | AM122: 0
D123: 116 | E123: 20 | F123: 5 | G123: 2017-01-05T19:59:59.996 | H123: Thursday | I123: 5 | J123: 1 | K123: TRUE | L123: TRUE | M123: FALSE | N123: FALSE | O123: FALSE | P123: FALSE | Q123: TRUE | R123: FALSE | S123: =MATCH(G123,'Historical Generation'!C:C,0) -> 17663 | T123: =INDEX('Historical Generation'!G:G,'Hourly Production'!S123)*$T$6 -> 0.85 | U123: =INDEX('Historical Generation'!I:I,'Hourly Production'!S123)*$U$6 -> 0 | V123: ='Financial Model'!$F$28 -> 90 | W123: 0 | X123: 170 | Y123: -80 | Z123: 200 | AA123: 200 | AB123: 0 | AC123: 200 | AD123: 0 | AE123: 0 | AF123: 0 | AG123: 200 | AH123: 0 | AI123: 80 | AJ123: 0 | AK123: 0 | AL123: 80 | AM123: 0
D124: 117 | E124: 21 | F124: 5 | G124: 2017-01-05T20:59:59.996 | H124: Thursday | I124: 5 | J124: 1 | K124: TRUE | L124: TRUE | M124: FALSE | N124: FALSE | O124: FALSE | P124: FALSE | Q124: TRUE | R124: FALSE | S124: =MATCH(G124,'Historical Generation'!C:C,0) -> 17664 | T124: =INDEX('Historical Generation'!G:G,'Hourly Production'!S124)*$T$6 -> 0.85 | U124: =INDEX('Historical Generation'!I:I,'Hourly Production'!S124)*$U$6 -> 0 | V124: ='Financial Model'!$F$28 -> 90 | W124: 0 | X124: 170 | Y124: -80 | Z124: 200 | AA124: 200 | AB124: 0 | AC124: 200 | AD124: 0 | AE124: 0 | AF124: 0 | AG124: 200 | AH124: 0 | AI124: 80 | AJ124: 0 | AK124: 0 | AL124: 80 | AM124: 0
D125: 118 | E125: 22 | F125: 5 | G125: 2017-01-05T21:59:59.996 | H125: Thursday | I125: 5 | J125: 1 | K125: TRUE | L125: TRUE | M125: FALSE | N125: FALSE | O125: FALSE | P125: FALSE | Q125: TRUE | R125: FALSE | S125: =MATCH(G125,'Historical Generation'!C:C,0) -> 17665 | T125: =INDEX('Historical Generation'!G:G,'Hourly Production'!S125)*$T$6 -> 0.85 | U125: =INDEX('Historical Generation'!I:I,'Hourly Production'!S125)*$U$6 -> 0 | V125: ='Financial Model'!$F$28 -> 90 | W125: 0 | X125: 170 | Y125: -80 | Z125: 200 | AA125: 200 | AB125: 0 | AC125: 200 | AD125: 0 | AE125: 0 | AF125: 0 | AG125: 200 | AH125: 0 | AI125: 80 | AJ125: 0 | AK125: 0 | AL125: 80 | AM125: 0
D126: 119 | E126: 23 | F126: 5 | G126: 2017-01-05T22:59:59.996 | H126: Thursday | I126: 5 | J126: 1 | K126: TRUE | L126: FALSE | M126: FALSE | N126: FALSE | O126: FALSE | P126: FALSE | Q126: FALSE | R126: TRUE | S126: =MATCH(G126,'Historical Generation'!C:C,0) -> 17666 | T126: =INDEX('Historical Generation'!G:G,'Hourly Production'!S126)*$T$6 -> 0.85 | U126: =INDEX('Historical Generation'!I:I,'Hourly Production'!S126)*$U$6 -> 0 | V126: ='Financial Model'!$F$28 -> 90 | W126: 0 | X126: 170 | Y126: -80 | Z126: 200 | AA126: 200 | AB126: 0 | AC126: 200 | AD126: 0 | AE126: 0 | AF126: 0 | AG126: 200 | AH126: 0 | AI126: 80 | AJ126: 0 | AK126: 0 | AL126: 0 | AM126: 80
D127: 120 | E127: 24 | F127: 5 | G127: 2017-01-05T23:59:59.996 | H127: Friday | I127: 6 | J127: 1 | K127: TRUE | L127: FALSE | M127: FALSE | N127: FALSE | O127: FALSE | P127: FALSE | Q127: FALSE | R127: TRUE | S127: =MATCH(G127,'Historical Generation'!C:C,0) -> 17667 | T127: =INDEX('Historical Generation'!G:G,'Hourly Production'!S127)*$T$6 -> 0.85 | U127: =INDEX('Historical Generation'!I:I,'Hourly Production'!S127)*$U$6 -> 0 | V127: ='Financial Model'!$F$28 -> 90 | W127: 0 | X127: 170 | Y127: -80 | Z127: 200 | AA127: 200 | AB127: 0 | AC127: 200 | AD127: 0 | AE127: 0 | AF127: 0 | AG127: 200 | AH127: 0 | AI127: 80 | AJ127: 0 | AK127: 0 | AL127: 0 | AM127: 80
D128: 121 | E128: 1 | F128: 6 | G128: 2017-01-06T00:59:59.996 | H128: Friday | I128: 6 | J128: 1 | K128: TRUE | L128: FALSE | M128: FALSE | N128: FALSE | O128: FALSE | P128: FALSE | Q128: FALSE | R128: TRUE | S128: =MATCH(G128,'Historical Generation'!C:C,0) -> 17668 | T128: =INDEX('Historical Generation'!G:G,'Hourly Production'!S128)*$T$6 -> 0.85 | U128: =INDEX('Historical Generation'!I:I,'Hourly Production'!S128)*$U$6 -> 0 | V128: ='Financial Model'!$F$28 -> 90 | W128: 0 | X128: 170 | Y128: -80 | Z128: 200 | AA128: 200 | AB128: 0 | AC128: 200 | AD128: 0 | AE128: 0 | AF128: 0 | AG128: 200 | AH128: 0 | AI128: 80 | AJ128: 0 | AK128: 0 | AL128: 0 | AM128: 80
D129: 122 | E129: 2 | F129: 6 | G129: 2017-01-06T01:59:59.996 | H129: Friday | I129: 6 | J129: 1 | K129: TRUE | L129: FALSE | M129: FALSE | N129: FALSE | O129: FALSE | P129: FALSE | Q129: FALSE | R129: TRUE | S129: =MATCH(G129,'Historical Generation'!C:C,0) -> 17669 | T129: =INDEX('Historical Generation'!G:G,'Hourly Production'!S129)*$T$6 -> 0.85 | U129: =INDEX('Historical Generation'!I:I,'Hourly Production'!S129)*$U$6 -> 0 | V129: ='Financial Model'!$F$28 -> 90 | W129: 0 | X129: 170 | Y129: -80 | Z129: 200 | AA129: 200 | AB129: 0 | AC129: 200 | AD129: 0 | AE129: 0 | AF129: 0 | AG129: 200 | AH129: 0 | AI129: 80 | AJ129: 0 | AK129: 0 | AL129: 0 | AM129: 80
D130: 123 | E130: 3 | F130: 6 | G130: 2017-01-06T02:59:59.996 | H130: Friday | I130: 6 | J130: 1 | K130: TRUE | L130: FALSE | M130: FALSE | N130: FALSE | O130: FALSE | P130: FALSE | Q130: FALSE | R130: TRUE | S130: =MATCH(G130,'Historical Generation'!C:C,0) -> 17670 | T130: =INDEX('Historical Generation'!G:G,'Hourly Production'!S130)*$T$6 -> 0.85 | U130: =INDEX('Historical Generation'!I:I,'Hourly Production'!S130)*$U$6 -> 0 | V130: ='Financial Model'!$F$28 -> 90 | W130: 0 | X130: 170 | Y130: -80 | Z130: 200 | AA130: 200 | AB130: 0 | AC130: 200 | AD130: 0 | AE130: 0 | AF130: 0 | AG130: 200 | AH130: 0 | AI130: 80 | AJ130: 0 | AK130: 0 | AL130: 0 | AM130: 80
D131: 124 | E131: 4 | F131: 6 | G131: 2017-01-06T03:59:59.996 | H131: Friday | I131: 6 | J131: 1 | K131: TRUE | L131: FALSE | M131: FALSE | N131: FALSE | O131: FALSE | P131: FALSE | Q131: FALSE | R131: TRUE | S131: =MATCH(G131,'Historical Generation'!C:C,0) -> 17671 | T131: =INDEX('Historical Generation'!G:G,'Hourly Production'!S131)*$T$6 -> 0.85 | U131: =INDEX('Historical Generation'!I:I,'Hourly Production'!S131)*$U$6 -> 0 | V131: ='Financial Model'!$F$28 -> 90 | W131: 0 | X131: 170 | Y131: -80 | Z131: 200 | AA131: 200 | AB131: 0 | AC131: 200 | AD131: 0 | AE131: 0 | AF131: 0 | AG131: 200 | AH131: 0 | AI131: 80 | AJ131: 0 | AK131: 0 | AL131: 0 | AM131: 80
D132: 125 | E132: 5 | F132: 6 | G132: 2017-01-06T04:59:59.996 | H132: Friday | I132: 6 | J132: 1 | K132: TRUE | L132: FALSE | M132: FALSE | N132: FALSE | O132: FALSE | P132: FALSE | Q132: FALSE | R132: TRUE | S132: =MATCH(G132,'Historical Generation'!C:C,0) -> 17672 | T132: =INDEX('Historical Generation'!G:G,'Hourly Production'!S132)*$T$6 -> 0.85 | U132: =INDEX('Historical Generation'!I:I,'Hourly Production'!S132)*$U$6 -> 0 | V132: ='Financial Model'!$F$28 -> 90 | W132: 0 | X132: 170 | Y132: -80 | Z132: 200 | AA132: 200 | AB132: 0 | AC132: 200 | AD132: 0 | AE132: 0 | AF132: 0 | AG132: 200 | AH132: 0 | AI132: 80 | AJ132: 0 | AK132: 0 | AL132: 0 | AM132: 80
D133: 126 | E133: 6 | F133: 6 | G133: 2017-01-06T05:59:59.996 | H133: Friday | I133: 6 | J133: 1 | K133: TRUE | L133: TRUE | M133: FALSE | N133: FALSE | O133: FALSE | P133: FALSE | Q133: TRUE | R133: FALSE | S133: =MATCH(G133,'Historical Generation'!C:C,0) -> 17673 | T133: =INDEX('Historical Generation'!G:G,'Hourly Production'!S133)*$T$6 -> 0.85 | U133: =INDEX('Historical Generation'!I:I,'Hourly Production'!S133)*$U$6 -> 0 | V133: ='Financial Model'!$F$28 -> 90 | W133: 0 | X133: 170 | Y133: -80 | Z133: 200 | AA133: 200 | AB133: 0 | AC133: 200 | AD133: 0 | AE133: 0 | AF133: 0 | AG133: 200 | AH133: 0 | AI133: 80 | AJ133: 0 | AK133: 0 | AL133: 80 | AM133: 0
D134: 127 | E134: 7 | F134: 6 | G134: 2017-01-06T06:59:59.996 | H134: Friday | I134: 6 | J134: 1 | K134: TRUE | L134: TRUE | M134: FALSE | N134: FALSE | O134: FALSE | P134: FALSE | Q134: TRUE | R134: FALSE | S134: =MATCH(G134,'Historical Generation'!C:C,0) -> 17674 | T134: =INDEX('Historical Generation'!G:G,'Hourly Production'!S134)*$T$6 -> 0.85 | U134: =INDEX('Historical Generation'!I:I,'Hourly Production'!S134)*$U$6 -> 0 | V134: ='Financial Model'!$F$28 -> 90 | W134: 0 | X134: 170 | Y134: -80 | Z134: 200 | AA134: 200 | AB134: 0 | AC134: 200 | AD134: 0 | AE134: 0 | AF134: 0 | AG134: 200 | AH134: 0 | AI134: 80 | AJ134: 0 | AK134: 0 | AL134: 80 | AM134: 0
D135: 128 | E135: 8 | F135: 6 | G135: 2017-01-06T07:59:59.996 | H135: Friday | I135: 6 | J135: 1 | K135: TRUE | L135: TRUE | M135: FALSE | N135: FALSE | O135: FALSE | P135: FALSE | Q135: TRUE | R135: FALSE | S135: =MATCH(G135,'Historical Generation'!C:C,0) -> 17675 | T135: =INDEX('Historical Generation'!G:G,'Hourly Production'!S135)*$T$6 -> 0.85 | U135: =INDEX('Historical Generation'!I:I,'Hourly Production'!S135)*$U$6 -> 0 | V135: ='Financial Model'!$F$28 -> 90 | W135: 0 | X135: 170 | Y135: -80 | Z135: 200 | AA135: 200 | AB135: 0 | AC135: 200 | AD135: 0 | AE135: 0 | AF135: 0 | AG135: 200 | AH135: 0 | AI135: 80 | AJ135: 0 | AK135: 0 | AL135: 80 | AM135: 0
D136: 129 | E136: 9 | F136: 6 | G136: 2017-01-06T08:59:59.996 | H136: Friday | I136: 6 | J136: 1 | K136: TRUE | L136: TRUE | M136: FALSE | N136: FALSE | O136: FALSE | P136: FALSE | Q136: TRUE | R136: FALSE | S136: =MATCH(G136,'Historical Generation'!C:C,0) -> 17676 | T136: =INDEX('Historical Generation'!G:G,'Hourly Production'!S136)*$T$6 -> 0.85 | U136: =INDEX('Historical Generation'!I:I,'Hourly Production'!S136)*$U$6 -> 0 | V136: ='Financial Model'!$F$28 -> 90 | W136: 0 | X136: 170 | Y136: -80 | Z136: 200 | AA136: 200 | AB136: 0 | AC136: 200 | AD136: 0 | AE136: 0 | AF136: 0 | AG136: 200 | AH136: 0 | AI136: 80 | AJ136: 0 | AK136: 0 | AL136: 80 | AM136: 0
D137: 130 | E137: 10 | F137: 6 | G137: 2017-01-06T09:59:59.996 | H137: Friday | I137: 6 | J137: 1 | K137: TRUE | L137: TRUE | M137: FALSE | N137: FALSE | O137: FALSE | P137: FALSE | Q137: TRUE | R137: FALSE | S137: =MATCH(G137,'Historical Generation'!C:C,0) -> 17677 | T137: =INDEX('Historical Generation'!G:G,'Hourly Production'!S137)*$T$6 -> 0.8348214286 | U137: =INDEX('Historical Generation'!I:I,'Hourly Production'!S137)*$U$6 -> 0.3617637876 | V137: ='Financial Model'!$F$28 -> 90 | W137: 54.26456814 | X137: 166.9642857 | Y137: -131.2288539 | Z137: 200 | AA137: 200 | AB137: 0 | AC137: 200 | AD137: 0 | AE137: 0 | AF137: 0 | AG137: 200 | AH137: 0 | AI137: 131.2288539 | AJ137: 0 | AK137: 0 | AL137: 131.2288539 | AM137: 0
D138: 131 | E138: =IF(E137=24,1,E137+1) -> 11 | F138: =IF(E138=1,F137+1,F137) -> 6 | G138: =G137+1/24 -> 2017-01-06T10:59:59.996 | H138: =TEXT(G138,"dddd") -> Friday | I138: =WEEKDAY(G138) -> 6 | J138: =IF(AND(I138=1,I137<>1),J137+1,J137) -> 1 | K138: =AND(I138<>1,I138<>7) -> TRUE | L138: =IF(K138,AND(E138>=$L$4,E138<=$L$5)) -> TRUE | M138: =I138=7 -> FALSE | N138: =AND($E138>=N$4,E138<=N$5) -> FALSE | O138: =I138=1 -> FALSE | P138: =AND($E138>=P$4,E138<=P$5) -> FALSE | Q138: =OR(L138,N138,P138) -> TRUE | R138: =NOT(Q138) -> FALSE | S138: =MATCH(G138,'Historical Generation'!C:C,0) -> 17678 | T138: =INDEX('Historical Generation'!G:G,'Hourly Production'!S138)*$T$6 -> 0.8348214286 | U138: =INDEX('Historical Generation'!I:I,'Hourly Production'!S138)*$U$6 -> 0.5418658268 | V138: ='Financial Model'!$F$28 -> 90 | W138: =$W$6*U138 -> 81.27987402 | X138: =$X$6*T138 -> 166.9642857 | Y138: =V138-W138-X138 -> -158.2441597 | Z138: =$Z$6 -> 200 | AA138: =AC138 -> 200 | AB138: =Z138-AA138 -> 0 | AC138: =AG137 -> 200 | AD138: =MIN(MAX(-Y138,0),AB138) -> 0 | AE138: =AD138*$AE$6 -> 0 | AF138: =IF(Q138,MIN(MAX(Y138,0),AC138))*1 -> 0 | AG138: =AC138+AD138-AE138-AF138 -> 200 | AH138: =MAX(Y138-AF138,0) -> 0 | AI138: =MAX(-Y138,0)-AD138 -> 158.2441597 | AJ138: =AH138*Q138 -> 0 | AK138: =AH138-AJ138 -> 0 | AL138: =AI138*Q138 -> 158.2441597 | AM138: =AI138-AL138 -> 0
D139: 132 | E139: 12 | F139: 6 | G139: 2017-01-06T11:59:59.996 | H139: Friday | I139: 6 | J139: 1 | K139: TRUE | L139: TRUE | M139: FALSE | N139: FALSE | O139: FALSE | P139: FALSE | Q139: TRUE | R139: FALSE | S139: =MATCH(G139,'Historical Generation'!C:C,0) -> 17679 | T139: =INDEX('Historical Generation'!G:G,'Hourly Production'!S139)*$T$6 -> 0.85 | U139: =INDEX('Historical Generation'!I:I,'Hourly Production'!S139)*$U$6 -> 0.5734924608 | V139: ='Financial Model'!$F$28 -> 90 | W139: 86.02386912 | X139: 170 | Y139: -166.0238691 | Z139: 200 | AA139: 200 | AB139: 0 | AC139: 200 | AD139: 0 | AE139: 0 | AF139: 0 | AG139: 200 | AH139: 0 | AI139: 166.0238691 | AJ139: 0 | AK139: 0 | AL139: 166.0238691 | AM139: 0
D140: 133 | E140: 13 | F140: 6 | G140: 2017-01-06T12:59:59.996 | H140: Friday | I140: 6 | J140: 1 | K140: TRUE | L140: TRUE | M140: FALSE | N140: FALSE | O140: FALSE | P140: FALSE | Q140: TRUE | R140: FALSE | S140: =MATCH(G140,'Historical Generation'!C:C,0) -> 17680 | T140: =INDEX('Historical Generation'!G:G,'Hourly Production'!S140)*$T$6 -> 0.8348214286 | U140: =INDEX('Historical Generation'!I:I,'Hourly Production'!S140)*$U$6 -> 0.5711241228 | V140: ='Financial Model'!$F$28 -> 90 | W140: 85.66861842 | X140: 166.9642857 | Y140: -162.6329041 | Z140: 200 | AA140: 200 | AB140: 0 | AC140: 200 | AD140: 0 | AE140: 0 | AF140: 0 | AG140: 200 | AH140: 0 | AI140: 162.6329041 | AJ140: 0 | AK140: 0 | AL140: 162.6329041 | AM140: 0
D141: 134 | E141: 14 | F141: 6 | G141: 2017-01-06T13:59:59.996 | H141: Friday | I141: 6 | J141: 1 | K141: TRUE | L141: TRUE | M141: FALSE | N141: FALSE | O141: FALSE | P141: FALSE | Q141: TRUE | R141: FALSE | S141: =MATCH(G141,'Historical Generation'!C:C,0) -> 17681 | T141: =INDEX('Historical Generation'!G:G,'Hourly Production'!S141)*$T$6 -> 0.505952381 | U141: =INDEX('Historical Generation'!I:I,'Hourly Production'!S141)*$U$6 -> 0.5681562696 | V141: ='Financial Model'!$F$28 -> 90 | W141: 85.22344044 | X141: 101.1904762 | Y141: -96.41391663 | Z141: 200 | AA141: 200 | AB141: 0 | AC141: 200 | AD141: 0 | AE141: 0 | AF141: 0 | AG141: 200 | AH141: 0 | AI141: 96.41391663 | AJ141: 0 | AK141: 0 | AL141: 96.41391663 | AM141: 0
D142: 135 | E142: 15 | F142: 6 | G142: 2017-01-06T14:59:59.996 | H142: Friday | I142: 6 | J142: 1 | K142: TRUE | L142: TRUE | M142: FALSE | N142: FALSE | O142: FALSE | P142: FALSE | Q142: TRUE | R142: FALSE | S142: =MATCH(G142,'Historical Generation'!C:C,0) -> 17682 | T142: =INDEX('Historical Generation'!G:G,'Hourly Production'!S142)*$T$6 -> 0.6577380952 | U142: =INDEX('Historical Generation'!I:I,'Hourly Production'!S142)*$U$6 -> 0.551455032 | V142: ='Financial Model'!$F$28 -> 90 | W142: 82.7182548 | X142: 131.547619 | Y142: -124.2658738 | Z142: 200 | AA142: 200 | AB142: 0 | AC142: 200 | AD142: 0 | AE142: 0 | AF142: 0 | AG142: 200 | AH142: 0 | AI142: 124.2658738 | AJ142: 0 | AK142: 0 | AL142: 124.2658738 | AM142: 0
D143: 136 | E143: 16 | F143: 6 | G143: 2017-01-06T15:59:59.996 | H143: Friday | I143: 6 | J143: 1 | K143: TRUE | L143: TRUE | M143: FALSE | N143: FALSE | O143: FALSE | P143: FALSE | Q143: TRUE | R143: FALSE | S143: =MATCH(G143,'Historical Generation'!C:C,0) -> 17683 | T143: =INDEX('Historical Generation'!G:G,'Hourly Production'!S143)*$T$6 -> 0.8348214286 | U143: =INDEX('Historical Generation'!I:I,'Hourly Production'!S143)*$U$6 -> 0.3816825276 | V143: ='Financial Model'!$F$28 -> 90 | W143: 57.25237914 | X143: 166.9642857 | Y143: -134.2166649 | Z143: 200 | AA143: 200 | AB143: 0 | AC143: 200 | AD143: 0 | AE143: 0 | AF143: 0 | AG143: 200 | AH143: 0 | AI143: 134.2166649 | AJ143: 0 | AK143: 0 | AL143: 134.2166649 | AM143: 0
D144: 137 | E144: 17 | F144: 6 | G144: 2017-01-06T16:59:59.996 | H144: Friday | I144: 6 | J144: 1 | K144: TRUE | L144: TRUE | M144: FALSE | N144: FALSE | O144: FALSE | P144: FALSE | Q144: TRUE | R144: FALSE | S144: =MATCH(G144,'Historical Generation'!C:C,0) -> 17684 | T144: =INDEX('Historical Generation'!G:G,'Hourly Production'!S144)*$T$6 -> 0.85 | U144: =INDEX('Historical Generation'!I:I,'Hourly Production'!S144)*$U$6 -> 0 | V144: ='Financial Model'!$F$28 -> 90 | W144: 0 | X144: 170 | Y144: -80 | Z144: 200 | AA144: 200 | AB144: 0 | AC144: 200 | AD144: 0 | AE144: 0 | AF144: 0 | AG144: 200 | AH144: 0 | AI144: 80 | AJ144: 0 | AK144: 0 | AL144: 80 | AM144: 0
D145: 138 | E145: 18 | F145: 6 | G145: 2017-01-06T17:59:59.996 | H145: Friday | I145: 6 | J145: 1 | K145: TRUE | L145: TRUE | M145: FALSE | N145: FALSE | O145: FALSE | P145: FALSE | Q145: TRUE | R145: FALSE | S145: =MATCH(G145,'Historical Generation'!C:C,0) -> 17685 | T145: =INDEX('Historical Generation'!G:G,'Hourly Production'!S145)*$T$6 -> 0.85 | U145: =INDEX('Historical Generation'!I:I,'Hourly Production'!S145)*$U$6 -> 0 | V145: ='Financial Model'!$F$28 -> 90 | W145: 0 | X145: 170 | Y145: -80 | Z145: 200 | AA145: 200 | AB145: 0 | AC145: 200 | AD145: 0 | AE145: 0 | AF145: 0 | AG145: 200 | AH145: 0 | AI145: 80 | AJ145: 0 | AK145: 0 | AL145: 80 | AM145: 0
D146: 139 | E146: 19 | F146: 6 | G146: 2017-01-06T18:59:59.996 | H146: Friday | I146: 6 | J146: 1 | K146: TRUE | L146: TRUE | M146: FALSE | N146: FALSE | O146: FALSE | P146: FALSE | Q146: TRUE | R146: FALSE | S146: =MATCH(G146,'Historical Generation'!C:C,0) -> 17686 | T146: =INDEX('Historical Generation'!G:G,'Hourly Production'!S146)*$T$6 -> 0.85 | U146: =INDEX('Historical Generation'!I:I,'Hourly Production'!S146)*$U$6 -> 0 | V146: ='Financial Model'!$F$28 -> 90 | W146: 0 | X146: 170 | Y146: -80 | Z146: 200 | AA146: 200 | AB146: 0 | AC146: 200 | AD146: 0 | AE146: 0 | AF146: 0 | AG146: 200 | AH146: 0 | AI146: 80 | AJ146: 0 | AK146: 0 | AL146: 80 | AM146: 0
D147: 140 | E147: 20 | F147: 6 | G147: 2017-01-06T19:59:59.996 | H147: Friday | I147: 6 | J147: 1 | K147: TRUE | L147: TRUE | M147: FALSE | N147: FALSE | O147: FALSE | P147: FALSE | Q147: TRUE | R147: FALSE | S147: =MATCH(G147,'Historical Generation'!C:C,0) -> 17687 | T147: =INDEX('Historical Generation'!G:G,'Hourly Production'!S147)*$T$6 -> 0.85 | U147: =INDEX('Historical Generation'!I:I,'Hourly Production'!S147)*$U$6 -> 0 | V147: ='Financial Model'!$F$28 -> 90 | W147: 0 | X147: 170 | Y147: -80 | Z147: 200 | AA147: 200 | AB147: 0 | AC147: 200 | AD147: 0 | AE147: 0 | AF147: 0 | AG147: 200 | AH147: 0 | AI147: 80 | AJ147: 0 | AK147: 0 | AL147: 80 | AM147: 0
D148: 141 | E148: 21 | F148: 6 | G148: 2017-01-06T20:59:59.996 | H148: Friday | I148: 6 | J148: 1 | K148: TRUE | L148: TRUE | M148: FALSE | N148: FALSE | O148: FALSE | P148: FALSE | Q148: TRUE | R148: FALSE | S148: =MATCH(G148,'Historical Generation'!C:C,0) -> 17688 | T148: =INDEX('Historical Generation'!G:G,'Hourly Production'!S148)*$T$6 -> 0.1897321429 | U148: =INDEX('Historical Generation'!I:I,'Hourly Production'!S148)*$U$6 -> 0 | V148: ='Financial Model'!$F$28 -> 90 | W148: 0 | X148: 37.94642857 | Y148: 52.05357143 | Z148: 200 | AA148: 200 | AB148: 0 | AC148: 200 | AD148: 0 | AE148: 0 | AF148: 52.05357143 | AG148: 147.9464286 | AH148: 0 | AI148: 0 | AJ148: 0 | AK148: 0 | AL148: 0 | AM148: 0
D149: 142 | E149: 22 | F149: 6 | G149: 2017-01-06T21:59:59.996 | H149: Friday | I149: 6 | J149: 1 | K149: TRUE | L149: TRUE | M149: FALSE | N149: FALSE | O149: FALSE | P149: FALSE | Q149: TRUE | R149: FALSE | S149: =MATCH(G149,'Historical Generation'!C:C,0) -> 17689 | T149: =INDEX('Historical Generation'!G:G,'Hourly Production'!S149)*$T$6 -> 0.2276785714 | U149: =INDEX('Historical Generation'!I:I,'Hourly Production'!S149)*$U$6 -> 0 | V149: ='Financial Model'!$F$28 -> 90 | W149: 0 | X149: 45.53571429 | Y149: 44.46428571 | Z149: 200 | AA149: 147.9464286 | AB149: 52.05357143 | AC149: 147.9464286 | AD149: 0 | AE149: 0 | AF149: 44.46428571 | AG149: 103.4821429 | AH149: 0 | AI149: 0 | AJ149: 0 | AK149: 0 | AL149: 0 | AM149: 0
D150: 143 | E150: 23 | F150: 6 | G150: 2017-01-06T22:59:59.996 | H150: Friday | I150: 6 | J150: 1 | K150: TRUE | L150: FALSE | M150: FALSE | N150: FALSE | O150: FALSE | P150: FALSE | Q150: FALSE | R150: TRUE | S150: =MATCH(G150,'Historical Generation'!C:C,0) -> 17690 | T150: =INDEX('Historical Generation'!G:G,'Hourly Production'!S150)*$T$6 -> 0.2023809524 | U150: =INDEX('Historical Generation'!I:I,'Hourly Production'!S150)*$U$6 -> 0 | V150: ='Financial Model'!$F$28 -> 90 | W150: 0 | X150: 40.47619048 | Y150: 49.52380952 | Z150: 200 | AA150: 103.4821429 | AB150: 96.51785714 | AC150: 103.4821429 | AD150: 0 | AE150: 0 | AF150: 0 | AG150: 103.4821429 | AH150: 49.52380952 | AI150: 0 | AJ150: 0 | AK150: 49.52380952 | AL150: 0 | AM150: 0
D151: 144 | E151: 24 | F151: 6 | G151: 2017-01-06T23:59:59.996 | H151: Saturday | I151: 7 | J151: 1 | K151: FALSE | L151: FALSE | M151: TRUE | N151: FALSE | O151: FALSE | P151: FALSE | Q151: FALSE | R151: TRUE | S151: =MATCH(G151,'Historical Generation'!C:C,0) -> 17691 | T151: =INDEX('Historical Generation'!G:G,'Hourly Production'!S151)*$T$6 -> 0 | U151: =INDEX('Historical Generation'!I:I,'Hourly Production'!S151)*$U$6 -> 0 | V151: ='Financial Model'!$F$28 -> 90 | W151: 0 | X151: 0 | Y151: 90 | Z151: 200 | AA151: 103.4821429 | AB151: 96.51785714 | AC151: 103.4821429 | AD151: 0 | AE151: 0 | AF151: 0 | AG151: 103.4821429 | AH151: 90 | AI151: 0 | AJ151: 0 | AK151: 90 | AL151: 0 | AM151: 0
D152: 145 | E152: 1 | F152: 7 | G152: 2017-01-07T00:59:59.996 | H152: Saturday | I152: 7 | J152: 1 | K152: FALSE | L152: FALSE | M152: TRUE | N152: FALSE | O152: FALSE | P152: FALSE | Q152: FALSE | R152: TRUE | S152: =MATCH(G152,'Historical Generation'!C:C,0) -> 17692 | T152: =INDEX('Historical Generation'!G:G,'Hourly Production'!S152)*$T$6 -> 0 | U152: =INDEX('Historical Generation'!I:I,'Hourly Production'!S152)*$U$6 -> 0 | V152: ='Financial Model'!$F$28 -> 90 | W152: 0 | X152: 0 | Y152: 90 | Z152: 200 | AA152: 103.4821429 | AB152: 96.51785714 | AC152: 103.4821429 | AD152: 0 | AE152: 0 | AF152: 0 | AG152: 103.4821429 | AH152: 90 | AI152: 0 | AJ152: 0 | AK152: 90 | AL152: 0 | AM152: 0
D153: 146 | E153: 2 | F153: 7 | G153: 2017-01-07T01:59:59.996 | H153: Saturday | I153: 7 | J153: 1 | K153: FALSE | L153: FALSE | M153: TRUE | N153: FALSE | O153: FALSE | P153: FALSE | Q153: FALSE | R153: TRUE | S153: =MATCH(G153,'Historical Generation'!C:C,0) -> 17693 | T153: =INDEX('Historical Generation'!G:G,'Hourly Production'!S153)*$T$6 -> 0 | U153: =INDEX('Historical Generation'!I:I,'Hourly Production'!S153)*$U$6 -> 0 | V153: ='Financial Model'!$F$28 -> 90 | W153: 0 | X153: 0 | Y153: 90 | Z153: 200 | AA153: 103.4821429 | AB153: 96.51785714 | AC153: 103.4821429 | AD153: 0 | AE153: 0 | AF153: 0 | AG153: 103.4821429 | AH153: 90 | AI153: 0 | AJ153: 0 | AK153: 90 | AL153: 0 | AM153: 0
D154: 147 | E154: 3 | F154: 7 | G154: 2017-01-07T02:59:59.996 | H154: Saturday | I154: 7 | J154: 1 | K154: FALSE | L154: FALSE | M154: TRUE | N154: FALSE | O154: FALSE | P154: FALSE | Q154: FALSE | R154: TRUE | S154: =MATCH(G154,'Historical Generation'!C:C,0) -> 17694 | T154: =INDEX('Historical Generation'!G:G,'Hourly Production'!S154)*$T$6 -> 0 | U154: =INDEX('Historical Generation'!I:I,'Hourly Production'!S154)*$U$6 -> 0 | V154: ='Financial Model'!$F$28 -> 90 | W154: 0 | X154: 0 | Y154: 90 | Z154: 200 | AA154: 103.4821429 | AB154: 96.51785714 | AC154: 103.4821429 | AD154: 0 | AE154: 0 | AF154: 0 | AG154: 103.4821429 | AH154: 90 | AI154: 0 | AJ154: 0 | AK154: 90 | AL154: 0 | AM154: 0
D155: 148 | E155: 4 | F155: 7 | G155: 2017-01-07T03:59:59.996 | H155: Saturday | I155: 7 | J155: 1 | K155: FALSE | L155: FALSE | M155: TRUE | N155: FALSE | O155: FALSE | P155: FALSE | Q155: FALSE | R155: TRUE | S155: =MATCH(G155,'Historical Generation'!C:C,0) -> 17695 | T155: =INDEX('Historical Generation'!G:G,'Hourly Production'!S155)*$T$6 -> 0.2150297619 | U155: =INDEX('Historical Generation'!I:I,'Hourly Production'!S155)*$U$6 -> 0 | V155: ='Financial Model'!$F$28 -> 90 | W155: 0 | X155: 43.00595238 | Y155: 46.99404762 | Z155: 200 | AA155: 103.4821429 | AB155: 96.51785714 | AC155: 103.4821429 | AD155: 0 | AE155: 0 | AF155: 0 | AG155: 103.4821429 | AH155: 46.99404762 | AI155: 0 | AJ155: 0 | AK155: 46.99404762 | AL155: 0 | AM155: 0
D156: 149 | E156: 5 | F156: 7 | G156: 2017-01-07T04:59:59.996 | H156: Saturday | I156: 7 | J156: 1 | K156: FALSE | L156: FALSE | M156: TRUE | N156: FALSE | O156: FALSE | P156: FALSE | Q156: FALSE | R156: TRUE | S156: =MATCH(G156,'Historical Generation'!C:C,0) -> 17696 | T156: =INDEX('Historical Generation'!G:G,'Hourly Production'!S156)*$T$6 -> 0.240327381 | U156: =INDEX('Historical Generation'!I:I,'Hourly Production'!S156)*$U$6 -> 0 | V156: ='Financial Model'!$F$28 -> 90 | W156: 0 | X156: 48.06547619 | Y156: 41.93452381 | Z156: 200 | AA156: 103.4821429 | AB156: 96.51785714 | AC156: 103.4821429 | AD156: 0 | AE156: 0 | AF156: 0 | AG156: 103.4821429 | AH156: 41.93452381 | AI156: 0 | AJ156: 0 | AK156: 41.93452381 | AL156: 0 | AM156: 0
D157: 150 | E157: 6 | F157: 7 | G157: 2017-01-07T05:59:59.996 | H157: Saturday | I157: 7 | J157: 1 | K157: FALSE | L157: FALSE | M157: TRUE | N157: FALSE | O157: FALSE | P157: FALSE | Q157: FALSE | R157: TRUE | S157: =MATCH(G157,'Historical Generation'!C:C,0) -> 17697 | T157: =INDEX('Historical Generation'!G:G,'Hourly Production'!S157)*$T$6 -> 0.2529761905 | U157: =INDEX('Historical Generation'!I:I,'Hourly Production'!S157)*$U$6 -> 0 | V157: ='Financial Model'!$F$28 -> 90 | W157: 0 | X157: 50.5952381 | Y157: 39.4047619 | Z157: 200 | AA157: 103.4821429 | AB157: 96.51785714 | AC157: 103.4821429 | AD157: 0 | AE157: 0 | AF157: 0 | AG157: 103.4821429 | AH157: 39.4047619 | AI157: 0 | AJ157: 0 | AK157: 39.4047619 | AL157: 0 | AM157: 0
D158: 151 | E158: 7 | F158: 7 | G158: 2017-01-07T06:59:59.996 | H158: Saturday | I158: 7 | J158: 1 | K158: FALSE | L158: FALSE | M158: TRUE | N158: FALSE | O158: FALSE | P158: FALSE | Q158: FALSE | R158: TRUE | S158: =MATCH(G158,'Historical Generation'!C:C,0) -> 17698 | T158: =INDEX('Historical Generation'!G:G,'Hourly Production'!S158)*$T$6 -> 0.3225446429 | U158: =INDEX('Historical Generation'!I:I,'Hourly Production'!S158)*$U$6 -> 0 | V158: ='Financial Model'!$F$28 -> 90 | W158: 0 | X158: 64.50892857 | Y158: 25.49107143 | Z158: 200 | AA158: 103.4821429 | AB158: 96.51785714 | AC158: 103.4821429 | AD158: 0 | AE158: 0 | AF158: 0 | AG158: 103.4821429 | AH158: 25.49107143 | AI158: 0 | AJ158: 0 | AK158: 25.49107143 | AL158: 0 | AM158: 0
D159: 152 | E159: 8 | F159: 7 | G159: 2017-01-07T07:59:59.996 | H159: Saturday | I159: 7 | J159: 1 | K159: FALSE | L159: FALSE | M159: TRUE | N159: FALSE | O159: FALSE | P159: FALSE | Q159: FALSE | R159: TRUE | S159: =MATCH(G159,'Historical Generation'!C:C,0) -> 17699 | T159: =INDEX('Historical Generation'!G:G,'Hourly Production'!S159)*$T$6 -> 0.4300595238 | U159: =INDEX('Historical Generation'!I:I,'Hourly Production'!S159)*$U$6 -> 0 | V159: ='Financial Model'!$F$28 -> 90 | W159: 0 | X159: 86.01190476 | Y159: 3.988095238 | Z159: 200 | AA159: 103.4821429 | AB159: 96.51785714 | AC159: 103.4821429 | AD159: 0 | AE159: 0 | AF159: 0 | AG159: 103.4821429 | AH159: 3.988095238 | AI159: 0 | AJ159: 0 | AK159: 3.988095238 | AL159: 0 | AM159: 0
D160: 153 | E160: 9 | F160: 7 | G160: 2017-01-07T08:59:59.996 | H160: Saturday | I160: 7 | J160: 1 | K160: FALSE | L160: FALSE | M160: TRUE | N160: FALSE | O160: FALSE | P160: FALSE | Q160: FALSE | R160: TRUE | S160: =MATCH(G160,'Historical Generation'!C:C,0) -> 17700 | T160: =INDEX('Historical Generation'!G:G,'Hourly Production'!S160)*$T$6 -> 0.3225446429 | U160: =INDEX('Historical Generation'!I:I,'Hourly Production'!S160)*$U$6 -> 0 | V160: ='Financial Model'!$F$28 -> 90 | W160: 0 | X160: 64.50892857 | Y160: 25.49107143 | Z160: 200 | AA160: 103.4821429 | AB160: 96.51785714 | AC160: 103.4821429 | AD160: 0 | AE160: 0 | AF160: 0 | AG160: 103.4821429 | AH160: 25.49107143 | AI160: 0 | AJ160: 0 | AK160: 25.49107143 | AL160: 0 | AM160: 0
D161: 154 | E161: 10 | F161: 7 | G161: 2017-01-07T09:59:59.996 | H161: Saturday | I161: 7 | J161: 1 | K161: FALSE | L161: FALSE | M161: TRUE | N161: FALSE | O161: FALSE | P161: FALSE | Q161: FALSE | R161: TRUE | S161: =MATCH(G161,'Historical Generation'!C:C,0) -> 17701 | T161: =INDEX('Historical Generation'!G:G,'Hourly Production'!S161)*$T$6 -> 0.290922619 | U161: =INDEX('Historical Generation'!I:I,'Hourly Production'!S161)*$U$6 -> 0.291600508 | V161: ='Financial Model'!$F$28 -> 90 | W161: 43.7400762 | X161: 58.18452381 | Y161: -11.92460001 | Z161: 200 | AA161: 103.4821429 | AB161: 96.51785714 | AC161: 103.4821429 | AD161: 11.92460001 | AE161: 1.788690001 | AF161: 0 | AG161: 113.6180529 | AH161: 0 | AI161: 0 | AJ161: 0 | AK161: 0 | AL161: 0 | AM161: 0
D162: 155 | E162: 11 | F162: 7 | G162: 2017-01-07T10:59:59.996 | H162: Saturday | I162: 7 | J162: 1 | K162: FALSE | L162: FALSE | M162: TRUE | N162: FALSE | O162: FALSE | P162: FALSE | Q162: FALSE | R162: TRUE | S162: =MATCH(G162,'Historical Generation'!C:C,0) -> 17702 | T162: =INDEX('Historical Generation'!G:G,'Hourly Production'!S162)*$T$6 -> 0.290922619 | U162: =INDEX('Historical Generation'!I:I,'Hourly Production'!S162)*$U$6 -> 0.4775772456 | V162: ='Financial Model'!$F$28 -> 90 | W162: 71.63658684 | X162: 58.18452381 | Y162: -39.82111065 | Z162: 200 | AA162: 113.6180529 | AB162: 86.38194713 | AC162: 113.6180529 | AD162: 39.82111065 | AE162: 5.973166597 | AF162: 0 | AG162: 147.4659969 | AH162: 0 | AI162: 0 | AJ162: 0 | AK162: 0 | AL162: 0 | AM162: 0
D163: 156 | E163: 12 | F163: 7 | G163: 2017-01-07T11:59:59.996 | H163: Saturday | I163: 7 | J163: 1 | K163: FALSE | L163: FALSE | M163: TRUE | N163: FALSE | O163: FALSE | P163: FALSE | Q163: FALSE | R163: TRUE | S163: =MATCH(G163,'Historical Generation'!C:C,0) -> 17703 | T163: =INDEX('Historical Generation'!G:G,'Hourly Production'!S163)*$T$6 -> 0.240327381 | U163: =INDEX('Historical Generation'!I:I,'Hourly Production'!S163)*$U$6 -> 0.554699616 | V163: ='Financial Model'!$F$28 -> 90 | W163: 83.2049424 | X163: 48.06547619 | Y163: -41.27041859 | Z163: 200 | AA163: 147.4659969 | AB163: 52.53400308 | AC163: 147.4659969 | AD163: 41.27041859 | AE163: 6.190562789 | AF163: 0 | AG163: 182.5458527 | AH163: 0 | AI163: 0 | AJ163: 0 | AK163: 0 | AL163: 0 | AM163: 0
D164: 157 | E164: 13 | F164: 7 | G164: 2017-01-07T12:59:59.996 | H164: Saturday | I164: 7 | J164: 1 | K164: FALSE | L164: FALSE | M164: TRUE | N164: FALSE | O164: FALSE | P164: FALSE | Q164: FALSE | R164: TRUE | S164: =MATCH(G164,'Historical Generation'!C:C,0) -> 17704 | T164: =INDEX('Historical Generation'!G:G,'Hourly Production'!S164)*$T$6 -> 0.2276785714 | U164: =INDEX('Historical Generation'!I:I,'Hourly Production'!S164)*$U$6 -> 0.4764414924 | V164: ='Financial Model'!$F$28 -> 90 | W164: 71.46622386 | X164: 45.53571429 | Y164: -27.00193815 | Z164: 200 | AA164: 182.5458527 | AB164: 17.45414728 | AC164: 182.5458527 | AD164: 17.45414728 | AE164: 2.618122092 | AF164: 0 | AG164: 197.3818779 | AH164: 0 | AI164: 9.547790865 | AJ164: 0 | AK164: 0 | AL164: 0 | AM164: 9.547790865
D165: 158 | E165: 14 | F165: 7 | G165: 2017-01-07T13:59:59.996 | H165: Saturday | I165: 7 | J165: 1 | K165: FALSE | L165: FALSE | M165: TRUE | N165: FALSE | O165: FALSE | P165: FALSE | Q165: FALSE | R165: TRUE | S165: =MATCH(G165,'Historical Generation'!C:C,0) -> 17705 | T165: =INDEX('Historical Generation'!G:G,'Hourly Production'!S165)*$T$6 -> 0.2150297619 | U165: =INDEX('Historical Generation'!I:I,'Hourly Production'!S165)*$U$6 -> 0.3537347752 | V165: ='Financial Model'!$F$28 -> 90 | W165: 53.06021628 | X165: 43.00595238 | Y165: -6.066168661 | Z165: 200 | AA165: 197.3818779 | AB165: 2.618122092 | AC165: 197.3818779 | AD165: 2.618122092 | AE165: 0.3927183138 | AF165: 0 | AG165: 199.6072817 | AH165: 0 | AI165: 3.448046569 | AJ165: 0 | AK165: 0 | AL165: 0 | AM165: 3.448046569
D166: 159 | E166: 15 | F166: 7 | G166: 2017-01-07T14:59:59.996 | H166: Saturday | I166: 7 | J166: 1 | K166: FALSE | L166: FALSE | M166: TRUE | N166: FALSE | O166: FALSE | P166: FALSE | Q166: FALSE | R166: TRUE | S166: =MATCH(G166,'Historical Generation'!C:C,0) -> 17706 | T166: =INDEX('Historical Generation'!G:G,'Hourly Production'!S166)*$T$6 -> 0 | U166: =INDEX('Historical Generation'!I:I,'Hourly Production'!S166)*$U$6 -> 0.4259608072 | V166: ='Financial Model'!$F$28 -> 90 | W166: 63.89412108 | X166: 0 | Y166: 26.10587892 | Z166: 200 | AA166: 199.6072817 | AB166: 0.3927183138 | AC166: 199.6072817 | AD166: 0 | AE166: 0 | AF166: 0 | AG166: 199.6072817 | AH166: 26.10587892 | AI166: 0 | AJ166: 0 | AK166: 26.10587892 | AL166: 0 | AM166: 0
D167: 160 | E167: 16 | F167: 7 | G167: 2017-01-07T15:59:59.996 | H167: Saturday | I167: 7 | J167: 1 | K167: FALSE | L167: FALSE | M167: TRUE | N167: FALSE | O167: FALSE | P167: FALSE | Q167: FALSE | R167: TRUE | S167: =MATCH(G167,'Historical Generation'!C:C,0) -> 17707 | T167: =INDEX('Historical Generation'!G:G,'Hourly Production'!S167)*$T$6 -> 0 | U167: =INDEX('Historical Generation'!I:I,'Hourly Production'!S167)*$U$6 -> 0.3133440816 | V167: ='Financial Model'!$F$28 -> 90 | W167: 47.00161224 | X167: 0 | Y167: 42.99838776 | Z167: 200 | AA167: 199.6072817 | AB167: 0.3927183138 | AC167: 199.6072817 | AD167: 0 | AE167: 0 | AF167: 0 | AG167: 199.6072817 | AH167: 42.99838776 | AI167: 0 | AJ167: 0 | AK167: 42.99838776 | AL167: 0 | AM167: 0
D168: 161 | E168: 17 | F168: 7 | G168: 2017-01-07T16:59:59.996 | H168: Saturday | I168: 7 | J168: 1 | K168: FALSE | L168: FALSE | M168: TRUE | N168: FALSE | O168: FALSE | P168: FALSE | Q168: FALSE | R168: TRUE | S168: =MATCH(G168,'Historical Generation'!C:C,0) -> 17708 | T168: =INDEX('Historical Generation'!G:G,'Hourly Production'!S168)*$T$6 -> 0.85 | U168: =INDEX('Historical Generation'!I:I,'Hourly Production'!S168)*$U$6 -> 0 | V168: ='Financial Model'!$F$28 -> 90 | W168: 0 | X168: 170 | Y168: -80 | Z168: 200 | AA168: 199.6072817 | AB168: 0.3927183138 | AC168: 199.6072817 | AD168: 0.3927183138 | AE168: 0.05890774707 | AF168: 0 | AG168: 199.9410923 | AH168: 0 | AI168: 79.60728169 | AJ168: 0 | AK168: 0 | AL168: 0 | AM168: 79.60728169
D169: 162 | E169: 18 | F169: 7 | G169: 2017-01-07T17:59:59.996 | H169: Saturday | I169: 7 | J169: 1 | K169: FALSE | L169: FALSE | M169: TRUE | N169: FALSE | O169: FALSE | P169: FALSE | Q169: FALSE | R169: TRUE | S169: =MATCH(G169,'Historical Generation'!C:C,0) -> 17709 | T169: =INDEX('Historical Generation'!G:G,'Hourly Production'!S169)*$T$6 -> 0.85 | U169: =INDEX('Historical Generation'!I:I,'Hourly Production'!S169)*$U$6 -> 0 | V169: ='Financial Model'!$F$28 -> 90 | W169: 0 | X169: 170 | Y169: -80 | Z169: 200 | AA169: 199.9410923 | AB169: 0.05890774707 | AC169: 199.9410923 | AD169: 0.05890774707 | AE169: 0.008836162061 | AF169: 0 | AG169: 199.9911638 | AH169: 0 | AI169: 79.94109225 | AJ169: 0 | AK169: 0 | AL169: 0 | AM169: 79.94109225
D170: 163 | E170: 19 | F170: 7 | G170: 2017-01-07T18:59:59.996 | H170: Saturday | I170: 7 | J170: 1 | K170: FALSE | L170: FALSE | M170: TRUE | N170: FALSE | O170: FALSE | P170: FALSE | Q170: FALSE | R170: TRUE | S170: =MATCH(G170,'Historical Generation'!C:C,0) -> 17710 | T170: =INDEX('Historical Generation'!G:G,'Hourly Production'!S170)*$T$6 -> 0.85 | U170: =INDEX('Historical Generation'!I:I,'Hourly Production'!S170)*$U$6 -> 0 | V170: ='Financial Model'!$F$28 -> 90 | W170: 0 | X170: 170 | Y170: -80 | Z170: 200 | AA170: 199.9911638 | AB170: 0.008836162061 | AC170: 199.9911638 | AD170: 0.008836162061 | AE170: 0.001325424309 | AF170: 0 | AG170: 199.9986746 | AH170: 0 | AI170: 79.99116384 | AJ170: 0 | AK170: 0 | AL170: 0 | AM170: 79.99116384
D171: 164 | E171: 20 | F171: 7 | G171: 2017-01-07T19:59:59.996 | H171: Saturday | I171: 7 | J171: 1 | K171: FALSE | L171: FALSE | M171: TRUE | N171: FALSE | O171: FALSE | P171: FALSE | Q171: FALSE | R171: TRUE | S171: =MATCH(G171,'Historical Generation'!C:C,0) -> 17711 | T171: =INDEX('Historical Generation'!G:G,'Hourly Production'!S171)*$T$6 -> 0.85 | U171: =INDEX('Historical Generation'!I:I,'Hourly Production'!S171)*$U$6 -> 0 | V171: ='Financial Model'!$F$28 -> 90 | W171: 0 | X171: 170 | Y171: -80 | Z171: 200 | AA171: 199.9986746 | AB171: 0.001325424309 | AC171: 199.9986746 | AD171: 0.001325424309 | AE171: 0.0001988136464 | AF171: 0 | AG171: 199.9998012 | AH171: 0 | AI171: 79.99867458 | AJ171: 0 | AK171: 0 | AL171: 0 | AM171: 79.99867458
D172: 165 | E172: 21 | F172: 7 | G172: 2017-01-07T20:59:59.996 | H172: Saturday | I172: 7 | J172: 1 | K172: FALSE | L172: FALSE | M172: TRUE | N172: FALSE | O172: FALSE | P172: FALSE | Q172: FALSE | R172: TRUE | S172: =MATCH(G172,'Historical Generation'!C:C,0) -> 17712 | T172: =INDEX('Historical Generation'!G:G,'Hourly Production'!S172)*$T$6 -> 0 | U172: =INDEX('Historical Generation'!I:I,'Hourly Production'!S172)*$U$6 -> 0 | V172: ='Financial Model'!$F$28 -> 90 | W172: 0 | X172: 0 | Y172: 90 | Z172: 200 | AA172: 199.9998012 | AB172: 0.0001988136464 | AC172: 199.9998012 | AD172: 0 | AE172: 0 | AF172: 0 | AG172: 199.9998012 | AH172: 90 | AI172: 0 | AJ172: 0 | AK172: 90 | AL172: 0 | AM172: 0
D173: 166 | E173: 22 | F173: 7 | G173: 2017-01-07T21:59:59.996 | H173: Saturday | I173: 7 | J173: 1 | K173: FALSE | L173: FALSE | M173: TRUE | N173: FALSE | O173: FALSE | P173: FALSE | Q173: FALSE | R173: TRUE | S173: =MATCH(G173,'Historical Generation'!C:C,0) -> 17713 | T173: =INDEX('Historical Generation'!G:G,'Hourly Production'!S173)*$T$6 -> 0 | U173: =INDEX('Historical Generation'!I:I,'Hourly Production'!S173)*$U$6 -> 0 | V173: ='Financial Model'!$F$28 -> 90 | W173: 0 | X173: 0 | Y173: 90 | Z173: 200 | AA173: 199.9998012 | AB173: 0.0001988136464 | AC173: 199.9998012 | AD173: 0 | AE173: 0 | AF173: 0 | AG173: 199.9998012 | AH173: 90 | AI173: 0 | AJ173: 0 | AK173: 90 | AL173: 0 | AM173: 0
D174: 167 | E174: 23 | F174: 7 | G174: 2017-01-07T22:59:59.996 | H174: Saturday | I174: 7 | J174: 1 | K174: FALSE | L174: FALSE | M174: TRUE | N174: FALSE | O174: FALSE | P174: FALSE | Q174: FALSE | R174: TRUE | S174: =MATCH(G174,'Historical Generation'!C:C,0) -> 17714 | T174: =INDEX('Historical Generation'!G:G,'Hourly Production'!S174)*$T$6 -> 0 | U174: =INDEX('Historical Generation'!I:I,'Hourly Production'!S174)*$U$6 -> 0 | V174: ='Financial Model'!$F$28 -> 90 | W174: 0 | X174: 0 | Y174: 90 | Z174: 200 | AA174: 199.9998012 | AB174: 0.0001988136464 | AC174: 199.9998012 | AD174: 0 | AE174: 0 | AF174: 0 | AG174: 199.9998012 | AH174: 90 | AI174: 0 | AJ174: 0 | AK174: 90 | AL174: 0 | AM174: 0
D175: 168 | E175: 24 | F175: 7 | G175: 2017-01-07T23:59:59.996 | H175: Sunday | I175: 1 | J175: 2 | K175: FALSE | L175: FALSE | M175: FALSE | N175: FALSE | O175: TRUE | P175: FALSE | Q175: FALSE | R175: TRUE | S175: =MATCH(G175,'Historical Generation'!C:C,0) -> 17715 | T175: =INDEX('Historical Generation'!G:G,'Hourly Production'!S175)*$T$6 -> 0.2150297619 | U175: =INDEX('Historical Generation'!I:I,'Hourly Production'!S175)*$U$6 -> 0 | V175: ='Financial Model'!$F$28 -> 90 | W175: 0 | X175: 43.00595238 | Y175: 46.99404762 | Z175: 200 | AA175: 199.9998012 | AB175: 0.0001988136464 | AC175: 199.9998012 | AD175: 0 | AE175: 0 | AF175: 0 | AG175: 199.9998012 | AH175: 46.99404762 | AI175: 0 | AJ175: 0 | AK175: 46.99404762 | AL175: 0 | AM175: 0
D176: 169 | E176: 1 | F176: 8 | G176: 2017-01-08T00:59:59.996 | H176: Sunday | I176: 1 | J176: 2 | K176: FALSE | L176: FALSE | M176: FALSE | N176: FALSE | O176: TRUE | P176: FALSE | Q176: FALSE | R176: TRUE | S176: =MATCH(G176,'Historical Generation'!C:C,0) -> 17716 | T176: =INDEX('Historical Generation'!G:G,'Hourly Production'!S176)*$T$6 -> 0 | U176: =INDEX('Historical Generation'!I:I,'Hourly Production'!S176)*$U$6 -> 0 | V176: ='Financial Model'!$F$28 -> 90 | W176: 0 | X176: 0 | Y176: 90 | Z176: 200 | AA176: 199.9998012 | AB176: 0.0001988136464 | AC176: 199.9998012 | AD176: 0 | AE176: 0 | AF176: 0 | AG176: 199.9998012 | AH176: 90 | AI176: 0 | AJ176: 0 | AK176: 90 | AL176: 0 | AM176: 0
D177: 170 | E177: 2 | F177: 8 | G177: 2017-01-08T01:59:59.996 | H177: Sunday | I177: 1 | J177: 2 | K177: FALSE | L177: FALSE | M177: FALSE | N177: FALSE | O177: TRUE | P177: FALSE | Q177: FALSE | R177: TRUE | S177: =MATCH(G177,'Historical Generation'!C:C,0) -> 17717 | T177: =INDEX('Historical Generation'!G:G,'Hourly Production'!S177)*$T$6 -> 0.2023809524 | U177: =INDEX('Historical Generation'!I:I,'Hourly Production'!S177)*$U$6 -> 0 | V177: ='Financial Model'!$F$28 -> 90 | W177: 0 | X177: 40.47619048 | Y177: 49.52380952 | Z177: 200 | AA177: 199.9998012 | AB177: 0.0001988136464 | AC177: 199.9998012 | AD177: 0 | AE177: 0 | AF177: 0 | AG177: 199.9998012 | AH177: 49.52380952 | AI177: 0 | AJ177: 0 | AK177: 49.52380952 | AL177: 0 | AM177: 0
D178: 171 | E178: 3 | F178: 8 | G178: 2017-01-08T02:59:59.996 | H178: Sunday | I178: 1 | J178: 2 | K178: FALSE | L178: FALSE | M178: FALSE | N178: FALSE | O178: TRUE | P178: FALSE | Q178: FALSE | R178: TRUE | S178: =MATCH(G178,'Historical Generation'!C:C,0) -> 17718 | T178: =INDEX('Historical Generation'!G:G,'Hourly Production'!S178)*$T$6 -> 0.7083333333 | U178: =INDEX('Historical Generation'!I:I,'Hourly Production'!S178)*$U$6 -> 0 | V178: ='Financial Model'!$F$28 -> 90 | W178: 0 | X178: 141.6666667 | Y178: -51.66666667 | Z178: 200 | AA178: 199.9998012 | AB178: 0.0001988136464 | AC178: 199.9998012 | AD178: 0.0001988136464 | AE178: 2.982204695e-05 | AF178: 0 | AG178: 199.9999702 | AH178: 0 | AI178: 51.66646785 | AJ178: 0 | AK178: 0 | AL178: 0 | AM178: 51.66646785
D179: 172 | E179: 4 | F179: 8 | G179: 2017-01-08T03:59:59.996 | H179: Sunday | I179: 1 | J179: 2 | K179: FALSE | L179: FALSE | M179: FALSE | N179: FALSE | O179: TRUE | P179: FALSE | Q179: FALSE | R179: TRUE | S179: =MATCH(G179,'Historical Generation'!C:C,0) -> 17719 | T179: =INDEX('Historical Generation'!G:G,'Hourly Production'!S179)*$T$6 -> 0.7842261905 | U179: =INDEX('Historical Generation'!I:I,'Hourly Production'!S179)*$U$6 -> 0 | V179: ='Financial Model'!$F$28 -> 90 | W179: 0 | X179: 156.8452381 | Y179: -66.8452381 | Z179: 200 | AA179: 199.9999702 | AB179: 2.982204694e-05 | AC179: 199.9999702 | AD179: 2.982204694e-05 | AE179: 4.473307041e-06 | AF179: 0 | AG179: 199.9999955 | AH179: 0 | AI179: 66.84520827 | AJ179: 0 | AK179: 0 | AL179: 0 | AM179: 66.84520827
D180: 173 | E180: 5 | F180: 8 | G180: 2017-01-08T04:59:59.996 | H180: Sunday | I180: 1 | J180: 2 | K180: FALSE | L180: FALSE | M180: FALSE | N180: FALSE | O180: TRUE | P180: FALSE | Q180: FALSE | R180: TRUE | S180: =MATCH(G180,'Historical Generation'!C:C,0) -> 17720 | T180: =INDEX('Historical Generation'!G:G,'Hourly Production'!S180)*$T$6 -> 0.8348214286 | U180: =INDEX('Historical Generation'!I:I,'Hourly Production'!S180)*$U$6 -> 0 | V180: ='Financial Model'!$F$28 -> 90 | W180: 0 | X180: 166.9642857 | Y180: -76.96428571 | Z180: 200 | AA180: 199.9999955 | AB180: 4.47330703e-06 | AC180: 199.9999955 | AD180: 4.47330703e-06 | AE180: 6.709960545e-07 | AF180: 0 | AG180: 199.9999993 | AH180: 0 | AI180: 76.96428124 | AJ180: 0 | AK180: 0 | AL180: 0 | AM180: 76.96428124
D181: 174 | E181: 6 | F181: 8 | G181: 2017-01-08T05:59:59.996 | H181: Sunday | I181: 1 | J181: 2 | K181: FALSE | L181: FALSE | M181: FALSE | N181: FALSE | O181: TRUE | P181: FALSE | Q181: FALSE | R181: TRUE | S181: =MATCH(G181,'Historical Generation'!C:C,0) -> 17721 | T181: =INDEX('Historical Generation'!G:G,'Hourly Production'!S181)*$T$6 -> 0.6577380952 | U181: =INDEX('Historical Generation'!I:I,'Hourly Production'!S181)*$U$6 -> 0 | V181: ='Financial Model'!$F$28 -> 90 | W181: 0 | X181: 131.547619 | Y181: -41.54761905 | Z181: 200 | AA181: 199.9999993 | AB181: 6.709960587e-07 | AC181: 199.9999993 | AD181: 6.709960587e-07 | AE181: 1.006494088e-07 | AF181: 0 | AG181: 199.9999999 | AH181: 0 | AI181: 41.54761838 | AJ181: 0 | AK181: 0 | AL181: 0 | AM181: 41.54761838
D182: 175 | E182: 7 | F182: 8 | G182: 2017-01-08T06:59:59.996 | H182: Sunday | I182: 1 | J182: 2 | K182: FALSE | L182: FALSE | M182: FALSE | N182: FALSE | O182: TRUE | P182: FALSE | Q182: FALSE | R182: TRUE | S182: =MATCH(G182,'Historical Generation'!C:C,0) -> 17722 | T182: =INDEX('Historical Generation'!G:G,'Hourly Production'!S182)*$T$6 -> 0.2276785714 | U182: =INDEX('Historical Generation'!I:I,'Hourly Production'!S182)*$U$6 -> 0 | V182: ='Financial Model'!$F$28 -> 90 | W182: 0 | X182: 45.53571429 | Y182: 44.46428571 | Z182: 200 | AA182: 199.9999999 | AB182: 1.006494017e-07 | AC182: 199.9999999 | AD182: 0 | AE182: 0 | AF182: 0 | AG182: 199.9999999 | AH182: 44.46428571 | AI182: 0 | AJ182: 0 | AK182: 44.46428571 | AL182: 0 | AM182: 0
D183: 176 | E183: 8 | F183: 8 | G183: 2017-01-08T07:59:59.996 | H183: Sunday | I183: 1 | J183: 2 | K183: FALSE | L183: FALSE | M183: FALSE | N183: FALSE | O183: TRUE | P183: FALSE | Q183: FALSE | R183: TRUE | S183: =MATCH(G183,'Historical Generation'!C:C,0) -> 17723 | T183: =INDEX('Historical Generation'!G:G,'Hourly Production'!S183)*$T$6 -> 0.2276785714 | U183: =INDEX('Historical Generation'!I:I,'Hourly Production'!S183)*$U$6 -> 0 | V183: ='Financial Model'!$F$28 -> 90 | W183: 0 | X183: 45.53571429 | Y183: 44.46428571 | Z183: 200 | AA183: 199.9999999 | AB183: 1.006494017e-07 | AC183: 199.9999999 | AD183: 0 | AE183: 0 | AF183: 0 | AG183: 199.9999999 | AH183: 44.46428571 | AI183: 0 | AJ183: 0 | AK183: 44.46428571 | AL183: 0 | AM183: 0
D184: 177 | E184: 9 | F184: 8 | G184: 2017-01-08T08:59:59.996 | H184: Sunday | I184: 1 | J184: 2 | K184: FALSE | L184: FALSE | M184: FALSE | N184: FALSE | O184: TRUE | P184: FALSE | Q184: FALSE | R184: TRUE | S184: =MATCH(G184,'Historical Generation'!C:C,0) -> 17724 | T184: =INDEX('Historical Generation'!G:G,'Hourly Production'!S184)*$T$6 -> 0.2782738095 | U184: =INDEX('Historical Generation'!I:I,'Hourly Production'!S184)*$U$6 -> 0 | V184: ='Financial Model'!$F$28 -> 90 | W184: 0 | X184: 55.6547619 | Y184: 34.3452381 | Z184: 200 | AA184: 199.9999999 | AB184: 1.006494017e-07 | AC184: 199.9999999 | AD184: 0 | AE184: 0 | AF184: 0 | AG184: 199.9999999 | AH184: 34.3452381 | AI184: 0 | AJ184: 0 | AK184: 34.3452381 | AL184: 0 | AM184: 0
D185: 178 | E185: 10 | F185: 8 | G185: 2017-01-08T09:59:59.996 | H185: Sunday | I185: 1 | J185: 2 | K185: FALSE | L185: FALSE | M185: FALSE | N185: FALSE | O185: TRUE | P185: FALSE | Q185: FALSE | R185: TRUE | S185: =MATCH(G185,'Historical Generation'!C:C,0) -> 17725 | T185: =INDEX('Historical Generation'!G:G,'Hourly Production'!S185)*$T$6 -> 0.290922619 | U185: =INDEX('Historical Generation'!I:I,'Hourly Production'!S185)*$U$6 -> 0.1159237064 | V185: ='Financial Model'!$F$28 -> 90 | W185: 17.38855596 | X185: 58.18452381 | Y185: 14.42692023 | Z185: 200 | AA185: 199.9999999 | AB185: 1.006494017e-07 | AC185: 199.9999999 | AD185: 0 | AE185: 0 | AF185: 0 | AG185: 199.9999999 | AH185: 14.42692023 | AI185: 0 | AJ185: 0 | AK185: 14.42692023 | AL185: 0 | AM185: 0
D186: 179 | E186: 11 | F186: 8 | G186: 2017-01-08T10:59:59.996 | H186: Sunday | I186: 1 | J186: 2 | K186: FALSE | L186: FALSE | M186: FALSE | N186: FALSE | O186: TRUE | P186: FALSE | Q186: FALSE | R186: TRUE | S186: =MATCH(G186,'Historical Generation'!C:C,0) -> 17726 | T186: =INDEX('Historical Generation'!G:G,'Hourly Production'!S186)*$T$6 -> 0.3921130952 | U186: =INDEX('Historical Generation'!I:I,'Hourly Production'!S186)*$U$6 -> 0.148347338 | V186: ='Financial Model'!$F$28 -> 90 | W186: 22.2521007 | X186: 78.42261905 | Y186: -10.67471975 | Z186: 200 | AA186: 199.9999999 | AB186: 1.006494017e-07 | AC186: 199.9999999 | AD186: 1.006494017e-07 | AE186: 1.509741026e-08 | AF186: 0 | AG186: 200 | AH186: 0 | AI186: 10.67471965 | AJ186: 0 | AK186: 0 | AL186: 0 | AM186: 10.67471965
D187: 180 | E187: 12 | F187: 8 | G187: 2017-01-08T11:59:59.996 | H187: Sunday | I187: 1 | J187: 2 | K187: FALSE | L187: FALSE | M187: FALSE | N187: FALSE | O187: TRUE | P187: FALSE | Q187: FALSE | R187: TRUE | S187: =MATCH(G187,'Historical Generation'!C:C,0) -> 17727 | T187: =INDEX('Historical Generation'!G:G,'Hourly Production'!S187)*$T$6 -> 0.2782738095 | U187: =INDEX('Historical Generation'!I:I,'Hourly Production'!S187)*$U$6 -> 0.2006996792 | V187: ='Financial Model'!$F$28 -> 90 | W187: 30.10495188 | X187: 55.6547619 | Y187: 4.240286215 | Z187: 200 | AA187: 200 | AB187: 1.50974131e-08 | AC187: 200 | AD187: 0 | AE187: 0 | AF187: 0 | AG187: 200 | AH187: 4.240286215 | AI187: 0 | AJ187: 0 | AK187: 4.240286215 | AL187: 0 | AM187: 0
D188: 181 | E188: 13 | F188: 8 | G188: 2017-01-08T12:59:59.996 | H188: Sunday | I188: 1 | J188: 2 | K188: FALSE | L188: FALSE | M188: FALSE | N188: FALSE | O188: TRUE | P188: FALSE | Q188: FALSE | R188: TRUE | S188: =MATCH(G188,'Historical Generation'!C:C,0) -> 17728 | T188: =INDEX('Historical Generation'!G:G,'Hourly Production'!S188)*$T$6 -> 0.2529761905 | U188: =INDEX('Historical Generation'!I:I,'Hourly Production'!S188)*$U$6 -> 0.2011977748 | V188: ='Financial Model'!$F$28 -> 90 | W188: 30.17966622 | X188: 50.5952381 | Y188: 9.225095685 | Z188: 200 | AA188: 200 | AB188: 1.50974131e-08 | AC188: 200 | AD188: 0 | AE188: 0 | AF188: 0 | AG188: 200 | AH188: 9.225095685 | AI188: 0 | AJ188: 0 | AK188: 9.225095685 | AL188: 0 | AM188: 0
D189: 182 | E189: 14 | F189: 8 | G189: 2017-01-08T13:59:59.996 | H189: Sunday | I189: 1 | J189: 2 | K189: FALSE | L189: FALSE | M189: FALSE | N189: FALSE | O189: TRUE | P189: FALSE | Q189: FALSE | R189: TRUE | S189: =MATCH(G189,'Historical Generation'!C:C,0) -> 17729 | T189: =INDEX('Historical Generation'!G:G,'Hourly Production'!S189)*$T$6 -> 0.2276785714 | U189: =INDEX('Historical Generation'!I:I,'Hourly Production'!S189)*$U$6 -> 0.1837522892 | V189: ='Financial Model'!$F$28 -> 90 | W189: 27.56284338 | X189: 45.53571429 | Y189: 16.90144233 | Z189: 200 | AA189: 200 | AB189: 1.50974131e-08 | AC189: 200 | AD189: 0 | AE189: 0 | AF189: 0 | AG189: 200 | AH189: 16.90144233 | AI189: 0 | AJ189: 0 | AK189: 16.90144233 | AL189: 0 | AM189: 0
D190: 183 | E190: 15 | F190: 8 | G190: 2017-01-08T14:59:59.996 | H190: Sunday | I190: 1 | J190: 2 | K190: FALSE | L190: FALSE | M190: FALSE | N190: FALSE | O190: TRUE | P190: FALSE | Q190: FALSE | R190: TRUE | S190: =MATCH(G190,'Historical Generation'!C:C,0) -> 17730 | T190: =INDEX('Historical Generation'!G:G,'Hourly Production'!S190)*$T$6 -> 0.2150297619 | U190: =INDEX('Historical Generation'!I:I,'Hourly Production'!S190)*$U$6 -> 0.1410227076 | V190: ='Financial Model'!$F$28 -> 90 | W190: 21.15340614 | X190: 43.00595238 | Y190: 25.84064148 | Z190: 200 | AA190: 200 | AB190: 1.50974131e-08 | AC190: 200 | AD190: 0 | AE190: 0 | AF190: 0 | AG190: 200 | AH190: 25.84064148 | AI190: 0 | AJ190: 0 | AK190: 25.84064148 | AL190: 0 | AM190: 0
D191: 184 | E191: 16 | F191: 8 | G191: 2017-01-08T15:59:59.996 | H191: Sunday | I191: 1 | J191: 2 | K191: FALSE | L191: FALSE | M191: FALSE | N191: FALSE | O191: TRUE | P191: FALSE | Q191: FALSE | R191: TRUE | S191: =MATCH(G191,'Historical Generation'!C:C,0) -> 17731 | T191: =INDEX('Historical Generation'!G:G,'Hourly Production'!S191)*$T$6 -> 0 | U191: =INDEX('Historical Generation'!I:I,'Hourly Production'!S191)*$U$6 -> 0.0705321548 | V191: ='Financial Model'!$F$28 -> 90 | W191: 10.57982322 | X191: 0 | Y191: 79.42017678 | Z191: 200 | AA191: 200 | AB191: 1.50974131e-08 | AC191: 200 | AD191: 0 | AE191: 0 | AF191: 0 | AG191: 200 | AH191: 79.42017678 | AI191: 0 | AJ191: 0 | AK191: 79.42017678 | AL191: 0 | AM191: 0
D192: 185 | E192: 17 | F192: 8 | G192: 2017-01-08T16:59:59.996 | H192: Sunday | I192: 1 | J192: 2 | K192: FALSE | L192: FALSE | M192: FALSE | N192: FALSE | O192: TRUE | P192: FALSE | Q192: FALSE | R192: TRUE | S192: =MATCH(G192,'Historical Generation'!C:C,0) -> 17732 | T192: =INDEX('Historical Generation'!G:G,'Hourly Production'!S192)*$T$6 -> 0.85 | U192: =INDEX('Historical Generation'!I:I,'Hourly Production'!S192)*$U$6 -> 0 | V192: ='Financial Model'!$F$28 -> 90 | W192: 0 | X192: 170 | Y192: -80 | Z192: 200 | AA192: 200 | AB192: 1.50974131e-08 | AC192: 200 | AD192: 1.50974131e-08 | AE192: 2.264611965e-09 | AF192: 0 | AG192: 200 | AH192: 0 | AI192: 79.99999998 | AJ192: 0 | AK192: 0 | AL192: 0 | AM192: 79.99999998
D193: 186 | E193: 18 | F193: 8 | G193: 2017-01-08T17:59:59.996 | H193: Sunday | I193: 1 | J193: 2 | K193: FALSE | L193: FALSE | M193: FALSE | N193: FALSE | O193: TRUE | P193: FALSE | Q193: FALSE | R193: TRUE | S193: =MATCH(G193,'Historical Generation'!C:C,0) -> 17733 | T193: =INDEX('Historical Generation'!G:G,'Hourly Production'!S193)*$T$6 -> 0.85 | U193: =INDEX('Historical Generation'!I:I,'Hourly Production'!S193)*$U$6 -> 0 | V193: ='Financial Model'!$F$28 -> 90 | W193: 0 | X193: 170 | Y193: -80 | Z193: 200 | AA193: 200 | AB193: 2.264613386e-09 | AC193: 200 | AD193: 2.264613386e-09 | AE193: 3.396920079e-10 | AF193: 0 | AG193: 200 | AH193: 0 | AI193: 80 | AJ193: 0 | AK193: 0 | AL193: 0 | AM193: 80
D194: 187 | E194: 19 | F194: 8 | G194: 2017-01-08T18:59:59.996 | H194: Sunday | I194: 1 | J194: 2 | K194: FALSE | L194: FALSE | M194: FALSE | N194: FALSE | O194: TRUE | P194: FALSE | Q194: FALSE | R194: TRUE | S194: =MATCH(G194,'Historical Generation'!C:C,0) -> 17734 | T194: =INDEX('Historical Generation'!G:G,'Hourly Production'!S194)*$T$6 -> 0.85 | U194: =INDEX('Historical Generation'!I:I,'Hourly Production'!S194)*$U$6 -> 0 | V194: ='Financial Model'!$F$28 -> 90 | W194: 0 | X194: 170 | Y194: -80 | Z194: 200 | AA194: 200 | AB194: 3.396962711e-10 | AC194: 200 | AD194: 3.396962711e-10 | AE194: 5.095444067e-11 | AF194: 0 | AG194: 200 | AH194: 0 | AI194: 80 | AJ194: 0 | AK194: 0 | AL194: 0 | AM194: 80
D195: 188 | E195: 20 | F195: 8 | G195: 2017-01-08T19:59:59.996 | H195: Sunday | I195: 1 | J195: 2 | K195: FALSE | L195: FALSE | M195: FALSE | N195: FALSE | O195: TRUE | P195: FALSE | Q195: FALSE | R195: TRUE | S195: =MATCH(G195,'Historical Generation'!C:C,0) -> 17735 | T195: =INDEX('Historical Generation'!G:G,'Hourly Production'!S195)*$T$6 -> 0.85 | U195: =INDEX('Historical Generation'!I:I,'Hourly Production'!S195)*$U$6 -> 0 | V195: ='Financial Model'!$F$28 -> 90 | W195: 0 | X195: 170 | Y195: -80 | Z195: 200 | AA195: 200 | AB195: 5.096012501e-11 | AC195: 200 | AD195: 5.096012501e-11 | AE195: 7.644018751e-12 | AF195: 0 | AG195: 200 | AH195: 0 | AI195: 80 | AJ195: 0 | AK195: 0 | AL195: 0 | AM195: 80
D196: 189 | E196: 21 | F196: 8 | G196: 2017-01-08T20:59:59.996 | H196: Sunday | I196: 1 | J196: 2 | K196: FALSE | L196: FALSE | M196: FALSE | N196: FALSE | O196: TRUE | P196: FALSE | Q196: FALSE | R196: TRUE | S196: =MATCH(G196,'Historical Generation'!C:C,0) -> 17736 | T196: =INDEX('Historical Generation'!G:G,'Hourly Production'!S196)*$T$6 -> 0.2276785714 | U196: =INDEX('Historical Generation'!I:I,'Hourly Production'!S196)*$U$6 -> 0 | V196: ='Financial Model'!$F$28 -> 90 | W196: 0 | X196: 45.53571429 | Y196: 44.46428571 | Z196: 200 | AA196: 200 | AB196: 7.645439837e-12 | AC196: 200 | AD196: 0 | AE196: 0 | AF196: 0 | AG196: 200 | AH196: 44.46428571 | AI196: 0 | AJ196: 0 | AK196: 44.46428571 | AL196: 0 | AM196: 0
D197: 190 | E197: 22 | F197: 8 | G197: 2017-01-08T21:59:59.996 | H197: Sunday | I197: 1 | J197: 2 | K197: FALSE | L197: FALSE | M197: FALSE | N197: FALSE | O197: TRUE | P197: FALSE | Q197: FALSE | R197: TRUE | S197: =MATCH(G197,'Historical Generation'!C:C,0) -> 17737 | T197: =INDEX('Historical Generation'!G:G,'Hourly Production'!S197)*$T$6 -> 0.2276785714 | U197: =INDEX('Historical Generation'!I:I,'Hourly Production'!S197)*$U$6 -> 0 | V197: ='Financial Model'!$F$28 -> 90 | W197: 0 | X197: 45.53571429 | Y197: 44.46428571 | Z197: 200 | AA197: 200 | AB197: 7.645439837e-12 | AC197: 200 | AD197: 0 | AE197: 0 | AF197: 0 | AG197: 200 | AH197: 44.46428571 | AI197: 0 | AJ197: 0 | AK197: 44.46428571 | AL197: 0 | AM197: 0
D198: 191 | E198: 23 | F198: 8 | G198: 2017-01-08T22:59:59.996 | H198: Sunday | I198: 1 | J198: 2 | K198: FALSE | L198: FALSE | M198: FALSE | N198: FALSE | O198: TRUE | P198: FALSE | Q198: FALSE | R198: TRUE | S198: =MATCH(G198,'Historical Generation'!C:C,0) -> 17738 | T198: =INDEX('Historical Generation'!G:G,'Hourly Production'!S198)*$T$6 -> 0 | U198: =INDEX('Historical Generation'!I:I,'Hourly Production'!S198)*$U$6 -> 0 | V198: ='Financial Model'!$F$28 -> 90 | W198: 0 | X198: 0 | Y198: 90 | Z198: 200 | AA198: 200 | AB198: 7.645439837e-12 | AC198: 200 | AD198: 0 | AE198: 0 | AF198: 0 | AG198: 200 | AH198: 90 | AI198: 0 | AJ198: 0 | AK198: 90 | AL198: 0 | AM198: 0
D199: 192 | E199: 24 | F199: 8 | G199: 2017-01-08T23:59:59.996 | H199: Monday | I199: 2 | J199: 2 | K199: TRUE | L199: FALSE | M199: FALSE | N199: FALSE | O199: FALSE | P199: FALSE | Q199: FALSE | R199: TRUE | S199: =MATCH(G199,'Historical Generation'!C:C,0) -> 17739 | T199: =INDEX('Historical Generation'!G:G,'Hourly Production'!S199)*$T$6 -> 0.2150297619 | U199: =INDEX('Historical Generation'!I:I,'Hourly Production'!S199)*$U$6 -> 0 | V199: ='Financial Model'!$F$28 -> 90 | W199: 0 | X199: 43.00595238 | Y199: 46.99404762 | Z199: 200 | AA199: 200 | AB199: 7.645439837e-12 | AC199: 200 | AD199: 0 | AE199: 0 | AF199: 0 | AG199: 200 | AH199: 46.99404762 | AI199: 0 | AJ199: 0 | AK199: 46.99404762 | AL199: 0 | AM199: 0
D200: 193 | E200: 1 | F200: 9 | G200: 2017-01-09T00:59:59.996 | H200: Monday | I200: 2 | J200: 2 | K200: TRUE | L200: FALSE | M200: FALSE | N200: FALSE | O200: FALSE | P200: FALSE | Q200: FALSE | R200: TRUE | S200: =MATCH(G200,'Historical Generation'!C:C,0) -> 17740 | T200: =INDEX('Historical Generation'!G:G,'Hourly Production'!S200)*$T$6 -> 0.240327381 | U200: =INDEX('Historical Generation'!I:I,'Hourly Production'!S200)*$U$6 -> 0 | V200: ='Financial Model'!$F$28 -> 90 | W200: 0 | X200: 48.06547619 | Y200: 41.93452381 | Z200: 200 | AA200: 200 | AB200: 7.645439837e-12 | AC200: 200 | AD200: 0 | AE200: 0 | AF200: 0 | AG200: 200 | AH200: 41.93452381 | AI200: 0 | AJ200: 0 | AK200: 41.93452381 | AL200: 0 | AM200: 0
D201: 194 | E201: 2 | F201: 9 | G201: 2017-01-09T01:59:59.996 | H201: Monday | I201: 2 | J201: 2 | K201: TRUE | L201: FALSE | M201: FALSE | N201: FALSE | O201: FALSE | P201: FALSE | Q201: FALSE | R201: TRUE | S201: =MATCH(G201,'Historical Generation'!C:C,0) -> 17741 | T201: =INDEX('Historical Generation'!G:G,'Hourly Production'!S201)*$T$6 -> 0.2529761905 | U201: =INDEX('Historical Generation'!I:I,'Hourly Production'!S201)*$U$6 -> 0 | V201: ='Financial Model'!$F$28 -> 90 | W201: 0 | X201: 50.5952381 | Y201: 39.4047619 | Z201: 200 | AA201: 200 | AB201: 7.645439837e-12 | AC201: 200 | AD201: 0 | AE201: 0 | AF201: 0 | AG201: 200 | AH201: 39.4047619 | AI201: 0 | AJ201: 0 | AK201: 39.4047619 | AL201: 0 | AM201: 0
... 2049 more rows

Sheet Flexible Graphs
G1: Row | M1: Battery | N1: =K9 -> 50 | O1: Wind | P1: =K6 -> 200 | Q1: Solar | R1: =K7 -> 150 | AC1: On-Peak | AD1: On-Peak | AF1: Off-Peak | AG1: Off-Peak
D2: Start Week | E2: 12 | G2: =MATCH(E2,'Hourly Production'!J:J,'Flexible Graphs'!E2) -> 2022 | H2: =INDEX('Hourly Production'!G:G,'Flexible Graphs'!G2) -> 2017-03-25T22:59:59.996 | L2: Count | M2: Row | N2: Switch | Q2: Load | R2: Solar | S2: Wind | U2: Net Load | V2: Charging | W2: Discharge | X2: Balance | Z2: Charging | AA2: Discharge | AC2: Purchases | AD2: Sales | AF2: Purchases | AG2: Sales
L3: 1 | M3: =G2 -> 2022 | N3: =L3<=$H$9 -> TRUE | O3: =IF(N3,INDEX('Hourly Production'!G:G,'Flexible Graphs'!M3),NA()) -> 2017-03-25T22:59:59.996 | P3: =IF(N3,L3,NA()) -> 1 | Q3: =IF(N3,INDEX('Hourly Production'!V:V,'Flexible Graphs'!M3),NA()) -> 90 | R3: =IF(N3,INDEX('Hourly Production'!W:W,'Flexible Graphs'!M3),NA()) -> 0 | S3: =IF(N3,INDEX('Hourly Production'!X:X,'Flexible Graphs'!M3),NA()) -> 40.47619048 | T3: =P3 -> 1 | U3: =IF(N3,INDEX('Hourly Production'!Y:Y,'Flexible Graphs'!M3),NA()) -> 49.52380952 | V3: =IF(N3,INDEX('Hourly Production'!AD:AD,'Flexible Graphs'!M3),NA()) -> 0 | W3: =IF(N3,INDEX('Hourly Production'!AF:AF,'Flexible Graphs'!M3),NA()) -> 0 | X3: =IF(N3,INDEX('Hourly Production'!AG:AG,'Flexible Graphs'!M3),NA()) -> 200 | Y3: =P3 -> 1 | Z3: =V3 -> 0 | AA3: =W3 -> 0 | AB3: =O3 -> 2017-03-25T22:59:59.996 | AC3: =IF(N3,INDEX('Hourly Production'!AJ:AJ,'Flexible Graphs'!M3),NA()) -> 0 | AD3: =-IF(N3,INDEX('Hourly Production'!AK:AK,'Flexible Graphs'!M3),NA()) -> -49.52380952 | AE3: =AB3 -> 2017-03-25T22:59:59.996 | AF3: =IF(N3,INDEX('Hourly Production'!AL:AL,'Flexible Graphs'!M3),NA()) -> 0 | AG3: =-IF(N3,INDEX('Hourly Production'!AM:AM,'Flexible Graphs'!M3),NA()) -> 0
D4: Periods | L4: 2 | M4: =M3+1 -> 2023 | N4: =L4<=$H$9 -> TRUE | O4: =IF(N4,INDEX('Hourly Production'!G:G,'Flexible Graphs'!M4),NA()) -> 2017-03-25T23:59:59.996 | P4: =IF(N4,L4,NA()) -> 2 | Q4: =IF(N4,INDEX('Hourly Production'!V:V,'Flexible Graphs'!M4),NA()) -> 90 | R4: =IF(N4,INDEX('Hourly Production'!W:W,'Flexible Graphs'!M4),NA()) -> 0 | S4: =IF(N4,INDEX('Hourly Production'!X:X,'Flexible Graphs'!M4),NA()) -> 48.06547619 | T4: =P4 -> 2 | U4: =IF(N4,INDEX('Hourly Production'!Y:Y,'Flexible Graphs'!M4),NA()) -> 41.93452381 | V4: =IF(N4,INDEX('Hourly Production'!AD:AD,'Flexible Graphs'!M4),NA()) -> 0 | W4: =IF(N4,INDEX('Hourly Production'!AF:AF,'Flexible Graphs'!M4),NA()) -> 0 | X4: =IF(N4,INDEX('Hourly Production'!AG:AG,'Flexible Graphs'!M4),NA()) -> 200 | Y4: =P4 -> 2 | Z4: =V4 -> 0 | AA4: =W4 -> 0 | AB4: =O4 -> 2017-03-25T23:59:59.996 | AC4: =IF(N4,INDEX('Hourly Production'!AJ:AJ,'Flexible Graphs'!M4),NA()) -> 0 | AD4: =-IF(N4,INDEX('Hourly Production'!AK:AK,'Flexible Graphs'!M4),NA()) -> -41.93452381 | AE4: =AB4 -> 2017-03-25T23:59:59.996 | AF4: =IF(N4,INDEX('Hourly Production'!AL:AL,'Flexible Graphs'!M4),NA()) -> 0 | AG4: =-IF(N4,INDEX('Hourly Production'!AM:AM,'Flexible Graphs'!M4),NA()) -> 0
L5: 3 | M5: =M4+1 -> 2024 | N5: =L5<=$H$9 -> TRUE | O5: =IF(N5,INDEX('Hourly Production'!G:G,'Flexible Graphs'!M5),NA()) -> 2017-03-26T00:59:59.996 | P5: =IF(N5,L5,NA()) -> 3 | Q5: =IF(N5,INDEX('Hourly Production'!V:V,'Flexible Graphs'!M5),NA()) -> 90 | R5: =IF(N5,INDEX('Hourly Production'!W:W,'Flexible Graphs'!M5),NA()) -> 0 | S5: =IF(N5,INDEX('Hourly Production'!X:X,'Flexible Graphs'!M5),NA()) -> 45.53571429 | T5: =P5 -> 3 | U5: =IF(N5,INDEX('Hourly Production'!Y:Y,'Flexible Graphs'!M5),NA()) -> 44.46428571 | V5: =IF(N5,INDEX('Hourly Production'!AD:AD,'Flexible Graphs'!M5),NA()) -> 0 | W5: =IF(N5,INDEX('Hourly Production'!AF:AF,'Flexible Graphs'!M5),NA()) -> 0 | X5: =IF(N5,INDEX('Hourly Production'!AG:AG,'Flexible Graphs'!M5),NA()) -> 200 | Y5: =P5 -> 3 | Z5: =V5 -> 0 | AA5: =W5 -> 0 | AB5: =O5 -> 2017-03-26T00:59:59.996 | AC5: =IF(N5,INDEX('Hourly Production'!AJ:AJ,'Flexible Graphs'!M5),NA()) -> 0 | AD5: =-IF(N5,INDEX('Hourly Production'!AK:AK,'Flexible Graphs'!M5),NA()) -> -44.46428571 | AE5: =AB5 -> 2017-03-26T00:59:59.996 | AF5: =IF(N5,INDEX('Hourly Production'!AL:AL,'Flexible Graphs'!M5),NA()) -> 0 | AG5: =-IF(N5,INDEX('Hourly Production'!AM:AM,'Flexible Graphs'!M5),NA()) -> 0 | AI5: 1 | AJ5: ="Week "&AI5 -> Week 1
D6: Day | E6: 24 | J6: Wind | K6: ='Financial Model'!F33 -> 200 | L6: 4 | M6: 2025 | N6: TRUE | O6: =IF(N6,INDEX('Hourly Production'!G:G,'Flexible Graphs'!M6),NA()) -> 2017-03-26T01:59:59.996 | P6: 4 | Q6: =IF(N6,INDEX('Hourly Production'!V:V,'Flexible Graphs'!M6),NA()) -> 90 | R6: =IF(N6,INDEX('Hourly Production'!W:W,'Flexible Graphs'!M6),NA()) -> 0 | S6: =IF(N6,INDEX('Hourly Production'!X:X,'Flexible Graphs'!M6),NA()) -> 55.6547619 | T6: 4 | U6: =IF(N6,INDEX('Hourly Production'!Y:Y,'Flexible Graphs'!M6),NA()) -> 34.3452381 | V6: =IF(N6,INDEX('Hourly Production'!AD:AD,'Flexible Graphs'!M6),NA()) -> 0 | W6: =IF(N6,INDEX('Hourly Production'!AF:AF,'Flexible Graphs'!M6),NA()) -> 0 | X6: =IF(N6,INDEX('Hourly Production'!AG:AG,'Flexible Graphs'!M6),NA()) -> 200 | Y6: 4 | Z6: 0 | AA6: 0 | AB6: 2017-03-26T01:59:59.996 | AC6: =IF(N6,INDEX('Hourly Production'!AJ:AJ,'Flexible Graphs'!M6),NA()) -> 0 | AD6: =-IF(N6,INDEX('Hourly Production'!AK:AK,'Flexible Graphs'!M6),NA()) -> -34.3452381 | AE6: 2017-03-26T01:59:59.996 | AF6: =IF(N6,INDEX('Hourly Production'!AL:AL,'Flexible Graphs'!M6),NA()) -> 0 | AG6: =-IF(N6,INDEX('Hourly Production'!AM:AM,'Flexible Graphs'!M6),NA()) -> 0 | AI6: 2 | AJ6: ="Week "&AI6 -> Week 2
D7: Week | E7: =24*7 -> 168 | J7: Solar | K7: ='Financial Model'!F41 -> 150 | L7: 5 | M7: 2026 | N7: TRUE | O7: =IF(N7,INDEX('Hourly Production'!G:G,'Flexible Graphs'!M7),NA()) -> 2017-03-26T02:59:59.996 | P7: 5 | Q7: =IF(N7,INDEX('Hourly Production'!V:V,'Flexible Graphs'!M7),NA()) -> 90 | R7: =IF(N7,INDEX('Hourly Production'!W:W,'Flexible Graphs'!M7),NA()) -> 0 | S7: =IF(N7,INDEX('Hourly Production'!X:X,'Flexible Graphs'!M7),NA()) -> 58.18452381 | T7: 5 | U7: =IF(N7,INDEX('Hourly Production'!Y:Y,'Flexible Graphs'!M7),NA()) -> 31.81547619 | V7: =IF(N7,INDEX('Hourly Production'!AD:AD,'Flexible Graphs'!M7),NA()) -> 0 | W7: =IF(N7,INDEX('Hourly Production'!AF:AF,'Flexible Graphs'!M7),NA()) -> 0 | X7: =IF(N7,INDEX('Hourly Production'!AG:AG,'Flexible Graphs'!M7),NA()) -> 200 | Y7: 5 | Z7: 0 | AA7: 0 | AB7: 2017-03-26T02:59:59.996 | AC7: =IF(N7,INDEX('Hourly Production'!AJ:AJ,'Flexible Graphs'!M7),NA()) -> 0 | AD7: =-IF(N7,INDEX('Hourly Production'!AK:AK,'Flexible Graphs'!M7),NA()) -> -31.81547619 | AE7: 2017-03-26T02:59:59.996 | AF7: =IF(N7,INDEX('Hourly Production'!AL:AL,'Flexible Graphs'!M7),NA()) -> 0 | AG7: =-IF(N7,INDEX('Hourly Production'!AM:AM,'Flexible Graphs'!M7),NA()) -> 0 | AI7: 3 | AJ7: Week 3
D8: Month | E8: =8760/12 -> 730 | J8: Load | K8: ='Financial Model'!F28 -> 90 | L8: 6 | M8: 2027 | N8: TRUE | O8: =IF(N8,INDEX('Hourly Production'!G:G,'Flexible Graphs'!M8),NA()) -> 2017-03-26T03:59:59.996 | P8: 6 | Q8: =IF(N8,INDEX('Hourly Production'!V:V,'Flexible Graphs'!M8),NA()) -> 90 | R8: =IF(N8,INDEX('Hourly Production'!W:W,'Flexible Graphs'!M8),NA()) -> 0 | S8: =IF(N8,INDEX('Hourly Production'!X:X,'Flexible Graphs'!M8),NA()) -> 58.18452381 | T8: 6 | U8: =IF(N8,INDEX('Hourly Production'!Y:Y,'Flexible Graphs'!M8),NA()) -> 31.81547619 | V8: =IF(N8,INDEX('Hourly Production'!AD:AD,'Flexible Graphs'!M8),NA()) -> 0 | W8: =IF(N8,INDEX('Hourly Production'!AF:AF,'Flexible Graphs'!M8),NA()) -> 0 | X8: =IF(N8,INDEX('Hourly Production'!AG:AG,'Flexible Graphs'!M8),NA()) -> 200 | Y8: 6 | Z8: 0 | AA8: 0 | AB8: 2017-03-26T03:59:59.996 | AC8: =IF(N8,INDEX('Hourly Production'!AJ:AJ,'Flexible Graphs'!M8),NA()) -> 0 | AD8: =-IF(N8,INDEX('Hourly Production'!AK:AK,'Flexible Graphs'!M8),NA()) -> -31.81547619 | AE8: 2017-03-26T03:59:59.996 | AF8: =IF(N8,INDEX('Hourly Production'!AL:AL,'Flexible Graphs'!M8),NA()) -> 0 | AG8: =-IF(N8,INDEX('Hourly Production'!AM:AM,'Flexible Graphs'!M8),NA()) -> 0 | AI8: 4 | AJ8: Week 4
D9: Year | E9: 8760 | G9: 3 | H9: =INDEX(E6:E9,G9) -> 730 | J9: Battery | K9: ='Financial Model'!F50 -> 50 | L9: 7 | M9: 2028 | N9: TRUE | O9: =IF(N9,INDEX('Hourly Production'!G:G,'Flexible Graphs'!M9),NA()) -> 2017-03-26T04:59:59.996 | P9: 7 | Q9: =IF(N9,INDEX('Hourly Production'!V:V,'Flexible Graphs'!M9),NA()) -> 90 | R9: =IF(N9,INDEX('Hourly Production'!W:W,'Flexible Graphs'!M9),NA()) -> 0 | S9: =IF(N9,INDEX('Hourly Production'!X:X,'Flexible Graphs'!M9),NA()) -> 86.01190476 | T9: 7 | U9: =IF(N9,INDEX('Hourly Production'!Y:Y,'Flexible Graphs'!M9),NA()) -> 3.988095238 | V9: =IF(N9,INDEX('Hourly Production'!AD:AD,'Flexible Graphs'!M9),NA()) -> 0 | W9: =IF(N9,INDEX('Hourly Production'!AF:AF,'Flexible Graphs'!M9),NA()) -> 0 | X9: =IF(N9,INDEX('Hourly Production'!AG:AG,'Flexible Graphs'!M9),NA()) -> 200 | Y9: 7 | Z9: 0 | AA9: 0 | AB9: 2017-03-26T04:59:59.996 | AC9: =IF(N9,INDEX('Hourly Production'!AJ:AJ,'Flexible Graphs'!M9),NA()) -> 0 | AD9: =-IF(N9,INDEX('Hourly Production'!AK:AK,'Flexible Graphs'!M9),NA()) -> -3.988095238 | AE9: 2017-03-26T04:59:59.996 | AF9: =IF(N9,INDEX('Hourly Production'!AL:AL,'Flexible Graphs'!M9),NA()) -> 0 | AG9: =-IF(N9,INDEX('Hourly Production'!AM:AM,'Flexible Graphs'!M9),NA()) -> 0 | AI9: 5 | AJ9: Week 5
L10: 8 | M10: 2029 | N10: TRUE | O10: =IF(N10,INDEX('Hourly Production'!G:G,'Flexible Graphs'!M10),NA()) -> 2017-03-26T05:59:59.996 | P10: 8 | Q10: =IF(N10,INDEX('Hourly Production'!V:V,'Flexible Graphs'!M10),NA()) -> 90 | R10: =IF(N10,INDEX('Hourly Production'!W:W,'Flexible Graphs'!M10),NA()) -> 0 | S10: =IF(N10,INDEX('Hourly Production'!X:X,'Flexible Graphs'!M10),NA()) -> 93.60119048 | T10: 8 | U10: =IF(N10,INDEX('Hourly Production'!Y:Y,'Flexible Graphs'!M10),NA()) -> -3.601190476 | V10: =IF(N10,INDEX('Hourly Production'!AD:AD,'Flexible Graphs'!M10),NA()) -> 0 | W10: =IF(N10,INDEX('Hourly Production'!AF:AF,'Flexible Graphs'!M10),NA()) -> 0 | X10: =IF(N10,INDEX('Hourly Production'!AG:AG,'Flexible Graphs'!M10),NA()) -> 200 | Y10: 8 | Z10: 0 | AA10: 0 | AB10: 2017-03-26T05:59:59.996 | AC10: =IF(N10,INDEX('Hourly Production'!AJ:AJ,'Flexible Graphs'!M10),NA()) -> 0 | AD10: =-IF(N10,INDEX('Hourly Production'!AK:AK,'Flexible Graphs'!M10),NA()) -> 0 | AE10: 2017-03-26T05:59:59.996 | AF10: =IF(N10,INDEX('Hourly Production'!AL:AL,'Flexible Graphs'!M10),NA()) -> 0 | AG10: =-IF(N10,INDEX('Hourly Production'!AM:AM,'Flexible Graphs'!M10),NA()) -> -3.601190476 | AI10: 6 | AJ10: Week 6
L11: 9 | M11: 2030 | N11: TRUE | O11: =IF(N11,INDEX('Hourly Production'!G:G,'Flexible Graphs'!M11),NA()) -> 2017-03-26T06:59:59.996 | P11: 9 | Q11: =IF(N11,INDEX('Hourly Production'!V:V,'Flexible Graphs'!M11),NA()) -> 90 | R11: =IF(N11,INDEX('Hourly Production'!W:W,'Flexible Graphs'!M11),NA()) -> 0 | S11: =IF(N11,INDEX('Hourly Production'!X:X,'Flexible Graphs'!M11),NA()) -> 64.50892857 | T11: 9 | U11: =IF(N11,INDEX('Hourly Production'!Y:Y,'Flexible Graphs'!M11),NA()) -> 25.49107143 | V11: =IF(N11,INDEX('Hourly Production'!AD:AD,'Flexible Graphs'!M11),NA()) -> 0 | W11: =IF(N11,INDEX('Hourly Production'!AF:AF,'Flexible Graphs'!M11),NA()) -> 0 | X11: =IF(N11,INDEX('Hourly Production'!AG:AG,'Flexible Graphs'!M11),NA()) -> 200 | Y11: 9 | Z11: 0 | AA11: 0 | AB11: 2017-03-26T06:59:59.996 | AC11: =IF(N11,INDEX('Hourly Production'!AJ:AJ,'Flexible Graphs'!M11),NA()) -> 0 | AD11: =-IF(N11,INDEX('Hourly Production'!AK:AK,'Flexible Graphs'!M11),NA()) -> -25.49107143 | AE11: 2017-03-26T06:59:59.996 | AF11: =IF(N11,INDEX('Hourly Production'!AL:AL,'Flexible Graphs'!M11),NA()) -> 0 | AG11: =-IF(N11,INDEX('Hourly Production'!AM:AM,'Flexible Graphs'!M11),NA()) -> 0 | AI11: 7 | AJ11: Week 7
L12: 10 | M12: 2031 | N12: TRUE | O12: =IF(N12,INDEX('Hourly Production'!G:G,'Flexible Graphs'!M12),NA()) -> 2017-03-26T07:59:59.996 | P12: 10 | Q12: =IF(N12,INDEX('Hourly Production'!V:V,'Flexible Graphs'!M12),NA()) -> 90 | R12: =IF(N12,INDEX('Hourly Production'!W:W,'Flexible Graphs'!M12),NA()) -> 32.50902978 | S12: =IF(N12,INDEX('Hourly Production'!X:X,'Flexible Graphs'!M12),NA()) -> 55.6547619 | T12: 10 | U12: =IF(N12,INDEX('Hourly Production'!Y:Y,'Flexible Graphs'!M12),NA()) -> 1.836208315 | V12: =IF(N12,INDEX('Hourly Production'!AD:AD,'Flexible Graphs'!M12),NA()) -> 0 | W12: =IF(N12,INDEX('Hourly Production'!AF:AF,'Flexible Graphs'!M12),NA()) -> 0 | X12: =IF(N12,INDEX('Hourly Production'!AG:AG,'Flexible Graphs'!M12),NA()) -> 200 | Y12: 10 | Z12: 0 | AA12: 0 | AB12: 2017-03-26T07:59:59.996 | AC12: =IF(N12,INDEX('Hourly Production'!AJ:AJ,'Flexible Graphs'!M12),NA()) -> 0 | AD12: =-IF(N12,INDEX('Hourly Production'!AK:AK,'Flexible Graphs'!M12),NA()) -> -1.836208315 | AE12: 2017-03-26T07:59:59.996 | AF12: =IF(N12,INDEX('Hourly Production'!AL:AL,'Flexible Graphs'!M12),NA()) -> 0 | AG12: =-IF(N12,INDEX('Hourly Production'!AM:AM,'Flexible Graphs'!M12),NA()) -> 0 | AI12: 8 | AJ12: Week 8
L13: 11 | M13: 2032 | N13: TRUE | O13: =IF(N13,INDEX('Hourly Production'!G:G,'Flexible Graphs'!M13),NA()) -> 2017-03-26T08:59:59.996 | P13: 11 | Q13: =IF(N13,INDEX('Hourly Production'!V:V,'Flexible Graphs'!M13),NA()) -> 90 | R13: =IF(N13,INDEX('Hourly Production'!W:W,'Flexible Graphs'!M13),NA()) -> 46.02361494 | S13: =IF(N13,INDEX('Hourly Production'!X:X,'Flexible Graphs'!M13),NA()) -> 58.18452381 | T13: 11 | U13: =IF(N13,INDEX('Hourly Production'!Y:Y,'Flexible Graphs'!M13),NA()) -> -14.20813875 | V13: =IF(N13,INDEX('Hourly Production'!AD:AD,'Flexible Graphs'!M13),NA()) -> 0 | W13: =IF(N13,INDEX('Hourly Production'!AF:AF,'Flexible Graphs'!M13),NA()) -> 0 | X13: =IF(N13,INDEX('Hourly Production'!AG:AG,'Flexible Graphs'!M13),NA()) -> 200 | Y13: 11 | Z13: 0 | AA13: 0 | AB13: 2017-03-26T08:59:59.996 | AC13: =IF(N13,INDEX('Hourly Production'!AJ:AJ,'Flexible Graphs'!M13),NA()) -> 0 | AD13: =-IF(N13,INDEX('Hourly Production'!AK:AK,'Flexible Graphs'!M13),NA()) -> 0 | AE13: 2017-03-26T08:59:59.996 | AF13: =IF(N13,INDEX('Hourly Production'!AL:AL,'Flexible Graphs'!M13),NA()) -> 0 | AG13: =-IF(N13,INDEX('Hourly Production'!AM:AM,'Flexible Graphs'!M13),NA()) -> -14.20813875 | AI13: 9 | AJ13: Week 9
L14: 12 | M14: 2033 | N14: TRUE | O14: =IF(N14,INDEX('Hourly Production'!G:G,'Flexible Graphs'!M14),NA()) -> 2017-03-26T09:59:59.996 | P14: 12 | Q14: =IF(N14,INDEX('Hourly Production'!V:V,'Flexible Graphs'!M14),NA()) -> 90 | R14: =IF(N14,INDEX('Hourly Production'!W:W,'Flexible Graphs'!M14),NA()) -> 10.91142402 | S14: =IF(N14,INDEX('Hourly Production'!X:X,'Flexible Graphs'!M14),NA()) -> 58.18452381 | T14: 12 | U14: =IF(N14,INDEX('Hourly Production'!Y:Y,'Flexible Graphs'!M14),NA()) -> 20.90405217 | V14: =IF(N14,INDEX('Hourly Production'!AD:AD,'Flexible Graphs'!M14),NA()) -> 0 | W14: =IF(N14,INDEX('Hourly Production'!AF:AF,'Flexible Graphs'!M14),NA()) -> 0 | X14: =IF(N14,INDEX('Hourly Production'!AG:AG,'Flexible Graphs'!M14),NA()) -> 200 | Y14: 12 | Z14: 0 | AA14: 0 | AB14: 2017-03-26T09:59:59.996 | AC14: =IF(N14,INDEX('Hourly Production'!AJ:AJ,'Flexible Graphs'!M14),NA()) -> 0 | AD14: =-IF(N14,INDEX('Hourly Production'!AK:AK,'Flexible Graphs'!M14),NA()) -> -20.90405217 | AE14: 2017-03-26T09:59:59.996 | AF14: =IF(N14,INDEX('Hourly Production'!AL:AL,'Flexible Graphs'!M14),NA()) -> 0 | AG14: =-IF(N14,INDEX('Hourly Production'!AM:AM,'Flexible Graphs'!M14),NA()) -> 0 | AI14: 10 | AJ14: Week 10
L15: 13 | M15: 2034 | N15: TRUE | O15: =IF(N15,INDEX('Hourly Production'!G:G,'Flexible Graphs'!M15),NA()) -> 2017-03-26T10:59:59.996 | P15: 13 | Q15: =IF(N15,INDEX('Hourly Production'!V:V,'Flexible Graphs'!M15),NA()) -> 90 | R15: =IF(N15,INDEX('Hourly Production'!W:W,'Flexible Graphs'!M15),NA()) -> 9.33047424 | S15: =IF(N15,INDEX('Hourly Production'!X:X,'Flexible Graphs'!M15),NA()) -> 55.6547619 | T15: 13 | U15: =IF(N15,INDEX('Hourly Production'!Y:Y,'Flexible Graphs'!M15),NA()) -> 25.01476386 | V15: =IF(N15,INDEX('Hourly Production'!AD:AD,'Flexible Graphs'!M15),NA()) -> 0 | W15: =IF(N15,INDEX('Hourly Production'!AF:AF,'Flexible Graphs'!M15),NA()) -> 0 | X15: =IF(N15,INDEX('Hourly Production'!AG:AG,'Flexible Graphs'!M15),NA()) -> 200 | Y15: 13 | Z15: 0 | AA15: 0 | AB15: 2017-03-26T10:59:59.996 | AC15: =IF(N15,INDEX('Hourly Production'!AJ:AJ,'Flexible Graphs'!M15),NA()) -> 0 | AD15: =-IF(N15,INDEX('Hourly Production'!AK:AK,'Flexible Graphs'!M15),NA()) -> -25.01476386 | AE15: 2017-03-26T10:59:59.996 | AF15: =IF(N15,INDEX('Hourly Production'!AL:AL,'Flexible Graphs'!M15),NA()) -> 0 | AG15: =-IF(N15,INDEX('Hourly Production'!AM:AM,'Flexible Graphs'!M15),NA()) -> 0 | AI15: 11 | AJ15: Week 11
L16: 14 | M16: 2035 | N16: TRUE | O16: =IF(N16,INDEX('Hourly Production'!G:G,'Flexible Graphs'!M16),NA()) -> 2017-03-26T11:59:59.996 | P16: 14 | Q16: =IF(N16,INDEX('Hourly Production'!V:V,'Flexible Graphs'!M16),NA()) -> 90 | R16: =IF(N16,INDEX('Hourly Production'!W:W,'Flexible Graphs'!M16),NA()) -> 74.15196342 | S16: =IF(N16,INDEX('Hourly Production'!X:X,'Flexible Graphs'!M16),NA()) -> 48.06547619 | T16: 14 | U16: =IF(N16,INDEX('Hourly Production'!Y:Y,'Flexible Graphs'!M16),NA()) -> -32.21743961 | V16: =IF(N16,INDEX('Hourly Production'!AD:AD,'Flexible Graphs'!M16),NA()) -> 0 | W16: =IF(N16,INDEX('Hourly Production'!AF:AF,'Flexible Graphs'!M16),NA()) -> 0 | X16: =IF(N16,INDEX('Hourly Production'!AG:AG,'Flexible Graphs'!M16),NA()) -> 200 | Y16: 14 | Z16: 0 | AA16: 0 | AB16: 2017-03-26T11:59:59.996 | AC16: =IF(N16,INDEX('Hourly Production'!AJ:AJ,'Flexible Graphs'!M16),NA()) -> 0 | AD16: =-IF(N16,INDEX('Hourly Production'!AK:AK,'Flexible Graphs'!M16),NA()) -> 0 | AE16: 2017-03-26T11:59:59.996 | AF16: =IF(N16,INDEX('Hourly Production'!AL:AL,'Flexible Graphs'!M16),NA()) -> 0 | AG16: =-IF(N16,INDEX('Hourly Production'!AM:AM,'Flexible Graphs'!M16),NA()) -> -32.21743961 | AI16: 12 | AJ16: Week 12
L17: 15 | M17: 2036 | N17: TRUE | O17: =IF(N17,INDEX('Hourly Production'!G:G,'Flexible Graphs'!M17),NA()) -> 2017-03-26T12:59:59.996 | P17: 15 | Q17: =IF(N17,INDEX('Hourly Production'!V:V,'Flexible Graphs'!M17),NA()) -> 90 | R17: =IF(N17,INDEX('Hourly Production'!W:W,'Flexible Graphs'!M17),NA()) -> 64.00134636 | S17: =IF(N17,INDEX('Hourly Production'!X:X,'Flexible Graphs'!M17),NA()) -> 86.01190476 | T17: 15 | U17: =IF(N17,INDEX('Hourly Production'!Y:Y,'Flexible Graphs'!M17),NA()) -> -60.01325112 | V17: =IF(N17,INDEX('Hourly Production'!AD:AD,'Flexible Graphs'!M17),NA()) -> 0 | W17: =IF(N17,INDEX('Hourly Production'!AF:AF,'Flexible Graphs'!M17),NA()) -> 0 | X17: =IF(N17,INDEX('Hourly Production'!AG:AG,'Flexible Graphs'!M17),NA()) -> 200 | Y17: 15 | Z17: 0 | AA17: 0 | AB17: 2017-03-26T12:59:59.996 | AC17: =IF(N17,INDEX('Hourly Production'!AJ:AJ,'Flexible Graphs'!M17),NA()) -> 0 | AD17: =-IF(N17,INDEX('Hourly Production'!AK:AK,'Flexible Graphs'!M17),NA()) -> 0 | AE17: 2017-03-26T12:59:59.996 | AF17: =IF(N17,INDEX('Hourly Production'!AL:AL,'Flexible Graphs'!M17),NA()) -> 0 | AG17: =-IF(N17,INDEX('Hourly Production'!AM:AM,'Flexible Graphs'!M17),NA()) -> -60.01325112 | AI17: 13 | AJ17: Week 13
L18: 16 | M18: 2037 | N18: TRUE | O18: =IF(N18,INDEX('Hourly Production'!G:G,'Flexible Graphs'!M18),NA()) -> 2017-03-26T13:59:59.996 | P18: 16 | Q18: =IF(N18,INDEX('Hourly Production'!V:V,'Flexible Graphs'!M18),NA()) -> 90 | R18: =IF(N18,INDEX('Hourly Production'!W:W,'Flexible Graphs'!M18),NA()) -> 10.71949248 | S18: =IF(N18,INDEX('Hourly Production'!X:X,'Flexible Graphs'!M18),NA()) -> 86.01190476 | T18: 16 | U18: =IF(N18,INDEX('Hourly Production'!Y:Y,'Flexible Graphs'!M18),NA()) -> -6.731397242 | V18: =IF(N18,INDEX('Hourly Production'!AD:AD,'Flexible Graphs'!M18),NA()) -> 0 | W18: =IF(N18,INDEX('Hourly Production'!AF:AF,'Flexible Graphs'!M18),NA()) -> 0 | X18: =IF(N18,INDEX('Hourly Production'!AG:AG,'Flexible Graphs'!M18),NA()) -> 200 | Y18: 16 | Z18: 0 | AA18: 0 | AB18: 2017-03-26T13:59:59.996 | AC18: =IF(N18,INDEX('Hourly Production'!AJ:AJ,'Flexible Graphs'!M18),NA()) -> 0 | AD18: =-IF(N18,INDEX('Hourly Production'!AK:AK,'Flexible Graphs'!M18),NA()) -> 0 | AE18: 2017-03-26T13:59:59.996 | AF18: =IF(N18,INDEX('Hourly Production'!AL:AL,'Flexible Graphs'!M18),NA()) -> 0 | AG18: =-IF(N18,INDEX('Hourly Production'!AM:AM,'Flexible Graphs'!M18),NA()) -> -6.731397242 | AI18: 14 | AJ18: Week 14
L19: 17 | M19: 2038 | N19: TRUE | O19: =IF(N19,INDEX('Hourly Production'!G:G,'Flexible Graphs'!M19),NA()) -> 2017-03-26T14:59:59.996 | P19: 17 | Q19: =IF(N19,INDEX('Hourly Production'!V:V,'Flexible Graphs'!M19),NA()) -> 90 | R19: =IF(N19,INDEX('Hourly Production'!W:W,'Flexible Graphs'!M19),NA()) -> 22.9071834 | S19: =IF(N19,INDEX('Hourly Production'!X:X,'Flexible Graphs'!M19),NA()) -> 50.5952381 | T19: 17 | U19: =IF(N19,INDEX('Hourly Production'!Y:Y,'Flexible Graphs'!M19),NA()) -> 16.4975785 | V19: =IF(N19,INDEX('Hourly Production'!AD:AD,'Flexible Graphs'!M19),NA()) -> 0 | W19: =IF(N19,INDEX('Hourly Production'!AF:AF,'Flexible Graphs'!M19),NA()) -> 0 | X19: =IF(N19,INDEX('Hourly Production'!AG:AG,'Flexible Graphs'!M19),NA()) -> 200 | Y19: 17 | Z19: 0 | AA19: 0 | AB19: 2017-03-26T14:59:59.996 | AC19: =IF(N19,INDEX('Hourly Production'!AJ:AJ,'Flexible Graphs'!M19),NA()) -> 0 | AD19: =-IF(N19,INDEX('Hourly Production'!AK:AK,'Flexible Graphs'!M19),NA()) -> -16.4975785 | AE19: 2017-03-26T14:59:59.996 | AF19: =IF(N19,INDEX('Hourly Production'!AL:AL,'Flexible Graphs'!M19),NA()) -> 0 | AG19: =-IF(N19,INDEX('Hourly Production'!AM:AM,'Flexible Graphs'!M19),NA()) -> 0 | AI19: 15 | AJ19: Week 15
L20: 18 | M20: 2039 | N20: TRUE | O20: =IF(N20,INDEX('Hourly Production'!G:G,'Flexible Graphs'!M20),NA()) -> 2017-03-26T15:59:59.996 | P20: 18 | Q20: =IF(N20,INDEX('Hourly Production'!V:V,'Flexible Graphs'!M20),NA()) -> 90 | R20: =IF(N20,INDEX('Hourly Production'!W:W,'Flexible Graphs'!M20),NA()) -> 48.13721478 | S20: =IF(N20,INDEX('Hourly Production'!X:X,'Flexible Graphs'!M20),NA()) -> 53.125 | T20: 18 | U20: =IF(N20,INDEX('Hourly Production'!Y:Y,'Flexible Graphs'!M20),NA()) -> -11.26221478 | V20: =IF(N20,INDEX('Hourly Production'!AD:AD,'Flexible Graphs'!M20),NA()) -> 0 | W20: =IF(N20,INDEX('Hourly Production'!AF:AF,'Flexible Graphs'!M20),NA()) -> 0 | X20: =IF(N20,INDEX('Hourly Production'!AG:AG,'Flexible Graphs'!M20),NA()) -> 200 | Y20: 18 | Z20: 0 | AA20: 0 | AB20: 2017-03-26T15:59:59.996 | AC20: =IF(N20,INDEX('Hourly Production'!AJ:AJ,'Flexible Graphs'!M20),NA()) -> 0 | AD20: =-IF(N20,INDEX('Hourly Production'!AK:AK,'Flexible Graphs'!M20),NA()) -> 0 | AE20: 2017-03-26T15:59:59.996 | AF20: =IF(N20,INDEX('Hourly Production'!AL:AL,'Flexible Graphs'!M20),NA()) -> 0 | AG20: =-IF(N20,INDEX('Hourly Production'!AM:AM,'Flexible Graphs'!M20),NA()) -> -11.26221478 | AI20: 16 | AJ20: Week 16
L21: 19 | M21: 2040 | N21: TRUE | O21: =IF(N21,INDEX('Hourly Production'!G:G,'Flexible Graphs'!M21),NA()) -> 2017-03-26T16:59:59.996 | P21: 19 | Q21: =IF(N21,INDEX('Hourly Production'!V:V,'Flexible Graphs'!M21),NA()) -> 90 | R21: =IF(N21,INDEX('Hourly Production'!W:W,'Flexible Graphs'!M21),NA()) -> 74.74346388 | S21: =IF(N21,INDEX('Hourly Production'!X:X,'Flexible Graphs'!M21),NA()) -> 170 | T21: 19 | U21: =IF(N21,INDEX('Hourly Production'!Y:Y,'Flexible Graphs'!M21),NA()) -> -154.7434639 | V21: =IF(N21,INDEX('Hourly Production'!AD:AD,'Flexible Graphs'!M21),NA()) -> 0 | W21: =IF(N21,INDEX('Hourly Production'!AF:AF,'Flexible Graphs'!M21),NA()) -> 0 | X21: =IF(N21,INDEX('Hourly Production'!AG:AG,'Flexible Graphs'!M21),NA()) -> 200 | Y21: 19 | Z21: 0 | AA21: 0 | AB21: 2017-03-26T16:59:59.996 | AC21: =IF(N21,INDEX('Hourly Production'!AJ:AJ,'Flexible Graphs'!M21),NA()) -> 0 | AD21: =-IF(N21,INDEX('Hourly Production'!AK:AK,'Flexible Graphs'!M21),NA()) -> 0 | AE21: 2017-03-26T16:59:59.996 | AF21: =IF(N21,INDEX('Hourly Production'!AL:AL,'Flexible Graphs'!M21),NA()) -> 0 | AG21: =-IF(N21,INDEX('Hourly Production'!AM:AM,'Flexible Graphs'!M21),NA()) -> -154.7434639 | AI21: 17 | AJ21: Week 17
L22: 20 | M22: 2041 | N22: TRUE | O22: =IF(N22,INDEX('Hourly Production'!G:G,'Flexible Graphs'!M22),NA()) -> 2017-03-26T17:59:59.996 | P22: 20 | Q22: =IF(N22,INDEX('Hourly Production'!V:V,'Flexible Graphs'!M22),NA()) -> 90 | R22: =IF(N22,INDEX('Hourly Production'!W:W,'Flexible Graphs'!M22),NA()) -> 62.30706306 | S22: =IF(N22,INDEX('Hourly Production'!X:X,'Flexible Graphs'!M22),NA()) -> 170 | T22: 20 | U22: =IF(N22,INDEX('Hourly Production'!Y:Y,'Flexible Graphs'!M22),NA()) -> -142.3070631 | V22: =IF(N22,INDEX('Hourly Production'!AD:AD,'Flexible Graphs'!M22),NA()) -> 0 | W22: =IF(N22,INDEX('Hourly Production'!AF:AF,'Flexible Graphs'!M22),NA()) -> 0 | X22: =IF(N22,INDEX('Hourly Production'!AG:AG,'Flexible Graphs'!M22),NA()) -> 200 | Y22: 20 | Z22: 0 | AA22: 0 | AB22: 2017-03-26T17:59:59.996 | AC22: =IF(N22,INDEX('Hourly Production'!AJ:AJ,'Flexible Graphs'!M22),NA()) -> 0 | AD22: =-IF(N22,INDEX('Hourly Production'!AK:AK,'Flexible Graphs'!M22),NA()) -> 0 | AE22: 2017-03-26T17:59:59.996 | AF22: =IF(N22,INDEX('Hourly Production'!AL:AL,'Flexible Graphs'!M22),NA()) -> 0 | AG22: =-IF(N22,INDEX('Hourly Production'!AM:AM,'Flexible Graphs'!M22),NA()) -> -142.3070631 | AI22: 18 | AJ22: Week 18
L23: 21 | M23: 2042 | N23: TRUE | O23: =IF(N23,INDEX('Hourly Production'!G:G,'Flexible Graphs'!M23),NA()) -> 2017-03-26T18:59:59.996 | P23: 21 | Q23: =IF(N23,INDEX('Hourly Production'!V:V,'Flexible Graphs'!M23),NA()) -> 90 | R23: =IF(N23,INDEX('Hourly Production'!W:W,'Flexible Graphs'!M23),NA()) -> 3.57111258 | S23: =IF(N23,INDEX('Hourly Production'!X:X,'Flexible Graphs'!M23),NA()) -> 170 | T23: 21 | U23: =IF(N23,INDEX('Hourly Production'!Y:Y,'Flexible Graphs'!M23),NA()) -> -83.57111258 | V23: =IF(N23,INDEX('Hourly Production'!AD:AD,'Flexible Graphs'!M23),NA()) -> 0 | W23: =IF(N23,INDEX('Hourly Production'!AF:AF,'Flexible Graphs'!M23),NA()) -> 0 | X23: =IF(N23,INDEX('Hourly Production'!AG:AG,'Flexible Graphs'!M23),NA()) -> 200 | Y23: 21 | Z23: 0 | AA23: 0 | AB23: 2017-03-26T18:59:59.996 | AC23: =IF(N23,INDEX('Hourly Production'!AJ:AJ,'Flexible Graphs'!M23),NA()) -> 0 | AD23: =-IF(N23,INDEX('Hourly Production'!AK:AK,'Flexible Graphs'!M23),NA()) -> 0 | AE23: 2017-03-26T18:59:59.996 | AF23: =IF(N23,INDEX('Hourly Production'!AL:AL,'Flexible Graphs'!M23),NA()) -> 0 | AG23: =-IF(N23,INDEX('Hourly Production'!AM:AM,'Flexible Graphs'!M23),NA()) -> -83.57111258 | AI23: 19 | AJ23: Week 19
L24: 22 | M24: 2043 | N24: TRUE | O24: =IF(N24,INDEX('Hourly Production'!G:G,'Flexible Graphs'!M24),NA()) -> 2017-03-26T19:59:59.996 | P24: 22 | Q24: =IF(N24,INDEX('Hourly Production'!V:V,'Flexible Graphs'!M24),NA()) -> 90 | R24: =IF(N24,INDEX('Hourly Production'!W:W,'Flexible Graphs'!M24),NA()) -> 0 | S24: =IF(N24,INDEX('Hourly Production'!X:X,'Flexible Graphs'!M24),NA()) -> 170 | T24: 22 | U24: =IF(N24,INDEX('Hourly Production'!Y:Y,'Flexible Graphs'!M24),NA()) -> -80 | V24: =IF(N24,INDEX('Hourly Production'!AD:AD,'Flexible Graphs'!M24),NA()) -> 0 | W24: =IF(N24,INDEX('Hourly Production'!AF:AF,'Flexible Graphs'!M24),NA()) -> 0 | X24: =IF(N24,INDEX('Hourly Production'!AG:AG,'Flexible Graphs'!M24),NA()) -> 200 | Y24: 22 | Z24: 0 | AA24: 0 | AB24: 2017-03-26T19:59:59.996 | AC24: =IF(N24,INDEX('Hourly Production'!AJ:AJ,'Flexible Graphs'!M24),NA()) -> 0 | AD24: =-IF(N24,INDEX('Hourly Production'!AK:AK,'Flexible Graphs'!M24),NA()) -> 0 | AE24: 2017-03-26T19:59:59.996 | AF24: =IF(N24,INDEX('Hourly Production'!AL:AL,'Flexible Graphs'!M24),NA()) -> 0 | AG24: =-IF(N24,INDEX('Hourly Production'!AM:AM,'Flexible Graphs'!M24),NA()) -> -80 | AI24: 20 | AJ24: Week 20
L25: 23 | M25: 2044 | N25: TRUE | O25: =IF(N25,INDEX('Hourly Production'!G:G,'Flexible Graphs'!M25),NA()) -> 2017-03-26T20:59:59.996 | P25: 23 | Q25: =IF(N25,INDEX('Hourly Production'!V:V,'Flexible Graphs'!M25),NA()) -> 90 | R25: =IF(N25,INDEX('Hourly Production'!W:W,'Flexible Graphs'!M25),NA()) -> 0 | S25: =IF(N25,INDEX('Hourly Production'!X:X,'Flexible Graphs'!M25),NA()) -> 0 | T25: 23 | U25: =IF(N25,INDEX('Hourly Production'!Y:Y,'Flexible Graphs'!M25),NA()) -> 90 | V25: =IF(N25,INDEX('Hourly Production'!AD:AD,'Flexible Graphs'!M25),NA()) -> 0 | W25: =IF(N25,INDEX('Hourly Production'!AF:AF,'Flexible Graphs'!M25),NA()) -> 0 | X25: =IF(N25,INDEX('Hourly Production'!AG:AG,'Flexible Graphs'!M25),NA()) -> 200 | Y25: 23 | Z25: 0 | AA25: 0 | AB25: 2017-03-26T20:59:59.996 | AC25: =IF(N25,INDEX('Hourly Production'!AJ:AJ,'Flexible Graphs'!M25),NA()) -> 0 | AD25: =-IF(N25,INDEX('Hourly Production'!AK:AK,'Flexible Graphs'!M25),NA()) -> -90 | AE25: 2017-03-26T20:59:59.996 | AF25: =IF(N25,INDEX('Hourly Production'!AL:AL,'Flexible Graphs'!M25),NA()) -> 0 | AG25: =-IF(N25,INDEX('Hourly Production'!AM:AM,'Flexible Graphs'!M25),NA()) -> 0 | AI25: 21 | AJ25: Week 21
L26: 24 | M26: 2045 | N26: TRUE | O26: =IF(N26,INDEX('Hourly Production'!G:G,'Flexible Graphs'!M26),NA()) -> 2017-03-26T21:59:59.996 | P26: 24 | Q26: =IF(N26,INDEX('Hourly Production'!V:V,'Flexible Graphs'!M26),NA()) -> 90 | R26: =IF(N26,INDEX('Hourly Production'!W:W,'Flexible Graphs'!M26),NA()) -> 0 | S26: =IF(N26,INDEX('Hourly Production'!X:X,'Flexible Graphs'!M26),NA()) -> 0 | T26: 24 | U26: =IF(N26,INDEX('Hourly Production'!Y:Y,'Flexible Graphs'!M26),NA()) -> 90 | V26: =IF(N26,INDEX('Hourly Production'!AD:AD,'Flexible Graphs'!M26),NA()) -> 0 | W26: =IF(N26,INDEX('Hourly Production'!AF:AF,'Flexible Graphs'!M26),NA()) -> 0 | X26: =IF(N26,INDEX('Hourly Production'!AG:AG,'Flexible Graphs'!M26),NA()) -> 200 | Y26: 24 | Z26: 0 | AA26: 0 | AB26: 2017-03-26T21:59:59.996 | AC26: =IF(N26,INDEX('Hourly Production'!AJ:AJ,'Flexible Graphs'!M26),NA()) -> 0 | AD26: =-IF(N26,INDEX('Hourly Production'!AK:AK,'Flexible Graphs'!M26),NA()) -> -90 | AE26: 2017-03-26T21:59:59.996 | AF26: =IF(N26,INDEX('Hourly Production'!AL:AL,'Flexible Graphs'!M26),NA()) -> 0 | AG26: =-IF(N26,INDEX('Hourly Production'!AM:AM,'Flexible Graphs'!M26),NA()) -> 0 | AI26: 22 | AJ26: Week 22
L27: 25 | M27: 2046 | N27: TRUE | O27: =IF(N27,INDEX('Hourly Production'!G:G,'Flexible Graphs'!M27),NA()) -> 2017-03-26T22:59:59.996 | P27: 25 | Q27: =IF(N27,INDEX('Hourly Production'!V:V,'Flexible Graphs'!M27),NA()) -> 90 | R27: =IF(N27,INDEX('Hourly Production'!W:W,'Flexible Graphs'!M27),NA()) -> 0 | S27: =IF(N27,INDEX('Hourly Production'!X:X,'Flexible Graphs'!M27),NA()) -> 0 | T27: 25 | U27: =IF(N27,INDEX('Hourly Production'!Y:Y,'Flexible Graphs'!M27),NA()) -> 90 | V27: =IF(N27,INDEX('Hourly Production'!AD:AD,'Flexible Graphs'!M27),NA()) -> 0 | W27: =IF(N27,INDEX('Hourly Production'!AF:AF,'Flexible Graphs'!M27),NA()) -> 0 | X27: =IF(N27,INDEX('Hourly Production'!AG:AG,'Flexible Graphs'!M27),NA()) -> 200 | Y27: 25 | Z27: 0 | AA27: 0 | AB27: 2017-03-26T22:59:59.996 | AC27: =IF(N27,INDEX('Hourly Production'!AJ:AJ,'Flexible Graphs'!M27),NA()) -> 0 | AD27: =-IF(N27,INDEX('Hourly Production'!AK:AK,'Flexible Graphs'!M27),NA()) -> -90 | AE27: 2017-03-26T22:59:59.996 | AF27: =IF(N27,INDEX('Hourly Production'!AL:AL,'Flexible Graphs'!M27),NA()) -> 0 | AG27: =-IF(N27,INDEX('Hourly Production'!AM:AM,'Flexible Graphs'!M27),NA()) -> 0 | AI27: 23 | AJ27: Week 23
E28: Period Starting | G28: =H2 -> 2017-03-25T22:59:59.996 | L28: 26 | M28: 2047 | N28: TRUE | O28: =IF(N28,INDEX('Hourly Production'!G:G,'Flexible Graphs'!M28),NA()) -> 2017-03-26T23:59:59.996 | P28: 26 | Q28: =IF(N28,INDEX('Hourly Production'!V:V,'Flexible Graphs'!M28),NA()) -> 90 | R28: =IF(N28,INDEX('Hourly Production'!W:W,'Flexible Graphs'!M28),NA()) -> 0 | S28: =IF(N28,INDEX('Hourly Production'!X:X,'Flexible Graphs'!M28),NA()) -> 53.125 | T28: 26 | U28: =IF(N28,INDEX('Hourly Production'!Y:Y,'Flexible Graphs'!M28),NA()) -> 36.875 | V28: =IF(N28,INDEX('Hourly Production'!AD:AD,'Flexible Graphs'!M28),NA()) -> 0 | W28: =IF(N28,INDEX('Hourly Production'!AF:AF,'Flexible Graphs'!M28),NA()) -> 0 | X28: =IF(N28,INDEX('Hourly Production'!AG:AG,'Flexible Graphs'!M28),NA()) -> 200 | Y28: 26 | Z28: 0 | AA28: 0 | AB28: 2017-03-26T23:59:59.996 | AC28: =IF(N28,INDEX('Hourly Production'!AJ:AJ,'Flexible Graphs'!M28),NA()) -> 0 | AD28: =-IF(N28,INDEX('Hourly Production'!AK:AK,'Flexible Graphs'!M28),NA()) -> -36.875 | AE28: 2017-03-26T23:59:59.996 | AF28: =IF(N28,INDEX('Hourly Production'!AL:AL,'Flexible Graphs'!M28),NA()) -> 0 | AG28: =-IF(N28,INDEX('Hourly Production'!AM:AM,'Flexible Graphs'!M28),NA()) -> 0 | AI28: 24 | AJ28: Week 24
L29: 27 | M29: 2048 | N29: TRUE | O29: =IF(N29,INDEX('Hourly Production'!G:G,'Flexible Graphs'!M29),NA()) -> 2017-03-27T00:59:59.996 | P29: 27 | Q29: =IF(N29,INDEX('Hourly Production'!V:V,'Flexible Graphs'!M29),NA()) -> 90 | R29: =IF(N29,INDEX('Hourly Production'!W:W,'Flexible Graphs'!M29),NA()) -> 0 | S29: =IF(N29,INDEX('Hourly Production'!X:X,'Flexible Graphs'!M29),NA()) -> 58.18452381 | T29: 27 | U29: =IF(N29,INDEX('Hourly Production'!Y:Y,'Flexible Graphs'!M29),NA()) -> 31.81547619 | V29: =IF(N29,INDEX('Hourly Production'!AD:AD,'Flexible Graphs'!M29),NA()) -> 0 | W29: =IF(N29,INDEX('Hourly Production'!AF:AF,'Flexible Graphs'!M29),NA()) -> 0 | X29: =IF(N29,INDEX('Hourly Production'!AG:AG,'Flexible Graphs'!M29),NA()) -> 200 | Y29: 27 | Z29: 0 | AA29: 0 | AB29: 2017-03-27T00:59:59.996 | AC29: =IF(N29,INDEX('Hourly Production'!AJ:AJ,'Flexible Graphs'!M29),NA()) -> 0 | AD29: =-IF(N29,INDEX('Hourly Production'!AK:AK,'Flexible Graphs'!M29),NA()) -> -31.81547619 | AE29: 2017-03-27T00:59:59.996 | AF29: =IF(N29,INDEX('Hourly Production'!AL:AL,'Flexible Graphs'!M29),NA()) -> 0 | AG29: =-IF(N29,INDEX('Hourly Production'!AM:AM,'Flexible Graphs'!M29),NA()) -> 0 | AI29: 25 | AJ29: Week 25
L30: 28 | M30: 2049 | N30: TRUE | O30: =IF(N30,INDEX('Hourly Production'!G:G,'Flexible Graphs'!M30),NA()) -> 2017-03-27T01:59:59.996 | P30: 28 | Q30: =IF(N30,INDEX('Hourly Production'!V:V,'Flexible Graphs'!M30),NA()) -> 90 | R30: =IF(N30,INDEX('Hourly Production'!W:W,'Flexible Graphs'!M30),NA()) -> 0 | S30: =IF(N30,INDEX('Hourly Production'!X:X,'Flexible Graphs'!M30),NA()) -> 86.01190476 | T30: 28 | U30: =IF(N30,INDEX('Hourly Production'!Y:Y,'Flexible Graphs'!M30),NA()) -> 3.988095238 | V30: =IF(N30,INDEX('Hourly Production'!AD:AD,'Flexible Graphs'!M30),NA()) -> 0 | W30: =IF(N30,INDEX('Hourly Production'!AF:AF,'Flexible Graphs'!M30),NA()) -> 0 | X30: =IF(N30,INDEX('Hourly Production'!AG:AG,'Flexible Graphs'!M30),NA()) -> 200 | Y30: 28 | Z30: 0 | AA30: 0 | AB30: 2017-03-27T01:59:59.996 | AC30: =IF(N30,INDEX('Hourly Production'!AJ:AJ,'Flexible Graphs'!M30),NA()) -> 0 | AD30: =-IF(N30,INDEX('Hourly Production'!AK:AK,'Flexible Graphs'!M30),NA()) -> -3.988095238 | AE30: 2017-03-27T01:59:59.996 | AF30: =IF(N30,INDEX('Hourly Production'!AL:AL,'Flexible Graphs'!M30),NA()) -> 0 | AG30: =-IF(N30,INDEX('Hourly Production'!AM:AM,'Flexible Graphs'!M30),NA()) -> 0 | AI30: 26 | AJ30: Week 26
L31: 29 | M31: 2050 | N31: TRUE | O31: =IF(N31,INDEX('Hourly Production'!G:G,'Flexible Graphs'!M31),NA()) -> 2017-03-27T02:59:59.996 | P31: 29 | Q31: =IF(N31,INDEX('Hourly Production'!V:V,'Flexible Graphs'!M31),NA()) -> 90 | R31: =IF(N31,INDEX('Hourly Production'!W:W,'Flexible Graphs'!M31),NA()) -> 0 | S31: =IF(N31,INDEX('Hourly Production'!X:X,'Flexible Graphs'!M31),NA()) -> 70.83333333 | T31: 29 | U31: =IF(N31,INDEX('Hourly Production'!Y:Y,'Flexible Graphs'!M31),NA()) -> 19.16666667 | V31: =IF(N31,INDEX('Hourly Production'!AD:AD,'Flexible Graphs'!M31),NA()) -> 0 | W31: =IF(N31,INDEX('Hourly Production'!AF:AF,'Flexible Graphs'!M31),NA()) -> 0 | X31: =IF(N31,INDEX('Hourly Production'!AG:AG,'Flexible Graphs'!M31),NA()) -> 200 | Y31: 29 | Z31: 0 | AA31: 0 | AB31: 2017-03-27T02:59:59.996 | AC31: =IF(N31,INDEX('Hourly Production'!AJ:AJ,'Flexible Graphs'!M31),NA()) -> 0 | AD31: =-IF(N31,INDEX('Hourly Production'!AK:AK,'Flexible Graphs'!M31),NA()) -> -19.16666667 | AE31: 2017-03-27T02:59:59.996 | AF31: =IF(N31,INDEX('Hourly Production'!AL:AL,'Flexible Graphs'!M31),NA()) -> 0 | AG31: =-IF(N31,INDEX('Hourly Production'!AM:AM,'Flexible Graphs'!M31),NA()) -> 0 | AI31: 27 | AJ31: Week 27
L32: 30 | M32: 2051 | N32: TRUE | O32: =IF(N32,INDEX('Hourly Production'!G:G,'Flexible Graphs'!M32),NA()) -> 2017-03-27T03:59:59.996 | P32: 30 | Q32: =IF(N32,INDEX('Hourly Production'!V:V,'Flexible Graphs'!M32),NA()) -> 90 | R32: =IF(N32,INDEX('Hourly Production'!W:W,'Flexible Graphs'!M32),NA()) -> 0 | S32: =IF(N32,INDEX('Hourly Production'!X:X,'Flexible Graphs'!M32),NA()) -> 70.83333333 | T32: 30 | U32: =IF(N32,INDEX('Hourly Production'!Y:Y,'Flexible Graphs'!M32),NA()) -> 19.16666667 | V32: =IF(N32,INDEX('Hourly Production'!AD:AD,'Flexible Graphs'!M32),NA()) -> 0 | W32: =IF(N32,INDEX('Hourly Production'!AF:AF,'Flexible Graphs'!M32),NA()) -> 0 | X32: =IF(N32,INDEX('Hourly Production'!AG:AG,'Flexible Graphs'!M32),NA()) -> 200 | Y32: 30 | Z32: 0 | AA32: 0 | AB32: 2017-03-27T03:59:59.996 | AC32: =IF(N32,INDEX('Hourly Production'!AJ:AJ,'Flexible Graphs'!M32),NA()) -> 0 | AD32: =-IF(N32,INDEX('Hourly Production'!AK:AK,'Flexible Graphs'!M32),NA()) -> -19.16666667 | AE32: 2017-03-27T03:59:59.996 | AF32: =IF(N32,INDEX('Hourly Production'!AL:AL,'Flexible Graphs'!M32),NA()) -> 0 | AG32: =-IF(N32,INDEX('Hourly Production'!AM:AM,'Flexible Graphs'!M32),NA()) -> 0 | AI32: 28 | AJ32: Week 28
L33: 31 | M33: 2052 | N33: TRUE | O33: =IF(N33,INDEX('Hourly Production'!G:G,'Flexible Graphs'!M33),NA()) -> 2017-03-27T04:59:59.996 | P33: 31 | Q33: =IF(N33,INDEX('Hourly Production'!V:V,'Flexible Graphs'!M33),NA()) -> 90 | R33: =IF(N33,INDEX('Hourly Production'!W:W,'Flexible Graphs'!M33),NA()) -> 0 | S33: =IF(N33,INDEX('Hourly Production'!X:X,'Flexible Graphs'!M33),NA()) -> 55.6547619 | T33: 31 | U33: =IF(N33,INDEX('Hourly Production'!Y:Y,'Flexible Graphs'!M33),NA()) -> 34.3452381 | V33: =IF(N33,INDEX('Hourly Production'!AD:AD,'Flexible Graphs'!M33),NA()) -> 0 | W33: =IF(N33,INDEX('Hourly Production'!AF:AF,'Flexible Graphs'!M33),NA()) -> 0 | X33: =IF(N33,INDEX('Hourly Production'!AG:AG,'Flexible Graphs'!M33),NA()) -> 200 | Y33: 31 | Z33: 0 | AA33: 0 | AB33: 2017-03-27T04:59:59.996 | AC33: =IF(N33,INDEX('Hourly Production'!AJ:AJ,'Flexible Graphs'!M33),NA()) -> 0 | AD33: =-IF(N33,INDEX('Hourly Production'!AK:AK,'Flexible Graphs'!M33),NA()) -> -34.3452381 | AE33: 2017-03-27T04:59:59.996 | AF33: =IF(N33,INDEX('Hourly Production'!AL:AL,'Flexible Graphs'!M33),NA()) -> 0 | AG33: =-IF(N33,INDEX('Hourly Production'!AM:AM,'Flexible Graphs'!M33),NA()) -> 0 | AI33: 29 | AJ33: Week 29
L34: 32 | M34: 2053 | N34: TRUE | O34: =IF(N34,INDEX('Hourly Production'!G:G,'Flexible Graphs'!M34),NA()) -> 2017-03-27T05:59:59.996 | P34: 32 | Q34: =IF(N34,INDEX('Hourly Production'!V:V,'Flexible Graphs'!M34),NA()) -> 90 | R34: =IF(N34,INDEX('Hourly Production'!W:W,'Flexible Graphs'!M34),NA()) -> 0 | S34: =IF(N34,INDEX('Hourly Production'!X:X,'Flexible Graphs'!M34),NA()) -> 50.5952381 | T34: 32 | U34: =IF(N34,INDEX('Hourly Production'!Y:Y,'Flexible Graphs'!M34),NA()) -> 39.4047619 | V34: =IF(N34,INDEX('Hourly Production'!AD:AD,'Flexible Graphs'!M34),NA()) -> 0 | W34: =IF(N34,INDEX('Hourly Production'!AF:AF,'Flexible Graphs'!M34),NA()) -> 39.4047619 | X34: =IF(N34,INDEX('Hourly Production'!AG:AG,'Flexible Graphs'!M34),NA()) -> 160.5952381 | Y34: 32 | Z34: 0 | AA34: 39.4047619 | AB34: 2017-03-27T05:59:59.996 | AC34: =IF(N34,INDEX('Hourly Production'!AJ:AJ,'Flexible Graphs'!M34),NA()) -> 0 | AD34: =-IF(N34,INDEX('Hourly Production'!AK:AK,'Flexible Graphs'!M34),NA()) -> 0 | AE34: 2017-03-27T05:59:59.996 | AF34: =IF(N34,INDEX('Hourly Production'!AL:AL,'Flexible Graphs'!M34),NA()) -> 0 | AG34: =-IF(N34,INDEX('Hourly Production'!AM:AM,'Flexible Graphs'!M34),NA()) -> 0 | AI34: 30 | AJ34: Week 30
L35: 33 | M35: 2054 | N35: TRUE | O35: =IF(N35,INDEX('Hourly Production'!G:G,'Flexible Graphs'!M35),NA()) -> 2017-03-27T06:59:59.996 | P35: 33 | Q35: =IF(N35,INDEX('Hourly Production'!V:V,'Flexible Graphs'!M35),NA()) -> 90 | R35: =IF(N35,INDEX('Hourly Production'!W:W,'Flexible Graphs'!M35),NA()) -> 0 | S35: =IF(N35,INDEX('Hourly Production'!X:X,'Flexible Graphs'!M35),NA()) -> 53.125 | T35: 33 | U35: =IF(N35,INDEX('Hourly Production'!Y:Y,'Flexible Graphs'!M35),NA()) -> 36.875 | V35: =IF(N35,INDEX('Hourly Production'!AD:AD,'Flexible Graphs'!M35),NA()) -> 0 | W35: =IF(N35,INDEX('Hourly Production'!AF:AF,'Flexible Graphs'!M35),NA()) -> 36.875 | X35: =IF(N35,INDEX('Hourly Production'!AG:AG,'Flexible Graphs'!M35),NA()) -> 123.7202381 | Y35: 33 | Z35: 0 | AA35: 36.875 | AB35: 2017-03-27T06:59:59.996 | AC35: =IF(N35,INDEX('Hourly Production'!AJ:AJ,'Flexible Graphs'!M35),NA()) -> 0 | AD35: =-IF(N35,INDEX('Hourly Production'!AK:AK,'Flexible Graphs'!M35),NA()) -> 0 | AE35: 2017-03-27T06:59:59.996 | AF35: =IF(N35,INDEX('Hourly Production'!AL:AL,'Flexible Graphs'!M35),NA()) -> 0 | AG35: =-IF(N35,INDEX('Hourly Production'!AM:AM,'Flexible Graphs'!M35),NA()) -> 0 | AI35: 31 | AJ35: Week 31
L36: 34 | M36: 2055 | N36: TRUE | O36: =IF(N36,INDEX('Hourly Production'!G:G,'Flexible Graphs'!M36),NA()) -> 2017-03-27T07:59:59.996 | P36: 34 | Q36: =IF(N36,INDEX('Hourly Production'!V:V,'Flexible Graphs'!M36),NA()) -> 90 | R36: =IF(N36,INDEX('Hourly Production'!W:W,'Flexible Graphs'!M36),NA()) -> 4.94183958 | S36: =IF(N36,INDEX('Hourly Production'!X:X,'Flexible Graphs'!M36),NA()) -> 70.83333333 | T36: 34 | U36: =IF(N36,INDEX('Hourly Production'!Y:Y,'Flexible Graphs'!M36),NA()) -> 14.22482709 | V36: =IF(N36,INDEX('Hourly Production'!AD:AD,'Flexible Graphs'!M36),NA()) -> 0 | W36: =IF(N36,INDEX('Hourly Production'!AF:AF,'Flexible Graphs'!M36),NA()) -> 14.22482709 | X36: =IF(N36,INDEX('Hourly Production'!AG:AG,'Flexible Graphs'!M36),NA()) -> 109.495411 | Y36: 34 | Z36: 0 | AA36: 14.22482709 | AB36: 2017-03-27T07:59:59.996 | AC36: =IF(N36,INDEX('Hourly Production'!AJ:AJ,'Flexible Graphs'!M36),NA()) -> 0 | AD36: =-IF(N36,INDEX('Hourly Production'!AK:AK,'Flexible Graphs'!M36),NA()) -> 0 | AE36: 2017-03-27T07:59:59.996 | AF36: =IF(N36,INDEX('Hourly Production'!AL:AL,'Flexible Graphs'!M36),NA()) -> 0 | AG36: =-IF(N36,INDEX('Hourly Production'!AM:AM,'Flexible Graphs'!M36),NA()) -> 0 | AI36: 32 | AJ36: Week 32
L37: 35 | M37: 2056 | N37: TRUE | O37: =IF(N37,INDEX('Hourly Production'!G:G,'Flexible Graphs'!M37),NA()) -> 2017-03-27T08:59:59.996 | P37: 35 | Q37: =IF(N37,INDEX('Hourly Production'!V:V,'Flexible Graphs'!M37),NA()) -> 90 | R37: =IF(N37,INDEX('Hourly Production'!W:W,'Flexible Graphs'!M37),NA()) -> 11.41155012 | S37: =IF(N37,INDEX('Hourly Production'!X:X,'Flexible Graphs'!M37),NA()) -> 70.83333333 | T37: 35 | U37: =IF(N37,INDEX('Hourly Production'!Y:Y,'Flexible Graphs'!M37),NA()) -> 7.755116547 | V37: =IF(N37,INDEX('Hourly Production'!AD:AD,'Flexible Graphs'!M37),NA()) -> 0 | W37: =IF(N37,INDEX('Hourly Production'!AF:AF,'Flexible Graphs'!M37),NA()) -> 7.755116547 | X37: =IF(N37,INDEX('Hourly Production'!AG:AG,'Flexible Graphs'!M37),NA()) -> 101.7402945 | Y37: 35 | Z37: 0 | AA37: 7.755116547 | AB37: 2017-03-27T08:59:59.996 | AC37: =IF(N37,INDEX('Hourly Production'!AJ:AJ,'Flexible Graphs'!M37),NA()) -> 0 | AD37: =-IF(N37,INDEX('Hourly Production'!AK:AK,'Flexible Graphs'!M37),NA()) -> 0 | AE37: 2017-03-27T08:59:59.996 | AF37: =IF(N37,INDEX('Hourly Production'!AL:AL,'Flexible Graphs'!M37),NA()) -> 0 | AG37: =-IF(N37,INDEX('Hourly Production'!AM:AM,'Flexible Graphs'!M37),NA()) -> 0 | AI37: 33 | AJ37: Week 33
L38: 36 | M38: 2057 | N38: TRUE | O38: =IF(N38,INDEX('Hourly Production'!G:G,'Flexible Graphs'!M38),NA()) -> 2017-03-27T09:59:59.996 | P38: 36 | Q38: =IF(N38,INDEX('Hourly Production'!V:V,'Flexible Graphs'!M38),NA()) -> 90 | R38: =IF(N38,INDEX('Hourly Production'!W:W,'Flexible Graphs'!M38),NA()) -> 17.13265902 | S38: =IF(N38,INDEX('Hourly Production'!X:X,'Flexible Graphs'!M38),NA()) -> 86.01190476 | T38: 36 | U38: =IF(N38,INDEX('Hourly Production'!Y:Y,'Flexible Graphs'!M38),NA()) -> -13.14456378 | V38: =IF(N38,INDEX('Hourly Production'!AD:AD,'Flexible Graphs'!M38),NA()) -> 13.14456378 | W38: =IF(N38,INDEX('Hourly Production'!AF:AF,'Flexible Graphs'!M38),NA()) -> 0 | X38: =IF(N38,INDEX('Hourly Production'!AG:AG,'Flexible Graphs'!M38),NA()) -> 112.9131737 | Y38: 36 | Z38: 13.14456378 | AA38: 0 | AB38: 2017-03-27T09:59:59.996 | AC38: =IF(N38,INDEX('Hourly Production'!AJ:AJ,'Flexible Graphs'!M38),NA()) -> 0 | AD38: =-IF(N38,INDEX('Hourly Production'!AK:AK,'Flexible Graphs'!M38),NA()) -> 0 | AE38: 2017-03-27T09:59:59.996 | AF38: =IF(N38,INDEX('Hourly Production'!AL:AL,'Flexible Graphs'!M38),NA()) -> 0 | AG38: =-IF(N38,INDEX('Hourly Production'!AM:AM,'Flexible Graphs'!M38),NA()) -> 0 | AI38: 34 | AJ38: Week 34
L39: 37 | M39: 2058 | N39: TRUE | O39: =IF(N39,INDEX('Hourly Production'!G:G,'Flexible Graphs'!M39),NA()) -> 2017-03-27T10:59:59.996 | P39: 37 | Q39: =IF(N39,INDEX('Hourly Production'!V:V,'Flexible Graphs'!M39),NA()) -> 90 | R39: =IF(N39,INDEX('Hourly Production'!W:W,'Flexible Graphs'!M39),NA()) -> 22.77405948 | S39: =IF(N39,INDEX('Hourly Production'!X:X,'Flexible Graphs'!M39),NA()) -> 58.18452381 | T39: 37 | U39: =IF(N39,INDEX('Hourly Production'!Y:Y,'Flexible Graphs'!M39),NA()) -> 9.04141671 | V39: =IF(N39,INDEX('Hourly Production'!AD:AD,'Flexible Graphs'!M39),NA()) -> 0 | W39: =IF(N39,INDEX('Hourly Production'!AF:AF,'Flexible Graphs'!M39),NA()) -> 9.04141671 | X39: =IF(N39,INDEX('Hourly Production'!AG:AG,'Flexible Graphs'!M39),NA()) -> 103.871757 | Y39: 37 | Z39: 0 | AA39: 9.04141671 | AB39: 2017-03-27T10:59:59.996 | AC39: =IF(N39,INDEX('Hourly Production'!AJ:AJ,'Flexible Graphs'!M39),NA()) -> 0 | AD39: =-IF(N39,INDEX('Hourly Production'!AK:AK,'Flexible Graphs'!M39),NA()) -> 0 | AE39: 2017-03-27T10:59:59.996 | AF39: =IF(N39,INDEX('Hourly Production'!AL:AL,'Flexible Graphs'!M39),NA()) -> 0 | AG39: =-IF(N39,INDEX('Hourly Production'!AM:AM,'Flexible Graphs'!M39),NA()) -> 0 | AI39: 35 | AJ39: Week 35
L40: 38 | M40: 2059 | N40: TRUE | O40: =IF(N40,INDEX('Hourly Production'!G:G,'Flexible Graphs'!M40),NA()) -> 2017-03-27T11:59:59.996 | P40: 38 | Q40: =IF(N40,INDEX('Hourly Production'!V:V,'Flexible Graphs'!M40),NA()) -> 90 | R40: =IF(N40,INDEX('Hourly Production'!W:W,'Flexible Graphs'!M40),NA()) -> 28.81377894 | S40: =IF(N40,INDEX('Hourly Production'!X:X,'Flexible Graphs'!M40),NA()) -> 55.6547619 | T40: 38 | U40: =IF(N40,INDEX('Hourly Production'!Y:Y,'Flexible Graphs'!M40),NA()) -> 5.531459155 | V40: =IF(N40,INDEX('Hourly Production'!AD:AD,'Flexible Graphs'!M40),NA()) -> 0 | W40: =IF(N40,INDEX('Hourly Production'!AF:AF,'Flexible Graphs'!M40),NA()) -> 5.531459155 | X40: =IF(N40,INDEX('Hourly Production'!AG:AG,'Flexible Graphs'!M40),NA()) -> 98.34029781 | Y40: 38 | Z40: 0 | AA40: 5.531459155 | AB40: 2017-03-27T11:59:59.996 | AC40: =IF(N40,INDEX('Hourly Production'!AJ:AJ,'Flexible Graphs'!M40),NA()) -> 0 | AD40: =-IF(N40,INDEX('Hourly Production'!AK:AK,'Flexible Graphs'!M40),NA()) -> 0 | AE40: 2017-03-27T11:59:59.996 | AF40: =IF(N40,INDEX('Hourly Production'!AL:AL,'Flexible Graphs'!M40),NA()) -> 0 | AG40: =-IF(N40,INDEX('Hourly Production'!AM:AM,'Flexible Graphs'!M40),NA()) -> 0 | AI40: 36 | AJ40: Week 36
L41: 39 | M41: 2060 | N41: TRUE | O41: =IF(N41,INDEX('Hourly Production'!G:G,'Flexible Graphs'!M41),NA()) -> 2017-03-27T12:59:59.996 | P41: 39 | Q41: =IF(N41,INDEX('Hourly Production'!V:V,'Flexible Graphs'!M41),NA()) -> 90 | R41: =IF(N41,INDEX('Hourly Production'!W:W,'Flexible Graphs'!M41),NA()) -> 27.57246144 | S41: =IF(N41,INDEX('Hourly Production'!X:X,'Flexible Graphs'!M41),NA()) -> 55.6547619 | T41: 39 | U41: =IF(N41,INDEX('Hourly Production'!Y:Y,'Flexible Graphs'!M41),NA()) -> 6.772776655 | V41: =IF(N41,INDEX('Hourly Production'!AD:AD,'Flexible Graphs'!M41),NA()) -> 0 | W41: =IF(N41,INDEX('Hourly Production'!AF:AF,'Flexible Graphs'!M41),NA()) -> 6.772776655 | X41: =IF(N41,INDEX('Hourly Production'!AG:AG,'Flexible Graphs'!M41),NA()) -> 91.56752116 | Y41: 39 | Z41: 0 | AA41: 6.772776655 | AB41: 2017-03-27T12:59:59.996 | AC41: =IF(N41,INDEX('Hourly Production'!AJ:AJ,'Flexible Graphs'!M41),NA()) -> 0 | AD41: =-IF(N41,INDEX('Hourly Production'!AK:AK,'Flexible Graphs'!M41),NA()) -> 0 | AE41: 2017-03-27T12:59:59.996 | AF41: =IF(N41,INDEX('Hourly Production'!AL:AL,'Flexible Graphs'!M41),NA()) -> 0 | AG41: =-IF(N41,INDEX('Hourly Production'!AM:AM,'Flexible Graphs'!M41),NA()) -> 0 | AI41: 37 | AJ41: Week 37
L42: 40 | M42: 2061 | N42: TRUE | O42: =IF(N42,INDEX('Hourly Production'!G:G,'Flexible Graphs'!M42),NA()) -> 2017-03-27T13:59:59.996 | P42: 40 | Q42: =IF(N42,INDEX('Hourly Production'!V:V,'Flexible Graphs'!M42),NA()) -> 90 | R42: =IF(N42,INDEX('Hourly Production'!W:W,'Flexible Graphs'!M42),NA()) -> 26.4555147 | S42: =IF(N42,INDEX('Hourly Production'!X:X,'Flexible Graphs'!M42),NA()) -> 58.18452381 | T42: 40 | U42: =IF(N42,INDEX('Hourly Production'!Y:Y,'Flexible Graphs'!M42),NA()) -> 5.35996149 | V42: =IF(N42,INDEX('Hourly Production'!AD:AD,'Flexible Graphs'!M42),NA()) -> 0 | W42: =IF(N42,INDEX('Hourly Production'!AF:AF,'Flexible Graphs'!M42),NA()) -> 5.35996149 | X42: =IF(N42,INDEX('Hourly Production'!AG:AG,'Flexible Graphs'!M42),NA()) -> 86.20755967 | Y42: 40 | Z42: 0 | AA42: 5.35996149 | AB42: 2017-03-27T13:59:59.996 | AC42: =IF(N42,INDEX('Hourly Production'!AJ:AJ,'Flexible Graphs'!M42),NA()) -> 0 | AD42: =-IF(N42,INDEX('Hourly Production'!AK:AK,'Flexible Graphs'!M42),NA()) -> 0 | AE42: 2017-03-27T13:59:59.996 | AF42: =IF(N42,INDEX('Hourly Production'!AL:AL,'Flexible Graphs'!M42),NA()) -> 0 | AG42: =-IF(N42,INDEX('Hourly Production'!AM:AM,'Flexible Graphs'!M42),NA()) -> 0 | AI42: 38 | AJ42: Week 38
L43: 41 | M43: 2062 | N43: TRUE | O43: =IF(N43,INDEX('Hourly Production'!G:G,'Flexible Graphs'!M43),NA()) -> 2017-03-27T14:59:59.996 | P43: 41 | Q43: =IF(N43,INDEX('Hourly Production'!V:V,'Flexible Graphs'!M43),NA()) -> 90 | R43: =IF(N43,INDEX('Hourly Production'!W:W,'Flexible Graphs'!M43),NA()) -> 22.5787446 | S43: =IF(N43,INDEX('Hourly Production'!X:X,'Flexible Graphs'!M43),NA()) -> 86.01190476 | T43: 41 | U43: =IF(N43,INDEX('Hourly Production'!Y:Y,'Flexible Graphs'!M43),NA()) -> -18.59064936 | V43: =IF(N43,INDEX('Hourly Production'!AD:AD,'Flexible Graphs'!M43),NA()) -> 18.59064936 | W43: =IF(N43,INDEX('Hourly Production'!AF:AF,'Flexible Graphs'!M43),NA()) -> 0 | X43: =IF(N43,INDEX('Hourly Production'!AG:AG,'Flexible Graphs'!M43),NA()) -> 102.0096116 | Y43: 41 | Z43: 18.59064936 | AA43: 0 | AB43: 2017-03-27T14:59:59.996 | AC43: =IF(N43,INDEX('Hourly Production'!AJ:AJ,'Flexible Graphs'!M43),NA()) -> 0 | AD43: =-IF(N43,INDEX('Hourly Production'!AK:AK,'Flexible Graphs'!M43),NA()) -> 0 | AE43: 2017-03-27T14:59:59.996 | AF43: =IF(N43,INDEX('Hourly Production'!AL:AL,'Flexible Graphs'!M43),NA()) -> 0 | AG43: =-IF(N43,INDEX('Hourly Production'!AM:AM,'Flexible Graphs'!M43),NA()) -> 0 | AI43: 39 | AJ43: Week 39
L44: 42 | M44: 2063 | N44: TRUE | O44: =IF(N44,INDEX('Hourly Production'!G:G,'Flexible Graphs'!M44),NA()) -> 2017-03-27T15:59:59.996 | P44: 42 | Q44: =IF(N44,INDEX('Hourly Production'!V:V,'Flexible Graphs'!M44),NA()) -> 90 | R44: =IF(N44,INDEX('Hourly Production'!W:W,'Flexible Graphs'!M44),NA()) -> 16.32340278 | S44: =IF(N44,INDEX('Hourly Production'!X:X,'Flexible Graphs'!M44),NA()) -> 58.18452381 | T44: 42 | U44: =IF(N44,INDEX('Hourly Production'!Y:Y,'Flexible Graphs'!M44),NA()) -> 15.49207341 | V44: =IF(N44,INDEX('Hourly Production'!AD:AD,'Flexible Graphs'!M44),NA()) -> 0 | W44: =IF(N44,INDEX('Hourly Production'!AF:AF,'Flexible Graphs'!M44),NA()) -> 15.49207341 | X44: =IF(N44,INDEX('Hourly Production'!AG:AG,'Flexible Graphs'!M44),NA()) -> 86.51753821 | Y44: 42 | Z44: 0 | AA44: 15.49207341 | AB44: 2017-03-27T15:59:59.996 | AC44: =IF(N44,INDEX('Hourly Production'!AJ:AJ,'Flexible Graphs'!M44),NA()) -> 0 | AD44: =-IF(N44,INDEX('Hourly Production'!AK:AK,'Flexible Graphs'!M44),NA()) -> 0 | AE44: 2017-03-27T15:59:59.996 | AF44: =IF(N44,INDEX('Hourly Production'!AL:AL,'Flexible Graphs'!M44),NA()) -> 0 | AG44: =-IF(N44,INDEX('Hourly Production'!AM:AM,'Flexible Graphs'!M44),NA()) -> 0 | AI44: 40 | AJ44: Week 40
L45: 43 | M45: 2064 | N45: TRUE | O45: =IF(N45,INDEX('Hourly Production'!G:G,'Flexible Graphs'!M45),NA()) -> 2017-03-27T16:59:59.996 | P45: 43 | Q45: =IF(N45,INDEX('Hourly Production'!V:V,'Flexible Graphs'!M45),NA()) -> 90 | R45: =IF(N45,INDEX('Hourly Production'!W:W,'Flexible Graphs'!M45),NA()) -> 10.4586963 | S45: =IF(N45,INDEX('Hourly Production'!X:X,'Flexible Graphs'!M45),NA()) -> 170 | T45: 43 | U45: =IF(N45,INDEX('Hourly Production'!Y:Y,'Flexible Graphs'!M45),NA()) -> -90.4586963 | V45: =IF(N45,INDEX('Hourly Production'!AD:AD,'Flexible Graphs'!M45),NA()) -> 90.4586963 | W45: =IF(N45,INDEX('Hourly Production'!AF:AF,'Flexible Graphs'!M45),NA()) -> 0 | X45: =IF(N45,INDEX('Hourly Production'!AG:AG,'Flexible Graphs'!M45),NA()) -> 163.4074301 | Y45: 43 | Z45: 90.4586963 | AA45: 0 | AB45: 2017-03-27T16:59:59.996 | AC45: =IF(N45,INDEX('Hourly Production'!AJ:AJ,'Flexible Graphs'!M45),NA()) -> 0 | AD45: =-IF(N45,INDEX('Hourly Production'!AK:AK,'Flexible Graphs'!M45),NA()) -> 0 | AE45: 2017-03-27T16:59:59.996 | AF45: =IF(N45,INDEX('Hourly Production'!AL:AL,'Flexible Graphs'!M45),NA()) -> 0 | AG45: =-IF(N45,INDEX('Hourly Production'!AM:AM,'Flexible Graphs'!M45),NA()) -> 0 | AI45: 41 | AJ45: Week 41
L46: 44 | M46: 2065 | N46: TRUE | O46: =IF(N46,INDEX('Hourly Production'!G:G,'Flexible Graphs'!M46),NA()) -> 2017-03-27T17:59:59.996 | P46: 44 | Q46: =IF(N46,INDEX('Hourly Production'!V:V,'Flexible Graphs'!M46),NA()) -> 90 | R46: =IF(N46,INDEX('Hourly Production'!W:W,'Flexible Graphs'!M46),NA()) -> 4.1847489 | S46: =IF(N46,INDEX('Hourly Production'!X:X,'Flexible Graphs'!M46),NA()) -> 170 | T46: 44 | U46: =IF(N46,INDEX('Hourly Production'!Y:Y,'Flexible Graphs'!M46),NA()) -> -84.1847489 | V46: =IF(N46,INDEX('Hourly Production'!AD:AD,'Flexible Graphs'!M46),NA()) -> 36.59256993 | W46: =IF(N46,INDEX('Hourly Production'!AF:AF,'Flexible Graphs'!M46),NA()) -> 0 | X46: =IF(N46,INDEX('Hourly Production'!AG:AG,'Flexible Graphs'!M46),NA()) -> 194.5111145 | Y46: 44 | Z46: 36.59256993 | AA46: 0 | AB46: 2017-03-27T17:59:59.996 | AC46: =IF(N46,INDEX('Hourly Production'!AJ:AJ,'Flexible Graphs'!M46),NA()) -> 0 | AD46: =-IF(N46,INDEX('Hourly Production'!AK:AK,'Flexible Graphs'!M46),NA()) -> 0 | AE46: 2017-03-27T17:59:59.996 | AF46: =IF(N46,INDEX('Hourly Production'!AL:AL,'Flexible Graphs'!M46),NA()) -> 47.59217897 | AG46: =-IF(N46,INDEX('Hourly Production'!AM:AM,'Flexible Graphs'!M46),NA()) -> 0 | AI46: 42 | AJ46: Week 42
L47: 45 | M47: 2066 | N47: TRUE | O47: =IF(N47,INDEX('Hourly Production'!G:G,'Flexible Graphs'!M47),NA()) -> 2017-03-27T18:59:59.996 | P47: 45 | Q47: =IF(N47,INDEX('Hourly Production'!V:V,'Flexible Graphs'!M47),NA()) -> 90 | R47: =IF(N47,INDEX('Hourly Production'!W:W,'Flexible Graphs'!M47),NA()) -> 0 | S47: =IF(N47,INDEX('Hourly Production'!X:X,'Flexible Graphs'!M47),NA()) -> 170 | T47: 45 | U47: =IF(N47,INDEX('Hourly Production'!Y:Y,'Flexible Graphs'!M47),NA()) -> -80 | V47: =IF(N47,INDEX('Hourly Production'!AD:AD,'Flexible Graphs'!M47),NA()) -> 5.48888549 | W47: =IF(N47,INDEX('Hourly Production'!AF:AF,'Flexible Graphs'!M47),NA()) -> 0 | X47: =IF(N47,INDEX('Hourly Production'!AG:AG,'Flexible Graphs'!M47),NA()) -> 199.1766672 | Y47: 45 | Z47: 5.48888549 | AA47: 0 | AB47: 2017-03-27T18:59:59.996 | AC47: =IF(N47,INDEX('Hourly Production'!AJ:AJ,'Flexible Graphs'!M47),NA()) -> 0 | AD47: =-IF(N47,INDEX('Hourly Production'!AK:AK,'Flexible Graphs'!M47),NA()) -> 0 | AE47: 2017-03-27T18:59:59.996 | AF47: =IF(N47,INDEX('Hourly Production'!AL:AL,'Flexible Graphs'!M47),NA()) -> 74.51111451 | AG47: =-IF(N47,INDEX('Hourly Production'!AM:AM,'Flexible Graphs'!M47),NA()) -> 0 | AI47: 43 | AJ47: Week 43
L48: 46 | M48: 2067 | N48: TRUE | O48: =IF(N48,INDEX('Hourly Production'!G:G,'Flexible Graphs'!M48),NA()) -> 2017-03-27T19:59:59.996 | P48: 46 | Q48: =IF(N48,INDEX('Hourly Production'!V:V,'Flexible Graphs'!M48),NA()) -> 90 | R48: =IF(N48,INDEX('Hourly Production'!W:W,'Flexible Graphs'!M48),NA()) -> 0 | S48: =IF(N48,INDEX('Hourly Production'!X:X,'Flexible Graphs'!M48),NA()) -> 170 | T48: 46 | U48: =IF(N48,INDEX('Hourly Production'!Y:Y,'Flexible Graphs'!M48),NA()) -> -80 | V48: =IF(N48,INDEX('Hourly Production'!AD:AD,'Flexible Graphs'!M48),NA()) -> 0.8233328235 | W48: =IF(N48,INDEX('Hourly Production'!AF:AF,'Flexible Graphs'!M48),NA()) -> 0 | X48: =IF(N48,INDEX('Hourly Production'!AG:AG,'Flexible Graphs'!M48),NA()) -> 199.8765001 | Y48: 46 | Z48: 0.8233328235 | AA48: 0 | AB48: 2017-03-27T19:59:59.996 | AC48: =IF(N48,INDEX('Hourly Production'!AJ:AJ,'Flexible Graphs'!M48),NA()) -> 0 | AD48: =-IF(N48,INDEX('Hourly Production'!AK:AK,'Flexible Graphs'!M48),NA()) -> 0 | AE48: 2017-03-27T19:59:59.996 | AF48: =IF(N48,INDEX('Hourly Production'!AL:AL,'Flexible Graphs'!M48),NA()) -> 79.17666718 | AG48: =-IF(N48,INDEX('Hourly Production'!AM:AM,'Flexible Graphs'!M48),NA()) -> 0 | AI48: 44 | AJ48: Week 44
L49: 47 | M49: 2068 | N49: TRUE | O49: =IF(N49,INDEX('Hourly Production'!G:G,'Flexible Graphs'!M49),NA()) -> 2017-03-27T20:59:59.996 | P49: 47 | Q49: =IF(N49,INDEX('Hourly Production'!V:V,'Flexible Graphs'!M49),NA()) -> 90 | R49: =IF(N49,INDEX('Hourly Production'!W:W,'Flexible Graphs'!M49),NA()) -> 0 | S49: =IF(N49,INDEX('Hourly Production'!X:X,'Flexible Graphs'!M49),NA()) -> 101.1904762 | T49: 47 | U49: =IF(N49,INDEX('Hourly Production'!Y:Y,'Flexible Graphs'!M49),NA()) -> -11.19047619 | V49: =IF(N49,INDEX('Hourly Production'!AD:AD,'Flexible Graphs'!M49),NA()) -> 0.1234999235 | W49: =IF(N49,INDEX('Hourly Production'!AF:AF,'Flexible Graphs'!M49),NA()) -> 0 | X49: =IF(N49,INDEX('Hourly Production'!AG:AG,'Flexible Graphs'!M49),NA()) -> 199.981475 | Y49: 47 | Z49: 0.1234999235 | AA49: 0 | AB49: 2017-03-27T20:59:59.996 | AC49: =IF(N49,INDEX('Hourly Production'!AJ:AJ,'Flexible Graphs'!M49),NA()) -> 0 | AD49: =-IF(N49,INDEX('Hourly Production'!AK:AK,'Flexible Graphs'!M49),NA()) -> 0 | AE49: 2017-03-27T20:59:59.996 | AF49: =IF(N49,INDEX('Hourly Production'!AL:AL,'Flexible Graphs'!M49),NA()) -> 11.06697627 | AG49: =-IF(N49,INDEX('Hourly Production'!AM:AM,'Flexible Graphs'!M49),NA()) -> 0 | AI49: 45 | AJ49: Week 45
L50: 48 | M50: 2069 | N50: TRUE | O50: =IF(N50,INDEX('Hourly Production'!G:G,'Flexible Graphs'!M50),NA()) -> 2017-03-27T21:59:59.996 | P50: 48 | Q50: =IF(N50,INDEX('Hourly Production'!V:V,'Flexible Graphs'!M50),NA()) -> 90 | R50: =IF(N50,INDEX('Hourly Production'!W:W,'Flexible Graphs'!M50),NA()) -> 0 | S50: =IF(N50,INDEX('Hourly Production'!X:X,'Flexible Graphs'!M50),NA()) -> 93.60119048 | T50: 48 | U50: =IF(N50,INDEX('Hourly Production'!Y:Y,'Flexible Graphs'!M50),NA()) -> -3.601190476 | V50: =IF(N50,INDEX('Hourly Production'!AD:AD,'Flexible Graphs'!M50),NA()) -> 0.01852498853 | W50: =IF(N50,INDEX('Hourly Production'!AF:AF,'Flexible Graphs'!M50),NA()) -> 0 | X50: =IF(N50,INDEX('Hourly Production'!AG:AG,'Flexible Graphs'!M50),NA()) -> 199.9972213 | Y50: 48 | Z50: 0.01852498853 | AA50: 0 | AB50: 2017-03-27T21:59:59.996 | AC50: =IF(N50,INDEX('Hourly Production'!AJ:AJ,'Flexible Graphs'!M50),NA()) -> 0 | AD50: =-IF(N50,INDEX('Hourly Production'!AK:AK,'Flexible Graphs'!M50),NA()) -> 0 | AE50: 2017-03-27T21:59:59.996 | AF50: =IF(N50,INDEX('Hourly Production'!AL:AL,'Flexible Graphs'!M50),NA()) -> 3.582665488 | AG50: =-IF(N50,INDEX('Hourly Production'!AM:AM,'Flexible Graphs'!M50),NA()) -> 0 | AI50: 46 | AJ50: Week 46
L51: 49 | M51: 2070 | N51: TRUE | O51: =IF(N51,INDEX('Hourly Production'!G:G,'Flexible Graphs'!M51),NA()) -> 2017-03-27T22:59:59.996 | P51: 49 | Q51: =IF(N51,INDEX('Hourly Production'!V:V,'Flexible Graphs'!M51),NA()) -> 90 | R51: =IF(N51,INDEX('Hourly Production'!W:W,'Flexible Graphs'!M51),NA()) -> 0 | S51: =IF(N51,INDEX('Hourly Production'!X:X,'Flexible Graphs'!M51),NA()) -> 50.5952381 | T51: 49 | U51: =IF(N51,INDEX('Hourly Production'!Y:Y,'Flexible Graphs'!M51),NA()) -> 39.4047619 | V51: =IF(N51,INDEX('Hourly Production'!AD:AD,'Flexible Graphs'!M51),NA()) -> 0 | W51: =IF(N51,INDEX('Hourly Production'!AF:AF,'Flexible Graphs'!M51),NA()) -> 0 | X51: =IF(N51,INDEX('Hourly Production'!AG:AG,'Flexible Graphs'!M51),NA()) -> 199.9972213 | Y51: 49 | Z51: 0 | AA51: 0 | AB51: 2017-03-27T22:59:59.996 | AC51: =IF(N51,INDEX('Hourly Production'!AJ:AJ,'Flexible Graphs'!M51),NA()) -> 0 | AD51: =-IF(N51,INDEX('Hourly Production'!AK:AK,'Flexible Graphs'!M51),NA()) -> -39.4047619 | AE51: 2017-03-27T22:59:59.996 | AF51: =IF(N51,INDEX('Hourly Production'!AL:AL,'Flexible Graphs'!M51),NA()) -> 0 | AG51: =-IF(N51,INDEX('Hourly Production'!AM:AM,'Flexible Graphs'!M51),NA()) -> 0 | AI51: 47 | AJ51: Week 47
L52: 50 | M52: 2071 | N52: TRUE | O52: =IF(N52,INDEX('Hourly Production'!G:G,'Flexible Graphs'!M52),NA()) -> 2017-03-27T23:59:59.996 | P52: 50 | Q52: =IF(N52,INDEX('Hourly Production'!V:V,'Flexible Graphs'!M52),NA()) -> 90 | R52: =IF(N52,INDEX('Hourly Production'!W:W,'Flexible Graphs'!M52),NA()) -> 0 | S52: =IF(N52,INDEX('Hourly Production'!X:X,'Flexible Graphs'!M52),NA()) -> 43.00595238 | T52: 50 | U52: =IF(N52,INDEX('Hourly Production'!Y:Y,'Flexible Graphs'!M52),NA()) -> 46.99404762 | V52: =IF(N52,INDEX('Hourly Production'!AD:AD,'Flexible Graphs'!M52),NA()) -> 0 | W52: =IF(N52,INDEX('Hourly Production'!AF:AF,'Flexible Graphs'!M52),NA()) -> 0 | X52: =IF(N52,INDEX('Hourly Production'!AG:AG,'Flexible Graphs'!M52),NA()) -> 199.9972213 | Y52: 50 | Z52: 0 | AA52: 0 | AB52: 2017-03-27T23:59:59.996 | AC52: =IF(N52,INDEX('Hourly Production'!AJ:AJ,'Flexible Graphs'!M52),NA()) -> 0 | AD52: =-IF(N52,INDEX('Hourly Production'!AK:AK,'Flexible Graphs'!M52),NA()) -> -46.99404762 | AE52: 2017-03-27T23:59:59.996 | AF52: =IF(N52,INDEX('Hourly Production'!AL:AL,'Flexible Graphs'!M52),NA()) -> 0 | AG52: =-IF(N52,INDEX('Hourly Production'!AM:AM,'Flexible Graphs'!M52),NA()) -> 0 | AI52: 48 | AJ52: Week 48
